Workbook

Sheet START
A1: =muni -> LIM353 Molemole

Sheet Instructions
D2: 2020
X4: Yes
X5: No
W7: Type of Entities Range: | X7: Parent Municipality
X8: Consolidated Information
W10: Date linked | X10: 10
W11: Date | X11: =VLOOKUP(X10,W39:X55,2) -> M10 April | Y11: 2013-08-01
W19: MTREF Range: | X19: 2008
X20: 2009
X21: 2010
X22: 2011
X23: 2012
X24: 2013
X25: 2014
X26: 2015
X27: 2016
X28: 2017
X29: 2018
X30: 2019
X31: 2020
X32: 2021
X33: 2022
W34: MTREF Linked:
W35: MTREF: | X35: 12
X36: =INDEX(X19:X33,X35,1) -> 2019
W37: Fin Year:
X38: =MTREF&"/"&RIGHT(MTREF,2)+1 -> 2019/20
V39: Date/type of report | W39: 1 | X39: M01 July
W40: 2 | X40: M02 August
W41: 3 | X41: M03 September
W42: 4 | X42: M04 October
W43: 5 | X43: M05 November
W44: 6 | X44: M06 December
W45: 7 | X45: M07 January
W46: 8 | X46: M08 February
W47: 9 | X47: M09 March
W48: 10 | X48: M10 April
W49: 11 | X49: M11 May
W50: 12 | X50: M12 June
W51: 13 | X51: Q1 First Quarter
W52: 14 | X52: Q2 Second Quarter
W53: 15 | X53: Q3 Third Quarter
W54: 16 | X54: Q4 Fourth Quarter
W55: 17 | X55: Mid-Year Assessment

Sheet Template names (hidden)
A1: Common sheet headings
A2: Head1 | B2: =HLOOKUP(MTREF,Headings,2) -> 2018/19 | C2: Prior year -1
A3: Head2 | B3: =HLOOKUP(MTREF,Headings,5) -> Budget Year 2019/20 | C3: Year of approved budget
A4: Head2A | B4: =HLOOKUP(MTREF,Headings,4) -> 2019/20 | C4: Approved budget year
A5: Head3 | B5: =HLOOKUP(MTREF,Headings,3) -> 2019/20 Medium Term Revenue & Expenditure Framework | C5: MTREF header name
A6: Head5 | B6: Audited Outcome
A7: Head5A | B7: Outcome
A8: Head5B | B8: Pre-audit outcome
A9: Head6 | B9: Original Budget
A10: Head7 | B10: Adjusted Budget
A11: Head8 | B11: Full Year Forecast
A12: Head9 | B12: =HLOOKUP(MTREF,Headings,5) -> Budget Year 2019/20 | C12: 1st year of MTREF | D12: Year1
A13: Head10 | B13: =HLOOKUP(MTREF,Headings,6) -> Budget Year +1 2020/21 | C13: 2nd year of MTREF | D13: Year2
A14: Head11 | B14: =HLOOKUP(MTREF,Headings,7) -> Budget Year +2 2021/22 | C14: 3rd year of MTREF | D14: Year3
A15: Head12 | B15: Forecast 2010/11 | D15: Year4
A16: Head13 | B16: Forecast 2011/12 | D16: Year5
A17: Head14 | B17: Forecast 2012/13 | D17: Year6
A18: Head15 | B18: Forecast 2013/14 | D18: Year7
A19: Head16 | B19: Forecast 2014/15 | D19: Year8
A20: Head17 | B20: Forecast 2015/16 | D20: Year9
A21: Head18 | B21: Forecast 2016/17 | D21: Year10
A22: Head19 | B22: Forecast 2017/18 | D22: Year11
A23: Head20 | B23: Forecast 2018/19 | D23: Year12
A24: Head21 | B24: Forecast 2019/20 | D24: Year13
A25: Head22 | B25: Forecast 2020/21 | D25: Year14
A26: Head23 | B26: Forecast 2021/22 | D26: Year15
A27: Head24 | B27: Description | D27: Desc
A28: Head25 | B28: Schedule of funding diligence | D28: fdil
A29: Head26 | B29: Vote Description | D29: VDesc
A30: Head27 | B30: Ref
A31: Head27a | B31: References
A32: Head28 | B32: Surplus/ (Deficit) for the year | D32: Result
A33: Head29 | B33: Annual target 2007/08
A34: Head30 | B34: Revised target 2007/08
A35: Head31 | B35: Quarter ended 30 September
A36: Head32 | B36: Quarter ended 31 December
A37: Head33 | B37: Quarter ended 31 March
A38: Head34 | B38: Quarter ended 30 June
A39: Head35 | B39: Variance explanation
A40: Head36 | B40: YTD Actual 31 Dec
A41: Head37 | B41: YTD Budget 31 Dec
A42: Head38 | B42: Monthly actual
A43: Head39 | B43: YearTD actual
A44: Head40 | B44: YearTD budget
A45: Head41 | B45: YTD variance
A46: Head42 | B46: Surplus/ (Deficit) for the yr/period
A47: Head43 | B47: =Head3&" Summary" -> 2019/20 Medium Term Revenue & Expenditure Framework Summary
A48: Head44 | B48: 1996 Census
A49: Head45 | B49: 2001 Census
A50: Head46 | B50: - Adjustments Budget - Month YYYY
A51: Head47 | B51: Previous target year to complete
A52: Head48 | B52: Present value
A53: Head49 | B53: Virement
A54: Head50 | B54: Other Adjusts.
A55: Head51 | B55: Accum. Funds
A56: Head52 | B56: Multi-year capital
A57: Head53 | B57: Unfore. Unavoid.
A58: Head54 | B58: Prior Adjusted
A59: Head55 | B59: Nat. or Prov. Govt
A60: Head56 | B60: Total Adjusts.
A61: Head57 | B61: =date -> M10 April
A62: Head58 | B62: Parent muni.
A63: Head59 | B63: Downward adjusts
A64: Head60 | B64: Month | C64: Report header part name | D64: =MONTH(date) -> 
A65: SFPerf1 | B65: Budgeted Financial Performance
A66: SFPerf2 | B66: Forecast Financial Performance
A67: SFPos1 | B67: Budgeted Financial Position
A68: SFPos2 | B68: Forecast Financial Position
A69: Cash1 | B69: Budget Cash Flow
A70: Cash2 | B70: Forecast Cash Flow
A71: RandM | B71: Expenditure includes repairs & maintenance of R'000
A72: Standard nomenclature
A73: Muni | B73: ='Lookup and lists'!B27 -> LIM353 Molemole
A74: Municipal Entities | B74: 2 | C74: Type of report: | D74: 1
A75: =IF((MuniEntities=1)*(MuniType=2),"YES","NO") -> NO | B75: Does this municipality have entities (consolidated budget and entity budgets required)? YES/NO
A76: s71 (Monthly Mayor report) schedules and charts
A77: S71sum | B77: =IF(Consolques="YES",E77,F77) -> Table C1 Monthly Budget Statement Summary | D77: Table C1 | E77: =D77&"Consolidated Monthly Budget Statement Summary" -> Table C1 Consolidated Monthly Budget Statement Summary | F77: =D77&"Monthly Budget Statement Summary" -> Table C1 Monthly Budget Statement Summary
A78: S71C | B78: Table C3 Monthly Budget Statement - Financial Performance (revenue and expenditure by municipal vote) | D78: Table C3 | E78: =D78&"Consolidated Monthly Budget Statement - Financial Performance (revenue and expenditure by municipal vote) " -> Table C3 Consolidated Monthly Budget Statement - Financial Performance (revenue and expenditure by municipal vote) | F78: =D78&"Monthly Budget Statement - Financial Performance (revenue and expenditure by municipal vote)" -> Table C3 Monthly Budget Statement - Financial Performance (revenue and expenditure by municipal vote)
A79: S71A | B79: =IF(Consolques="YES",E79,F79) -> Table C2 Monthly Budget Statement - Financial Performance (functional classification) | D79: Table C2 | E79: =D79&"Consolidated Monthly Budget Statement - Financial Performance (functional classification) " -> Table C2 Consolidated Monthly Budget Statement - Financial Performance (functional classification) | F79: =D79&"Monthly Budget Statement - Financial Performance (functional classification)" -> Table C2 Monthly Budget Statement - Financial Performance (functional classification)
A80: S71B | B80: =IF(Consolques="YES",E80,F80) -> Table C4 Monthly Budget Statement - Financial Performance (revenue and expenditure) | D80: Table C4 | E80: =D80&"Consolidated Monthly Budget Statement - Financial Performance (revenue and expenditure) " -> Table C4 Consolidated Monthly Budget Statement - Financial Performance (revenue and expenditure) | F80: =D80&"Monthly Budget Statement - Financial Performance (revenue and expenditure)" -> Table C4 Monthly Budget Statement - Financial Performance (revenue and expenditure)
A81: S71D | B81: =IF(Consolques="YES",E81,F81) -> Table C5 Monthly Budget Statement - Capital Expenditure (municipal vote, functional classification and funding) | D81: Table C5 | E81: =D81&"Consolidated Monthly Budget Statement - Capital Expenditure (municipal vote, functional classification and funding " -> Table C5 Consolidated Monthly Budget Statement - Capital Expenditure (municipal vote, functional classification and funding | F81: =D81&"Monthly Budget Statement - Capital Expenditure (municipal vote, functional classification and funding)" -> Table C5 Monthly Budget Statement - Capital Expenditure (municipal vote, functional classification and funding)
A82: S71E | B82: Table C6 Monthly Budget Statement - Financial Position | D82: Table C6 | E82: =D82&"Consolidated Monthly Budget Statement - Financial Position " -> Table C6 Consolidated Monthly Budget Statement - Financial Position | F82: =D82&"Monthly Budget Statement - Financial Position" -> Table C6 Monthly Budget Statement - Financial Position
A83: S71F | B83: Table C7 Monthly Budget Statement - Cash Flow | D83: Table C7 | E83: =D83&"Consolidated Monthly Budget Statement - Cash Flow " -> Table C7 Consolidated Monthly Budget Statement - Cash Flow | F83: =D83&"Monthly Budget Statement - Cash Flow " -> Table C7 Monthly Budget Statement - Cash Flow
A84: S71G | B84: =D84&"Material variance explanations " -> Supporting Table SC1 Material variance explanations | D84: Supporting Table SC1
A85: S71H | B85: =D85&"Monthly Budget Statement - performance indicators " -> Supporting Table SC2 Monthly Budget Statement - performance indicators | D85: Supporting Table SC2
A86: S71I | B86: =D86&"Monthly Budget Statement - aged debtors" -> Supporting Table SC3 Monthly Budget Statement - aged debtors | D86: Supporting Table SC3
A87: S71J | B87: =D87&"Monthly Budget Statement - aged creditors " -> Supporting Table SC4 Monthly Budget Statement - aged creditors | D87: Supporting Table SC4
A88: S71K | B88: =D88&"Monthly Budget Statement - investment portfolio " -> Supporting Table SC5 Monthly Budget Statement - investment portfolio | D88: Supporting Table SC5
A89: S71L | B89: =D89&"Monthly Budget Statement - transfers and grant receipts " -> Supporting Table SC6 Monthly Budget Statement - transfers and grant receipts | D89: Supporting Table SC6
A90: S71M | B90: =D90&" Monthly Budget Statement - transfers and grant expenditure " -> Supporting Table SC7(1) Monthly Budget Statement - transfers and grant expenditure | D90: Supporting Table SC7(1)
A91: S71N | B91: =D91&"Monthly Budget Statement - councillor and staff benefits " -> Supporting Table SC8 Monthly Budget Statement - councillor and staff benefits | D91: Supporting Table SC8
A92: S71O | B92: =D92&"Monthly Budget Statement - actuals and revised targets for cash receipts" -> Supporting Table SC9 Monthly Budget Statement - actuals and revised targets for cash receipts | D92: Supporting Table SC9
A93: S71P | B93: =IF(Consolques="YES",E93,F93) -> NOT REQUIRED - municipality does not have entities or this is the parent municipality's budget | D93: Supporting Table SC10 | E93: =D93&"Monthly Budget Statement - Parent Municipality Financial Performance (revenue and expenditure) " -> Supporting Table SC10 Monthly Budget Statement - Parent Municipality Financial Performance (revenue and expenditure) | F93: NOT REQUIRED - municipality does not have entities or this is the parent municipality's budget
A94: S71Q | B94: NOT REQUIRED - municipality does not have entities or this is the parent municipality's budget | D94: Supporting Table SC11 | E94: =D94&"Monthly Budget Statement - summary of municipal entities" -> Supporting Table SC11 Monthly Budget Statement - summary of municipal entities | F94: NOT REQUIRED - municipality does not have entities or this is the parent municipality's budget
A95: S71R | B95: Supporting Table SC12 Monthly Budget Statement - capital expenditure trend | D95: Supporting Table SC12 | E95: =D95&"Consolidated Monthly Budget Statement - capital expenditure trend " -> Supporting Table SC12 Consolidated Monthly Budget Statement - capital expenditure trend | F95: =D95&"Monthly Budget Statement - capital expenditure trend" -> Supporting Table SC12 Monthly Budget Statement - capital expenditure trend
A96: S71Sa | B96: Supporting Table SC13a Monthly Budget Statement - capital expenditure on new assets by asset class | D96: Supporting Table SC13a | E96: =D96&"Consolidated Monthly Budget Statement - capital expenditure on new assets by asset class" -> Supporting Table SC13a Consolidated Monthly Budget Statement - capital expenditure on new assets by asset class | F96: =D96&"Monthly Budget Statement - capital expenditure on new assets by asset class" -> Supporting Table SC13a Monthly Budget Statement - capital expenditure on new assets by asset class
A97: S71Sb | B97: Supporting Table SC13b Monthly Budget Statement - capital expenditure on renewal of existing assets by asset class | D97: Supporting Table SC13b | E97: =D97&"Consolidated Monthly Budget Statement - capital expenditure on renewal of existing assets by asset class" -> Supporting Table SC13b Consolidated Monthly Budget Statement - capital expenditure on renewal of existing assets by asset class | F97: =D97&"Monthly Budget Statement - capital expenditure on renewal of existing assets by asset class" -> Supporting Table SC13b Monthly Budget Statement - capital expenditure on renewal of existing assets by asset class
A98: S71Sc | B98: Supporting Table SC13c Monthly Budget Statement - expenditure on repairs and maintenance by asset class | D98: Supporting Table SC13c | E98: =D98&"Consolidated Monthly Budget Statement - expenditure on repairs and maintenance by asset class" -> Supporting Table SC13c Consolidated Monthly Budget Statement - expenditure on repairs and maintenance by asset class | F98: =D98&"Monthly Budget Statement - expenditure on repairs and maintenance by asset class" -> Supporting Table SC13c Monthly Budget Statement - expenditure on repairs and maintenance by asset class
A99: S71Sd | B99: Supporting Table SC13d Monthly Budget Statement - depreciation by asset class | D99: Supporting Table SC13d | E99: =D99&"Consolidated Monthly Budget Statement - depreciation by asset class" -> Supporting Table SC13d Consolidated Monthly Budget Statement - depreciation by asset class | F99: =D99&"Monthly Budget Statement - depreciation by asset class" -> Supporting Table SC13d Monthly Budget Statement - depreciation by asset class
A100: S71Se | B100: =IF(Consolques="YES",E100,F100) -> Supporting Table SC13e Monthly Budget Statement - capital expenditure on upgrading of existing assets by asset class | D100: Supporting Table SC13e | E100: =D100&"Consolidated Monthly Budget Statement - capital expenditure on upgrading of existing assets by asset class" -> Supporting Table SC13e Consolidated Monthly Budget Statement - capital expenditure on upgrading of existing assets by asset class | F100: =D100&"Monthly Budget Statement - capital expenditure on upgrading of existing assets by asset class" -> Supporting Table SC13e Monthly Budget Statement - capital expenditure on upgrading of existing assets by asset class
B101: s71 charts listing
B102: =D102&Head2A&" Capital Expenditure Monthly Trend: actual v target" -> Chart C1 2019/20 Capital Expenditure Monthly Trend: actual v target | D102: Chart C1
B103: =D103&Head2A&" Capital Expenditure: YTD actual v YTD target" -> Chart C2 2019/20 Capital Expenditure: YTD actual v YTD target | D103: Chart C2
B104: =D104&"Aged Consumer Debtors Analysis" -> Chart C3 Aged Consumer Debtors Analysis | D104: Chart C3
B105: =D105&"Consumer Debtors (total by Debtor Customer Category)" -> Chart C4 Consumer Debtors (total by Debtor Customer Category) | D105: Chart C4
B106: =D106&"Aged Creditors Analysis" -> Chart C5 Aged Creditors Analysis | D106: Chart C5
A107: S71T | B107: =D107&" Monthly Budget Statement - Expenditure against approved rollovers" -> Supporting Table SC7(2) Monthly Budget Statement - Expenditure against approved rollovers | D107: Supporting Table SC7(2)

Sheet Lookup and lists (hidden)
A1: Description | B1: 2007 | C1: 2008 | D1: 2009 | E1: 2010 | F1: 2011 | G1: 2012 | H1: 2013 | I1: 2014 | J1: 2015 | K1: 2016 | L1: 2017 | M1: 2018 | N1: 2019 | O1: 2020 | Q1: Grants: | R1: National - opex | S1: Provincial - opex | T1: National - capex | U1: Provincial - capex | V1: YESNO
A2: ='Template names'!C2 -> Prior year -1 | B2: 2006/07 | C2: 2007/08 | D2: 2008/09 | E2: =E1-1&"/"&RIGHT(E1,2)-0 -> 2009/10 | F2: =F1-1&"/"&RIGHT(F1,2)-0 -> 2010/11 | G2: 2011/12 | H2: 2012/13 | I2: 2013/14 | J2: 2014/15 | K2: 2015/16 | L2: 2016/17 | M2: 2017/18 | N2: 2018/19 | O2: 2019/20 | R2: Local Government Equitable Share | S2: Health subsidy | T2: Municipal Infrastructure Grant (MIG) | U2: Agriculture | V2: Yes
A3: ='Template names'!C5 -> MTREF header name | B3: 2007/08 Medium Term Revenue & Expenditure Framework | C3: 2008/09 Medium Term Revenue & Expenditure Framework | D3: 2009/10 Medium Term Revenue & Expenditure Framework | E3: =E1&"/"&RIGHT(E1,2)+1&" Medium Term Revenue & Expenditure Framework" -> 2010/11 Medium Term Revenue & Expenditure Framework | F3: =F1&"/"&RIGHT(F1,2)+1&" Medium Term Revenue & Expenditure Framework" -> 2011/12 Medium Term Revenue & Expenditure Framework | G3: 2012/13 Medium Term Revenue & Expenditure Framework | H3: 2013/14 Medium Term Revenue & Expenditure Framework | I3: 2014/15 Medium Term Revenue & Expenditure Framework | J3: 2015/16 Medium Term Revenue & Expenditure Framework | K3: 2016/17 Medium Term Revenue & Expenditure Framework | L3: 2017/18 Medium Term Revenue & Expenditure Framework | M3: 2018/19 Medium Term Revenue & Expenditure Framework | N3: 2019/20 Medium Term Revenue & Expenditure Framework | O3: 2020/21 Medium Term Revenue & Expenditure Framework | R3: RSC Levy Replacement | S3: Ambulance subsidy | T3: Public Transport and Systems | U3: Education | V3: No
A4: ='Template names'!C4 -> Approved budget year | B4: 2007/08 | C4: 2008/09 | D4: 2009/10 | E4: =E1&"/"&RIGHT(E1,2)+1 -> 2010/11 | F4: =F1&"/"&RIGHT(F1,2)+1 -> 2011/12 | G4: 2012/13 | H4: 2013/14 | I4: 2014/15 | J4: 2015/16 | K4: 2016/17 | L4: 2017/18 | M4: 2018/19 | N4: 2019/20 | O4: 2020/21 | R4: Finance Management | S4: Housing | T4: Rural Transport Services and Infrastructure | U4: Health
A5: ='Template names'!C12 -> 1st year of MTREF | B5: Budget Year 2007/08 | C5: Budget Year 2008/09 | D5: Budget Year 2009/10 | E5: ="Budget Year "&E1&"/"&RIGHT(E1,2)+1 -> Budget Year 2010/11 | F5: ="Budget Year "&F1&"/"&RIGHT(F1,2)+1 -> Budget Year 2011/12 | G5: Budget Year 2012/13 | H5: Budget Year 2013/14 | I5: Budget Year 2014/15 | J5: Budget Year 2015/16 | K5: Budget Year 2016/17 | L5: Budget Year 2017/18 | M5: Budget Year 2018/19 | N5: Budget Year 2019/20 | O5: Budget Year 2020/21 | R5: Municipal Systems Improvement | S5: Sport and Recreation | T5: Regional Bulk Infrastructure | U5: Housing and Local Government
A6: ='Template names'!C13 -> 2nd year of MTREF | B6: Budget Year +1 2008/09 | C6: Budget Year +1 2009/10 | D6: Budget Year +1 2010/11 | E6: ="Budget Year +1 "&E1+1&"/"&RIGHT(E1,2)+2 -> Budget Year +1 2011/12 | F6: ="Budget Year +1 "&F1+1&"/"&RIGHT(F1,2)+2 -> Budget Year +1 2012/13 | G6: Budget Year +1 2013/14 | H6: Budget Year +1 2014/15 | I6: Budget Year +1 2015/16 | J6: Budget Year +1 2016/17 | K6: Budget Year +1 2017/18 | L6: Budget Year +1 2018/19 | M6: Budget Year +1 2019/20 | N6: Budget Year +1 2020/21 | O6: Budget Year +1 2021/22 | R6: Water Services Operating Subsidy | T6: Rural Households Infrastructure | U6: Other Departments
A7: ='Template names'!C14 -> 3rd year of MTREF | B7: Budget Year +2 2009/10 | C7: Budget Year +2 2010/11 | D7: Budget Year +2 2011/12 | E7: ="Budget Year +2 "&E1+2&"/"&RIGHT(E1,2)+3 -> Budget Year +2 2012/13 | F7: ="Budget Year +2 "&F1+2&"/"&RIGHT(F1,2)+3 -> Budget Year +2 2013/14 | G7: Budget Year +2 2014/15 | H7: Budget Year +2 2015/16 | I7: Budget Year +2 2016/17 | J7: Budget Year +2 2017/18 | K7: Budget Year +2 2018/19 | L7: Budget Year +2 2019/20 | M7: Budget Year +2 2020/21 | N7: Budget Year +2 2021/22 | O7: Budget Year +2 2022/23 | R7: Energy Efficiency and Demand Management | T7: Neighbourhood Development Partnership | U7: Public Works, Roads, Transport
A8: NOTE: This sheet should not be directly amended - select headings from sheet 'S' | R8: Integrated National Electrification Programme | T8: 2010 FIFA World Cup Stadiums Development | U8: Sport and Recreation
R9: Municipal Drought Relief
R10: 2010 FIFA World Cup Operating
R11: Electricity Demand Side Management
R12: EPWP Incentive
A26: Name link | B26: 141
A27: Name of Muni | B27: =INDEX(B28:B311,B26,1) -> LIM353 Molemole
B28: Choose name from list | C28: Set name on 'Instructions' sheet
B29: BUF Buffalo City | C29: EC EASTERN CAPE
B30: NMA Nelson Mandela Bay | C30: EC EASTERN CAPE
B31: EC101 Dr Beyers Naude | C31: EC EASTERN CAPE
B32: EC102 Blue Crane Route | C32: EC EASTERN CAPE
B33: EC104 Makana | C33: EC EASTERN CAPE
B34: EC105 Ndlambe | C34: EC EASTERN CAPE
B35: EC106 Sundays River Valley | C35: EC EASTERN CAPE
B36: EC108 Kouga | C36: EC EASTERN CAPE
B37: EC109 Kou-Kamma | C37: EC EASTERN CAPE
B38: DC10 Sarah Baartman | C38: EC EASTERN CAPE
B39: EC121 Mbhashe | C39: EC EASTERN CAPE
B40: EC122 Mnquma | C40: EC EASTERN CAPE
B41: EC123 Great Kei | C41: EC EASTERN CAPE
B42: EC124 Amahlathi | C42: EC EASTERN CAPE
B43: EC126 Ngqushwa | C43: EC EASTERN CAPE
B44: EC129 Raymond Mhlaba | C44: EC EASTERN CAPE
B45: DC12 Amathole | C45: EC EASTERN CAPE
B46: EC131 Inxuba Yethemba | C46: EC EASTERN CAPE
B47: EC135 Intsika Yethu | C47: EC EASTERN CAPE
B48: EC136 Emalahleni (Ec) | C48: EC EASTERN CAPE
B49: EC137 Engcobo | C49: EC EASTERN CAPE
B50: EC138 Sakhisizwe | C50: EC EASTERN CAPE
B51: EC139 Enoch Mgijima | C51: EC EASTERN CAPE
B52: DC13 Chris Hani | C52: EC EASTERN CAPE
B53: EC141 Elundini | C53: EC EASTERN CAPE
B54: EC142 Senqu | C54: EC EASTERN CAPE
B55: EC145 Walter Sisulu | C55: EC EASTERN CAPE
B56: DC14 Joe Gqabi | C56: EC EASTERN CAPE
B57: EC153 Ngquza Hills | C57: EC EASTERN CAPE
B58: EC154 Port St Johns | C58: EC EASTERN CAPE
B59: EC155 Nyandeni | C59: EC EASTERN CAPE
B60: EC156 Mhlontlo | C60: EC EASTERN CAPE
B61: EC157 King Sabata Dalindyebo | C61: EC EASTERN CAPE
B62: DC15 O .R. Tambo | C62: EC EASTERN CAPE
B63: EC441 Matatiele | C63: EC EASTERN CAPE
B64: EC442 Umzimvubu | C64: EC EASTERN CAPE
B65: EC443 Mbizana | C65: EC EASTERN CAPE
B66: EC444 Ntabankulu | C66: EC EASTERN CAPE
B67: DC44 Alfred Nzo | C67: EC EASTERN CAPE
B68: MAN Mangaung | C68: FS FREE STATE
B69: FS161 Letsemeng | C69: FS FREE STATE
B70: FS162 Kopanong | C70: FS FREE STATE
B71: FS163 Mohokare | C71: FS FREE STATE
B72: DC16 Xhariep | C72: FS FREE STATE
B73: FS181 Masilonyana | C73: FS FREE STATE
B74: FS182 Tokologo | C74: FS FREE STATE
B75: FS183 Tswelopele | C75: FS FREE STATE
B76: FS184 Matjhabeng | C76: FS FREE STATE
B77: FS185 Nala | C77: FS FREE STATE
B78: DC18 Lejweleputswa | C78: FS FREE STATE
B79: FS191 Setsoto | C79: FS FREE STATE
B80: FS192 Dihlabeng | C80: FS FREE STATE
B81: FS193 Nketoana | C81: FS FREE STATE
B82: FS194 Maluti-a-Phofung | C82: FS FREE STATE
B83: FS195 Phumelela | C83: FS FREE STATE
B84: FS196 Mantsopa | C84: FS FREE STATE
B85: DC19 Thabo Mofutsanyana | C85: FS FREE STATE
B86: FS201 Moqhaka | C86: FS FREE STATE
B87: FS203 Ngwathe | C87: FS FREE STATE
B88: FS204 Metsimaholo | C88: FS FREE STATE
B89: FS205 Mafube | C89: FS FREE STATE
B90: DC20 Fezile Dabi | C90: FS FREE STATE
B91: EKU City of Ekurhuleni | C91: GT GAUTENG
B92: JHB City Of Johannesburg | C92: GT GAUTENG
B93: TSH City Of Tshwane | C93: GT GAUTENG
B94: GT421 Emfuleni | C94: GT GAUTENG
B95: GT422 Midvaal | C95: GT GAUTENG
B96: GT423 Lesedi | C96: GT GAUTENG
B97: DC42 Sedibeng | C97: GT GAUTENG
B98: GT481 Mogale City | C98: GT GAUTENG
B99: GT484 Merafong City | C99: GT GAUTENG
B100: GT485 Rand West City | C100: GT GAUTENG
B101: DC48 West Rand | C101: GT GAUTENG
B102: ETH eThekwini | C102: KZN KWAZULU-NATAL
B103: KZN212 Umdoni | C103: KZN KWAZULU-NATAL
B104: KZN213 Umzumbe | C104: KZN KWAZULU-NATAL
B105: KZN214 uMuziwabantu | C105: KZN KWAZULU-NATAL
B106: KZN216 Ray Nkonyeni | C106: KZN KWAZULU-NATAL
B107: DC21 Ugu | C107: KZN KWAZULU-NATAL
B108: KZN221 uMshwathi | C108: KZN KWAZULU-NATAL
B109: KZN222 uMngeni | C109: KZN KWAZULU-NATAL
B110: KZN223 Mpofana | C110: KZN KWAZULU-NATAL
B111: KZN224 Impendle | C111: KZN KWAZULU-NATAL
B112: KZN225 Msunduzi | C112: KZN KWAZULU-NATAL
B113: KZN226 Mkhambathini | C113: KZN KWAZULU-NATAL
B114: KZN227 Richmond | C114: KZN KWAZULU-NATAL
B115: DC22 uMgungundlovu | C115: KZN KWAZULU-NATAL
B116: KZN235 Okhahlamba | C116: KZN KWAZULU-NATAL
B117: KZN237 Inkosi Langalibalele | C117: KZN KWAZULU-NATAL
B118: KZN238 Alfred Duma | C118: KZN KWAZULU-NATAL
B119: DC23 Uthukela | C119: KZN KWAZULU-NATAL
B120: KZN241 Endumeni | C120: KZN KWAZULU-NATAL
B121: KZN242 Nquthu | C121: KZN KWAZULU-NATAL
B122: KZN244 Msinga | C122: KZN KWAZULU-NATAL
B123: KZN245 Umvoti | C123: KZN KWAZULU-NATAL
B124: DC24 Umzinyathi | C124: KZN KWAZULU-NATAL
B125: KZN252 Newcastle | C125: KZN KWAZULU-NATAL
B126: KZN253 Emadlangeni | C126: KZN KWAZULU-NATAL
B127: KZN254 Dannhauser | C127: KZN KWAZULU-NATAL
B128: DC25 Amajuba | C128: KZN KWAZULU-NATAL
B129: KZN261 eDumbe | C129: KZN KWAZULU-NATAL
B130: KZN262 uPhongolo | C130: KZN KWAZULU-NATAL
B131: KZN263 Abaqulusi | C131: KZN KWAZULU-NATAL
B132: KZN265 Nongoma | C132: KZN KWAZULU-NATAL
B133: KZN266 Ulundi | C133: KZN KWAZULU-NATAL
B134: DC26 Zululand | C134: KZN KWAZULU-NATAL
B135: KZN271 Umhlabuyalingana | C135: KZN KWAZULU-NATAL
B136: KZN272 Jozini | C136: KZN KWAZULU-NATAL
B137: KZN275 Mtubatuba | C137: KZN KWAZULU-NATAL
B138: KZN276 Hlabisa Big Five | C138: KZN KWAZULU-NATAL
B139: DC27 Umkhanyakude | C139: KZN KWAZULU-NATAL
B140: KZN281 Mfolozi | C140: KZN KWAZULU-NATAL
B141: KZN282 uMhlathuze | C141: KZN KWAZULU-NATAL
B142: KZN284 uMlalazi | C142: KZN KWAZULU-NATAL
B143: KZN285 Mthonjaneni | C143: KZN KWAZULU-NATAL
B144: KZN286 Nkandla | C144: KZN KWAZULU-NATAL
B145: DC28 King Cetshwayo | C145: KZN KWAZULU-NATAL
B146: KZN291 Mandeni | C146: KZN KWAZULU-NATAL
B147: KZN292 KwaDukuza | C147: KZN KWAZULU-NATAL
B148: KZN293 Ndwedwe | C148: KZN KWAZULU-NATAL
B149: KZN294 Maphumulo | C149: KZN KWAZULU-NATAL
B150: DC29 iLembe | C150: KZN KWAZULU-NATAL
B151: KZN433 Greater Kokstad | C151: KZN KWAZULU-NATAL
B152: KZN434 Ubuhlebezwe | C152: KZN KWAZULU-NATAL
B153: KZN435 Umzimkhulu | C153: KZN KWAZULU-NATAL
B154: KZN436 Dr Nkosazana Dlamini Zuma | C154: KZN KWAZULU-NATAL
B155: DC43 Harry Gwala | C155: KZN KWAZULU-NATAL
B156: LIM331 Greater Giyani | C156: LIM LIMPOPO
B157: LIM332 Greater Letaba | C157: LIM LIMPOPO
B158: LIM333 Greater Tzaneen | C158: LIM LIMPOPO
B159: LIM334 Ba-Phalaborwa | C159: LIM LIMPOPO
B160: LIM335 Maruleng | C160: LIM LIMPOPO
B161: DC33 Mopani | C161: LIM LIMPOPO
B162: LIM341 Musina | C162: LIM LIMPOPO
B163: LIM343 Thulamela | C163: LIM LIMPOPO
B164: LIM344 Makhado | C164: LIM LIMPOPO
B165: LIM345 Collins Chabane | C165: LIM LIMPOPO
B166: DC34 Vhembe | C166: LIM LIMPOPO
B167: LIM351 Blouberg | C167: LIM LIMPOPO
B168: LIM353 Molemole | C168: LIM LIMPOPO
B169: LIM354 Polokwane | C169: LIM LIMPOPO
B170: LIM355 Lepelle-Nkumpi | C170: LIM LIMPOPO
B171: DC35 Capricorn | C171: LIM LIMPOPO
B172: LIM361 Thabazimbi | C172: LIM LIMPOPO
B173: LIM362 Lephalale | C173: LIM LIMPOPO
B174: LIM366 Bela Bela | C174: LIM LIMPOPO
B175: LIM367 Mogalakwena | C175: LIM LIMPOPO
B176: LIM368 Modimolle-Mookgopong | C176: LIM LIMPOPO
B177: DC36 Waterberg | C177: LIM LIMPOPO
B178: LIM471 Ephraim Mogale | C178: LIM LIMPOPO
B179: LIM472 Elias Motsoaledi | C179: LIM LIMPOPO
B180: LIM473 Makhuduthamaga | C180: LIM LIMPOPO
B181: LIM476 Tubatse Fetakgomo | C181: LIM LIMPOPO
B182: DC47 Sekhukhune | C182: LIM LIMPOPO
B183: MP301 Albert Luthuli | C183: MP MPUMALANGA
B184: MP302 Msukaligwa | C184: MP MPUMALANGA
B185: MP303 Mkhondo | C185: MP MPUMALANGA
B186: MP304 Pixley Ka Seme (MP) | C186: MP MPUMALANGA
B187: MP305 Lekwa | C187: MP MPUMALANGA
B188: MP306 Dipaleseng | C188: MP MPUMALANGA
B189: MP307 Govan Mbeki | C189: MP MPUMALANGA
B190: DC30 Gert Sibande | C190: MP MPUMALANGA
B191: MP311 Victor Khanye | C191: MP MPUMALANGA
B192: MP312 Emalahleni (Mp) | C192: MP MPUMALANGA
B193: MP313 Steve Tshwete | C193: MP MPUMALANGA
B194: MP314 Emakhazeni | C194: MP MPUMALANGA
B195: MP315 Thembisile Hani | C195: MP MPUMALANGA
B196: MP316 Dr J.S. Moroka | C196: MP MPUMALANGA
B197: DC31 Nkangala | C197: MP MPUMALANGA
B198: MP321 Thaba Chweu | C198: MP MPUMALANGA
B199: MP324 Nkomazi | C199: MP MPUMALANGA
B200: MP325 Bushbuckridge | C200: MP MPUMALANGA
B201: MP326 City of Mbombela | C201: MP MPUMALANGA
B202: DC32 Ehlanzeni | C202: MP MPUMALANGA
B203: NC451 Joe Morolong | C203: NC NORTHERN CAPE
B204: NC452 Ga-Segonyana | C204: NC NORTHERN CAPE
B205: NC453 Gamagara | C205: NC NORTHERN CAPE
B206: DC45 John Taolo Gaetsewe | C206: NC NORTHERN CAPE
B207: NC061 Richtersveld | C207: NC NORTHERN CAPE
B208: NC062 Nama Khoi | C208: NC NORTHERN CAPE
B209: NC064 Kamiesberg | C209: NC NORTHERN CAPE
B210: NC065 Hantam | C210: NC NORTHERN CAPE
B211: NC066 Karoo Hoogland | C211: NC NORTHERN CAPE
B212: NC067 Khai-Ma | C212: NC NORTHERN CAPE
B213: DC6 Namakwa | C213: NC NORTHERN CAPE
... 73 more rows

Sheet Org structure
A1: Organisational Structure Votes | C1: Organisational Structure Sub-Votes | E1: Display Sub-Votes
A2: =B2&" - "&C2 -> Vote 01 - Corporate Services | B2: Vote 01 | C2: Corporate Services
A3: =B11&" - "&C11 -> Vote 02 - Municipal Manager | B3: 01.1 | C3: Corporate Services Admin | D3: =CONCATENATE(B3, " - ", C3) -> 01.1 - Corporate Services Admin | E3: 01.1 - Corporate Services Admin
A4: =B17&" - "&C17 -> Vote 03 - Mayors Office | B4: 01.2 | C4: Human Resources | D4: 01.2 - Human Resources | E4: 01.2 - Human Resources
A5: =B23&" - "&C23 -> Vote 04 - Budget And Treasury | B5: 01.3 | C5: Information Technology Services | D5: 01.3 - Information Technology Services | E5: 01.3 - Information Technology Services
A6: =B31&" - "&C31 -> Vote 05 - Community Services | B6: 01.4 | C6: Council Support | D6: 01.4 - Council Support | E6: 01.4 - Council Support
A7: =B40&" - "&C40 -> Vote 06 - Technical Services | B7: 01.5 | C7: Local Economic Development | D7: 01.5 - Local Economic Development | E7: 01.5 - Local Economic Development
A8: =B49&" - "&C49 -> Vote 07 - | B8: 01.6 | C8: Municipal Planning Idp | D8: 01.6 - Municipal Planning Idp | E8: 01.6 - Municipal Planning Idp
A9: Vote 08 - | B9: 01.7 | C9: Town & Regional Planning | D9: 01.7 - Town & Regional Planning | E9: 01.7 - Town & Regional Planning
A10: Vote 09 - | B10: 01.8 | C10: Led Administration | D10: 01.8 - Led Administration | E10: 01.8 - Led Administration
A11: Vote 10 - | B11: Vote 02 | C11: Municipal Manager
A12: Vote 11 - | B12: 02.1 | C12: Municipal Manager Admin | D12: =CONCATENATE(B12, " - ", C12) -> 02.1 - Municipal Manager Admin | E12: 02.1 - Municipal Manager Admin
A13: Vote 12 - | B13: 02.2 | C13: Legal Services | D13: =CONCATENATE(B13, " - ", C13) -> 02.2 - Legal Services | E13: 02.2 - Legal Services
A14: Vote 13 - | B14: 02.3 | C14: Political Office Beares | D14: =CONCATENATE(B14, " - ", C14) -> 02.3 - Political Office Beares | E14: 02.3 - Political Office Beares
A15: Vote 14 - | B15: 02.4 | C15: Pms | D15: =CONCATENATE(B15, " - ", C15) -> 02.4 - Pms | E15: 02.4 - Pms
A16: Vote 15 - Other | B16: 02.5 | C16: Internal Audit | D16: =CONCATENATE(B16, " - ", C16) -> 02.5 - Internal Audit | E16: 02.5 - Internal Audit
B17: Vote 03 | C17: Mayors Office
B18: 03.1 | C18: Mayors Office Admin | D18: =CONCATENATE(B18, " - ", C18) -> 03.1 - Mayors Office Admin | E18: 03.1 - Mayors Office Admin
B19: 03.2 | C19: Office Of The Speaker | D19: =CONCATENATE(B19, " - ", C19) -> 03.2 - Office Of The Speaker | E19: 03.2 - Office Of The Speaker
B20: 03.3 | C20: Office Of The Chief Whip | D20: =CONCATENATE(B20, " - ", C20) -> 03.3 - Office Of The Chief Whip | E20: 03.3 - Office Of The Chief Whip
B21: 03.4 | C21: Exco Members | D21: =CONCATENATE(B21, " - ", C21) -> 03.4 - Exco Members | E21: 03.4 - Exco Members
B22: 03.5 | C22: Council General Administration | D22: =CONCATENATE(B22, " - ", C22) -> 03.5 - Council General Administration | E22: 03.5 - Council General Administration
B23: Vote 04 | C23: Budget And Treasury
B24: 04.1 | C24: Budget And Treasury Admin | D24: =CONCATENATE(B24, " - ", C24) -> 04.1 - Budget And Treasury Admin | E24: 04.1 - Budget And Treasury Admin
B25: 04.2 | C25: Chief Financial Officer Admin | D25: 04.2 - Chief Financial Officer Admin | E25: 04.2 - Chief Financial Officer Admin
B26: 04.3 | C26: Budget & Reporting | D26: 04.3 - Budget & Reporting | E26: 04.3 - Budget & Reporting
B27: 04.4 | C27: Budget & Reporting | D27: 04.4 - Budget & Reporting | E27: 04.4 - Budget & Reporting
B28: 04.5 | C28: Revenue Management | D28: 04.5 - Revenue Management | E28: 04.5 - Revenue Management
B29: 04.6 | C29: Supply Chain Management | D29: 04.6 - Supply Chain Management | E29: 04.6 - Supply Chain Management
B30: 04.7 | C30: Expenditure | D30: 04.7 - Expenditure | E30: 04.7 - Expenditure
B31: Vote 05 | C31: Community Services
B32: 05.1 | C32: Community Services Admin | D32: =CONCATENATE(B32, " - ", C32) -> 05.1 - Community Services Admin | E32: 05.1 - Community Services Admin
B33: 05.2 | C33: Libraries | D33: 05.2 - Libraries | E33: 05.2 - Libraries
B34: 05.3 | C34: Sports Recreation & Social Amenitie | D34: 05.3 - Sports Recreation & Social Amenitie | E34: 05.3 - Sports Recreation & Social Amenitie
B35: 05.4 | C35: Traffic Service | D35: 05.4 - Traffic Service | E35: 05.4 - Traffic Service
B36: 05.5 | C36: Traffic Service | D36: 05.5 - Traffic Service | E36: 05.5 - Traffic Service
B37: 05.6 | C37: Parks; Cemeteries | D37: 05.6 - Parks; Cemeteries | E37: 05.6 - Parks; Cemeteries
B38: 05.7 | C38: Refuse | D38: 05.7 - Refuse | E38: 05.7 - Refuse
B39: 05.8 | C39: Taxi Ranks | D39: 05.8 - Taxi Ranks | E39: 05.8 - Taxi Ranks
B40: Vote 06 | C40: Technical Services
B41: 06.1 | C41: Mpac | D41: =CONCATENATE(B41, " - ", C41) -> 06.1 - Mpac | E41: 06.1 - Mpac
B42: 06.2 | C42: Technical Services Admin | D42: 06.2 - Technical Services Admin | E42: 06.2 - Technical Services Admin
B43: 06.3 | C43: Techn Serv-Roads: Admin | D43: 06.3 - Techn Serv-Roads: Admin | E43: 06.3 - Techn Serv-Roads: Admin
B44: 06.4 | C44: Techn Serv-Stormwater: Admin | D44: 06.4 - Techn Serv-Stormwater: Admin | E44: 06.4 - Techn Serv-Stormwater: Admin
B45: 06.5 | C45: Project Management Unit | D45: 06.5 - Project Management Unit | E45: 06.5 - Project Management Unit
B46: 06.6 | C46: Electrical & Machinery | D46: 06.6 - Electrical & Machinery | E46: 06.6 - Electrical & Machinery
B47: 06.7 | C47: Water | D47: 06.7 - Water | E47: 06.7 - Water
B48: 06.8 | C48: Sanitation | D48: 06.8 - Sanitation | E48: 06.8 - Sanitation
B49: Vote 07
B50: Vote 08
B51: Vote 09
B52: Vote 10
B53: Vote 11
B54: Vote 12
B55: Vote 13
B56: Vote 14
B57: Vote 15 | C57: Other

Sheet Contacts
A1: =muni&" - "&" Contact Information" -> LIM353 Molemole - Contact Information
A3: A. GENERAL INFORMATION
A4: Municipality | B4: =muni -> LIM353 Molemole | C4: Set name on 'Instructions' sheet
A6: Grade | C6: 1 Grade in terms of the Remuneration of Public Office Bearers Act.
A8: Province | B8: =IF(B4>" ",VLOOKUP(B4,'Lookup and lists'!B28:C311,2, FALSE)," ") -> LIM LIMPOPO
A10: Web Address
A12: e-mail Address
A14: B. CONTACT INFORMATION
A15: Postal address:
A16: P.O. Box
A17: City / Town
A18: Postal Code
A20: Street address
A21: Building
A22: Street No. & Name
A23: City / Town
A24: Postal Code
A26: General Contacts
A27: Telephone number
A28: Fax number
A30: C. POLITICAL LEADERSHIP
A31: Speaker: | C31: Secretary/PA to the Speaker:
A32: ID Number | B32: 560618 0882 808 | C32: ID Number | D32: 820119 0609 087
A33: Title | B33: Mrs | C33: Title | D33: Ms
A34: Name | B34: MOREROA M.S | C34: Name | D34: MACHAKA SEBOLLA
A35: Telephone number | B35: 015 501 0243 | C35: Telephone number | D35: 015 501 0243
A36: Cell number | B36: 079 220 7523 | C36: Cell number | D36: 079 728 8360
A37: Fax number | B37: 015 501 0419 | C37: Fax number | D37: 015 501 0419
A38: E-mail address | B38: moreroams@molemole.gov.za | C38: E-mail address | D38: machakas@molemole.gov.za
A40: Mayor/Executive Mayor: | C40: Secretary/PA to the Mayor/Executive Mayor:
A41: ID Number | B41: 660312 5428 081 | C41: ID Number | D41: 850930 1072 080
A42: Title | B42: Mr | C42: Title | D42: Ms
A43: Name | B43: PAYA E | C43: Name | D43: RATHETE MAKETA
A44: Telephone number | B44: 015 501 0243 | C44: Telephone number | D44: 015 501 0243
A45: Cell number | B45: 082 474 2858 | C45: Cell number | D45: 072 958 1970
A46: Fax number | B46: 086 515 8809 | C46: Fax number | D46: 015 501 0419
A47: E-mail address | B47: payae@molemole.gov.za | C47: E-mail address | D47: rathetem@molemole.go.za
A49: Deputy Mayor/Executive Mayor: | C49: Secretary/PA to the Deputy Mayor/Executive Mayor:
A50: ID Number | C50: ID Number
A51: Title | C51: Title
A52: Name | C52: Name
A53: Telephone number | C53: Telephone number
A54: Cell number | C54: Cell number
A55: Fax number | C55: Fax number
A56: E-mail address | C56: E-mail address
A58: D. MANAGEMENT LEADERSHIP
A59: Municipal Manager: | C59: Secretary/PA to the Municipal Manager:
A60: ID Number | B60: 670616 5811 080 | C60: ID Number | D60: 720712 0880 087
A61: Title | B61: Mr | C61: Title | D61: Mrs
A62: Name | B62: MOSENA MAPHALA LAZARUS | C62: Name | D62: SEABELA SUSAN
A63: Telephone number | B63: 015 501 0243 | C63: Telephone number | D63: 015 501 0243
A64: Cell number | B64: 079 803 9833 | C64: Cell number | D64: 079 217 3250
A65: Fax number | B65: 015 501 0419 | C65: Fax number | D65: 015 501 0419
A66: E-mail address | B66: 079 803 9833 | C66: E-mail address | D66: lebepes@molemole.gov.za
A68: Chief Financial Officer | C68: Secretary/PA to the Chief Financial Officer
A69: ID Number | B69: 840716 0427 083 | C69: ID Number | D69: 900906 1348 084
A70: Title | B70: Miss | C70: Title | D70: Miss
A71: Name | B71: ZULU KCW | C71: Name | D71: MAROPENG PHOSA
A72: Telephone number | B72: 015 501 0243 | C72: Telephone number | D72: 015 501 0243
A73: Cell number | B73: 063 878 8894 | C73: Cell number | D73: 073 916 3639
A74: Fax number | B74: 015 501 0419 | C74: Fax number | D74: 015 501 0419
A75: E-mail address | B75: zuluk@molemole.gov.za | C75: E-mail address | D75: phosam@molemole.gov.za
A77: Official responsible for submitting financial information | C77: Official responsible for submitting financial information
A78: ID Number | B78: 750310 0412 085 | C78: ID Number
A79: Title | B79: Mrs | C79: Title
A80: Name | B80: LETHUBA BEAUTY | C80: Name
A81: Telephone number | B81: 015 501 0243 | C81: Telephone number
A82: Cell number | B82: 082 813 5777 | C82: Cell number
A83: Fax number | B83: 015 501 0419 | C83: Fax number
A84: E-mail address | B84: lethubab@molemole.gov.za | C84: E-mail address
A85: Official responsible for submitting financial information | C85: Official responsible for submitting financial information
A86: ID Number | C86: ID Number
A87: Title | C87: Title
A88: Name | C88: Name
A89: Telephone number | C89: Telephone number
A90: Cell number | C90: Cell number
A91: Fax number | C91: Fax number
A92: E-mail address | C92: E-mail address
A93: Official responsible for submitting financial information | C93: Official responsible for submitting financial information
A94: ID Number | C94: ID Number
A95: Title | C95: Title
A96: Name | C96: Name
A97: Telephone number | C97: Telephone number
A98: Cell number | C98: Cell number
A99: Fax number | C99: Fax number
A100: E-mail address | C100: E-mail address
A101: Official responsible for submitting financial information | C101: Official responsible for submitting financial information
A102: ID Number | C102: ID Number
A103: Title | C103: Title
A104: Name | C104: Name
A105: Telephone number | C105: Telephone number
A106: Cell number | C106: Cell number
A107: Fax number | C107: Fax number
A108: E-mail address | C108: E-mail address
A109: Official responsible for submitting financial information | C109: Official responsible for submitting financial information
A110: ID Number | C110: ID Number
A111: Title | C111: Title
A112: Name | C112: Name
A113: Telephone number | C113: Telephone number
A114: Cell number | C114: Cell number
A115: Fax number | C115: Fax number
A116: E-mail address | C116: E-mail address
A117: Official responsible for submitting financial information | C117: Official responsible for submitting financial information
A118: ID Number | C118: ID Number
A119: Title | C119: Title
A120: Name | C120: Name
A121: Telephone number | C121: Telephone number
A122: Cell number | C122: Cell number
A123: Fax number | C123: Fax number
A124: E-mail address | C124: E-mail address
A125: Official responsible for submitting financial information | C125: Official responsible for submitting financial information
A126: ID Number | C126: ID Number
A127: Title | C127: Title
A128: Name | C128: Name
A129: Telephone number | C129: Telephone number
A130: Cell number | C130: Cell number
A131: Fax number | C131: Fax number
A132: E-mail address | C132: E-mail address
A133: Official responsible for submitting financial information
A134: ID Number
A135: Title
A136: Name
A137: Telephone number
A138: Cell number
A139: Fax number
A140: E-mail address

Sheet C1-Sum
A1: =muni& " - "&s71sum& " - "&date -> LIM353 Molemole - Table C1 Monthly Budget Statement Summary - M10 April
A2: =desc -> Description | B2: =Head1 -> 2018/19 | C2: =Head2 -> Budget Year 2019/20
B3: =Head5 -> Audited Outcome | C3: =Head6 -> Original Budget | D3: =Head7 -> Adjusted Budget | E3: =Head38 -> Monthly actual | F3: =Head39 -> YearTD actual | G3: =Head40 -> YearTD budget | H3: =Head41 -> YTD variance | I3: =Head41 -> YTD variance | J3: =Head8 -> Full Year Forecast
A4: R thousands | I4: %
A5: Financial Performance
A6: Property rates | B6: =SUM('C4-FinPerf RE'!C6:C6) -> 14578847.33 | C6: =SUM('C4-FinPerf RE'!D6:D6) -> 15291183 | D6: =SUM('C4-FinPerf RE'!E6:E6) -> 19858067 | E6: =SUM('C4-FinPerf RE'!F6:F6) -> 1696500.76 | F6: =SUM('C4-FinPerf RE'!G6:G6) -> 16616848.97 | G6: =SUM('C4-FinPerf RE'!H6:H6) -> 15482730.4 | H6: =F6-G6 -> 1134118.57 | I6: =IF(H6=0,"",H6/G6) -> 0.0732505534 | J6: =SUM('C4-FinPerf RE'!K6:K6) -> 19858067
A7: Service charges | B7: =SUM('C4-FinPerf RE'!C7:C10) -> 9790657.79 | C7: =SUM('C4-FinPerf RE'!D7:D10) -> 11512854 | D7: =SUM('C4-FinPerf RE'!E7:E10) -> 11512854 | E7: =SUM('C4-FinPerf RE'!F7:F10) -> 941406.91 | F7: =SUM('C4-FinPerf RE'!G7:G10) -> 8829039.56 | G7: =SUM('C4-FinPerf RE'!H7:H10) -> 9594010 | H7: =F7-G7 -> -764970.44 | I7: =IF(H7=0,"",H7/G7) -> -0.07973417163 | J7: =SUM('C4-FinPerf RE'!K7:K10) -> 11512854
A8: Investment revenue | B8: ='C4-FinPerf RE'!C13 -> 0 | C8: ='C4-FinPerf RE'!D13 -> 2112000 | D8: ='C4-FinPerf RE'!E13 -> 2112000 | E8: ='C4-FinPerf RE'!F13 -> 132463.52 | F8: ='C4-FinPerf RE'!G13 -> 1599880.65 | G8: ='C4-FinPerf RE'!H13 -> 1760000 | H8: =F8-G8 -> -160119.35 | I8: =IF(H8=0,"",H8/G8) -> -0.09097690341 | J8: ='C4-FinPerf RE'!K13 -> 2112000
A9: Transfers and subsidies | B9: ='C4-FinPerf RE'!C19 -> 134056601.1 | C9: ='C4-FinPerf RE'!D19 -> 147905550 | D9: ='C4-FinPerf RE'!E19 -> 147905550 | E9: ='C4-FinPerf RE'!F19 -> 0 | F9: ='C4-FinPerf RE'!G19 -> 145843845.2 | G9: ='C4-FinPerf RE'!H19 -> 123254620 | H9: =F9-G9 -> 22589225.2 | I9: =IF(H9=0,"",H9/G9) -> 0.1832728477 | J9: ='C4-FinPerf RE'!K19 -> 147905550
A10: Other own revenue | B10: ='C4-FinPerf RE'!C12+'C4-FinPerf RE'!C14+'C4-FinPerf RE'!C15+'C4-FinPerf RE'!C16+'C4-FinPerf RE'!C17+'C4-FinPerf RE'!C18+'C4-FinPerf RE'!C20+'C4-FinPerf RE'!C21 -> 8499643.22 | C10: ='C4-FinPerf RE'!D12+'C4-FinPerf RE'!D14+'C4-FinPerf RE'!D15+'C4-FinPerf RE'!D16+'C4-FinPerf RE'!D17+'C4-FinPerf RE'!D18+'C4-FinPerf RE'!D20+'C4-FinPerf RE'!D21 -> 50774786 | D10: ='C4-FinPerf RE'!E12+'C4-FinPerf RE'!E14+'C4-FinPerf RE'!E15+'C4-FinPerf RE'!E16+'C4-FinPerf RE'!E17+'C4-FinPerf RE'!E18+'C4-FinPerf RE'!E20+'C4-FinPerf RE'!E21 -> 42049705 | E10: ='C4-FinPerf RE'!F12+'C4-FinPerf RE'!F14+'C4-FinPerf RE'!F15+'C4-FinPerf RE'!F16+'C4-FinPerf RE'!F17+'C4-FinPerf RE'!F18+'C4-FinPerf RE'!F20+'C4-FinPerf RE'!F21 -> 141466.14 | F10: ='C4-FinPerf RE'!G12+'C4-FinPerf RE'!G14+'C4-FinPerf RE'!G15+'C4-FinPerf RE'!G16+'C4-FinPerf RE'!G17+'C4-FinPerf RE'!G18+'C4-FinPerf RE'!G20+'C4-FinPerf RE'!G21 -> 9587986.91 | G10: ='C4-FinPerf RE'!H12+'C4-FinPerf RE'!H14+'C4-FinPerf RE'!H15+'C4-FinPerf RE'!H16+'C4-FinPerf RE'!H17+'C4-FinPerf RE'!H18+'C4-FinPerf RE'!H20+'C4-FinPerf RE'!H21 -> 37077151.4 | H10: =F10-G10 -> -27489164.49 | I10: =IF(H10=0,"",H10/G10) -> -0.7414044351 | J10: ='C4-FinPerf RE'!K12+'C4-FinPerf RE'!K14+'C4-FinPerf RE'!K15+'C4-FinPerf RE'!K16+'C4-FinPerf RE'!K17+'C4-FinPerf RE'!K18+'C4-FinPerf RE'!K20+'C4-FinPerf RE'!K21 -> 42049705
A11: Total Revenue (excluding capital transfers and contributions) | B11: =SUM(B6:B10) -> 166925749.4 | C11: 227596373 | D11: 223438176 | E11: 2911837.33 | F11: 182477601.3 | G11: 187168511.8 | H11: =F11-G11 -> -4690910.51 | I11: =IF(H11=0,"",H11/G11) -> -0.02506249831 | J11: 223438176
A12: Employee costs | B12: ='C4-FinPerf RE'!C25 -> 78988941.68 | C12: ='C4-FinPerf RE'!D25 -> 93985993 | D12: ='C4-FinPerf RE'!E25 -> 92456448 | E12: ='C4-FinPerf RE'!F25 -> 7198859.44 | F12: ='C4-FinPerf RE'!G25 -> 69865980.19 | G12: ='C4-FinPerf RE'!H25 -> 77406053 | H12: -7540072.81 | I12: -0.09740934356 | J12: ='C4-FinPerf RE'!K25 -> 92456448
A13: Remuneration of Councillors | B13: ='C4-FinPerf RE'!C26 -> 12328369.95 | C13: ='C4-FinPerf RE'!D26 -> 14127295 | D13: ='C4-FinPerf RE'!E26 -> 14127295 | E13: ='C4-FinPerf RE'!F26 -> 1043496.99 | F13: ='C4-FinPerf RE'!G26 -> 10348569.9 | G13: ='C4-FinPerf RE'!H26 -> 11772780 | H13: -1424210.1 | I13: -0.1209748335 | J13: ='C4-FinPerf RE'!K26 -> 14127295
A14: Depreciation & asset impairment | B14: ='C4-FinPerf RE'!C28 -> 12277161.1 | C14: ='C4-FinPerf RE'!D28 -> 8659942 | D14: ='C4-FinPerf RE'!E28 -> 15137211 | E14: ='C4-FinPerf RE'!F28 -> 0 | F14: ='C4-FinPerf RE'!G28 -> 11485398.15 | G14: ='C4-FinPerf RE'!H28 -> 11103281.4 | H14: 382116.75 | I14: 0.03441475869 | J14: ='C4-FinPerf RE'!K28 -> 15137211
A15: Finance charges | B15: ='C4-FinPerf RE'!C29 -> 1154597.65 | C15: ='C4-FinPerf RE'!D29 -> 1255286 | D15: ='C4-FinPerf RE'!E29 -> 1255286 | E15: ='C4-FinPerf RE'!F29 -> 1263.08 | F15: ='C4-FinPerf RE'!G29 -> 104235.98 | G15: ='C4-FinPerf RE'!H29 -> 1046080 | H15: -941844.02 | I15: -0.9003556325 | J15: ='C4-FinPerf RE'!K29 -> 1255286
A16: Materials and bulk purchases | B16: =SUM('C4-FinPerf RE'!C30:C31) -> 13882071.83 | C16: =SUM('C4-FinPerf RE'!D30:D31) -> 13126679 | D16: =SUM('C4-FinPerf RE'!E30:E31) -> 13507045 | E16: =SUM('C4-FinPerf RE'!F30:F31) -> 1181260.51 | F16: =SUM('C4-FinPerf RE'!G30:G31) -> 13160693.89 | G16: =SUM('C4-FinPerf RE'!H30:H31) -> 11167139.6 | H16: 1993554.29 | I16: 0.1785196891 | J16: =SUM('C4-FinPerf RE'!K30:K31) -> 13507045
A17: Transfers and subsidies | B17: ='C4-FinPerf RE'!C33 -> 0 | C17: ='C4-FinPerf RE'!D33 -> 0 | D17: ='C4-FinPerf RE'!E33 -> 0 | E17: ='C4-FinPerf RE'!F33 -> 0 | F17: ='C4-FinPerf RE'!G33 -> 0 | G17: ='C4-FinPerf RE'!H33 -> 0 | H17: 0 | J17: ='C4-FinPerf RE'!K33 -> 0
A18: Other expenditure | B18: ='C4-FinPerf RE'!C36-SUM('C1-Sum'!B12:B17) -> 75563870.62 | C18: ='C4-FinPerf RE'!D36-SUM('C1-Sum'!C12:C17) -> 74393367 | D18: ='C4-FinPerf RE'!E36-SUM('C1-Sum'!D12:D17) -> 75769587 | E18: ='C4-FinPerf RE'!F36-SUM('C1-Sum'!E12:E17) -> 2988850.35 | F18: ='C4-FinPerf RE'!G36-SUM('C1-Sum'!F12:F17) -> 49555253.09 | G18: ='C4-FinPerf RE'!H36-SUM('C1-Sum'!G12:G17) -> 62820792 | H18: -13265538.91 | I18: -0.211164783 | J18: ='C4-FinPerf RE'!K36-SUM('C1-Sum'!J12:J17) -> 75769587
A19: Total Expenditure | B19: =SUM(B12:B18) -> 194195012.8 | C19: 205548562 | D19: 212252872 | E19: 12413730.37 | F19: 154520131.2 | G19: 175316126 | H19: -20795994.8 | I19: -0.1186199768 | J19: =SUM(J12:J18) -> 212252872
A20: Surplus/(Deficit) | B20: =B11-B19 -> -27269263.38 | C20: 22047811 | D20: 11185304 | E20: -9501893.04 | F20: 27957470.09 | G20: 11852385.8 | H20: 16105084.29 | I20: 1.35880527 | J20: =J11-J19 -> 11185304
A21: ='C4-FinPerf RE'!A39 -> Transfers and subsidies - capital (monetary allocations) (National / Provincial and District) | B21: ='C4-FinPerf RE'!C39 -> 43126493.38 | C21: ='C4-FinPerf RE'!D39 -> 33393460 | D21: ='C4-FinPerf RE'!E39 -> 43119460 | E21: ='C4-FinPerf RE'!F39 -> 0 | F21: ='C4-FinPerf RE'!G39 -> 32250934.67 | G21: ='C4-FinPerf RE'!H39 -> 33663480 | H21: -1412545.33 | I21: -0.04196076371 | J21: ='C4-FinPerf RE'!K39 -> 43119460
A22: ='C4-FinPerf RE'!A40&" & "&'C4-FinPerf RE'!A41 -> Transfers and subsidies - capital (monetary allocations) (National / Provincial Departmental Agencies, Households, Non-profit Institutions, Private Enterprises, Public Corporatons, Higher Educational Institutions) & Transfers and subsidies - capital (in-kind - all) | B22: =SUM('C4-FinPerf RE'!C40:C41) -> 0 | C22: =SUM('C4-FinPerf RE'!D40:D41) -> 0 | D22: =SUM('C4-FinPerf RE'!E40:E41) -> 0 | E22: =SUM('C4-FinPerf RE'!F40:F41) -> 0 | F22: =SUM('C4-FinPerf RE'!G40:G41) -> 0 | G22: =SUM('C4-FinPerf RE'!H40:H41) -> 0 | H22: 0 | J22: =SUM('C4-FinPerf RE'!K40:K41) -> 0
A23: Surplus/(Deficit) after capital transfers & contributions | B23: =B20+B21+B22 -> 15857230 | C23: 55441271 | D23: 54304764 | E23: -9501893.04 | F23: 60208404.76 | G23: 45515865.8 | H23: 14692538.96 | I23: 0.322800384 | J23: =J20+J21+J22 -> 54304764
A24: Share of surplus/ (deficit) of associate | B24: ='C4-FinPerf RE'!C47 -> 0 | C24: ='C4-FinPerf RE'!D47 -> 0 | D24: ='C4-FinPerf RE'!E47 -> 0 | E24: ='C4-FinPerf RE'!F47 -> 0 | F24: ='C4-FinPerf RE'!G47 -> 0 | G24: ='C4-FinPerf RE'!H47 -> 0 | H24: 0 | J24: ='C4-FinPerf RE'!K47 -> 0
A25: Surplus/ (Deficit) for the year | B25: =B23+B24 -> 15857230 | C25: 55441271 | D25: 54304764 | E25: -9501893.04 | F25: 60208404.76 | G25: 45515865.8 | H25: 14692538.96 | I25: 0.322800384 | J25: =J23+J24 -> 54304764
A27: Capital expenditure & funds sources
A28: Capital expenditure | B28: ='C5-Capex'!C40 -> 45682357.98 | C28: ='C5-Capex'!D40 -> 55441271 | D28: ='C5-Capex'!E40 -> 54304785 | E28: ='C5-Capex'!F40 -> 688431.84 | F28: ='C5-Capex'!G40 -> 34447542.11 | G28: ='C5-Capex'!H40 -> 45519218.4 | H28: =F28-G28 -> -11071676.29 | I28: =IF(H28=0,"",H28/G28) -> -0.2432308084 | J28: ='C5-Capex'!K40 -> 54304785
A29: Capital transfers recognised | B29: ='C5-Capex'!C70 -> 38798653.46 | C29: ='C5-Capex'!D70 -> 33393450 | D29: ='C5-Capex'!E70 -> 41503450 | E29: ='C5-Capex'!F70 -> 0 | F29: ='C5-Capex'!G70 -> 28398406.22 | G29: ='C5-Capex'!H70 -> 32693880 | H29: -4295473.78 | I29: -0.1313846439 | J29: ='C5-Capex'!K70 -> 41503450
A31: Borrowing | B31: ='C5-Capex'!C72 -> 0 | C31: ='C5-Capex'!D72 -> 0 | D31: ='C5-Capex'!E72 -> 0 | E31: ='C5-Capex'!F72 -> 0 | F31: ='C5-Capex'!G72 -> 0 | G31: ='C5-Capex'!H72 -> 0 | H31: 0 | J31: ='C5-Capex'!K72 -> 0
A32: Internally generated funds | B32: ='C5-Capex'!C73 -> 4637152.15 | C32: ='C5-Capex'!D73 -> 22047821 | D32: ='C5-Capex'!E73 -> 12801335 | E32: ='C5-Capex'!F73 -> 688431.84 | F32: ='C5-Capex'!G73 -> 6049135.89 | G32: ='C5-Capex'!H73 -> 12825338.4 | H32: -6776202.51 | I32: -0.5283449293 | J32: ='C5-Capex'!K73 -> 12801335
A33: Total sources of capital funds | B33: =+B29+B31+B32 -> 43435805.61 | C33: 55441271 | D33: 54304785 | E33: 688431.84 | F33: 34447542.11 | G33: 45519218.4 | H33: -11071676.29 | I33: -0.2432308084 | J33: =+J29+J31+J32 -> 54304785
A35: Financial position
A36: Total current assets | B36: ='C6-FinPos'!C13 -> 108943351.3 | C36: ='C6-FinPos'!D13 -> 56560771 | D36: ='C6-FinPos'!E13 -> 123291370 | F36: ='C6-FinPos'!F13 -> 139235570.8 | J36: ='C6-FinPos'!G13 -> 123291370
A37: Total non current assets | B37: ='C6-FinPos'!C25 -> 252715918.4 | C37: ='C6-FinPos'!D25 -> 141236410 | D37: ='C6-FinPos'!E25 -> 292322709 | F37: ='C6-FinPos'!F25 -> 275678062.3 | J37: ='C6-FinPos'!G25 -> 292322709
A38: Total current liabilities | B38: ='C6-FinPos'!C35 -> 42609902.45 | C38: ='C6-FinPos'!D35 -> 38920278 | D38: ='C6-FinPos'!E35 -> 40043609 | F38: ='C6-FinPos'!F35 -> 35720968.79 | J38: ='C6-FinPos'!G35 -> 40043609
A39: Total non current liabilities | B39: ='C6-FinPos'!C40 -> 23525663.94 | C39: ='C6-FinPos'!D40 -> 25676880 | D39: ='C6-FinPos'!E40 -> 25741988 | F39: ='C6-FinPos'!F40 -> 23460556.29 | J39: ='C6-FinPos'!G40 -> 25741988
A40: Community wealth/Equity | B40: ='C6-FinPos'!C48 -> 287841039.8 | C40: ='C6-FinPos'!D48 -> 133200023 | D40: ='C6-FinPos'!E48 -> 398658426 | F40: ='C6-FinPos'!F48 -> 355732502.7 | J40: ='C6-FinPos'!G48 -> 398658426
A42: Cash flows
A43: Net cash from (used) operating | B43: ='C7-CFlow'!C18 -> -15464373.76 | C43: ='C7-CFlow'!D18 -> 38452193.22 | D43: ='C7-CFlow'!E18 -> 38225152.22 | E43: ='C7-CFlow'!F18 -> -11610193.6 | F43: ='C7-CFlow'!G18 -> 45403405.88 | G43: ='C7-CFlow'!H18 -> 12779198.81 | H43: =G43-F43 -> -32624207.07 | I43: =IF(H43=0,"",H43/G43) -> -2.552914901 | J43: ='C7-CFlow'!K18 -> -191278559
A44: Net cash from (used) investing | B44: ='C7-CFlow'!C28 -> -39872195 | C44: ='C7-CFlow'!D28 -> -55441271 | D44: ='C7-CFlow'!E28 -> -55441271 | E44: ='C7-CFlow'!F28 -> -688431.84 | F44: ='C7-CFlow'!G28 -> -33759109.89 | G44: ='C7-CFlow'!H28 -> 0 | H44: =G44-F44 -> 33759109.89 | I44: =IF(H44=0,"",H44/G44) ->  | J44: ='C7-CFlow'!K28 -> 0
A45: Net cash from (used) financing | B45: ='C7-CFlow'!C37 -> 447589.46 | C45: ='C7-CFlow'!D37 -> 208697.48 | D45: ='C7-CFlow'!E37 -> 196513 | E45: ='C7-CFlow'!F37 -> 0 | F45: ='C7-CFlow'!G37 -> -829350.87 | G45: ='C7-CFlow'!H37 -> -677095.2 | H45: =G45-F45 -> 152255.67 | I45: =IF(H45=0,"",H45/G45) -> -0.2248659716 | J45: ='C7-CFlow'!K37 -> -785163
A46: Cash/cash equivalents at the month/year end | B46: ='C7-CFlow'!C41 -> -13308165.81 | C46: ='C7-CFlow'!D41 -> -2449448.304 | D46: ='C7-CFlow'!E41 -> 2176851.216 | E46: ='C7-CFlow'!F41 -> 0 | F46: ='C7-CFlow'!G41 -> 30176487.91 | G46: ='C7-CFlow'!H41 -> 12102103.61 | H46: =G46-F46 -> -18074384.3 | I46: =IF(H46=0,"",H46/G46) -> -1.493491122 | J46: ='C7-CFlow'!K41 -> -192063722
A48: Debtors & creditors analysis | B48: ='SC3'!C3 -> 0-30 Days | C48: ='SC3'!D3 -> 31-60 Days | D48: ='SC3'!E3 -> 61-90 Days | E48: ='SC3'!F3 -> 91-120 Days | F48: ='SC3'!G3 -> 121-150 Dys | G48: ='SC3'!H3 -> 151-180 Dys | H48: ='SC3'!I3 -> 181 Dys-1 Yr | I48: ='SC3'!J3 -> Over 1Yr | J48: Total
A49: =LEFT('SC3'!A4,20) -> Debtors Age Analysis
A50: ='SC3'!A14 -> Total By Income Source | B50: ='SC3'!C14 -> 2294795 | C50: ='SC3'!D14 -> 2144688 | D50: ='SC3'!E14 -> 2012473 | E50: ='SC3'!F14 -> 104326155 | F50: ='SC3'!G14 -> 0 | G50: ='SC3'!H14 -> 0 | H50: ='SC3'!I14 -> 0 | I50: ='SC3'!J14 -> 0 | J50: ='SC3'!K14 -> 110778111
A51: =LEFT('SC4'!A5,22) -> Creditors Age Analysis
A52: Total Creditors | B52: ='SC4'!C15 -> 35925 | C52: ='SC4'!D15 -> 8307 | D52: ='SC4'!E15 -> 81692 | E52: ='SC4'!F15 -> 0 | F52: ='SC4'!G15 -> 0 | G52: ='SC4'!H15 -> 0 | H52: ='SC4'!I15 -> 0 | I52: ='SC4'!J15 -> 0 | J52: ='SC4'!K15 -> 125924

Sheet C2-FinPerf SC
A1: =muni& " - "&S71A& " - "&date -> LIM353 Molemole - Table C2 Monthly Budget Statement - Financial Performance (functional classification) - M10 April
A2: =desc -> Description | B2: =head27 -> Ref | C2: =Head1 -> 2018/19 | D2: =Head2 -> Budget Year 2019/20
C3: =Head5 -> Audited Outcome | D3: =Head6 -> Original Budget | E3: =Head7 -> Adjusted Budget | F3: =Head38 -> Monthly actual | G3: =Head39 -> YearTD actual | H3: =Head40 -> YearTD budget | I3: =Head41 -> YTD variance | J3: =Head41 -> YTD variance | K3: =Head8 -> Full Year Forecast
A4: R thousands | B4: 1 | J4: %
A5: Revenue - Functional
A6: Governance and administration | C6: =SUM(C7:C9) -> 148157868.4 | D6: 185846276 | E6: 191416257 | F6: 1877640.71 | G6: 163076020.7 | H6: 158213808.6 | I6: =G6-H6 -> 4862212.11 | J6: =IF(I6=0,"",I6/H6) -> 0.03073190737 | K6: =SUM(K7:K9) -> 191416257
A7: Executive and council | C7: ='C2C'!C7 -> 0 | D7: ='C2C'!D7 -> 0 | E7: ='C2C'!E7 -> 0 | F7: ='C2C'!F7 -> 0 | G7: ='C2C'!G7 -> 0 | H7: ='C2C'!H7 -> 0 | I7: 0 | J7: =IF(I7=0,"",I7/H7) ->  | K7: ='C2C'!K7 -> 0
A8: Finance and administration | C8: ='C2C'!C10 -> 148157868.4 | D8: ='C2C'!D10 -> 185846276 | E8: ='C2C'!E10 -> 191416257 | F8: ='C2C'!F10 -> 1877640.71 | G8: ='C2C'!G10 -> 163076020.7 | H8: ='C2C'!H10 -> 158213808.6 | I8: 4862212.11 | J8: 0.03073190737 | K8: ='C2C'!K10 -> 191416257
A9: Internal audit | C9: ='C2C'!C24 -> 0 | D9: ='C2C'!D24 -> 0 | E9: ='C2C'!E24 -> 0 | F9: ='C2C'!F24 -> 0 | G9: ='C2C'!G24 -> 0 | H9: ='C2C'!H24 -> 0 | I9: 0 | K9: ='C2C'!K24 -> 0
A10: Community and public safety | C10: =SUM(C11:C15) -> 5729943.72 | D10: 9732348 | E10: 9682348 | F10: 28833.97 | G10: 8375617.14 | H10: 8080260 | I10: 295357.14 | J10: 0.03655292528 | K10: =SUM(K11:K15) -> 9682348
A11: Community and social services | C11: ='C2C'!C27 -> 1139285 | D11: ='C2C'!D27 -> 1179565 | E11: ='C2C'!E27 -> 1179565 | F11: ='C2C'!F27 -> 1577.63 | G11: ='C2C'!G27 -> 800412.89 | H11: ='C2C'!H27 -> 982970 | I11: -182557.11 | J11: -0.1857199202 | K11: ='C2C'!K27 -> 1179565
A12: Sport and recreation | C12: ='C2C'!C49 -> 354630.05 | D12: ='C2C'!D49 -> 287272 | E12: ='C2C'!E49 -> 237272 | F12: ='C2C'!F49 -> 15256.34 | G12: ='C2C'!G49 -> 171772.69 | H12: ='C2C'!H49 -> 209370 | I12: -37597.31 | J12: -0.1795735301 | K12: ='C2C'!K49 -> 237272
A13: Public safety | C13: ='C2C'!C55 -> 4236028.67 | D13: ='C2C'!D55 -> 8265511 | E13: ='C2C'!E55 -> 8265511 | F13: ='C2C'!F55 -> 12000 | G13: ='C2C'!G55 -> 7403431.56 | H13: ='C2C'!H55 -> 6887920 | I13: 515511.56 | J13: 0.07484284951 | K13: ='C2C'!K55 -> 8265511
A14: Housing | C14: ='C2C'!C64 -> 0 | D14: ='C2C'!D64 -> 0 | E14: ='C2C'!E64 -> 0 | F14: ='C2C'!F64 -> 0 | G14: ='C2C'!G64 -> 0 | H14: ='C2C'!H64 -> 0 | I14: =G14-H14 -> 0 | J14: =IF(I14=0,"",I14/H14) ->  | K14: ='C2C'!K64 -> 0
A15: Health | C15: ='C2C'!C67 -> 0 | D15: ='C2C'!D67 -> 0 | E15: ='C2C'!E67 -> 0 | F15: ='C2C'!F67 -> 0 | G15: ='C2C'!G67 -> 0 | H15: ='C2C'!H67 -> 0 | I15: 0 | K15: ='C2C'!K67 -> 0
A16: Economic and environmental services | C16: =SUM(C17:C19) -> 45055756.76 | D16: 50270772 | E16: 52566772 | F16: 3359.36 | G16: 33731580.13 | H16: 43269870 | I16: -9538289.87 | J16: -0.2204372204 | K16: =SUM(K17:K19) -> 52566772
A17: Planning and development | C17: ='C2C'!C76 -> 45055756.76 | D17: ='C2C'!D76 -> 50270772 | E17: ='C2C'!E76 -> 52566772 | F17: ='C2C'!F76 -> 3359.36 | G17: ='C2C'!G76 -> 33731580.13 | H17: ='C2C'!H76 -> 43269870 | I17: -9538289.87 | J17: -0.2204372204 | K17: ='C2C'!K76 -> 52566772
A18: Road transport | C18: ='C2C'!C87 -> 0 | D18: ='C2C'!D87 -> 0 | E18: ='C2C'!E87 -> 0 | F18: ='C2C'!F87 -> 0 | G18: ='C2C'!G87 -> 0 | H18: ='C2C'!H87 -> 0 | I18: 0 | K18: ='C2C'!K87 -> 0
A19: Environmental protection | C19: ='C2C'!C92 -> 0 | D19: ='C2C'!D92 -> 0 | E19: ='C2C'!E92 -> 0 | F19: ='C2C'!F92 -> 0 | G19: ='C2C'!G92 -> 0 | H19: ='C2C'!H92 -> 0 | I19: 0 | K19: ='C2C'!K92 -> 0
A20: Trading services | C20: =SUM(C21:C24) -> 11108673.98 | D20: =SUM(D21:D24) -> 15140437 | E20: 12892259 | F20: 1002003.29 | G20: 9545317.98 | H20: 11268053.2 | I20: -1722735.22 | J20: -0.1528866779 | K20: =SUM(K21:K24) -> 12892259
A21: Energy sources | C21: ='C2C'!C100 -> 8396818.49 | D21: ='C2C'!D100 -> 9750561 | E21: ='C2C'!E100 -> 9720026 | F21: ='C2C'!F100 -> 550073.79 | G21: ='C2C'!G100 -> 6369424.86 | H21: ='C2C'!H100 -> 8107109 | I21: =G21-H21 -> -1737684.14 | J21: -0.2143407891 | K21: ='C2C'!K100 -> 9720026
A22: Water management | C22: ='C2C'!C104 -> 1010545.86 | D22: ='C2C'!D104 -> 2011785 | E22: ='C2C'!E104 -> 403536 | F22: ='C2C'!F104 -> 171992.26 | G22: ='C2C'!G104 -> 344107.28 | H22: ='C2C'!H104 -> 711530.6 | I22: =G22-H22 -> -367423.32 | J22: -0.5163844254 | K22: ='C2C'!K104 -> 403536
A23: Waste water management | C23: ='C2C'!C108 -> -336378.88 | D23: ='C2C'!D108 -> 870563 | E23: ='C2C'!E108 -> 261169 | F23: ='C2C'!F108 -> 77637.47 | G23: ='C2C'!G108 -> 821449.06 | H23: ='C2C'!H108 -> 359823.6 | I23: =G23-H23 -> 461625.46 | J23: 1.282921576 | K23: ='C2C'!K108 -> 261169
A24: Waste management | C24: ='C2C'!C113 -> 2037688.51 | D24: ='C2C'!D113 -> 2507528 | E24: ='C2C'!E113 -> 2507528 | F24: ='C2C'!F113 -> 202299.77 | G24: ='C2C'!G113 -> 2010336.78 | H24: ='C2C'!H113 -> 2089590 | I24: =G24-H24 -> -79253.22 | J24: -0.03792764131 | K24: ='C2C'!K113 -> 2507528
A25: Other | B25: 4 | C25: ='C2C'!C118 -> 0 | D25: ='C2C'!D118 -> 0 | E25: ='C2C'!E118 -> 0 | F25: ='C2C'!F118 -> 0 | G25: ='C2C'!G118 -> 0 | H25: ='C2C'!H118 -> 0 | I25: =G25-H25 -> 0 | K25: ='C2C'!K118 -> 0
A26: Total Revenue - Functional | B26: 2 | C26: =C6+C10+C16+C20+C25 -> 210052242.8 | D26: =D6+D10+D16+D20+D25 -> 260989833 | E26: 266557636 | F26: 2911837.33 | G26: 214728536 | H26: 220831991.8 | I26: -6103455.84 | J26: -0.0276384585 | K26: =K6+K10+K16+K20+K25 -> 266557636
A28: Expenditure - Functional
A29: Governance and administration | C29: =SUM(C30:C32) -> 100302058.4 | D29: 119000674 | E29: 121185629 | F29: 6554465.61 | G29: 85906085.7 | H29: 100479933 | I29: =G29-H29 -> -14573847.3 | J29: =IF(I29=0,"",I29/H29) -> -0.1450423668 | K29: =SUM(K30:K32) -> 121185629
A30: Executive and council | C30: ='C2C'!C129 -> 31357338.36 | D30: ='C2C'!D129 -> 36964044 | E30: ='C2C'!E129 -> 36547378 | F30: ='C2C'!F129 -> 2167525.79 | G30: ='C2C'!G129 -> 25095106.95 | H30: ='C2C'!H129 -> 30553930.4 | I30: -5458823.45 | J30: =IF(I30=0,"",I30/H30) -> -0.1786619063 | K30: ='C2C'!K129 -> 36547378
A31: Finance and administration | C31: ='C2C'!C132 -> 63055140.01 | D31: ='C2C'!D132 -> 75218977 | E31: ='C2C'!E132 -> 77775050 | F31: ='C2C'!F132 -> 4204108.68 | G31: ='C2C'!G132 -> 55187978.69 | H31: ='C2C'!H132 -> 64217183.8 | I31: -9029205.11 | J31: -0.14060419 | K31: ='C2C'!K132 -> 77775050
A32: Internal audit | C32: ='C2C'!C146 -> 5889580.04 | D32: ='C2C'!D146 -> 6817653 | E32: ='C2C'!E146 -> 6863201 | F32: ='C2C'!F146 -> 182831.14 | G32: ='C2C'!G146 -> 5623000.06 | H32: ='C2C'!H146 -> 5708818.8 | I32: -85818.74 | J32: -0.0150326614 | K32: ='C2C'!K146 -> 6863201
A33: Community and public safety | C33: =SUM(C34:C38) -> 21482121.93 | D33: 23375419 | E33: 23022583 | F33: 1728418.25 | G33: 19312440.64 | H33: 19268278.4 | I33: 44162.24 | J33: 0.002291966053 | K33: =SUM(K34:K38) -> 23022583
A34: Community and social services | C34: ='C2C'!C149 -> 4523084.19 | D34: ='C2C'!D149 -> 7350195 | E34: ='C2C'!E149 -> 6758959 | F34: ='C2C'!F149 -> 433183.49 | G34: ='C2C'!G149 -> 4443681.57 | H34: ='C2C'!H149 -> 5770688.4 | I34: -1327006.83 | J34: -0.2299564173 | K34: ='C2C'!K149 -> 6758959
A35: Sport and recreation | C35: ='C2C'!C171 -> 3139055.4 | D35: ='C2C'!D171 -> 2584983 | E35: ='C2C'!E171 -> 2684708 | F35: ='C2C'!F171 -> 142457.78 | G35: ='C2C'!G171 -> 2709814.16 | H35: ='C2C'!H171 -> 2214095 | I35: 495719.16 | J35: 0.2238924527 | K35: ='C2C'!K171 -> 2684708
A36: Public safety | C36: ='C2C'!C177 -> 13819982.34 | D36: ='C2C'!D177 -> 13440241 | E36: ='C2C'!E177 -> 13578916 | F36: ='C2C'!F177 -> 1152776.98 | G36: ='C2C'!G177 -> 12158944.91 | H36: ='C2C'!H177 -> 11283495 | I36: 875449.91 | J36: 0.07758676811 | K36: ='C2C'!K177 -> 13578916
A37: Housing | C37: ='C2C'!C186 -> 0 | D37: ='C2C'!D186 -> 0 | E37: ='C2C'!E186 -> 0 | F37: ='C2C'!F186 -> 0 | G37: ='C2C'!G186 -> 0 | H37: ='C2C'!H186 -> 0 | I37: 0 | K37: ='C2C'!K186 -> 0
A38: Health | C38: ='C2C'!C189 -> 0 | D38: ='C2C'!D189 -> 0 | E38: ='C2C'!E189 -> 0 | F38: ='C2C'!F189 -> 0 | G38: ='C2C'!G189 -> 0 | H38: ='C2C'!H189 -> 0 | I38: 0 | K38: ='C2C'!K189 -> 0
A39: Economic and environmental services | C39: =SUM(C40:C42) -> 13169272.81 | D39: 17503092 | E39: 16096553 | F39: 1203367.81 | G39: 10000224.08 | H39: 13742416.6 | I39: -3742192.52 | J39: -0.2723096402 | K39: =SUM(K40:K42) -> 16096553
A40: Planning and development | C40: ='C2C'!C198 -> 10131053.5 | D40: ='C2C'!D198 -> 14324737 | E40: ='C2C'!E198 -> 12900655 | F40: ='C2C'!F198 -> 727313.26 | G40: ='C2C'!G198 -> 7528633.48 | H40: ='C2C'!H198 -> 11083200.8 | I40: -3554567.32 | J40: -0.320716676 | K40: ='C2C'!K198 -> 12900655
A41: Road transport | C41: ='C2C'!C209 -> 3038219.31 | D41: ='C2C'!D209 -> 3178355 | E41: ='C2C'!E209 -> 3195898 | F41: ='C2C'!F209 -> 476054.55 | G41: ='C2C'!G209 -> 2471590.6 | H41: ='C2C'!H209 -> 2659215.8 | I41: -187625.2 | J41: -0.07055659041 | K41: ='C2C'!K209 -> 3195898
A42: Environmental protection | C42: ='C2C'!C214 -> 0 | D42: ='C2C'!D214 -> 0 | E42: ='C2C'!E214 -> 0 | F42: ='C2C'!F214 -> 0 | G42: ='C2C'!G214 -> 0 | H42: ='C2C'!H214 -> 0 | I42: 0 | K42: ='C2C'!K214 -> 0
A43: Trading services | C43: =SUM(C44:C47) -> 59241559.68 | D43: =SUM(D44:D47) -> 45669377 | E43: 51948107 | F43: 2927478.7 | G43: 39301380.78 | H43: 41825498 | I43: -2524117.22 | J43: -0.06034876668 | K43: =SUM(K44:K47) -> 51948107
A44: Energy sources | C44: ='C2C'!C222 -> 13550677.41 | D44: ='C2C'!D222 -> 17372199 | E44: ='C2C'!E222 -> 17619592 | F44: ='C2C'!F222 -> 1447768.51 | G44: ='C2C'!G222 -> 16181336.63 | H44: ='C2C'!H222 -> 14625405.8 | I44: 1555930.83 | J44: 0.1063854809 | K44: ='C2C'!K222 -> 17619592
A45: Water management | C45: ='C2C'!C226 -> 7741390.77 | D45: ='C2C'!D226 -> 7039369 | E45: ='C2C'!E226 -> 7130379 | F45: ='C2C'!F226 -> 524643.94 | G45: ='C2C'!G226 -> 5269821.87 | H45: ='C2C'!H226 -> 5920836 | I45: -651014.13 | J45: -0.1099530759 | K45: ='C2C'!K226 -> 7130379
A46: Waste water management | C46: ='C2C'!C230 -> 29413899.93 | D46: ='C2C'!D230 -> 14638116 | E46: ='C2C'!E230 -> 20422238 | F46: ='C2C'!F230 -> 467191.92 | G46: ='C2C'!G230 -> 12609656.75 | H46: ='C2C'!H230 -> 15669073.2 | I46: -3059416.45 | J46: -0.1952519087 | K46: ='C2C'!K230 -> 20422238
A47: Waste management | C47: ='C2C'!C235 -> 8535591.57 | D47: ='C2C'!D235 -> 6619693 | E47: ='C2C'!E235 -> 6775898 | F47: ='C2C'!F235 -> 487874.33 | G47: ='C2C'!G235 -> 5240565.53 | H47: ='C2C'!H235 -> 5610183 | I47: -369617.47 | J47: -0.06588331789 | K47: ='C2C'!K235 -> 6775898
A48: Other | C48: ='C2C'!C240 -> 0 | D48: ='C2C'!D240 -> 0 | E48: ='C2C'!E240 -> 0 | F48: ='C2C'!F240 -> 0 | G48: ='C2C'!G240 -> 0 | H48: ='C2C'!H240 -> 0 | I48: 0 | K48: ='C2C'!K240 -> 0
A49: Total Expenditure - Functional | B49: 3 | C49: =C29+C33+C39+C43+C48 -> 194195012.8 | D49: =D29+D33+D39+D43+D48 -> 205548562 | E49: 212252872 | F49: 12413730.37 | G49: 154520131.2 | H49: 175316126 | I49: -20795994.8 | J49: -0.1186199768 | K49: =K29+K33+K39+K43+K48 -> 212252872
A50: Surplus/ (Deficit) for the year | C50: =C26-C49 -> 15857230 | D50: 55441271 | E50: 54304764 | F50: -9501893.04 | G50: 60208404.76 | H50: 45515865.8 | I50: =I26-I49 -> 14692538.96 | J50: =IF(I50=0,"",I50/H50) -> 0.322800384 | K50: =K26-K49 -> 54304764
A51: =head27a -> References
A52: 1. Government Finance Statistics Functions and Sub-functions are standardised to assist the compilation of national and international accounts for comparison purposes
A53: 2. Total Revenue by functional classification must reconcile to Total Operating Revenue shown in the Financial Performance Statement
A54: 3. Total Expenditure by functional classification must reconcile to total operating expenditure shown in 'Financial Performance Statement'
A55: 4. All amounts must be classified under a functional classification (modified GFS). The GFS function 'Other' is only for Abbatoirs, Air Transport, Licensing and Regulation, Markets and Tourism - and if used must be supported by footnotes. Nothing else may be placed under 'Other'. Assign associate share to relevant classification

Sheet C2C
A1: =muni& " - "&S71A& " - "&date -> LIM353 Molemole - Table C2 Monthly Budget Statement - Financial Performance (functional classification) - M10 April
A2: =desc -> Description | B2: =head27 -> Ref | C2: =Head1 -> 2018/19 | D2: =Head2 -> Budget Year 2019/20
C3: =Head5 -> Audited Outcome | D3: =Head6 -> Original Budget | E3: =Head7 -> Adjusted Budget | F3: =Head38 -> Monthly actual | G3: =Head39 -> YearTD actual | H3: =Head40 -> YearTD budget | I3: =Head41 -> YTD variance | J3: =Head41 -> YTD variance | K3: =Head8 -> Full Year Forecast
A4: R thousands | B4: 1 | J4: %
A5: Revenue - Functional
A6: Municipal governance and administration | C6: =C7+C10+C24 -> 148157868.4 | D6: 185846276 | E6: 191416257 | F6: 1877640.71 | G6: 163076020.7 | H6: 158213808.6 | I6: =G6-H6 -> 4862212.11 | J6: =IF(I6=0,"",I6/H6) -> 0.03073190737 | K6: =K7+K10+K24 -> 191416257
A7: Executive and council | C7: =SUM(C8:C9) -> 0 | D7: =SUM(D8:D9) -> 0 | E7: 0 | F7: 0 | G7: 0 | H7: 0 | I7: =G7-H7 -> 0 | J7: =IF(I7=0,"",I7/H7) ->  | K7: 0
A8: Mayor and Council | C8: 0 | D8: 0 | E8: 0 | F8: 0 | G8: 0 | H8: 0 | I8: 0 | K8: 0
A9: Municipal Manager, Town Secretary and Chief Executive | C9: 0 | D9: 0 | E9: 0 | F9: 0 | G9: 0 | H9: 0 | I9: 0 | K9: 0
A10: Finance and administration | C10: =SUM(C11:C23) -> 148157868.4 | D10: 185846276 | E10: 191416257 | F10: 1877640.71 | G10: 163076020.7 | H10: 158213808.6 | I10: =G10-H10 -> 4862212.11 | J10: =IF(I10=0,"",I10/H10) -> 0.03073190737 | K10: =SUM(K11:K23) -> 191416257
A11: Administrative and Corporate Support | C11: 146165620.6 | D11: 165084964 | E11: 168816399 | F11: 1742574.64 | G11: 161355445.3 | H11: 139809601 | I11: 21545844.29 | J11: 0.1541084742 | K11: 168816399
A12: Asset Management | I12: 0
A13: Finance | C13: 1839509.58 | D13: 20556995 | E13: 22395541 | F13: 135066.07 | G13: 1624195.04 | H13: 18233947.6 | I13: -16609752.56 | J13: -0.9109246623 | K13: 22395541
A14: Fleet Management | I14: 0
A15: Human Resources | C15: 152738.23 | D15: 204317 | E15: 204317 | F15: 0 | G15: 96380.38 | H15: 170260 | I15: -73879.62 | J15: -0.433922354 | K15: 204317
A16: Information Technology | C16: 0 | D16: 0 | E16: 0 | F16: 0 | G16: 0 | H16: 0 | I16: =G16-H16 -> 0 | J16: =IF(I16=0,"",I16/H16) ->  | K16: 0
A17: Legal Services | C17: 0 | D17: 0 | E17: 0 | F17: 0 | G17: 0 | H17: 0 | I17: 0 | K17: 0
A18: Marketing, Customer Relations, Publicity and Media Co-ordination | I18: 0
A19: Property Services | I19: 0
A20: Risk Management | C20: 0 | D20: 0 | E20: 0 | F20: 0 | G20: 0 | H20: 0 | I20: 0 | K20: 0
A21: Security Services | I21: 0
A22: Supply Chain Management | C22: 0 | D22: 0 | E22: 0 | F22: 0 | G22: 0 | H22: 0 | I22: 0 | K22: 0
A23: Valuation Service | I23: 0
A24: Internal audit | C24: =SUM(C25:C25) -> 0 | D24: 0 | E24: 0 | F24: 0 | G24: 0 | H24: 0 | I24: 0 | K24: =SUM(K25:K25) -> 0
A25: Governance Function | C25: 0 | D25: 0 | E25: 0 | F25: 0 | G25: 0 | H25: 0 | I25: 0 | K25: 0
A26: Community and public safety | C26: =C27+C49+C55+C64+C67 -> 5729943.72 | D26: =D27+D49+D55+D64+D67 -> 9732348 | E26: 9682348 | F26: 28833.97 | G26: 8375617.14 | H26: 8080260 | I26: 295357.14 | J26: 0.03655292528 | K26: 9682348
A27: Community and social services | C27: =SUM(C28:C48) -> 1139285 | D27: 1179565 | E27: 1179565 | F27: 1577.63 | G27: 800412.89 | H27: 982970 | I27: -182557.11 | J27: -0.1857199202 | K27: =SUM(K28:K48) -> 1179565
A28: Aged Care | I28: =G28-H28 -> 0 | J28: =IF(I28=0,"",I28/H28) -> 
A29: Agricultural | I29: 0
A30: Animal Care and Diseases | I30: 0
A31: Cemeteries, Funeral Parlours and Crematoriums | C31: 5850 | D31: 12565 | E31: 12565 | F31: 1577.63 | G31: 6668.89 | H31: 10470 | I31: -3801.11 | J31: -0.3630477555 | K31: 12565
A32: Child Care Facilities | I32: 0
A33: Community Halls and Facilities | C33: 1133435 | D33: 1167000 | E33: 1167000 | F33: 0 | G33: 793744 | H33: 972500 | I33: -178756 | J33: -0.1838107969 | K33: 1167000
A34: Consumer Protection | I34: 0
A35: Cultural Matters | I35: =G35-H35 -> 0 | J35: =IF(I35=0,"",I35/H35) -> 
A36: Disaster Management | I36: 0
A37: Education | I37: 0
A38: Indigenous and Customary Law | I38: 0
A39: Industrial Promotion | I39: 0
A40: Language Policy | I40: 0
A41: Libraries and Archives | C41: 0 | D41: 0 | E41: 0 | F41: 0 | G41: 0 | H41: 0 | I41: 0 | K41: 0
A42: Literacy Programmes | I42: 0
A43: Media Services | I43: 0
A44: Museums and Art Galleries | I44: 0
A45: Population Development | I45: 0
A46: Provincial Cultural Matters | I46: 0
A47: Theatres | I47: 0
A48: Zoo's | I48: 0
A49: Sport and recreation | C49: =SUM(C50:C54) -> 354630.05 | D49: =SUM(D50:D54) -> 287272 | E49: 237272 | F49: 15256.34 | G49: 171772.69 | H49: 209370 | I49: =G49-H49 -> -37597.31 | J49: =IF(I49=0,"",I49/H49) -> -0.1795735301 | K49: 237272
A50: Beaches and Jetties | I50: 0
A51: Casinos, Racing, Gambling, Wagering | I51: 0
A52: Community Parks (including Nurseries) | I52: 0
A53: Recreational Facilities | C53: 354630.05 | D53: 287272 | E53: 237272 | F53: 15256.34 | G53: 171772.69 | H53: 209370 | I53: -37597.31 | J53: -0.1795735301 | K53: 237272
A54: Sports Grounds and Stadiums | I54: 0
A55: Public safety | C55: =SUM(C56:C63) -> 4236028.67 | D55: =SUM(D56:D63) -> 8265511 | E55: 8265511 | F55: 12000 | G55: 7403431.56 | H55: 6887920 | I55: 515511.56 | J55: 0.07484284951 | K55: 8265511
A56: Civil Defence | I56: 0
A57: Cleansing | I57: 0
A58: Control of Public Nuisances | I58: =G58-H58 -> 0 | J58: =IF(I58=0,"",I58/H58) -> 
A59: Fencing and Fences | I59: 0
A60: Fire Fighting and Protection | I60: 0
A61: Licensing and Control of Animals | I61: =G61-H61 -> 0 | J61: =IF(I61=0,"",I61/H61) -> 
A62: Police Forces, Traffic and Street Parking Control | C62: 4236028.67 | D62: 8265511 | E62: 8265511 | F62: 12000 | G62: 7403431.56 | H62: 6887920 | I62: =G62-H62 -> 515511.56 | J62: =IF(I62=0,"",I62/H62) -> 0.07484284951 | K62: 8265511
A63: Pounds | I63: 0
A64: Housing | C64: =SUM(C65:C66) -> 0 | D64: 0 | E64: 0 | F64: 0 | G64: 0 | H64: 0 | I64: =G64-H64 -> 0 | J64: =IF(I64=0,"",I64/H64) ->  | K64: =SUM(K65:K66) -> 0
A65: Housing | I65: =G65-H65 -> 0 | J65: =IF(I65=0,"",I65/H65) -> 
A66: Informal Settlements | I66: =G66-H66 -> 0 | J66: =IF(I66=0,"",I66/H66) -> 
A67: Health | C67: =SUM(C68:C74) -> 0 | D67: 0 | E67: 0 | F67: 0 | G67: 0 | H67: 0 | I67: 0 | K67: =SUM(K68:K74) -> 0
A68: Ambulance | I68: 0
A69: Health Services | I69: 0
A70: Laboratory Services | I70: =G70-H70 -> 0 | J70: =IF(I70=0,"",I70/H70) -> 
A71: Food Control | I71: =G71-H71 -> 0 | J71: =IF(I71=0,"",I71/H71) -> 
A72: Health Surveillance and Prevention of Communicable Diseases including immunizations | I72: 0
A73: Vector Control | I73: 0
A74: Chemical Safety | I74: 0
A75: Economic and environmental services | C75: =C76+C87+C92 -> 45055756.76 | D75: 50270772 | E75: 52566772 | F75: 3359.36 | G75: 33731580.13 | H75: 43269870 | I75: -9538289.87 | J75: -0.2204372204 | K75: =K76+K87+K92 -> 52566772
A76: Planning and development | C76: =SUM(C77:C86) -> 45055756.76 | D76: 50270772 | E76: 52566772 | F76: 3359.36 | G76: 33731580.13 | H76: 43269870 | I76: -9538289.87 | J76: -0.2204372204 | K76: =SUM(K77:K86) -> 52566772
A77: Billboards | I77: =G77-H77 -> 0 | J77: =IF(I77=0,"",I77/H77) -> 
A78: Corporate Wide Strategic Planning (IDPs, LEDs) | C78: 132097.48 | D78: 10462 | E78: 60462 | F78: 3359.36 | G78: 36615.68 | H78: 38710 | I78: -2094.32 | J78: -0.05410281581 | K78: 60462
A79: Central City Improvement District | I79: 0
A80: Development Facilitation | I80: =G80-H80 -> 0 | J80: =IF(I80=0,"",I80/H80) -> 
A81: Economic Development/Planning | C81: 35200 | D81: 0 | E81: 0 | F81: 0 | G81: 0 | H81: 0 | I81: =G81-H81 -> 0 | J81: =IF(I81=0,"",I81/H81) ->  | K81: 0
A82: Regional Planning and Development | I82: =G82-H82 -> 0 | J82: =IF(I82=0,"",I82/H82) -> 
A83: Town Planning, Building Regulations and Enforcement, and City Engineer | C83: 12151.36 | D83: 15109300 | E83: 7629300 | F83: 0 | G83: 29837.55 | H83: 8103060 | I83: =G83-H83 -> -8073222.45 | J83: =IF(I83=0,"",I83/H83) -> -0.9963177429 | K83: 7629300
A84: Project Management Unit | C84: 44876307.92 | D84: 35151010 | E84: 44877010 | F84: 0 | G84: 33665126.9 | H84: 35128100 | I84: -1462973.1 | J84: -0.04164680413 | K84: 44877010
A85: Provincial Planning | I85: 0
A86: Support to Local Municipalities | I86: 0
A87: Road transport | C87: =SUM(C88:C91) -> 0 | D87: 0 | E87: 0 | F87: 0 | G87: 0 | H87: 0 | I87: 0 | K87: =SUM(K88:K91) -> 0
A88: Public Transport | I88: 0
A89: Road and Traffic Regulation | I89: 0
A90: Roads | C90: 0 | D90: 0 | E90: 0 | F90: 0 | G90: 0 | H90: 0 | I90: 0 | K90: 0
A91: Taxi Ranks | I91: 0
A92: Environmental protection | C92: =SUM(C93:C98) -> 0 | D92: =SUM(D93:D98) -> 0 | E92: 0 | F92: 0 | G92: 0 | H92: 0 | I92: 0 | K92: 0
A93: Biodiversity and Landscape | I93: 0
A94: Coastal Protection | I94: 0
A95: Indigenous Forests | I95: =G95-H95 -> 0 | J95: =IF(I95=0,"",I95/H95) -> 
A96: Nature Conservation | I96: =G96-H96 -> 0 | J96: =IF(I96=0,"",I96/H96) -> 
A97: Pollution Control | I97: 0
A98: Soil Conservation | I98: 0
A99: Trading services | C99: =C100+C104+C108+C113 -> 11108673.98 | D99: =D100+D104+D108+D113 -> 15140437 | E99: 12892259 | F99: 1002003.29 | G99: 9545317.98 | H99: 11268053.2 | I99: -1722735.22 | J99: -0.1528866779 | K99: =K100+K104+K108+K113 -> 12892259
A100: Energy sources | C100: =SUM(C101:C103) -> 8396818.49 | D100: =SUM(D101:D103) -> 9750561 | E100: 9720026 | F100: 550073.79 | G100: 6369424.86 | H100: 8107109 | I100: -1737684.14 | J100: -0.2143407891 | K100: 9720026
A101: Electricity | C101: 8396818.49 | D101: 9750561 | E101: 9720026 | F101: 550073.79 | G101: 6369424.86 | H101: 8107109 | I101: -1737684.14 | J101: -0.2143407891 | K101: 9720026
A102: Street Lighting and Signal Systems | I102: =G102-H102 -> 0 | J102: =IF(I102=0,"",I102/H102) -> 
A103: Nonelectric Energy | I103: 0
A104: Water management | C104: =SUM(C105:C107) -> 1010545.86 | D104: =SUM(D105:D107) -> 2011785 | E104: 403536 | F104: 171992.26 | G104: 344107.28 | H104: 711530.6 | I104: -367423.32 | J104: -0.5163844254 | K104: 403536
A105: Water Treatment | I105: 0
A106: Water Distribution | C106: 1010545.86 | D106: 2011785 | E106: 403536 | F106: 171992.26 | G106: 344107.28 | H106: 711530.6 | I106: =G106-H106 -> -367423.32 | J106: =IF(I106=0,"",I106/H106) -> -0.5163844254 | K106: 403536
A107: Water Storage | I107: 0
A108: Waste water management | C108: =SUM(C109:C112) -> -336378.88 | D108: =SUM(D109:D112) -> 870563 | E108: 261169 | F108: 77637.47 | G108: 821449.06 | H108: 359823.6 | I108: 461625.46 | J108: 1.282921576 | K108: 261169
A109: Public Toilets | I109: 0
A110: Sewerage | C110: -336378.88 | D110: 870563 | E110: 261169 | F110: 77637.47 | G110: 821449.06 | H110: 359823.6 | I110: 461625.46 | J110: 1.282921576 | K110: 261169
A111: Storm Water Management | C111: 0 | D111: 0 | E111: 0 | F111: 0 | G111: 0 | H111: 0 | I111: =G111-H111 -> 0 | J111: =IF(I111=0,"",I111/H111) ->  | K111: 0
A112: Waste Water Treatment | I112: 0
A113: Waste management | C113: =SUM(C114:C117) -> 2037688.51 | D113: 2507528 | E113: 2507528 | F113: 202299.77 | G113: 2010336.78 | H113: 2089590 | I113: -79253.22 | J113: -0.03792764131 | K113: =SUM(K114:K117) -> 2507528
A114: Recycling | I114: =G114-H114 -> 0 | J114: =IF(I114=0,"",I114/H114) -> 
A115: Solid Waste Disposal (Landfill Sites) | I115: =G115-H115 -> 0 | J115: =IF(I115=0,"",I115/H115) -> 
A116: Solid Waste Removal | C116: 2037688.51 | D116: 2507528 | E116: 2507528 | F116: 202299.77 | G116: 2010336.78 | H116: 2089590 | I116: -79253.22 | J116: -0.03792764131 | K116: 2507528
A117: Street Cleaning | I117: =G117-H117 -> 0 | J117: =IF(I117=0,"",I117/H117) -> 
A118: Other | C118: =SUM(C119:C124) -> 0 | D118: =SUM(D119:D124) -> 0 | E118: 0 | F118: 0 | G118: 0 | H118: 0 | I118: 0 | K118: 0
A119: Abattoirs | I119: 0
A120: Air Transport | I120: 0
A121: Forestry | I121: =G121-H121 -> 0 | J121: =IF(I121=0,"",I121/H121) -> 
A122: Licensing and Regulation | I122: 0
A123: Markets | I123: 0
A124: Tourism | I124: =G124-H124 -> 0 | J124: =IF(I124=0,"",I124/H124) -> 
A125: ="Total "&A5 -> Total Revenue - Functional | B125: 2 | C125: =C6+C26+C75+C99+C118 -> 210052242.8 | D125: 260989833 | E125: 266557636 | F125: 2911837.33 | G125: 214728536 | H125: 220831991.8 | I125: =G125-H125 -> -6103455.84 | J125: =IF(I125=0,"",I125/H125) -> -0.0276384585 | K125: =K6+K26+K75+K99+K118 -> 266557636
A127: Expenditure - Functional
A128: =A6 -> Municipal governance and administration | C128: =C129+C132+C146 -> 100302058.4 | D128: 119000674 | E128: 121185629 | F128: 6554465.61 | G128: 85906085.7 | H128: 100479933 | I128: =G128-H128 -> -14573847.3 | J128: =IF(I128=0,"",I128/H128) -> -0.1450423668 | K128: =K129+K132+K146 -> 121185629
A129: Executive and council | C129: =SUM(C130:C131) -> 31357338.36 | D129: 36964044 | E129: 36547378 | F129: 2167525.79 | G129: 25095106.95 | H129: 30553930.4 | I129: -5458823.45 | J129: -0.1786619063 | K129: 36547378
A130: Mayor and Council | C130: 23240016.78 | D130: 27109238 | E130: 27161030 | F130: 1703859.85 | G130: 19435570.45 | H130: 22622435.2 | I130: -3186864.75 | J130: -0.14087187 | K130: 27161030
A131: Municipal Manager, Town Secretary and Chief Executive | C131: 8117321.58 | D131: 9854806 | E131: 9386348 | F131: 463665.94 | G131: 5659536.5 | H131: 7931495.2 | I131: -2271958.7 | J131: -0.286447718 | K131: 9386348
A132: Finance and administration | C132: =SUM(C133:C145) -> 63055140.01 | D132: 75218977 | E132: 77775050 | F132: 4204108.68 | G132: 55187978.69 | H132: 64217183.8 | I132: -9029205.11 | J132: -0.14060419 | K132: =SUM(K133:K145) -> 77775050
A133: Administrative and Corporate Support | C133: 27491675.9 | D133: 32063936 | E133: 33314975 | F133: 2662665.3 | G133: 22648676.97 | H133: 27470863.4 | I133: -4822186.43 | J133: -0.1755382188 | K133: 33314975
A134: Asset Management | I134: 0
A135: Finance | C135: 16941622.23 | D135: 20232293 | E135: 20981575 | F135: 798579.65 | G135: 16397233.8 | H135: 17310109.2 | I135: -912875.4 | J135: -0.05273654773 | K135: 20981575
A136: Fleet Management | I136: 0
A137: Human Resources | C137: 6178757.14 | D137: 8060601 | E137: 8453885 | F137: 246059.43 | G137: 6273526.97 | H137: 6953260.4 | I137: -679733.43 | J137: -0.09775751099 | K137: 8453885
A138: Information Technology | C138: 5069950.79 | D138: 4733301 | E138: 4968282 | F138: 156342.95 | G138: 4095910.75 | H138: 4085488.6 | I138: 10422.15 | J138: 0.002551016787 | K138: 4968282
A139: Legal Services | C139: 1586863.61 | D139: 2513873 | E139: 2573827 | F139: 80261.45 | G139: 1249696.81 | H139: 2130932.4 | I139: -881235.59 | J139: -0.4135446014 | K139: 2573827
A140: Marketing, Customer Relations, Publicity and Media Co-ordination | I140: 0
A141: Property Services | I141: 0
A142: Risk Management | C142: 1944412.3 | D142: 2336156 | E142: 2494160 | F142: 49832.26 | G142: 1381178.98 | H142: 2041682.4 | I142: -660503.42 | J142: -0.3235093862 | K142: 2494160
A143: Security Services | I143: 0
A144: Supply Chain Management | C144: 3841858.04 | D144: 5278817 | E144: 4988346 | F144: 210367.64 | G144: 3141754.41 | H144: 4224847.4 | I144: -1083092.99 | J144: -0.2563626298 | K144: 4988346
A145: Valuation Service | I145: 0
A146: Internal audit | C146: =SUM(C147:C147) -> 5889580.04 | D146: 6817653 | E146: 6863201 | F146: 182831.14 | G146: 5623000.06 | H146: 5708818.8 | I146: -85818.74 | J146: -0.0150326614 | K146: =SUM(K147:K147) -> 6863201
A147: Governance Function | C147: 5889580.04 | D147: 6817653 | E147: 6863201 | F147: 182831.14 | G147: 5623000.06 | H147: 5708818.8 | I147: -85818.74 | J147: -0.0150326614 | K147: 6863201
A148: Community and public safety | C148: =C149+C171+C177+C186+C189 -> 21482121.93 | D148: 23375419 | E148: 23022583 | F148: 1728418.25 | G148: 19312440.64 | H148: 19268278.4 | I148: 44162.24 | J148: 0.002291966053 | K148: =K149+K171+K177+K186+K189 -> 23022583
A149: Community and social services | C149: =SUM(C150:C170) -> 4523084.19 | D149: 7350195 | E149: 6758959 | F149: 433183.49 | G149: 4443681.57 | H149: 5770688.4 | I149: -1327006.83 | J149: -0.2299564173 | K149: =SUM(K150:K170) -> 6758959
A150: Aged Care | I150: 0
A151: Agricultural | I151: 0
A152: Animal Care and Diseases | I152: 0
A153: Cemeteries, Funeral Parlours and Crematoriums | C153: 1018891.49 | D153: 1311487 | E153: 1309107 | F153: 75242.77 | G153: 920402.53 | H153: 1091532 | I153: -171129.47 | J153: -0.1567791599 | K153: 1309107
A154: Child Care Facilities | I154: 0
A155: Community Halls and Facilities | C155: 3081561.75 | D155: 4737531 | E155: 4347598 | F155: 323551.73 | G155: 3166138.76 | H155: 3714150.2 | I155: -548011.44 | J155: -0.1475469247 | K155: 4347598
A156: Consumer Protection | I156: 0
A157: Cultural Matters | I157: =G157-H157 -> 0 | J157: =IF(I157=0,"",I157/H157) -> 
A158: Disaster Management | I158: =G158-H158 -> 0 | J158: =IF(I158=0,"",I158/H158) -> 
A159: Education | I159: =G159-H159 -> 0 | J159: =IF(I159=0,"",I159/H159) -> 
A160: =A38 -> Indigenous and Customary Law | I160: 0
A161: Industrial Promotion | I161: 0
A162: Language Policy | I162: 0
A163: Libraries and Archives | C163: 422630.95 | D163: 1301177 | E163: 1102254 | F163: 34388.99 | G163: 357140.28 | H163: 965006.2 | I163: -607865.92 | J163: -0.6299088234 | K163: 1102254
A164: Literacy Programmes | I164: 0
A165: Media Services | I165: 0
A166: Museums and Art Galleries | I166: 0
A167: Population Development | I167: 0
A168: Provincial Cultural Matters | I168: 0
A169: Theatres | I169: 0
A170: Zoo's | I170: 0
A171: Sport and recreation | C171: =SUM(C172:C176) -> 3139055.4 | D171: 2584983 | E171: 2684708 | F171: 142457.78 | G171: 2709814.16 | H171: 2214095 | I171: =G171-H171 -> 495719.16 | J171: =IF(I171=0,"",I171/H171) -> 0.2238924527 | K171: 2684708
A172: Beaches and Jetties | I172: 0
A173: Casinos, Racing, Gambling, Wagering | I173: 0
A174: Community Parks (including Nurseries) | I174: 0
A175: Recreational Facilities | C175: 3139055.4 | D175: 2584983 | E175: 2684708 | F175: 142457.78 | G175: 2709814.16 | H175: 2214095 | I175: 495719.16 | J175: 0.2238924527 | K175: 2684708
A176: Sports Grounds and Stadiums | I176: 0
A177: Public safety | C177: =SUM(C178:C185) -> 13819982.34 | D177: 13440241 | E177: 13578916 | F177: 1152776.98 | G177: 12158944.91 | H177: 11283495 | I177: 875449.91 | J177: 0.07758676811 | K177: 13578916
A178: Civil Defence | I178: 0
A179: Cleansing | I179: 0
A180: Control of Public Nuisances | I180: =G180-H180 -> 0 | J180: =IF(I180=0,"",I180/H180) -> 
A181: Fencing and Fences | I181: 0
A182: Fire Fighting and Protection | I182: 0
A183: Licensing and Control of Animals | I183: =G183-H183 -> 0 | J183: =IF(I183=0,"",I183/H183) -> 
A184: Police Forces, Traffic and Street Parking Control | C184: 13819982.34 | D184: 13440241 | E184: 13578916 | F184: 1152776.98 | G184: 12158944.91 | H184: 11283495 | I184: =G184-H184 -> 875449.91 | J184: =IF(I184=0,"",I184/H184) -> 0.07758676811 | K184: 13578916
A185: Pounds | I185: 0
A186: Housing | C186: =SUM(C187:C188) -> 0 | D186: 0 | E186: 0 | F186: 0 | G186: 0 | H186: 0 | I186: =G186-H186 -> 0 | J186: =IF(I186=0,"",I186/H186) ->  | K186: =SUM(K187:K188) -> 0
A187: Housing | I187: =G187-H187 -> 0 | J187: =IF(I187=0,"",I187/H187) -> 
A188: Informal Settlements | I188: =G188-H188 -> 0 | J188: =IF(I188=0,"",I188/H188) -> 
A189: Health | C189: =SUM(C190:C196) -> 0 | D189: 0 | E189: 0 | F189: 0 | G189: 0 | H189: 0 | I189: 0 | K189: 0
A190: Ambulance | I190: 0
A191: Health Services | I191: 0
A192: =A70 -> Laboratory Services | I192: 0
A193: Food Control | I193: =G193-H193 -> 0 | J193: =IF(I193=0,"",I193/H193) -> 
A194: Health Surveillance and Prevention of Communicable Diseases including immunizations | I194: =G194-H194 -> 0 | J194: =IF(I194=0,"",I194/H194) -> 
A195: Vector Control | I195: 0
A196: Chemical Safety | I196: 0
A197: Economic and environmental services | C197: =C198+C209+C214 -> 13169272.81 | D197: 17503092 | E197: 16096553 | F197: 1203367.81 | G197: 10000224.08 | H197: 13742416.6 | I197: -3742192.52 | J197: -0.2723096402 | K197: =K198+K209+K214 -> 16096553
A198: Planning and development | C198: =SUM(C199:C208) -> 10131053.5 | D198: 14324737 | E198: 12900655 | F198: 727313.26 | G198: 7528633.48 | H198: 11083200.8 | I198: -3554567.32 | J198: -0.320716676 | K198: 12900655
A199: Billboards | I199: 0
A200: Corporate Wide Strategic Planning (IDPs, LEDs) | C200: 4029535.13 | D200: 6523705 | E200: 5949761 | F200: 20105 | G200: 2148042.54 | H200: 5092203.6 | I200: -2944161.06 | J200: -0.5781703347 | K200: 5949761
A201: Central City Improvement District | I201: 0
... 54 more rows

Sheet C3-FinPerf V
A1: =muni& " - "&S71C& " - "&date -> LIM353 Molemole - Table C3 Monthly Budget Statement - Financial Performance (revenue and expenditure by municipal vote) - M10 April
A2: =Vdesc -> Vote Description | B2: =head27 -> Ref | C2: =Head1 -> 2018/19 | D2: =Head2 -> Budget Year 2019/20
C3: =Head5 -> Audited Outcome | D3: =Head6 -> Original Budget | E3: =Head7 -> Adjusted Budget | F3: =Head38 -> Monthly actual | G3: =Head39 -> YearTD actual | H3: =Head40 -> YearTD budget | I3: =Head41 -> YTD variance | J3: =Head41 -> YTD variance | K3: =Head8 -> Full Year Forecast
A4: R thousands | J4: %
A5: Revenue by Vote | B5: 1
A6: ='Org structure'!A2 -> Vote 01 - Corporate Services | C6: ='C3C'!C6 -> 332347.07 | D6: ='C3C'!D6 -> 15600503 | E6: ='C3C'!E6 -> 7894079 | F6: ='C3C'!F6 -> 3359.36 | G6: ='C3C'!G6 -> 875122.28 | H6: ='C3C'!H6 -> 8376525.6 | I6: =G6-H6 -> -7501403.32 | J6: =IF(I6=0,"",I6/H6) -> -0.8955268184 | K6: ='C3C'!K6 -> 7894079
A7: ='Org structure'!A3 -> Vote 02 - Municipal Manager | C7: ='C3C'!C15 -> 0 | D7: ='C3C'!D15 -> 0 | E7: ='C3C'!E15 -> 0 | F7: ='C3C'!F15 -> 0 | G7: ='C3C'!G15 -> 0 | H7: ='C3C'!H15 -> 0 | I7: 0 | K7: ='C3C'!K15 -> 0
A8: ='Org structure'!A4 -> Vote 03 - Mayors Office | C8: ='C3C'!C21 -> 0 | D8: ='C3C'!D21 -> 0 | E8: ='C3C'!E21 -> 0 | F8: ='C3C'!F21 -> 0 | G8: ='C3C'!G21 -> 0 | H8: ='C3C'!H21 -> 0 | I8: 0 | K8: ='C3C'!K21 -> 0
A9: ='Org structure'!A5 -> Vote 04 - Budget And Treasury | C9: ='C3C'!C27 -> 148004970.1 | D9: ='C3C'!D27 -> 185365535 | E9: ='C3C'!E27 -> 191211940 | F9: ='C3C'!F27 -> 1877640.71 | G9: ='C3C'!G27 -> 162267351.7 | H9: ='C3C'!H27 -> 157979053 | I9: 4288298.66 | J9: 0.0271447295 | K9: ='C3C'!K27 -> 191211940
A10: ='Org structure'!A6 -> Vote 05 - Community Services | C10: ='C3C'!C35 -> 7767632.23 | D10: ='C3C'!D35 -> 12239876 | E10: ='C3C'!E35 -> 12189876 | F10: ='C3C'!F35 -> 231133.74 | G10: ='C3C'!G35 -> 10385953.92 | H10: ='C3C'!H35 -> 10169850 | I10: 216103.92 | J10: 0.02124946976 | K10: ='C3C'!K35 -> 12189876
A11: ='Org structure'!A7 -> Vote 06 - Technical Services | C11: ='C3C'!C44 -> 53947293.39 | D11: ='C3C'!D44 -> 47783919 | E11: ='C3C'!E44 -> 55261741 | F11: ='C3C'!F44 -> 799703.52 | G11: ='C3C'!G44 -> 41200108.1 | H11: ='C3C'!H44 -> 44306563.2 | I11: -3106455.1 | J11: -0.07011275251 | K11: ='C3C'!K44 -> 55261741
A12: ='Org structure'!A8 -> Vote 07 - | C12: ='C3C'!C53 -> 0 | D12: ='C3C'!D53 -> 0 | E12: ='C3C'!E53 -> 0 | F12: ='C3C'!F53 -> 0 | G12: ='C3C'!G53 -> 0 | H12: ='C3C'!H53 -> 0 | I12: =G12-H12 -> 0 | J12: =IF(I12=0,"",I12/H12) ->  | K12: ='C3C'!K53 -> 0
A13: ='Org structure'!A9 -> Vote 08 - | C13: ='C3C'!C54 -> 0 | D13: ='C3C'!D54 -> 0 | E13: ='C3C'!E54 -> 0 | F13: ='C3C'!F54 -> 0 | G13: ='C3C'!G54 -> 0 | H13: ='C3C'!H54 -> 0 | I13: 0 | K13: ='C3C'!K54 -> 0
A14: ='Org structure'!A10 -> Vote 09 - | C14: ='C3C'!C55 -> 0 | D14: ='C3C'!D55 -> 0 | E14: ='C3C'!E55 -> 0 | F14: ='C3C'!F55 -> 0 | G14: ='C3C'!G55 -> 0 | H14: ='C3C'!H55 -> 0 | I14: 0 | K14: ='C3C'!K55 -> 0
A15: ='Org structure'!A11 -> Vote 10 - | C15: ='C3C'!C56 -> 0 | D15: ='C3C'!D56 -> 0 | E15: ='C3C'!E56 -> 0 | F15: ='C3C'!F56 -> 0 | G15: ='C3C'!G56 -> 0 | H15: ='C3C'!H56 -> 0 | I15: 0 | K15: ='C3C'!K56 -> 0
A16: ='Org structure'!A12 -> Vote 11 - | C16: ='C3C'!C57 -> 0 | D16: ='C3C'!D57 -> 0 | E16: ='C3C'!E57 -> 0 | F16: ='C3C'!F57 -> 0 | G16: ='C3C'!G57 -> 0 | H16: ='C3C'!H57 -> 0 | I16: 0 | K16: ='C3C'!K57 -> 0
A17: ='Org structure'!A13 -> Vote 12 - | C17: ='C3C'!C58 -> 0 | D17: ='C3C'!D58 -> 0 | E17: ='C3C'!E58 -> 0 | F17: ='C3C'!F58 -> 0 | G17: ='C3C'!G58 -> 0 | H17: ='C3C'!H58 -> 0 | I17: 0 | K17: ='C3C'!K58 -> 0
A18: ='Org structure'!A14 -> Vote 13 - | C18: ='C3C'!C59 -> 0 | D18: ='C3C'!D59 -> 0 | E18: ='C3C'!E59 -> 0 | F18: ='C3C'!F59 -> 0 | G18: ='C3C'!G59 -> 0 | H18: ='C3C'!H59 -> 0 | I18: 0 | K18: ='C3C'!K59 -> 0
A19: ='Org structure'!A15 -> Vote 14 - | C19: ='C3C'!C60 -> 0 | D19: ='C3C'!D60 -> 0 | E19: ='C3C'!E60 -> 0 | F19: ='C3C'!F60 -> 0 | G19: ='C3C'!G60 -> 0 | H19: ='C3C'!H60 -> 0 | I19: 0 | K19: ='C3C'!K60 -> 0
A20: ='Org structure'!A16 -> Vote 15 - Other | C20: ='C3C'!C61 -> 0 | D20: ='C3C'!D61 -> 0 | E20: ='C3C'!E61 -> 0 | F20: ='C3C'!F61 -> 0 | G20: ='C3C'!G61 -> 0 | H20: ='C3C'!H61 -> 0 | I20: 0 | K20: ='C3C'!K61 -> 0
A21: Total Revenue by Vote | B21: 2 | C21: =SUM(C6:C20) -> 210052242.8 | D21: =SUM(D6:D20) -> 260989833 | E21: 266557636 | F21: 2911837.33 | G21: 214728536 | H21: 220831991.8 | I21: -6103455.84 | J21: -0.0276384585 | K21: =SUM(K6:K20) -> 266557636
A23: Expenditure by Vote | B23: 1
A24: ='Org structure'!A2 -> Vote 01 - Corporate Services | C24: ='C3C'!C65 -> 46054184.83 | D24: ='C3C'!D65 -> 56108877 | E24: ='C3C'!E65 -> 56945182 | F24: ='C3C'!F65 -> 2931795.51 | G24: ='C3C'!G65 -> 38447121.84 | H24: ='C3C'!H65 -> 47260013 | I24: =G24-H24 -> -8812891.16 | J24: =IF(I24=0,"",I24/H24) -> -0.1864766978 | K24: ='C3C'!K65 -> 56945182
A25: ='Org structure'!A3 -> Vote 02 - Municipal Manager | C25: ='C3C'!C74 -> 17538177.53 | D25: ='C3C'!D74 -> 21522488 | E25: ='C3C'!E74 -> 21317536 | F25: ='C3C'!F74 -> 776590.79 | G25: ='C3C'!G74 -> 13913412.35 | H25: ='C3C'!H74 -> 17812928.8 | I25: -3899516.45 | J25: -0.2189149518 | K25: ='C3C'!K74 -> 21317536
A26: ='Org structure'!A4 -> Vote 03 - Mayors Office | C26: ='C3C'!C80 -> 17345098.18 | D26: ='C3C'!D80 -> 18641986 | E26: ='C3C'!E80 -> 18589781 | F26: ='C3C'!F80 -> 1316359.94 | G26: ='C3C'!G80 -> 14070442.2 | H26: ='C3C'!H80 -> 15503857 | I26: -1433414.8 | J26: -0.09245536772 | K26: ='C3C'!K80 -> 18589781
A27: ='Org structure'!A5 -> Vote 04 - Budget And Treasury | C27: ='C3C'!C86 -> 27502559.47 | D27: ='C3C'!D86 -> 32963249 | E27: ='C3C'!E86 -> 33379265 | F27: ='C3C'!F86 -> 1839851.8 | G27: ='C3C'!G86 -> 24682747.83 | H27: ='C3C'!H86 -> 27719519.6 | I27: -3036771.77 | J27: -0.1095535498 | K27: ='C3C'!K86 -> 33379265
A28: ='Org structure'!A6 -> Vote 05 - Community Services | C28: ='C3C'!C94 -> 30017713.5 | D28: ='C3C'!D94 -> 29995112 | E28: ='C3C'!E94 -> 29798481 | F28: ='C3C'!F94 -> 2216292.58 | G28: ='C3C'!G94 -> 24553006.17 | H28: ='C3C'!H94 -> 24878461.4 | I28: -325455.23 | J28: -0.01308180698 | K28: ='C3C'!K94 -> 29798481
A29: ='Org structure'!A7 -> Vote 06 - Technical Services | C29: ='C3C'!C103 -> 55737279.32 | D29: ='C3C'!D103 -> 46316850 | E29: ='C3C'!E103 -> 52222627 | F29: ='C3C'!F103 -> 3332839.75 | G29: ='C3C'!G103 -> 38853400.81 | H29: ='C3C'!H103 -> 42141346.2 | I29: -3287945.39 | J29: -0.07802184046 | K29: ='C3C'!K103 -> 52222627
A30: ='Org structure'!A8 -> Vote 07 - | C30: ='C3C'!C112 -> 0 | D30: ='C3C'!D112 -> 0 | E30: ='C3C'!E112 -> 0 | F30: ='C3C'!F112 -> 0 | G30: ='C3C'!G112 -> 0 | H30: ='C3C'!H112 -> 0 | I30: =G30-H30 -> 0 | J30: =IF(I30=0,"",I30/H30) ->  | K30: ='C3C'!K112 -> 0
A31: ='Org structure'!A9 -> Vote 08 - | C31: ='C3C'!C113 -> 0 | D31: ='C3C'!D113 -> 0 | E31: ='C3C'!E113 -> 0 | F31: ='C3C'!F113 -> 0 | G31: ='C3C'!G113 -> 0 | H31: ='C3C'!H113 -> 0 | I31: 0 | K31: ='C3C'!K113 -> 0
A32: ='Org structure'!A10 -> Vote 09 - | C32: ='C3C'!C114 -> 0 | D32: ='C3C'!D114 -> 0 | E32: ='C3C'!E114 -> 0 | F32: ='C3C'!F114 -> 0 | G32: ='C3C'!G114 -> 0 | H32: ='C3C'!H114 -> 0 | I32: 0 | K32: ='C3C'!K114 -> 0
A33: ='Org structure'!A11 -> Vote 10 - | C33: ='C3C'!C115 -> 0 | D33: ='C3C'!D115 -> 0 | E33: ='C3C'!E115 -> 0 | F33: ='C3C'!F115 -> 0 | G33: ='C3C'!G115 -> 0 | H33: ='C3C'!H115 -> 0 | I33: 0 | J33: =IF(I33=0,"",I33/H33) ->  | K33: ='C3C'!K115 -> 0
A34: ='Org structure'!A12 -> Vote 11 - | C34: ='C3C'!C116 -> 0 | D34: ='C3C'!D116 -> 0 | E34: ='C3C'!E116 -> 0 | F34: ='C3C'!F116 -> 0 | G34: ='C3C'!G116 -> 0 | H34: ='C3C'!H116 -> 0 | I34: 0 | J34: =IF(I34=0,"",I34/H34) ->  | K34: ='C3C'!K116 -> 0
A35: ='Org structure'!A13 -> Vote 12 - | C35: ='C3C'!C117 -> 0 | D35: ='C3C'!D117 -> 0 | E35: ='C3C'!E117 -> 0 | F35: ='C3C'!F117 -> 0 | G35: ='C3C'!G117 -> 0 | H35: ='C3C'!H117 -> 0 | I35: 0 | J35: =IF(I35=0,"",I35/H35) ->  | K35: ='C3C'!K117 -> 0
A36: ='Org structure'!A14 -> Vote 13 - | C36: ='C3C'!C118 -> 0 | D36: ='C3C'!D118 -> 0 | E36: ='C3C'!E118 -> 0 | F36: ='C3C'!F118 -> 0 | G36: ='C3C'!G118 -> 0 | H36: ='C3C'!H118 -> 0 | I36: 0 | J36: =IF(I36=0,"",I36/H36) ->  | K36: ='C3C'!K118 -> 0
A37: ='Org structure'!A15 -> Vote 14 - | C37: ='C3C'!C119 -> 0 | D37: ='C3C'!D119 -> 0 | E37: ='C3C'!E119 -> 0 | F37: ='C3C'!F119 -> 0 | G37: ='C3C'!G119 -> 0 | H37: ='C3C'!H119 -> 0 | I37: 0 | J37: =IF(I37=0,"",I37/H37) ->  | K37: ='C3C'!K119 -> 0
A38: ='Org structure'!A16 -> Vote 15 - Other | C38: ='C3C'!C120 -> 0 | D38: ='C3C'!D120 -> 0 | E38: ='C3C'!E120 -> 0 | F38: ='C3C'!F120 -> 0 | G38: ='C3C'!G120 -> 0 | H38: ='C3C'!H120 -> 0 | I38: 0 | K38: ='C3C'!K120 -> 0
A39: Total Expenditure by Vote | B39: 2 | C39: =SUM(C24:C38) -> 194195012.8 | D39: =SUM(D24:D38) -> 205548562 | E39: 212252872 | F39: 12413730.37 | G39: 154520131.2 | H39: 175316126 | I39: -20795994.8 | J39: =IF(I39=0,"",I39/H39) -> -0.1186199768 | K39: =SUM(K24:K38) -> 212252872
A40: =result -> Surplus/ (Deficit) for the year | B40: 2 | C40: =C21-C39 -> 15857230 | D40: 55441271 | E40: 54304764 | F40: -9501893.04 | G40: 60208404.76 | H40: 45515865.8 | I40: =I21-I39 -> 14692538.96 | J40: =IF(I40=0,"",I40/H40) -> 0.322800384 | K40: =K21-K39 -> 54304764
A41: =head27a -> References
A42: 1. Insert 'Vote'; e.g. Department, if different to standard classification structure
A43: 2. Must reconcile to Monthly Budget Statement - Financial Performance Statement (standard classification)

Sheet C3C
A1: =muni& " - "&S71C& " - "&"A"& " - "&date -> LIM353 Molemole - Table C3 Monthly Budget Statement - Financial Performance (revenue and expenditure by municipal vote) - A - M10 April
A2: =Vdesc -> Vote Description | B2: =head27 -> Ref | C2: =Head1 -> 2018/19 | D2: =Head2 -> Budget Year 2019/20 | L2: =Head4 -> 
A3: R thousand | C3: =Head5 -> Audited Outcome | D3: =Head6 -> Original Budget | E3: =Head7 -> Adjusted Budget | F3: =Head38 -> Monthly actual | G3: =Head39 -> YearTD actual | H3: =Head40 -> YearTD budget | I3: =Head41 -> YTD variance | J3: =Head41 -> YTD variance | K3: =Head8 -> Full Year Forecast | L3: =Head12 -> Forecast 2010/11 | M3: =Head13 -> Forecast 2011/12 | N3: =Head14 -> Forecast 2012/13 | O3: =Head15 -> Forecast 2013/14 | P3: =Head16 -> Forecast 2014/15 | Q3: =Head17 -> Forecast 2015/16 | R3: =Head18 -> Forecast 2016/17 | S3: =Head19 -> Forecast 2017/18 | T3: =Head20 -> Forecast 2018/19 | U3: =Head21 -> Forecast 2019/20 | V3: =Head22 -> Forecast 2020/21 | W3: =Head23 -> Forecast 2021/22
J4: %
A5: Revenue by Vote | B5: 1
A6: ='Org structure'!A2 -> Vote 01 - Corporate Services | C6: =SUM(C7:C14) -> 332347.07 | D6: 15600503 | E6: 7894079 | F6: 3359.36 | G6: 875122.28 | H6: 8376525.6 | I6: =G6-H6 -> -7501403.32 | J6: =IF(I6=0,"",I6/H6) -> -0.8955268184 | K6: =SUM(K7:K14) -> 7894079
A7: ='Org structure'!E3 -> 01.1 - Corporate Services Admin | C7: 160 | D7: 276424 | E7: 0 | F7: 0 | G7: 712288.67 | H7: 64495.6 | I7: =G7-H7 -> 647793.07 | J7: =IF(I7=0,"",I7/H7) -> 10.04398858 | K7: 0
A8: ='Org structure'!E4 -> 01.2 - Human Resources | C8: 152738.23 | D8: 204317 | E8: 204317 | F8: 0 | G8: 96380.38 | H8: 170260 | I8: -73879.62 | J8: -0.433922354 | K8: 204317
A9: ='Org structure'!E5 -> 01.3 - Information Technology Services | C9: 0 | D9: 0 | E9: 0 | F9: 0 | G9: 0 | H9: 0 | I9: 0 | K9: 0
A10: ='Org structure'!E6 -> 01.4 - Council Support | C10: 0 | D10: 0 | E10: 0 | F10: 0 | G10: 0 | H10: 0 | I10: 0 | K10: 0
A11: ='Org structure'!E7 -> 01.5 - Local Economic Development | C11: 35200 | D11: 0 | E11: 0 | F11: 0 | G11: 0 | H11: 0 | I11: 0 | K11: 0
A12: ='Org structure'!E8 -> 01.6 - Municipal Planning Idp | C12: 132097.48 | D12: 10462 | E12: 60462 | F12: 3359.36 | G12: 36615.68 | H12: 38710 | I12: -2094.32 | J12: -0.05410281581 | K12: 60462
A13: ='Org structure'!E9 -> 01.7 - Town & Regional Planning | C13: 12151.36 | D13: 15109300 | E13: 7629300 | F13: 0 | G13: 29837.55 | H13: 8103060 | I13: -8073222.45 | J13: -0.9963177429 | K13: 7629300
A14: ='Org structure'!E10 -> 01.8 - Led Administration | C14: 0 | D14: 0 | E14: 0 | F14: 0 | G14: 0 | H14: 0 | I14: 0 | K14: 0
A15: ='Org structure'!A3 -> Vote 02 - Municipal Manager | C15: =SUM(C16:C20) -> 0 | D15: 0 | E15: 0 | F15: 0 | G15: 0 | H15: 0 | I15: 0 | K15: =SUM(K16:K20) -> 0
A16: ='Org structure'!E12 -> 02.1 - Municipal Manager Admin | C16: 0 | D16: 0 | E16: 0 | F16: 0 | G16: 0 | H16: 0 | I16: =G16-H16 -> 0 | J16: =IF(I16=0,"",I16/H16) ->  | K16: 0
A17: ='Org structure'!E13 -> 02.2 - Legal Services | C17: 0 | D17: 0 | E17: 0 | F17: 0 | G17: 0 | H17: 0 | I17: =G17-H17 -> 0 | J17: =IF(I17=0,"",I17/H17) ->  | K17: 0
A18: ='Org structure'!E14 -> 02.3 - Political Office Beares | C18: 0 | D18: 0 | E18: 0 | F18: 0 | G18: 0 | H18: 0 | I18: =G18-H18 -> 0 | J18: =IF(I18=0,"",I18/H18) ->  | K18: 0
A19: ='Org structure'!E15 -> 02.4 - Pms | C19: 0 | D19: 0 | E19: 0 | F19: 0 | G19: 0 | H19: 0 | I19: =G19-H19 -> 0 | J19: =IF(I19=0,"",I19/H19) ->  | K19: 0
A20: ='Org structure'!E16 -> 02.5 - Internal Audit | C20: 0 | D20: 0 | E20: 0 | F20: 0 | G20: 0 | H20: 0 | I20: =G20-H20 -> 0 | J20: =IF(I20=0,"",I20/H20) ->  | K20: 0
A21: ='Org structure'!A4 -> Vote 03 - Mayors Office | C21: =SUM(C22:C26) -> 0 | D21: 0 | E21: 0 | F21: 0 | G21: 0 | H21: 0 | I21: 0 | K21: =SUM(K22:K26) -> 0
A22: ='Org structure'!E18 -> 03.1 - Mayors Office Admin | C22: 0 | D22: 0 | E22: 0 | F22: 0 | G22: 0 | H22: 0 | I22: =G22-H22 -> 0 | J22: =IF(I22=0,"",I22/H22) ->  | K22: 0
A23: ='Org structure'!E19 -> 03.2 - Office Of The Speaker | C23: 0 | D23: 0 | E23: 0 | F23: 0 | G23: 0 | H23: 0 | I23: =G23-H23 -> 0 | J23: =IF(I23=0,"",I23/H23) ->  | K23: 0
A24: ='Org structure'!E20 -> 03.3 - Office Of The Chief Whip | C24: 0 | D24: 0 | E24: 0 | F24: 0 | G24: 0 | H24: 0 | I24: =G24-H24 -> 0 | J24: =IF(I24=0,"",I24/H24) ->  | K24: 0
A25: ='Org structure'!E21 -> 03.4 - Exco Members | C25: 0 | D25: 0 | E25: 0 | F25: 0 | G25: 0 | H25: 0 | I25: =G25-H25 -> 0 | J25: =IF(I25=0,"",I25/H25) ->  | K25: 0
A26: ='Org structure'!E22 -> 03.5 - Council General Administration | C26: 0 | D26: 0 | E26: 0 | F26: 0 | G26: 0 | H26: 0 | I26: =G26-H26 -> 0 | J26: =IF(I26=0,"",I26/H26) ->  | K26: 0
A27: ='Org structure'!A5 -> Vote 04 - Budget And Treasury | C27: =SUM(C28:C34) -> 148004970.1 | D27: 185365535 | E27: 191211940 | F27: 1877640.71 | G27: 162267351.7 | H27: 157979053 | I27: 4288298.66 | J27: 0.0271447295 | K27: =SUM(K28:K34) -> 191211940
A28: ='Org structure'!E24 -> 04.1 - Budget And Treasury Admin | C28: 146165460.6 | D28: 164808540 | E28: 168816399 | F28: 1742574.64 | G28: 160643156.6 | H28: 139745105.4 | I28: =G28-H28 -> 20898051.22 | J28: =IF(I28=0,"",I28/H28) -> 0.1495440657 | K28: 168816399
A29: ='Org structure'!E25 -> 04.2 - Chief Financial Officer Admin | C29: 0 | D29: 0 | E29: 0 | F29: 0 | G29: 0 | H29: 0 | I29: 0 | K29: 0
A30: ='Org structure'!E26 -> 04.3 - Budget & Reporting | C30: 1820125.31 | D30: 0 | E30: 0 | F30: 0 | G30: 0 | H30: 0 | I30: 0 | K30: 0
A31: ='Org structure'!E27 -> 04.4 - Budget & Reporting | C31: 0 | D31: 2112000 | E31: 2112000 | F31: 132463.52 | G31: 1599880.65 | H31: 1760000 | I31: -160119.35 | J31: -0.09097690341 | K31: 2112000
A32: ='Org structure'!E28 -> 04.5 - Revenue Management | C32: 19384.27 | D32: 18444995 | E32: 20283541 | F32: 2602.55 | G32: 24314.39 | H32: 16473947.6 | I32: -16449633.21 | J32: -0.9985240702 | K32: 20283541
A33: ='Org structure'!E29 -> 04.6 - Supply Chain Management | C33: 0 | D33: 0 | E33: 0 | F33: 0 | G33: 0 | H33: 0 | I33: 0 | K33: 0
A34: ='Org structure'!E30 -> 04.7 - Expenditure | C34: 0 | D34: 0 | E34: 0 | F34: 0 | G34: 0 | H34: 0 | I34: 0 | K34: 0
A35: ='Org structure'!A6 -> Vote 05 - Community Services | C35: =SUM(C36:C43) -> 7767632.23 | D35: 12239876 | E35: 12189876 | F35: 231133.74 | G35: 10385953.92 | H35: 10169850 | I35: 216103.92 | J35: 0.02124946976 | K35: =SUM(K36:K43) -> 12189876
A36: ='Org structure'!E32 -> 05.1 - Community Services Admin | C36: 1133435 | D36: 1167000 | E36: 1167000 | F36: 0 | G36: 793744 | H36: 972500 | I36: =G36-H36 -> -178756 | J36: =IF(I36=0,"",I36/H36) -> -0.1838107969 | K36: 1167000
A37: ='Org structure'!E33 -> 05.2 - Libraries | C37: 0 | D37: 0 | E37: 0 | F37: 0 | G37: 0 | H37: 0 | I37: 0 | K37: 0
A38: ='Org structure'!E34 -> 05.3 - Sports Recreation & Social Amenitie | C38: 354630.05 | D38: 287272 | E38: 237272 | F38: 15256.34 | G38: 171772.69 | H38: 209370 | I38: -37597.31 | J38: -0.1795735301 | K38: 237272
A39: ='Org structure'!E35 -> 05.4 - Traffic Service | C39: 3598078.67 | D39: 0 | E39: 0 | F39: 0 | G39: 0 | H39: 0 | I39: 0 | K39: 0
A40: ='Org structure'!E36 -> 05.5 - Traffic Service | C40: 637950 | D40: 8265511 | E40: 8265511 | F40: 12000 | G40: 7403431.56 | H40: 6887920 | I40: 515511.56 | J40: 0.07484284951 | K40: 8265511
A41: ='Org structure'!E37 -> 05.6 - Parks; Cemeteries | C41: 5850 | D41: 12565 | E41: 12565 | F41: 1577.63 | G41: 6668.89 | H41: 10470 | I41: -3801.11 | J41: -0.3630477555 | K41: 12565
A42: ='Org structure'!E38 -> 05.7 - Refuse | C42: 2037688.51 | D42: 2507528 | E42: 2507528 | F42: 202299.77 | G42: 2010336.78 | H42: 2089590 | I42: -79253.22 | J42: -0.03792764131 | K42: 2507528
A43: ='Org structure'!E39 -> 05.8 - Taxi Ranks | C43: 0 | D43: 0 | E43: 0 | F43: 0 | G43: 0 | H43: 0 | I43: 0 | K43: 0
A44: ='Org structure'!A7 -> Vote 06 - Technical Services | C44: =SUM(C45:C52) -> 53947293.39 | D44: 47783919 | E44: 55261741 | F44: 799703.52 | G44: 41200108.1 | H44: 44306563.2 | I44: -3106455.1 | J44: -0.07011275251 | K44: =SUM(K45:K52) -> 55261741
A45: ='Org structure'!E41 -> 06.1 - Mpac | C45: 0 | D45: 0 | E45: 0 | F45: 0 | G45: 0 | H45: 0 | I45: =G45-H45 -> 0 | J45: =IF(I45=0,"",I45/H45) ->  | K45: 0
A46: ='Org structure'!E42 -> 06.2 - Technical Services Admin | C46: 0 | D46: 0 | E46: 0 | F46: 0 | G46: 0 | H46: 0 | I46: 0 | K46: 0
A47: ='Org structure'!E43 -> 06.3 - Techn Serv-Roads: Admin | C47: 0 | D47: 0 | E47: 0 | F47: 0 | G47: 0 | H47: 0 | I47: 0 | K47: 0
A48: ='Org structure'!E44 -> 06.4 - Techn Serv-Stormwater: Admin | C48: 0 | D48: 0 | E48: 0 | F48: 0 | G48: 0 | H48: 0 | I48: 0 | K48: 0
A49: ='Org structure'!E45 -> 06.5 - Project Management Unit | C49: 44876307.92 | D49: 35151010 | E49: 44877010 | F49: 0 | G49: 33665126.9 | H49: 35128100 | I49: -1462973.1 | J49: -0.04164680413 | K49: 44877010
A50: ='Org structure'!E46 -> 06.6 - Electrical & Machinery | C50: 8396818.49 | D50: 9750561 | E50: 9720026 | F50: 550073.79 | G50: 6369424.86 | H50: 8107109 | I50: -1737684.14 | J50: -0.2143407891 | K50: 9720026
A51: ='Org structure'!E47 -> 06.7 - Water | C51: 1010545.86 | D51: 2011785 | E51: 403536 | F51: 171992.26 | G51: 344107.28 | H51: 711530.6 | I51: -367423.32 | J51: -0.5163844254 | K51: 403536
A52: ='Org structure'!E48 -> 06.8 - Sanitation | C52: -336378.88 | D52: 870563 | E52: 261169 | F52: 77637.47 | G52: 821449.06 | H52: 359823.6 | I52: 461625.46 | J52: 1.282921576 | K52: 261169
A53: ='Org structure'!A8 -> Vote 07 - | C53: 0 | D53: 0 | E53: 0 | F53: 0 | G53: 0 | H53: 0 | I53: =G53-H53 -> 0 | J53: =IF(I53=0,"",I53/H53) ->  | K53: 0
A54: ='Org structure'!A9 -> Vote 08 - | C54: 0 | D54: 0 | E54: 0 | F54: 0 | G54: 0 | H54: 0 | I54: 0 | K54: 0
A55: ='Org structure'!A10 -> Vote 09 - | C55: 0 | D55: 0 | E55: 0 | F55: 0 | G55: 0 | H55: 0 | I55: 0 | K55: 0
A56: ='Org structure'!A11 -> Vote 10 - | C56: 0 | D56: 0 | E56: 0 | F56: 0 | G56: 0 | H56: 0 | I56: 0 | K56: 0
A57: ='Org structure'!A12 -> Vote 11 - | C57: 0 | D57: 0 | E57: 0 | F57: 0 | G57: 0 | H57: 0 | I57: 0 | K57: 0
A58: ='Org structure'!A13 -> Vote 12 - | C58: 0 | D58: 0 | E58: 0 | F58: 0 | G58: 0 | H58: 0 | I58: 0 | K58: 0
A59: ='Org structure'!A14 -> Vote 13 - | C59: 0 | D59: 0 | E59: 0 | F59: 0 | G59: 0 | H59: 0 | I59: =G59-H59 -> 0 | J59: =IF(I59=0,"",I59/H59) ->  | K59: 0
A60: ='Org structure'!A15 -> Vote 14 - | C60: 0 | D60: 0 | E60: 0 | F60: 0 | G60: 0 | H60: 0 | I60: 0 | K60: 0
A61: ='Org structure'!A16 -> Vote 15 - Other | C61: 0 | D61: 0 | E61: 0 | F61: 0 | G61: 0 | H61: 0 | I61: 0 | K61: 0
A62: Total Revenue by Vote | B62: 2 | C62: =C6+C15+C21+C27+C35+C44+C53+C54+C55+C56+C57+C58+C59+C60+C61 -> 210052242.8 | D62: 260989833 | E62: 266557636 | F62: 2911837.33 | G62: 214728536 | H62: 220831991.8 | I62: -6103455.84 | J62: -0.0276384585 | K62: =K6+K15+K21+K27+K35+K44+K53+K54+K55+K56+K57+K58+K59+K60+K61 -> 266557636
I63: 0
A64: Expenditure by Vote | B64: 1 | I64: 0
A65: ='Org structure'!A2 -> Vote 01 - Corporate Services | C65: =SUM(C66:C73) -> 46054184.83 | D65: 56108877 | E65: 56945182 | F65: 2931795.51 | G65: 38447121.84 | H65: 47260013 | I65: -8812891.16 | J65: -0.1864766978 | K65: =SUM(K66:K73) -> 56945182
A66: ='Org structure'!E3 -> 01.1 - Corporate Services Admin | C66: 20772596.7 | D66: 24611797 | E66: 25905631 | F66: 1831760.79 | G66: 17504917.35 | H66: 21286300.4 | I66: =G66-H66 -> -3781383.05 | J66: =IF(I66=0,"",I66/H66) -> -0.1776439766 | K66: 25905631
A67: ='Org structure'!E4 -> 01.2 - Human Resources | C67: 6178757.14 | D67: 8060601 | E67: 8453885 | F67: 246059.43 | G67: 6273526.97 | H67: 6953260.4 | I67: -679733.43 | J67: -0.09775751099 | K67: 8453885
A68: ='Org structure'!E5 -> 01.3 - Information Technology Services | C68: 5069950.79 | D68: 4733301 | E68: 4968282 | F68: 156342.95 | G68: 4095910.75 | H68: 4085488.6 | I68: 10422.15 | J68: 0.002551016787 | K68: 4968282
A69: ='Org structure'!E6 -> 01.4 - Council Support | C69: 5894918.6 | D69: 7201835 | E69: 7330832 | F69: 387499.91 | G69: 5365128.25 | H69: 6079048.2 | I69: -713919.95 | J69: -0.1174394291 | K69: 7330832
A70: ='Org structure'!E7 -> 01.5 - Local Economic Development | C70: 2424043.26 | D70: 3122838 | E70: 2375420 | F70: 144985.48 | G70: 1561359.7 | H70: 2154029.2 | I70: -592669.5 | J70: -0.2751445988 | K70: 2375420
A71: ='Org structure'!E8 -> 01.6 - Municipal Planning Idp | C71: 3764915.83 | D71: 6156922 | E71: 5582978 | F71: 20105 | G71: 2148042.54 | H71: 4786493.6 | I71: -2638451.06 | J71: -0.5512283689 | K71: 5582978
A72: ='Org structure'!E9 -> 01.7 - Town & Regional Planning | C72: 1684383.21 | D72: 1854800 | E72: 1961371 | F72: 145041.95 | G72: 1498236.28 | H72: 1609682.6 | I72: -111446.32 | J72: -0.06923496595 | K72: 1961371
A73: ='Org structure'!E10 -> 01.8 - Led Administration | C73: 264619.3 | D73: 366783 | E73: 366783 | F73: 0 | G73: 0 | H73: 305710 | I73: -305710 | J73: -1 | K73: 366783
A74: ='Org structure'!A3 -> Vote 02 - Municipal Manager | C74: =SUM(C75:C79) -> 17538177.53 | D74: 21522488 | E74: 21317536 | F74: 776590.79 | G74: 13913412.35 | H74: 17812928.8 | I74: -3899516.45 | J74: -0.2189149518 | K74: =SUM(K75:K79) -> 21317536
A75: ='Org structure'!E12 -> 02.1 - Municipal Manager Admin | C75: 6625670.76 | D75: 7889360 | E75: 7480131 | F75: 341324.2 | G75: 4617548.95 | H75: 6329092.6 | I75: =G75-H75 -> -1711543.65 | J75: =IF(I75=0,"",I75/H75) -> -0.2704248078 | K75: 7480131
A76: ='Org structure'!E13 -> 02.2 - Legal Services | C76: 1586863.61 | D76: 2513873 | E76: 2573827 | F76: 80261.45 | G76: 1249696.81 | H76: 2130932.4 | I76: =G76-H76 -> -881235.59 | J76: =IF(I76=0,"",I76/H76) -> -0.4135446014 | K76: 2573827
A77: ='Org structure'!E14 -> 02.3 - Political Office Beares | C77: 1944412.3 | D77: 2336156 | E77: 2494160 | F77: 49832.26 | G77: 1381178.98 | H77: 2041682.4 | I77: =G77-H77 -> -660503.42 | J77: =IF(I77=0,"",I77/H77) -> -0.3235093862 | K77: 2494160
A78: ='Org structure'!E15 -> 02.4 - Pms | C78: 1491650.82 | D78: 1965446 | E78: 1906217 | F78: 122341.74 | G78: 1041987.55 | H78: 1602402.6 | I78: =G78-H78 -> -560415.05 | J78: =IF(I78=0,"",I78/H78) -> -0.3497342366 | K78: 1906217
A79: ='Org structure'!E16 -> 02.5 - Internal Audit | C79: 5889580.04 | D79: 6817653 | E79: 6863201 | F79: 182831.14 | G79: 5623000.06 | H79: 5708818.8 | I79: =G79-H79 -> -85818.74 | J79: =IF(I79=0,"",I79/H79) -> -0.0150326614 | K79: 6863201
A80: ='Org structure'!A4 -> Vote 03 - Mayors Office | C80: =SUM(C81:C85) -> 17345098.18 | D80: 18641986 | E80: 18589781 | F80: 1316359.94 | G80: 14070442.2 | H80: 15503857 | I80: -1433414.8 | J80: -0.09245536772 | K80: =SUM(K81:K85) -> 18589781
A81: ='Org structure'!E18 -> 03.1 - Mayors Office Admin | C81: 3957859.88 | D81: 4794339 | E81: 4696780 | F81: 169139.83 | G81: 2508653.51 | H81: 3936874.6 | I81: =G81-H81 -> -1428221.09 | J81: =IF(I81=0,"",I81/H81) -> -0.3627804376 | K81: 4696780
A82: ='Org structure'!E19 -> 03.2 - Office Of The Speaker | C82: 1044174.82 | D82: 1177435 | E82: 1181224 | F82: 85212.88 | G82: 884618.43 | H82: 983503.4 | I82: =G82-H82 -> -98884.97 | J82: =IF(I82=0,"",I82/H82) -> -0.1005435975 | K82: 1181224
A83: ='Org structure'!E20 -> 03.3 - Office Of The Chief Whip | C83: 788271.53 | D83: 828809 | E83: 833809 | F83: 56976.91 | G83: 629687.95 | H83: 693680 | I83: =G83-H83 -> -63992.05 | J83: =IF(I83=0,"",I83/H83) -> -0.09225010091 | K83: 833809
A84: ='Org structure'!E21 -> 03.4 - Exco Members | C84: 3433324.15 | D84: 3131547 | E84: 3356547 | F84: 296393.78 | G84: 2948972.03 | H84: 2744630 | I84: =G84-H84 -> 204342.03 | J84: =IF(I84=0,"",I84/H84) -> 0.07445157635 | K84: 3356547
A85: ='Org structure'!E22 -> 03.5 - Council General Administration | C85: 8121467.8 | D85: 8709856 | E85: 8521421 | F85: 708636.54 | G85: 7098510.28 | H85: 7145169 | I85: =G85-H85 -> -46658.72 | J85: =IF(I85=0,"",I85/H85) -> -0.006530107265 | K85: 8521421
A86: ='Org structure'!A5 -> Vote 04 - Budget And Treasury | C86: =SUM(C87:C93) -> 27502559.47 | D86: 32963249 | E86: 33379265 | F86: 1839851.8 | G86: 24682747.83 | H86: 27719519.6 | I86: =G86-H86 -> -3036771.77 | J86: =IF(I86=0,"",I86/H86) -> -0.1095535498 | K86: =SUM(K87:K93) -> 33379265
A87: ='Org structure'!E24 -> 04.1 - Budget And Treasury Admin | C87: 6719079.2 | D87: 7452139 | E87: 7409344 | F87: 830904.51 | G87: 5143759.62 | H87: 6184563 | I87: =G87-H87 -> -1040803.38 | J87: =IF(I87=0,"",I87/H87) -> -0.1682905292 | K87: 7409344
A88: ='Org structure'!E25 -> 04.2 - Chief Financial Officer Admin | C88: 21229.82 | D88: 0 | E88: 0 | F88: 0 | G88: 13620.76 | H88: 0 | I88: 13620.76 | K88: 0
A89: ='Org structure'!E26 -> 04.3 - Budget & Reporting | C89: 0 | D89: 0 | E89: 0 | F89: 0 | G89: 0 | H89: 0 | I89: 0 | K89: 0
A90: ='Org structure'!E27 -> 04.4 - Budget & Reporting | C90: 3338979.16 | D90: 2382915 | E90: 2383728 | F90: 182645.35 | G90: 2348693.43 | H90: 1986327.8 | I90: 362365.63 | J90: 0.1824299242 | K90: 2383728
A91: ='Org structure'!E28 -> 04.5 - Revenue Management | C91: 10471477.56 | D91: 12928749 | E91: 13650126 | F91: 355289.6 | G91: 11316556.07 | H91: 11206896.2 | I91: 109659.87 | J91: 0.009785034861 | K91: 13650126
A92: ='Org structure'!E29 -> 04.6 - Supply Chain Management | C92: 3841858.04 | D92: 5278817 | E92: 4988346 | F92: 210367.64 | G92: 3141754.41 | H92: 4224847.4 | I92: -1083092.99 | J92: -0.2563626298 | K92: 4988346
A93: ='Org structure'!E30 -> 04.7 - Expenditure | C93: 3109935.69 | D93: 4920629 | E93: 4947721 | F93: 260644.7 | G93: 2718363.54 | H93: 4116885.2 | I93: -1398521.66 | J93: -0.3397038275 | K93: 4947721
A94: ='Org structure'!A6 -> Vote 05 - Community Services | C94: =SUM(C95:C102) -> 30017713.5 | D94: 29995112 | E94: 29798481 | F94: 2216292.58 | G94: 24553006.17 | H94: 24878461.4 | I94: -325455.23 | J94: -0.01308180698 | K94: =SUM(K95:K102) -> 29798481
A95: ='Org structure'!E32 -> 05.1 - Community Services Admin | C95: 3081561.75 | D95: 4737531 | E95: 4347598 | F95: 323551.73 | G95: 3166138.76 | H95: 3714150.2 | I95: =G95-H95 -> -548011.44 | J95: =IF(I95=0,"",I95/H95) -> -0.1475469247 | K95: 4347598
A96: ='Org structure'!E33 -> 05.2 - Libraries | C96: 422630.95 | D96: 1301177 | E96: 1102254 | F96: 34388.99 | G96: 357140.28 | H96: 965006.2 | I96: -607865.92 | J96: -0.6299088234 | K96: 1102254
A97: ='Org structure'!E34 -> 05.3 - Sports Recreation & Social Amenitie | C97: 3139055.4 | D97: 2584983 | E97: 2684708 | F97: 142457.78 | G97: 2709814.16 | H97: 2214095 | I97: 495719.16 | J97: 0.2238924527 | K97: 2684708
A98: ='Org structure'!E35 -> 05.4 - Traffic Service | C98: 0 | D98: 0 | E98: 0 | F98: 0 | G98: 0 | H98: 0 | I98: 0 | K98: 0
A99: ='Org structure'!E36 -> 05.5 - Traffic Service | C99: 13819982.34 | D99: 13440241 | E99: 13578916 | F99: 1152776.98 | G99: 12158944.91 | H99: 11283495 | I99: 875449.91 | J99: 0.07758676811 | K99: 13578916
A100: ='Org structure'!E37 -> 05.6 - Parks; Cemeteries | C100: 1018891.49 | D100: 1311487 | E100: 1309107 | F100: 75242.77 | G100: 920402.53 | H100: 1091532 | I100: -171129.47 | J100: -0.1567791599 | K100: 1309107
A101: ='Org structure'!E38 -> 05.7 - Refuse | C101: 8535591.57 | D101: 6619693 | E101: 6775898 | F101: 487874.33 | G101: 5240565.53 | H101: 5610183 | I101: -369617.47 | J101: -0.06588331789 | K101: 6775898
A102: ='Org structure'!E39 -> 05.8 - Taxi Ranks | C102: 0 | D102: 0 | E102: 0 | F102: 0 | G102: 0 | H102: 0 | I102: 0 | K102: 0
A103: ='Org structure'!A7 -> Vote 06 - Technical Services | C103: =SUM(C104:C111) -> 55737279.32 | D103: 46316850 | E103: 52222627 | F103: 3332839.75 | G103: 38853400.81 | H103: 42141346.2 | I103: -3287945.39 | J103: -0.07802184046 | K103: =SUM(K104:K111) -> 52222627
A104: ='Org structure'!E41 -> 06.1 - Mpac | C104: 0 | D104: 1265417 | E104: 1240417 | F104: 0 | G104: 0 | H104: 1039530 | I104: =G104-H104 -> -1039530 | J104: =IF(I104=0,"",I104/H104) -> -1 | K104: 1240417
A105: ='Org structure'!E42 -> 06.2 - Technical Services Admin | C105: 130910.85 | D105: 69051 | E105: 69051 | F105: 0 | G105: 102729.95 | H105: 57550 | I105: 45179.95 | J105: 0.7850556038 | K105: 69051
A106: ='Org structure'!E43 -> 06.3 - Techn Serv-Roads: Admin | C106: 3038219.31 | D106: 3178355 | E106: 3195898 | F106: 476054.55 | G106: 2471590.6 | H106: 2659215.8 | I106: -187625.2 | J106: -0.07055659041 | K106: 3195898
A107: ='Org structure'!E44 -> 06.4 - Techn Serv-Stormwater: Admin | C107: 26963822.18 | D107: 12101794 | E107: 17917310 | F107: 284966.72 | G107: 10617073.31 | H107: 13574229.6 | I107: -2957156.29 | J107: -0.2178507641 | K107: 17917310
A108: ='Org structure'!E45 -> 06.5 - Project Management Unit | C108: 1993091.9 | D108: 2823394 | E108: 2614103 | F108: 417180.83 | G108: 2320994.96 | H108: 2227285.4 | I108: 93709.56 | J108: 0.04207344061 | K108: 2614103
A109: ='Org structure'!E46 -> 06.6 - Electrical & Machinery | C109: 13419766.56 | D109: 17303148 | E109: 17550541 | F109: 1447768.51 | G109: 16078606.68 | H109: 14567855.8 | I109: 1510750.88 | J109: 0.1037044093 | K109: 17550541
A110: ='Org structure'!E47 -> 06.7 - Water | C110: 7741390.77 | D110: 7039369 | E110: 7130379 | F110: 524643.94 | G110: 5269821.87 | H110: 5920836 | I110: -651014.13 | J110: -0.1099530759 | K110: 7130379
A111: ='Org structure'!E48 -> 06.8 - Sanitation | C111: 2450077.75 | D111: 2536322 | E111: 2504928 | F111: 182225.2 | G111: 1992583.44 | H111: 2094843.6 | I111: -102260.16 | J111: -0.04881517646 | K111: 2504928
A112: ='Org structure'!A8 -> Vote 07 - | C112: 0 | D112: 0 | E112: 0 | F112: 0 | G112: 0 | H112: 0 | I112: 0 | K112: 0
A113: ='Org structure'!A9 -> Vote 08 - | C113: 0 | D113: 0 | E113: 0 | F113: 0 | G113: 0 | H113: 0 | I113: 0 | K113: 0
A114: ='Org structure'!A10 -> Vote 09 - | C114: 0 | D114: 0 | E114: 0 | F114: 0 | G114: 0 | H114: 0 | I114: =G114-H114 -> 0 | J114: =IF(I114=0,"",I114/H114) ->  | K114: 0
A115: ='Org structure'!A11 -> Vote 10 - | C115: 0 | D115: 0 | E115: 0 | F115: 0 | G115: 0 | H115: 0 | I115: 0 | K115: 0
A116: ='Org structure'!A12 -> Vote 11 - | C116: 0 | D116: 0 | E116: 0 | F116: 0 | G116: 0 | H116: 0 | I116: 0 | K116: 0
A117: ='Org structure'!A13 -> Vote 12 - | C117: 0 | D117: 0 | E117: 0 | F117: 0 | G117: 0 | H117: 0 | I117: 0 | K117: 0
A118: ='Org structure'!A14 -> Vote 13 - | C118: 0 | D118: 0 | E118: 0 | F118: 0 | G118: 0 | H118: 0 | I118: 0 | K118: 0
A119: ='Org structure'!A15 -> Vote 14 - | C119: 0 | D119: 0 | E119: 0 | F119: 0 | G119: 0 | H119: 0 | I119: 0 | K119: 0
A120: ='Org structure'!A16 -> Vote 15 - Other | C120: 0 | D120: 0 | E120: 0 | F120: 0 | G120: 0 | H120: 0 | I120: =G120-H120 -> 0 | J120: =IF(I120=0,"",I120/H120) ->  | K120: 0
A121: Total Expenditure by Vote | B121: 2 | C121: =C65+C74+C80+C86+C94+C103+C112+C113+C114+C115+C116+C117+C118+C119+C120 -> 194195012.8 | D121: 205548562 | E121: 212252872 | F121: 12413730.37 | G121: 154520131.2 | H121: 175316126 | I121: -20795994.8 | J121: -0.1186199768 | K121: =K65+K74+K80+K86+K94+K103+K112+K113+K114+K115+K116+K117+K118+K119+K120 -> 212252872
I122: 0 | L122: =#REF!-#REF! ->  | M122: =#REF!-#REF! ->  | N122: =#REF!-#REF! ->  | O122: =#REF!-#REF! ->  | P122: =#REF!-#REF! ->  | Q122: =#REF!-#REF! ->  | R122: =#REF!-#REF! ->  | S122: =#REF!-#REF! ->  | T122: =#REF!-#REF! ->  | U122: =#REF!-#REF! ->  | V122: =#REF!-#REF! ->  | W122: =#REF!-#REF! -> 
A123: =result -> Surplus/ (Deficit) for the year | B123: 2 | C123: =C62-C121 -> 15857230 | D123: 55441271 | E123: 54304764 | F123: -9501893.04 | G123: 60208404.76 | H123: 45515865.8 | I123: 14692538.96 | J123: 0.322800384 | K123: =K62-K121 -> 54304764
A124: =head27a -> References
A125: 1. Insert 'Vote'; e.g. Department, if different to standard structure
A126: 2. Must reconcile to Financial Performance ('Revenue and Expenditure by Standard Classification' and 'Revenue and Expenditure')
A127: 3. Assign share in 'associate' to relevant Vote
A129: check revenue
A130: check expenditure

Sheet C4-FinPerf RE
A1: =muni& " - "&S71B& " - "&date -> LIM353 Molemole - Table C4 Monthly Budget Statement - Financial Performance (revenue and expenditure) - M10 April
A2: =desc -> Description | B2: =head27 -> Ref | C2: =Head1 -> 2018/19 | D2: =Head2 -> Budget Year 2019/20
C3: =Head5 -> Audited Outcome | D3: =Head6 -> Original Budget | E3: =Head7 -> Adjusted Budget | F3: =Head38 -> Monthly actual | G3: =Head39 -> YearTD actual | H3: =Head40 -> YearTD budget | I3: =Head41 -> YTD variance | J3: =Head41 -> YTD variance | K3: =Head8 -> Full Year Forecast
A4: R thousands | J4: %
A5: Revenue By Source
A6: Property rates | C6: 14578847.33 | D6: 15291183 | E6: 19858067 | F6: 1696500.76 | G6: 16616848.97 | H6: 15482730.4 | I6: =G6-H6 -> 1134118.57 | J6: =IF(I6=0,"",I6/H6) -> 0.0732505534 | K6: 19858067
A7: Service charges - electricity revenue | C7: 7942591.35 | D7: 9224517 | E7: 9224517 | F7: 532966.19 | G7: 6200681.38 | H7: 7687070 | I7: -1486388.62 | J7: -0.1933621809 | K7: 9224517
A8: Service charges - water revenue | C8: 0 | D8: 0 | E8: 0 | F8: 161033.4 | G8: 129816.62 | H8: 0 | I8: 129816.62 | K8: 0
A9: Service charges - sanitation revenue | C9: 0 | D9: 0 | E9: 0 | F9: 64449.1 | G9: 646440.08 | H9: 0 | I9: 646440.08 | K9: 0
A10: Service charges - refuse revenue | C10: 1848066.44 | D10: 2288337 | E10: 2288337 | F10: 182958.22 | G10: 1852101.48 | H10: 1906940 | I10: -54838.52 | J10: -0.02875733898 | K10: 2288337
A12: Rental of facilities and equipment | C12: 351403.97 | D12: 283935 | E12: 233935 | F12: 15256.34 | G12: 171426.61 | H12: 206610 | I12: -35183.39 | J12: -0.1702889018 | K12: 233935
A13: Interest earned - external investments | C13: 0 | D13: 2112000 | E13: 2112000 | F13: 132463.52 | G13: 1599880.65 | H13: 1760000 | I13: -160119.35 | J13: -0.09097690341 | K13: 2112000
A14: Interest earned - outstanding debtors | C14: 1066848.29 | D14: 1484166 | E14: 1200437 | F14: 109272.81 | G14: 812802.7 | H14: 1066542.6 | I14: -253739.9 | J14: -0.237908828 | K14: 1200437
A15: Dividends received | C15: 1820125.31 | D15: 0 | E15: 0 | F15: 0 | G15: 0 | H15: 0 | I15: 0 | K15: 0
A16: Fines, penalties and forfeits | C16: 4281671.17 | D16: 4751369 | E16: 4720834 | F16: 12000 | G16: 2607162.78 | H16: 3941129 | I16: -1333966.22 | J16: -0.3384731177 | K16: 4720834
A17: Licences and permits | C17: 0 | D17: 7065504 | E17: 7065504 | F17: 0 | G17: 4802800.23 | H17: 5887920 | I17: -1085119.77 | J17: -0.1842959432 | K17: 7065504
A18: Agency services | C18: 660533.8 | D18: 2478480 | E18: 664705 | F18: 0 | G18: 310019.76 | H18: 977125 | I18: -667105.24 | J18: -0.6827225176 | K18: 664705
A19: Transfers and subsidies | C19: 134056601.1 | D19: 147905550 | E19: 147905550 | F19: 0 | G19: 145843845.2 | H19: 123254620 | I19: 22589225.2 | J19: 0.1832728477 | K19: 147905550
A20: Other revenue | C20: 319060.68 | D20: 34711332 | E20: 28164290 | F20: 4936.99 | G20: 883774.83 | H20: 24997824.8 | I20: -24114049.97 | J20: -0.9646459307 | K20: 28164290
A21: Gains | C21: 0 | D21: 0 | E21: 0 | F21: 0 | G21: 0 | H21: 0 | I21: 0 | K21: 0
A22: Total Revenue (excluding capital transfers and contributions) | C22: =SUM(C6:C10)+SUM(C12:C21) -> 166925749.5 | D22: 227596373 | E22: 223438176 | F22: 2911837.33 | G22: 182477601.3 | H22: 187168511.8 | I22: -4690910.51 | J22: -0.02506249831 | K22: =SUM(K6:K10)+SUM(K12:K21) -> 223438176
A24: Expenditure By Type
A25: Employee related costs | C25: 78988941.68 | D25: 93985993 | E25: 92456448 | F25: 7198859.44 | G25: 69865980.19 | H25: 77406053 | I25: =G25-H25 -> -7540072.81 | J25: =IF(I25=0,"",I25/H25) -> -0.09740934356 | K25: 92456448
A26: Remuneration of councillors | C26: 12328369.95 | D26: 14127295 | E26: 14127295 | F26: 1043496.99 | G26: 10348569.9 | H26: 11772780 | I26: -1424210.1 | J26: -0.1209748335 | K26: 14127295
A27: Debt impairment | C27: 4494247.44 | D27: 5837102 | E27: 5837102 | F27: 0 | G27: 4871039.1 | H27: 4864260 | I27: 6779.1 | J27: 0.001393654944 | K27: 5837102
A28: Depreciation & asset impairment | C28: 12277161.1 | D28: 8659942 | E28: 15137211 | F28: 0 | G28: 11485398.15 | H28: 11103281.4 | I28: 382116.75 | J28: 0.03441475869 | K28: 15137211
A29: Finance charges | C29: 1154597.65 | D29: 1255286 | E29: 1255286 | F29: 1263.08 | G29: 104235.98 | H29: 1046080 | I29: -941844.02 | J29: -0.9003556325 | K29: 1255286
A30: Bulk purchases | C30: 9419062.61 | D30: 8268000 | E30: 8268000 | F30: 851257.63 | G30: 9651274.33 | H30: 6890000 | I30: 2761274.33 | J30: 0.4007655051 | K30: 8268000
A31: Other materials | C31: 4463009.22 | D31: 4858679 | E31: 5239045 | F31: 330002.88 | G31: 3509419.56 | H31: 4277139.6 | I31: -767720.04 | J31: -0.1794938 | K31: 5239045
A32: Contracted services | C32: 27322894 | D32: 34663701 | E32: 34810737 | F32: 1874804.46 | G32: 20554016.08 | H32: 28974831.6 | I32: -8420815.52 | J32: -0.2906251755 | K32: 34810737
A33: Transfers and subsidies | C33: 0 | D33: 0 | E33: 0 | F33: 0 | G33: 0 | H33: 0 | I33: 0 | K33: 0
A34: Other expenditure | C34: 42196189.65 | D34: 33892564 | E34: 35121748 | F34: 1114045.89 | G34: 24130197.91 | H34: 28981700.4 | I34: -4851502.49 | J34: -0.1673988214 | K34: 35121748
A35: Losses | C35: 1550539.53 | D35: 0 | E35: 0 | F35: 0 | G35: 0 | H35: 0 | I35: 0 | K35: 0
A36: Total Expenditure | C36: =SUM(C25:C35) -> 194195012.8 | D36: =SUM(D25:D35) -> 205548562 | E36: =SUM(E25:E35) -> 212252872 | F36: 12413730.37 | G36: 154520131.2 | H36: 175316126 | I36: -20795994.8 | J36: -0.1186199768 | K36: 212252872
A38: Surplus/(Deficit) | C38: =C22-C36 -> -27269263.38 | D38: 22047811 | E38: 11185304 | F38: -9501893.04 | G38: 27957470.09 | H38: 11852385.8 | I38: =I22-I36 -> 16105084.29 | J38: 1.35880527 | K38: =K22-K36 -> 11185304
A39: Transfers and subsidies - capital (monetary allocations) (National / Provincial and District) | C39: 43126493.38 | D39: 33393460 | E39: 43119460 | F39: 0 | G39: 32250934.67 | H39: 33663480 | I39: =G39-H39 -> -1412545.33 | J39: -0.04196076371 | K39: 43119460
A40: Transfers and subsidies - capital (monetary allocations) (National / Provincial Departmental Agencies, Households, Non-profit Institutions, Private Enterprises, Public Corporatons, Higher Educational Institutions) | I40: =G40-H40 -> 0
A41: Transfers and subsidies - capital (in-kind - all) | C41: 0 | D41: 0 | E41: 0 | F41: 0 | G41: 0 | H41: 0 | I41: =G41-H41 -> 0 | K41: 0
A42: Surplus/(Deficit) after capital transfers & contributions | C42: =C38+SUM(C39:C41) -> 15857230 | D42: 55441271 | E42: 54304764 | F42: -9501893.04 | G42: 60208404.76 | H42: 45515865.8 | K42: =K38+SUM(K39:K41) -> 54304764
A43: Taxation | I43: =G43-H43 -> 0 | J43: =IF(I43=0,"",I43/H43) -> 
A44: Surplus/(Deficit) after taxation | C44: =C42-C43 -> 15857230 | D44: 55441271 | E44: 54304764 | F44: -9501893.04 | G44: 60208404.76 | H44: 45515865.8 | K44: =K42-K43 -> 54304764
A45: Attributable to minorities
A46: Surplus/(Deficit) attributable to municipality | C46: =SUM(C44:C45) -> 15857230 | D46: 55441271 | E46: 54304764 | F46: -9501893.04 | G46: 60208404.76 | H46: 45515865.8 | K46: =SUM(K44:K45) -> 54304764
A47: Share of surplus/ (deficit) of associate
A48: Surplus/ (Deficit) for the year | C48: =C46+C47 -> 15857230 | D48: 55441271 | E48: 54304764 | F48: -9501893.04 | G48: 60208404.76 | H48: 45515865.8 | K48: =K46+K47 -> 54304764
A49: =head27a -> References
A50: 1. Material variances to be explained on Table SC1
A53: =A22&" including capital transfers/contributions etc" -> Total Revenue (excluding capital transfers and contributions) including capital transfers/contributions etc | C53: =C22+SUM(C39:C41) -> 210052242.8 | D53: 260989833 | E53: 266557636 | F53: 2911837.33 | G53: 214728536 | H53: 220831991.8 | K53: =K22+SUM(K39:K41) -> 266557636

Sheet C5-Capex
A1: =muni& " - "&S71D& " - "&date -> LIM353 Molemole - Table C5 Monthly Budget Statement - Capital Expenditure (municipal vote, functional classification and funding) - M10 April
A2: =Vdesc -> Vote Description | B2: =head27 -> Ref | C2: =Head1 -> 2018/19 | D2: =Head2 -> Budget Year 2019/20
C3: =Head5 -> Audited Outcome | D3: =Head6 -> Original Budget | E3: =Head7 -> Adjusted Budget | F3: =Head38 -> Monthly actual | G3: =Head39 -> YearTD actual | H3: =Head40 -> YearTD budget | I3: =Head41 -> YTD variance | J3: =Head41 -> YTD variance | K3: =Head8 -> Full Year Forecast
A4: R thousands | B4: 1 | J4: %
A5: Multi-Year expenditure appropriation | B5: 2
A6: ='Org structure'!A2 -> Vote 01 - Corporate Services | C6: ='C5C'!C7 -> 0 | D6: ='C5C'!D7 -> 0 | E6: ='C5C'!E7 -> 0 | F6: ='C5C'!F7 -> 0 | G6: ='C5C'!G7 -> 0 | H6: ='C5C'!H7 -> 0 | I6: =G6-H6 -> 0 | J6: =IF(I6=0,"",I6/H6) ->  | K6: ='C5C'!K7 -> 0
A7: ='Org structure'!A3 -> Vote 02 - Municipal Manager | C7: ='C5C'!C16 -> 0 | D7: ='C5C'!D16 -> 0 | E7: ='C5C'!E16 -> 0 | F7: ='C5C'!F16 -> 0 | G7: ='C5C'!G16 -> 0 | H7: ='C5C'!H16 -> 0 | I7: 0 | K7: ='C5C'!K16 -> 0
A8: ='Org structure'!A4 -> Vote 03 - Mayors Office | C8: ='C5C'!C22 -> 0 | D8: ='C5C'!D22 -> 0 | E8: ='C5C'!E22 -> 0 | F8: ='C5C'!F22 -> 0 | G8: ='C5C'!G22 -> 0 | H8: ='C5C'!H22 -> 0 | I8: 0 | K8: ='C5C'!K22 -> 0
A9: ='Org structure'!A5 -> Vote 04 - Budget And Treasury | C9: ='C5C'!C28 -> 0 | D9: ='C5C'!D28 -> 0 | E9: ='C5C'!E28 -> 0 | F9: ='C5C'!F28 -> 0 | G9: ='C5C'!G28 -> 0 | H9: ='C5C'!H28 -> 0 | I9: 0 | K9: ='C5C'!K28 -> 0
A10: ='Org structure'!A6 -> Vote 05 - Community Services | C10: ='C5C'!C36 -> 0 | D10: ='C5C'!D36 -> 0 | E10: ='C5C'!E36 -> 0 | F10: ='C5C'!F36 -> 0 | G10: ='C5C'!G36 -> 0 | H10: ='C5C'!H36 -> 0 | I10: 0 | K10: ='C5C'!K36 -> 0
A11: ='Org structure'!A7 -> Vote 06 - Technical Services | C11: ='C5C'!C45 -> 34206570.05 | D11: ='C5C'!D45 -> 33393450 | E11: ='C5C'!E45 -> 41503450 | F11: ='C5C'!F45 -> 0 | G11: ='C5C'!G45 -> 28398406.22 | H11: ='C5C'!H45 -> 32693880 | I11: -4295473.78 | J11: -0.1313846439 | K11: ='C5C'!K45 -> 41503450
A12: ='Org structure'!A8 -> Vote 07 - | C12: ='C5C'!C54 -> 0 | D12: ='C5C'!D54 -> 0 | E12: ='C5C'!E54 -> 0 | F12: ='C5C'!F54 -> 0 | G12: ='C5C'!G54 -> 0 | H12: ='C5C'!H54 -> 0 | I12: =G12-H12 -> 0 | J12: =IF(I12=0,"",I12/H12) ->  | K12: ='C5C'!K54 -> 0
A13: ='Org structure'!A9 -> Vote 08 - | C13: ='C5C'!C55 -> 0 | D13: ='C5C'!D55 -> 0 | E13: ='C5C'!E55 -> 0 | F13: ='C5C'!F55 -> 0 | G13: ='C5C'!G55 -> 0 | H13: ='C5C'!H55 -> 0 | I13: 0 | K13: ='C5C'!K55 -> 0
A14: ='Org structure'!A10 -> Vote 09 - | C14: ='C5C'!C56 -> 0 | D14: ='C5C'!D56 -> 0 | E14: ='C5C'!E56 -> 0 | F14: ='C5C'!F56 -> 0 | G14: ='C5C'!G56 -> 0 | H14: ='C5C'!H56 -> 0 | I14: 0 | K14: ='C5C'!K56 -> 0
A15: ='Org structure'!A11 -> Vote 10 - | C15: ='C5C'!C57 -> 0 | D15: ='C5C'!D57 -> 0 | E15: ='C5C'!E57 -> 0 | F15: ='C5C'!F57 -> 0 | G15: ='C5C'!G57 -> 0 | H15: ='C5C'!H57 -> 0 | I15: 0 | K15: ='C5C'!K57 -> 0
A16: ='Org structure'!A12 -> Vote 11 - | C16: ='C5C'!C58 -> 0 | D16: ='C5C'!D58 -> 0 | E16: ='C5C'!E58 -> 0 | F16: ='C5C'!F58 -> 0 | G16: ='C5C'!G58 -> 0 | H16: ='C5C'!H58 -> 0 | I16: 0 | K16: ='C5C'!K58 -> 0
A17: ='Org structure'!A13 -> Vote 12 - | C17: ='C5C'!C59 -> 0 | D17: ='C5C'!D59 -> 0 | E17: ='C5C'!E59 -> 0 | F17: ='C5C'!F59 -> 0 | G17: ='C5C'!G59 -> 0 | H17: ='C5C'!H59 -> 0 | I17: 0 | K17: ='C5C'!K59 -> 0
A18: ='Org structure'!A14 -> Vote 13 - | C18: ='C5C'!C60 -> 0 | D18: ='C5C'!D60 -> 0 | E18: ='C5C'!E60 -> 0 | F18: ='C5C'!F60 -> 0 | G18: ='C5C'!G60 -> 0 | H18: ='C5C'!H60 -> 0 | I18: =G18-H18 -> 0 | J18: =IF(I18=0,"",I18/H18) ->  | K18: ='C5C'!K60 -> 0
A19: ='Org structure'!A15 -> Vote 14 - | C19: ='C5C'!C61 -> 0 | D19: ='C5C'!D61 -> 0 | E19: ='C5C'!E61 -> 0 | F19: ='C5C'!F61 -> 0 | G19: ='C5C'!G61 -> 0 | H19: ='C5C'!H61 -> 0 | I19: =G19-H19 -> 0 | J19: =IF(I19=0,"",I19/H19) ->  | K19: ='C5C'!K61 -> 0
A20: ='Org structure'!A16 -> Vote 15 - Other | C20: ='C5C'!C62 -> 0 | D20: ='C5C'!D62 -> 0 | E20: ='C5C'!E62 -> 0 | F20: ='C5C'!F62 -> 0 | G20: ='C5C'!G62 -> 0 | H20: ='C5C'!H62 -> 0 | I20: =G20-H20 -> 0 | J20: =IF(I20=0,"",I20/H20) ->  | K20: ='C5C'!K62 -> 0
A21: Total Capital Multi-year expenditure | B21: 4,7 | C21: =SUM(C6:C20) -> 34206570.05 | D21: =SUM(D6:D20) -> 33393450 | E21: 41503450 | F21: 0 | G21: 28398406.22 | H21: 32693880 | I21: -4295473.78 | J21: =IF(I21=0,"",I21/H21) -> -0.1313846439 | K21: =SUM(K6:K20) -> 41503450
A23: Single Year expenditure appropriation | B23: 2
A24: ='C5C'!A67 -> Vote 01 - Corporate Services | C24: ='C5C'!C67 -> 2103497.83 | D24: ='C5C'!D67 -> 2000000 | E24: ='C5C'!E67 -> 1978720 | F24: ='C5C'!F67 -> 39975.84 | G24: ='C5C'!G67 -> 1329205.98 | H24: ='C5C'!H67 -> 1653912 | I24: =G24-H24 -> -324706.02 | J24: =IF(I24=0,"",I24/H24) -> -0.196326056 | K24: ='C5C'!K67 -> 1978720
A25: ='C5C'!A76 -> Vote 02 - Municipal Manager | C25: ='C5C'!C76 -> 1024742.38 | D25: ='C5C'!D76 -> 150000 | E25: ='C5C'!E76 -> 150000 | F25: ='C5C'!F76 -> 0 | G25: ='C5C'!G76 -> 55398 | H25: ='C5C'!H76 -> 125000 | I25: -69602 | J25: -0.556816 | K25: ='C5C'!K76 -> 150000
A26: ='C5C'!A82 -> Vote 03 - Mayors Office | C26: ='C5C'!C82 -> 0 | D26: ='C5C'!D82 -> 0 | E26: ='C5C'!E82 -> 0 | F26: ='C5C'!F82 -> 0 | G26: ='C5C'!G82 -> 0 | H26: ='C5C'!H82 -> 0 | I26: 0 | K26: ='C5C'!K82 -> 0
A27: ='C5C'!A88 -> Vote 04 - Budget And Treasury | C27: ='C5C'!C88 -> 346521.74 | D27: ='C5C'!D88 -> 550000 | E27: ='C5C'!E88 -> 240000 | F27: ='C5C'!F88 -> 0 | G27: ='C5C'!G88 -> 0 | H27: ='C5C'!H88 -> 272340 | I27: -272340 | J27: -1 | K27: ='C5C'!K88 -> 240000
A28: ='C5C'!A96 -> Vote 05 - Community Services | C28: ='C5C'!C96 -> 6628277.06 | D28: ='C5C'!D96 -> 2200000 | E28: ='C5C'!E96 -> 714276 | F28: ='C5C'!F96 -> 0 | G28: ='C5C'!G96 -> 714276 | H28: ='C5C'!H96 -> 941905.6 | I28: -227629.6 | J28: -0.2416692288 | K28: ='C5C'!K96 -> 714276
A29: ='C5C'!A105 -> Vote 06 - Technical Services | C29: ='C5C'!C105 -> 1372748.92 | D29: ='C5C'!D105 -> 17147821 | E29: ='C5C'!E105 -> 9718339 | F29: ='C5C'!F105 -> 648456 | G29: ='C5C'!G105 -> 3950255.91 | H29: ='C5C'!H105 -> 9832180.8 | I29: -5881924.89 | J29: -0.5982319701 | K29: ='C5C'!K105 -> 9718339
A30: ='Org structure'!A8 -> Vote 07 - | C30: ='C5C'!C114 -> 0 | D30: ='C5C'!D114 -> 0 | E30: ='C5C'!E114 -> 0 | F30: ='C5C'!F114 -> 0 | G30: ='C5C'!G114 -> 0 | H30: ='C5C'!H114 -> 0 | I30: ='C5C'!I114 -> 0 | J30: =IF(I30=0,"",I30/H30) ->  | K30: ='C5C'!K114 -> 0
A31: ='Org structure'!A9 -> Vote 08 - | C31: ='C5C'!C115 -> 0 | D31: ='C5C'!D115 -> 0 | E31: ='C5C'!E115 -> 0 | F31: ='C5C'!F115 -> 0 | G31: ='C5C'!G115 -> 0 | H31: ='C5C'!H115 -> 0 | I31: ='C5C'!I115 -> 0 | K31: ='C5C'!K115 -> 0
A32: ='Org structure'!A10 -> Vote 09 - | C32: ='C5C'!C116 -> 0 | D32: ='C5C'!D116 -> 0 | E32: ='C5C'!E116 -> 0 | F32: ='C5C'!F116 -> 0 | G32: ='C5C'!G116 -> 0 | H32: ='C5C'!H116 -> 0 | I32: ='C5C'!I116 -> 0 | K32: ='C5C'!K116 -> 0
A33: ='Org structure'!A11 -> Vote 10 - | C33: ='C5C'!C117 -> 0 | D33: ='C5C'!D117 -> 0 | E33: ='C5C'!E117 -> 0 | F33: ='C5C'!F117 -> 0 | G33: ='C5C'!G117 -> 0 | H33: ='C5C'!H117 -> 0 | I33: ='C5C'!I117 -> 0 | K33: ='C5C'!K117 -> 0
A34: ='Org structure'!A12 -> Vote 11 - | C34: ='C5C'!C118 -> 0 | D34: ='C5C'!D118 -> 0 | E34: ='C5C'!E118 -> 0 | F34: ='C5C'!F118 -> 0 | G34: ='C5C'!G118 -> 0 | H34: ='C5C'!H118 -> 0 | I34: ='C5C'!I118 -> 0 | K34: ='C5C'!K118 -> 0
A35: ='Org structure'!A13 -> Vote 12 - | C35: ='C5C'!C119 -> 0 | D35: ='C5C'!D119 -> 0 | E35: ='C5C'!E119 -> 0 | F35: ='C5C'!F119 -> 0 | G35: ='C5C'!G119 -> 0 | H35: ='C5C'!H119 -> 0 | I35: ='C5C'!I119 -> 0 | K35: ='C5C'!K119 -> 0
A36: ='Org structure'!A14 -> Vote 13 - | C36: ='C5C'!C120 -> 0 | D36: ='C5C'!D120 -> 0 | E36: ='C5C'!E120 -> 0 | F36: ='C5C'!F120 -> 0 | G36: ='C5C'!G120 -> 0 | H36: ='C5C'!H120 -> 0 | I36: ='C5C'!I120 -> 0 | K36: ='C5C'!K120 -> 0
A37: ='Org structure'!A15 -> Vote 14 - | C37: ='C5C'!C121 -> 0 | D37: ='C5C'!D121 -> 0 | E37: ='C5C'!E121 -> 0 | F37: ='C5C'!F121 -> 0 | G37: ='C5C'!G121 -> 0 | H37: ='C5C'!H121 -> 0 | I37: ='C5C'!I121 -> 0 | K37: ='C5C'!K121 -> 0
A38: ='Org structure'!A16 -> Vote 15 - Other | C38: ='C5C'!C122 -> 0 | D38: ='C5C'!D122 -> 0 | E38: ='C5C'!E122 -> 0 | F38: ='C5C'!F122 -> 0 | G38: ='C5C'!G122 -> 0 | H38: ='C5C'!H122 -> 0 | I38: ='C5C'!I122 -> 0 | K38: ='C5C'!K122 -> 0
A39: Total Capital single-year expenditure | B39: 4 | C39: =SUM(C24:C38) -> 11475787.93 | D39: 22047821 | E39: 12801335 | F39: 688431.84 | G39: 6049135.89 | H39: 12825338.4 | I39: -6776202.51 | J39: -0.5283449293 | K39: =SUM(K24:K38) -> 12801335
A40: Total Capital Expenditure | C40: =C39+C21 -> 45682357.98 | D40: 55441271 | E40: 54304785 | F40: 688431.84 | G40: 34447542.11 | H40: 45519218.4 | I40: -11071676.29 | J40: =IF(I40=0,"",I40/H40) -> -0.2432308084 | K40: =K39+K21 -> 54304785
A42: Capital Expenditure - Functional Classification
A43: Governance and administration | C43: =SUM(C44:C46) -> 3474761.95 | D43: 2700000 | E43: 2368720 | F43: 39975.84 | G43: 1384603.98 | H43: 2051252 | I43: =G43-H43 -> -666648.02 | J43: =IF(I43=0,"",I43/H43) -> -0.3249956709 | K43: =SUM(K44:K46) -> 2368720
A44: Executive and council | C44: 888633.68 | D44: 0 | E44: 0 | F44: 0 | G44: 0 | H44: 0 | I44: 0 | J44: =IF(I44=0,"",I44/H44) ->  | K44: 0
A45: Finance and administration | C45: 2586128.27 | D45: 2700000 | E45: 2368720 | F45: 39975.84 | G45: 1384603.98 | H45: 2051252 | I45: -666648.02 | J45: -0.3249956709 | K45: 2368720
A46: Internal audit | C46: 0 | D46: 0 | E46: 0 | F46: 0 | G46: 0 | H46: 0 | I46: 0 | K46: 0
A47: Community and public safety | C47: =SUM(C48:C52) -> 6628277.06 | D47: 2200000 | E47: 714276 | F47: 0 | G47: 714276 | H47: 941905.6 | I47: -227629.6 | J47: -0.2416692288 | K47: =SUM(K48:K52) -> 714276
A48: Community and social services | C48: 473409.75 | D48: 0 | E48: 0 | F48: 0 | G48: 0 | H48: 0 | I48: 0 | K48: 0
A49: Sport and recreation | C49: 6142854.28 | D49: 2100000 | E49: 714276 | F49: 0 | G49: 714276 | H49: 918565.6 | I49: -204289.6 | J49: -0.2224006647 | K49: 714276
A50: Public safety | C50: 12013.03 | D50: 100000 | E50: 0 | F50: 0 | G50: 0 | H50: 23340 | I50: -23340 | J50: -1 | K50: 0
A51: Housing | I51: 0
A52: Health | I52: 0
A53: Economic and environmental services | C53: =SUM(C54:C56) -> 0 | D53: 0 | E53: 0 | F53: 0 | G53: 0 | H53: 0 | I53: 0 | K53: =SUM(K54:K56) -> 0
A54: Planning and development | C54: 0 | D54: 0 | E54: 0 | F54: 0 | G54: 0 | H54: 0 | I54: 0 | K54: 0
A55: Road transport | I55: 0
A56: Environmental protection | I56: 0
A57: Trading services | C57: =SUM(C58:C61) -> 35579318.97 | D57: 50541271 | E57: 51221789 | F57: 648456 | G57: 32348662.13 | H57: 42526060.8 | I57: -10177398.67 | J57: -0.2393214532 | K57: =SUM(K58:K61) -> 51221789
A58: Energy sources | C58: 1315138.92 | D58: 5000000 | E58: 4212338 | F58: 648456 | G58: 1201274.23 | H58: 3694072.8 | I58: -2492798.57 | J58: -0.674810353 | K58: 4212338
A59: Water management | I59: 0
A60: Waste water management | C60: 34264180.05 | D60: 45541271 | E60: 47009451 | F60: 0 | G60: 31147387.9 | H60: 38831988 | I60: -7684600.1 | J60: -0.1978935536 | K60: 47009451
A61: Waste management | C61: 0 | D61: 0 | E61: 0 | F61: 0 | G61: 0 | H61: 0 | I61: 0 | K61: 0
A62: Other | I62: 0
A63: Total Capital Expenditure - Functional Classification | B63: 3 | C63: =C43+C47+C53+C57+C62 -> 45682357.98 | D63: =D43+D47+D53+D57+D62 -> 55441271 | E63: 54304785 | F63: 688431.84 | G63: 34447542.11 | H63: 45519218.4 | I63: -11071676.29 | J63: -0.2432308084 | K63: =K43+K47+K53+K57+K62 -> 54304785
A65: Funded by:
A66: National Government | C66: 37557011.22 | D66: 33393450 | E66: 41503450 | F66: 0 | G66: 28398406.22 | H66: 32693880 | I66: =G66-H66 -> -4295473.78 | J66: =IF(I66=0,"",I66/H66) -> -0.1313846439 | K66: 41503450
A67: Provincial Government | C67: 531721.74 | D67: 0 | E67: 0 | F67: 0 | G67: 0 | H67: 0 | I67: 0 | K67: 0
A68: District Municipality | C68: 29400 | D68: 0 | E68: 0 | F68: 0 | G68: 0 | H68: 0 | I68: 0 | K68: 0
A69: ='C4-FinPerf RE'!A40 -> Transfers and subsidies - capital (monetary allocations) (National / Provincial Departmental Agencies, Households, Non-profit Institutions, Private Enterprises, Public Corporatons, Higher Educational Institutions) | C69: 680520.5 | D69: 0 | E69: 0 | F69: 0 | G69: 0 | H69: 0 | I69: 0 | K69: 0
A70: Transfers recognised - capital | C70: =SUM(C66:C69) -> 38798653.46 | D70: 33393450 | E70: 41503450 | F70: 0 | G70: 28398406.22 | H70: 32693880 | I70: -4295473.78 | J70: -0.1313846439 | K70: =SUM(K66:K69) -> 41503450
A72: Borrowing | B72: 6 | I72: 0
A73: Internally generated funds | C73: 4637152.15 | D73: 22047821 | E73: 12801335 | F73: 688431.84 | G73: 6049135.89 | H73: 12825338.4 | I73: -6776202.51 | J73: -0.5283449293 | K73: 12801335
A74: Total Capital Funding | C74: =+C70+C72+C73 -> 43435805.61 | D74: 55441271 | E74: 54304785 | F74: 688431.84 | G74: 34447542.11 | H74: 45519218.4 | I74: -11071676.29 | J74: -0.2432308084 | K74: =+K70+K72+K73 -> 54304785
A75: =head27a -> References
A76: 1. Municipalities may choose to appropriate for capital expenditure for three years or for one year (if one year appropriation projected expenditure required for yr2 and yr3).
A77: 2. Include capital component of PPP unitary payment
A78: 3. Capital expenditure by functional classification must reconcile to the total of multi-year and single year appropriations
A79: 4. Include expenditure on investment property, intangible and biological assets
A81: 6. Include finance leases and PPP capital funding component of unitary payment - total borrowing/repayments to reconcile to changes in Table SA17
A86: check balance | C86: =C40-C74 -> 2246552.37 | D86: =D40-D74 -> 0 | E86: 0 | F86: 0 | G86: 0 | H86: 0 | K86: 0

Sheet C5C
A1: =muni& " - "&S71D& " - "&"A"& " - "&date -> LIM353 Molemole - Table C5 Monthly Budget Statement - Capital Expenditure (municipal vote, functional classification and funding) - A - M10 April
A2: =Vdesc -> Vote Description | B2: =head27 -> Ref | C2: =Head1 -> 2018/19 | D2: =Head2 -> Budget Year 2019/20 | L2: =Head4 -> 
A3: R thousand | C3: =Head5 -> Audited Outcome | D3: =Head6 -> Original Budget | E3: =Head7 -> Adjusted Budget | F3: =Head38 -> Monthly actual | G3: =Head39 -> YearTD actual | H3: =Head40 -> YearTD budget | I3: =Head41 -> YTD variance | J3: =Head41 -> YTD variance | K3: =Head8 -> Full Year Forecast | L3: =Head12 -> Forecast 2010/11 | M3: =Head13 -> Forecast 2011/12 | N3: =Head14 -> Forecast 2012/13 | O3: =Head15 -> Forecast 2013/14 | P3: =Head16 -> Forecast 2014/15 | Q3: =Head17 -> Forecast 2015/16 | R3: =Head18 -> Forecast 2016/17 | S3: =Head19 -> Forecast 2017/18 | T3: =Head20 -> Forecast 2018/19 | U3: =Head21 -> Forecast 2019/20 | V3: =Head22 -> Forecast 2020/21 | W3: =Head23 -> Forecast 2021/22
J4: %
A5: Capital expenditure - Municipal Vote
A6: Expenditure of multi-year capital appropriation | B6: 1
A7: ='Org structure'!A2 -> Vote 01 - Corporate Services | C7: =SUM(C8:C15) -> 0 | D7: 0 | E7: 0 | F7: 0 | G7: 0 | H7: 0 | I7: =G7-H7 -> 0 | J7: =IF(I7=0,"",I7/H7) ->  | K7: =SUM(K8:K15) -> 0
A8: ='Org structure'!E3 -> 01.1 - Corporate Services Admin | I8: =G8-H8 -> 0 | J8: =IF(I8=0,"",I8/H8) ->  | K8: 0
A9: ='Org structure'!E4 -> 01.2 - Human Resources | I9: 0 | K9: 0
A10: ='Org structure'!E5 -> 01.3 - Information Technology Services | I10: 0 | K10: 0
A11: ='Org structure'!E6 -> 01.4 - Council Support | I11: 0 | K11: 0
A12: ='Org structure'!E7 -> 01.5 - Local Economic Development | I12: 0 | K12: 0
A13: ='Org structure'!E8 -> 01.6 - Municipal Planning Idp | I13: 0 | K13: 0
A14: ='Org structure'!E9 -> 01.7 - Town & Regional Planning | I14: 0 | K14: 0
A15: ='Org structure'!E10 -> 01.8 - Led Administration | I15: 0 | K15: 0
A16: ='Org structure'!A3 -> Vote 02 - Municipal Manager | C16: =SUM(C17:C21) -> 0 | D16: 0 | E16: 0 | F16: 0 | G16: 0 | H16: 0 | I16: 0 | K16: =SUM(K17:K21) -> 0
A17: ='Org structure'!E12 -> 02.1 - Municipal Manager Admin | I17: =G17-H17 -> 0 | J17: =IF(I17=0,"",I17/H17) ->  | K17: 0
A18: ='Org structure'!E13 -> 02.2 - Legal Services | I18: =G18-H18 -> 0 | J18: =IF(I18=0,"",I18/H18) ->  | K18: 0
A19: ='Org structure'!E14 -> 02.3 - Political Office Beares | I19: =G19-H19 -> 0 | J19: =IF(I19=0,"",I19/H19) ->  | K19: 0
A20: ='Org structure'!E15 -> 02.4 - Pms | I20: =G20-H20 -> 0 | J20: =IF(I20=0,"",I20/H20) ->  | K20: 0
A21: ='Org structure'!E16 -> 02.5 - Internal Audit | I21: =G21-H21 -> 0 | J21: =IF(I21=0,"",I21/H21) ->  | K21: 0
A22: ='Org structure'!A4 -> Vote 03 - Mayors Office | C22: =SUM(C23:C27) -> 0 | D22: 0 | E22: 0 | F22: 0 | G22: 0 | H22: 0 | I22: 0 | K22: =SUM(K23:K27) -> 0
A23: ='Org structure'!E18 -> 03.1 - Mayors Office Admin | I23: =G23-H23 -> 0 | J23: =IF(I23=0,"",I23/H23) ->  | K23: 0
A24: ='Org structure'!E19 -> 03.2 - Office Of The Speaker | I24: =G24-H24 -> 0 | J24: =IF(I24=0,"",I24/H24) ->  | K24: 0
A25: ='Org structure'!E20 -> 03.3 - Office Of The Chief Whip | I25: =G25-H25 -> 0 | J25: =IF(I25=0,"",I25/H25) ->  | K25: 0
A26: ='Org structure'!E21 -> 03.4 - Exco Members | I26: =G26-H26 -> 0 | J26: =IF(I26=0,"",I26/H26) ->  | K26: 0
A27: ='Org structure'!E22 -> 03.5 - Council General Administration | I27: =G27-H27 -> 0 | J27: =IF(I27=0,"",I27/H27) ->  | K27: 0
A28: ='Org structure'!A5 -> Vote 04 - Budget And Treasury | C28: =SUM(C29:C35) -> 0 | D28: 0 | E28: 0 | F28: 0 | G28: 0 | H28: 0 | I28: 0 | K28: =SUM(K29:K35) -> 0
A29: ='Org structure'!E24 -> 04.1 - Budget And Treasury Admin | I29: =G29-H29 -> 0 | J29: =IF(I29=0,"",I29/H29) ->  | K29: 0
A30: ='Org structure'!E25 -> 04.2 - Chief Financial Officer Admin | I30: 0 | K30: 0
A31: ='Org structure'!E26 -> 04.3 - Budget & Reporting | I31: 0 | K31: 0
A32: ='Org structure'!E27 -> 04.4 - Budget & Reporting | I32: 0 | K32: 0
A33: ='Org structure'!E28 -> 04.5 - Revenue Management | I33: 0 | K33: 0
A34: ='Org structure'!E29 -> 04.6 - Supply Chain Management | I34: 0 | K34: 0
A35: ='Org structure'!E30 -> 04.7 - Expenditure | I35: 0 | K35: 0
A36: ='Org structure'!A6 -> Vote 05 - Community Services | C36: =SUM(C37:C44) -> 0 | D36: 0 | E36: 0 | F36: 0 | G36: 0 | H36: 0 | I36: 0 | K36: =SUM(K37:K44) -> 0
A37: ='Org structure'!E32 -> 05.1 - Community Services Admin | I37: =G37-H37 -> 0 | J37: =IF(I37=0,"",I37/H37) ->  | K37: 0
A38: ='Org structure'!E33 -> 05.2 - Libraries | I38: 0 | K38: 0
A39: ='Org structure'!E34 -> 05.3 - Sports Recreation & Social Amenitie | I39: 0 | K39: 0
A40: ='Org structure'!E35 -> 05.4 - Traffic Service | I40: 0 | K40: 0
A41: ='Org structure'!E36 -> 05.5 - Traffic Service | I41: 0 | K41: 0
A42: ='Org structure'!E37 -> 05.6 - Parks; Cemeteries | I42: 0 | K42: 0
A43: ='Org structure'!E38 -> 05.7 - Refuse | I43: 0 | K43: 0
A44: ='Org structure'!E39 -> 05.8 - Taxi Ranks | I44: 0 | K44: 0
A45: ='Org structure'!A7 -> Vote 06 - Technical Services | C45: =SUM(C46:C53) -> 34206570.05 | D45: 33393450 | E45: 41503450 | F45: 0 | G45: 28398406.22 | H45: 32693880 | I45: -4295473.78 | J45: -0.1313846439 | K45: =SUM(K46:K53) -> 41503450
A46: ='Org structure'!E41 -> 06.1 - Mpac | I46: =G46-H46 -> 0 | J46: =IF(I46=0,"",I46/H46) ->  | K46: 0
A47: ='Org structure'!E42 -> 06.2 - Technical Services Admin | I47: 0 | K47: 0
A48: ='Org structure'!E43 -> 06.3 - Techn Serv-Roads: Admin | I48: 0 | K48: 0
A49: ='Org structure'!E44 -> 06.4 - Techn Serv-Stormwater: Admin | C49: 34206570.05 | D49: 33393450 | E49: 41503450 | F49: 0 | G49: 28398406.22 | H49: 32693880 | I49: -4295473.78 | J49: -0.1313846439 | K49: 41503450
A50: ='Org structure'!E45 -> 06.5 - Project Management Unit | I50: 0 | K50: 0
A51: ='Org structure'!E46 -> 06.6 - Electrical & Machinery | I51: 0 | K51: 0
A52: ='Org structure'!E47 -> 06.7 - Water | I52: 0 | K52: 0
A53: ='Org structure'!E48 -> 06.8 - Sanitation | I53: 0 | K53: 0
A54: ='Org structure'!A8 -> Vote 07 - | C54: 0 | D54: 0 | E54: 0 | F54: 0 | G54: 0 | H54: 0 | I54: =G54-H54 -> 0 | J54: =IF(I54=0,"",I54/H54) ->  | K54: 0
A55: ='Org structure'!A9 -> Vote 08 - | C55: 0 | D55: 0 | E55: 0 | F55: 0 | G55: 0 | H55: 0 | I55: 0 | K55: 0
A56: ='Org structure'!A10 -> Vote 09 - | C56: 0 | D56: 0 | E56: 0 | F56: 0 | G56: 0 | H56: 0 | I56: 0 | K56: 0
A57: ='Org structure'!A11 -> Vote 10 - | C57: 0 | D57: 0 | E57: 0 | F57: 0 | G57: 0 | H57: 0 | I57: 0 | K57: 0
A58: ='Org structure'!A12 -> Vote 11 - | C58: 0 | D58: 0 | E58: 0 | F58: 0 | G58: 0 | H58: 0 | I58: 0 | K58: 0
A59: ='Org structure'!A13 -> Vote 12 - | C59: 0 | D59: 0 | E59: 0 | F59: 0 | G59: 0 | H59: 0 | I59: 0 | K59: 0
A60: ='Org structure'!A14 -> Vote 13 - | C60: 0 | D60: 0 | E60: 0 | F60: 0 | G60: 0 | H60: 0 | I60: =G60-H60 -> 0 | J60: =IF(I60=0,"",I60/H60) ->  | K60: 0
A61: ='Org structure'!A15 -> Vote 14 - | C61: 0 | D61: 0 | E61: 0 | F61: 0 | G61: 0 | H61: 0 | I61: 0 | K61: 0
A62: ='Org structure'!A16 -> Vote 15 - Other | C62: 0 | D62: 0 | E62: 0 | F62: 0 | G62: 0 | H62: 0 | I62: 0 | K62: 0
A63: Total multi-year capital expenditure | C63: =C7+C16+C22+C28+C36+C45+C54+C55+C56+C57+C58+C59+C60+C61+C62 -> 34206570.05 | D63: 33393450 | E63: 41503450 | F63: 0 | G63: 28398406.22 | H63: 32693880 | I63: -4295473.78 | J63: -0.1313846439 | K63: =K7+K16+K22+K28+K36+K45+K54+K55+K56+K57+K58+K59+K60+K61+K62 -> 41503450
I64: 0
A65: Capital expenditure - Municipal Vote
A66: Expenditue of single-year capital appropriation | B66: 1 | I66: 0
A67: ='Org structure'!A2 -> Vote 01 - Corporate Services | C67: =SUM(C68:C75) -> 2103497.83 | D67: 2000000 | E67: 1978720 | F67: 39975.84 | G67: 1329205.98 | H67: 1653912 | I67: -324706.02 | J67: -0.196326056 | K67: =SUM(K68:K75) -> 1978720
A68: ='Org structure'!E3 -> 01.1 - Corporate Services Admin | C68: 1637651.33 | D68: 250000 | E68: 250000 | F68: 0 | G68: 150328.69 | H68: 208340 | I68: -58011.31 | J68: -0.2784453777 | K68: 250000
A69: ='Org structure'!E4 -> 01.2 - Human Resources | C69: 45950 | D69: 50000 | E69: 28720 | F69: 0 | G69: 28720 | H69: 28902 | I69: -182 | J69: -0.006297142066 | K69: 28720
A70: ='Org structure'!E5 -> 01.3 - Information Technology Services | C70: 419896.5 | D70: 1700000 | E70: 1700000 | F70: 39975.84 | G70: 1150157.29 | H70: 1416670 | I70: -266512.71 | J70: -0.1881261762 | K70: 1700000
A71: ='Org structure'!E6 -> 01.4 - Council Support | C71: 0 | D71: 0 | E71: 0 | F71: 0 | G71: 0 | H71: 0 | I71: 0 | K71: 0
A72: ='Org structure'!E7 -> 01.5 - Local Economic Development | C72: 0 | D72: 0 | E72: 0 | F72: 0 | G72: 0 | H72: 0 | I72: 0 | K72: 0
A73: ='Org structure'!E8 -> 01.6 - Municipal Planning Idp | C73: 0 | D73: 0 | E73: 0 | F73: 0 | G73: 0 | H73: 0 | I73: 0 | K73: 0
A74: ='Org structure'!E9 -> 01.7 - Town & Regional Planning | C74: 0 | D74: 0 | E74: 0 | F74: 0 | G74: 0 | H74: 0 | I74: 0 | K74: 0
A75: ='Org structure'!E10 -> 01.8 - Led Administration | C75: 0 | D75: 0 | E75: 0 | F75: 0 | G75: 0 | H75: 0 | I75: 0 | K75: 0
A76: ='Org structure'!A3 -> Vote 02 - Municipal Manager | C76: =SUM(C77:C81) -> 1024742.38 | D76: 150000 | E76: 150000 | F76: 0 | G76: 55398 | H76: 125000 | I76: -69602 | J76: -0.556816 | K76: =SUM(K77:K81) -> 150000
A77: ='Org structure'!E12 -> 02.1 - Municipal Manager Admin | C77: 0 | D77: 0 | E77: 0 | F77: 0 | G77: 0 | H77: 0 | I77: 0 | K77: 0
A78: ='Org structure'!E13 -> 02.2 - Legal Services | C78: 0 | D78: 0 | E78: 0 | F78: 0 | G78: 0 | H78: 0 | I78: 0 | K78: 0
A79: ='Org structure'!E14 -> 02.3 - Political Office Beares | C79: 136108.7 | D79: 150000 | E79: 150000 | F79: 0 | G79: 55398 | H79: 125000 | I79: -69602 | J79: -0.556816 | K79: 150000
A80: ='Org structure'!E15 -> 02.4 - Pms | C80: 888633.68 | D80: 0 | E80: 0 | F80: 0 | G80: 0 | H80: 0 | I80: 0 | K80: 0
A81: ='Org structure'!E16 -> 02.5 - Internal Audit | C81: 0 | D81: 0 | E81: 0 | F81: 0 | G81: 0 | H81: 0 | I81: 0 | K81: 0
A82: ='Org structure'!A4 -> Vote 03 - Mayors Office | C82: =SUM(C83:C87) -> 0 | D82: 0 | E82: 0 | F82: 0 | G82: 0 | H82: 0 | I82: 0 | K82: =SUM(K83:K87) -> 0
A83: ='Org structure'!E18 -> 03.1 - Mayors Office Admin | C83: 0 | D83: 0 | E83: 0 | F83: 0 | G83: 0 | H83: 0 | I83: 0 | K83: 0
A84: ='Org structure'!E19 -> 03.2 - Office Of The Speaker | C84: 0 | D84: 0 | E84: 0 | F84: 0 | G84: 0 | H84: 0 | I84: =G84-H84 -> 0 | J84: =IF(I84=0,"",I84/H84) ->  | K84: 0
A85: ='Org structure'!E20 -> 03.3 - Office Of The Chief Whip | C85: 0 | D85: 0 | E85: 0 | F85: 0 | G85: 0 | H85: 0 | I85: 0 | K85: 0
A86: ='Org structure'!E21 -> 03.4 - Exco Members | C86: 0 | D86: 0 | E86: 0 | F86: 0 | G86: 0 | H86: 0 | I86: 0 | K86: 0
A87: ='Org structure'!E22 -> 03.5 - Council General Administration | C87: 0 | D87: 0 | E87: 0 | F87: 0 | G87: 0 | H87: 0 | I87: 0 | K87: 0
A88: ='Org structure'!A5 -> Vote 04 - Budget And Treasury | C88: =SUM(C89:C95) -> 346521.74 | D88: 550000 | E88: 240000 | F88: 0 | G88: 0 | H88: 272340 | I88: -272340 | J88: -1 | K88: =SUM(K89:K95) -> 240000
A89: ='Org structure'!E24 -> 04.1 - Budget And Treasury Admin | C89: 0 | D89: 0 | E89: 0 | F89: 0 | G89: 0 | H89: 0 | I89: 0 | K89: 0
A90: ='Org structure'!E25 -> 04.2 - Chief Financial Officer Admin | C90: 0 | D90: 0 | E90: 0 | F90: 0 | G90: 0 | H90: 0 | I90: 0 | K90: 0
A91: ='Org structure'!E26 -> 04.3 - Budget & Reporting | C91: 0 | D91: 0 | E91: 0 | F91: 0 | G91: 0 | H91: 0 | I91: 0 | K91: 0
A92: ='Org structure'!E27 -> 04.4 - Budget & Reporting | C92: 0 | D92: 350000 | E92: 0 | F92: 0 | G92: 0 | H92: 81670 | I92: -81670 | J92: -1 | K92: 0
A93: ='Org structure'!E28 -> 04.5 - Revenue Management | C93: 346521.74 | D93: 200000 | E93: 240000 | F93: 0 | G93: 0 | H93: 190670 | I93: -190670 | J93: -1 | K93: 240000
A94: ='Org structure'!E29 -> 04.6 - Supply Chain Management | C94: 0 | D94: 0 | E94: 0 | F94: 0 | G94: 0 | H94: 0 | I94: 0 | K94: 0
A95: ='Org structure'!E30 -> 04.7 - Expenditure | C95: 0 | D95: 0 | E95: 0 | F95: 0 | G95: 0 | H95: 0 | I95: 0 | K95: 0
A96: ='Org structure'!A6 -> Vote 05 - Community Services | C96: =SUM(C97:C104) -> 6628277.06 | D96: 2200000 | E96: 714276 | F96: 0 | G96: 714276 | H96: 941905.6 | I96: -227629.6 | J96: -0.2416692288 | K96: =SUM(K97:K104) -> 714276
A97: ='Org structure'!E32 -> 05.1 - Community Services Admin | C97: 29400 | D97: 0 | E97: 0 | F97: 0 | G97: 0 | H97: 0 | I97: 0 | K97: 0
A98: ='Org structure'!E33 -> 05.2 - Libraries | C98: 0 | D98: 0 | E98: 0 | F98: 0 | G98: 0 | H98: 0 | I98: 0 | K98: 0
A99: ='Org structure'!E34 -> 05.3 - Sports Recreation & Social Amenitie | C99: 6142854.28 | D99: 2100000 | E99: 714276 | F99: 0 | G99: 714276 | H99: 918565.6 | I99: -204289.6 | J99: -0.2224006647 | K99: 714276
A100: ='Org structure'!E35 -> 05.4 - Traffic Service | C100: 12013.03 | D100: 0 | E100: 0 | F100: 0 | G100: 0 | H100: 0 | I100: 0 | K100: 0
A101: ='Org structure'!E36 -> 05.5 - Traffic Service | C101: 0 | D101: 100000 | E101: 0 | F101: 0 | G101: 0 | H101: 23340 | I101: -23340 | J101: -1 | K101: 0
A102: ='Org structure'!E37 -> 05.6 - Parks; Cemeteries | C102: 444009.75 | D102: 0 | E102: 0 | F102: 0 | G102: 0 | H102: 0 | I102: 0 | K102: 0
A103: ='Org structure'!E38 -> 05.7 - Refuse | C103: 0 | D103: 0 | E103: 0 | F103: 0 | G103: 0 | H103: 0 | I103: 0 | K103: 0
A104: ='Org structure'!E39 -> 05.8 - Taxi Ranks | C104: 0 | D104: 0 | E104: 0 | F104: 0 | G104: 0 | H104: 0 | I104: 0 | K104: 0
A105: ='Org structure'!A7 -> Vote 06 - Technical Services | C105: =SUM(C106:C113) -> 1372748.92 | D105: 17147821 | E105: 9718339 | F105: 648456 | G105: 3950255.91 | H105: 9832180.8 | I105: -5881924.89 | J105: -0.5982319701 | K105: =SUM(K106:K113) -> 9718339
A106: ='Org structure'!E41 -> 06.1 - Mpac | C106: 0 | D106: 0 | E106: 0 | F106: 0 | G106: 0 | H106: 0 | I106: 0 | K106: 0
A107: ='Org structure'!E42 -> 06.2 - Technical Services Admin | C107: 0 | D107: 0 | E107: 0 | F107: 0 | G107: 0 | H107: 0 | I107: 0 | K107: 0
A108: ='Org structure'!E43 -> 06.3 - Techn Serv-Roads: Admin | C108: 0 | D108: 0 | E108: 0 | F108: 0 | G108: 0 | H108: 0 | I108: 0 | K108: 0
A109: ='Org structure'!E44 -> 06.4 - Techn Serv-Stormwater: Admin | C109: 57610 | D109: 12147821 | E109: 5506001 | F109: 0 | G109: 2748981.68 | H109: 6138108 | I109: -3389126.32 | J109: -0.5521451105 | K109: 5506001
A110: ='Org structure'!E45 -> 06.5 - Project Management Unit | C110: 0 | D110: 0 | E110: 0 | F110: 0 | G110: 0 | H110: 0 | I110: 0 | K110: 0
A111: ='Org structure'!E46 -> 06.6 - Electrical & Machinery | C111: 1315138.92 | D111: 5000000 | E111: 4212338 | F111: 648456 | G111: 1201274.23 | H111: 3694072.8 | I111: -2492798.57 | J111: -0.674810353 | K111: 4212338
A112: ='Org structure'!E47 -> 06.7 - Water | C112: 0 | D112: 0 | E112: 0 | F112: 0 | G112: 0 | H112: 0 | I112: 0 | K112: 0
A113: ='Org structure'!E48 -> 06.8 - Sanitation | C113: 0 | D113: 0 | E113: 0 | F113: 0 | G113: 0 | H113: 0 | I113: 0 | K113: 0
A114: ='Org structure'!A8 -> Vote 07 - | C114: 0 | D114: 0 | E114: 0 | F114: 0 | G114: 0 | H114: 0 | I114: 0 | K114: 0
A115: ='Org structure'!A9 -> Vote 08 - | C115: 0 | D115: 0 | E115: 0 | F115: 0 | G115: 0 | H115: 0 | I115: 0 | K115: 0
A116: ='Org structure'!A10 -> Vote 09 - | C116: 0 | D116: 0 | E116: 0 | F116: 0 | G116: 0 | H116: 0 | I116: =G116-H116 -> 0 | J116: =IF(I116=0,"",I116/H116) ->  | K116: 0
A117: ='Org structure'!A11 -> Vote 10 - | C117: 0 | D117: 0 | E117: 0 | F117: 0 | G117: 0 | H117: 0 | I117: 0 | K117: 0
A118: ='Org structure'!A12 -> Vote 11 - | C118: 0 | D118: 0 | E118: 0 | F118: 0 | G118: 0 | H118: 0 | I118: 0 | K118: 0
A119: ='Org structure'!A13 -> Vote 12 - | C119: 0 | D119: 0 | E119: 0 | F119: 0 | G119: 0 | H119: 0 | I119: 0 | K119: 0
A120: ='Org structure'!A14 -> Vote 13 - | C120: 0 | D120: 0 | E120: 0 | F120: 0 | G120: 0 | H120: 0 | I120: 0 | K120: 0
A121: ='Org structure'!A15 -> Vote 14 - | C121: 0 | D121: 0 | E121: 0 | F121: 0 | G121: 0 | H121: 0 | I121: 0 | K121: 0
A122: ='Org structure'!A16 -> Vote 15 - Other | C122: 0 | D122: 0 | E122: 0 | F122: 0 | G122: 0 | H122: 0 | I122: =G122-H122 -> 0 | J122: =IF(I122=0,"",I122/H122) ->  | K122: 0
A123: Total single-year capital expenditure | C123: =C67+C76+C82+C88+C96+C105+C114+C115+C116+C117+C118+C119+C120+C121+C122 -> 11475787.93 | D123: 22047821 | E123: 12801335 | F123: 688431.84 | G123: 6049135.89 | H123: 12825338.4 | I123: -6776202.51 | J123: -0.5283449293 | K123: =K67+K76+K82+K88+K96+K105+K114+K115+K116+K117+K118+K119+K120+K121+K122 -> 12801335
A124: Total Capital Expenditure | C124: =C63+C123 -> 45682357.98 | D124: 55441271 | E124: 54304785 | F124: 688431.84 | G124: 34447542.11 | H124: 45519218.4 | I124: -11071676.29 | J124: -0.2432308084 | K124: =K63+K123 -> 54304785
A125: =head27a -> References
A126: 1. Insert 'Vote'; e.g. Department, if different to standard structure

Sheet C6-FinPos
A1: =muni& " - "&S71E& " - "&date -> LIM353 Molemole - Table C6 Monthly Budget Statement - Financial Position - M10 April
A2: =desc -> Description | B2: =head27 -> Ref | C2: =Head1 -> 2018/19 | D2: =Head2 -> Budget Year 2019/20
C3: =Head5 -> Audited Outcome | D3: =Head6 -> Original Budget | E3: =Head7 -> Adjusted Budget | F3: =Head39 -> YearTD actual | G3: =Head8 -> Full Year Forecast
A4: R thousands | B4: 1
A5: ASSETS
A6: Current assets
A7: Cash | C7: 19363525.35 | D7: 23948248 | E7: 28813773 | F7: 42979472.7 | G7: 28813773
A8: Call investment deposits | C8: 0 | D8: 0 | E8: 0 | F8: 0 | G8: 0
A9: Consumer debtors | C9: 66463493.41 | D9: 16357776 | E9: 76685175 | F9: 75026170.92 | G9: 76685175
A10: Other debtors | C10: 22890999.48 | D10: 15854635 | E10: 17502358 | F10: 21004594.11 | G10: 17502358
A11: Current portion of long-term receivables | C11: 30849.58 | D11: 30256 | E11: 30256 | F11: 30849.58 | G11: 30256
A12: Inventory | C12: 194483.45 | D12: 369856 | E12: 259808 | F12: 194483.45 | G12: 259808
A13: Total current assets | C13: =SUM(C7:C12) -> 108943351.3 | D13: =SUM(D7:D12) -> 56560771 | E13: =SUM(E7:E12) -> 123291370 | F13: =SUM(F7:F12) -> 139235570.8 | G13: =SUM(G7:G12) -> 123291370
A15: Non current assets
A16: Long-term receivables
A17: Investments | C17: 0 | D17: 0 | E17: 0 | F17: 0 | G17: 0
A18: Investment property | C18: 1701000.96 | D18: 1649709 | E18: 1652313 | F18: 1668500.93 | G18: 1652313
A19: Investments in Associate
A20: Property, plant and equipment | C20: 248697639.3 | D20: 133845116 | E20: 287873599 | F20: 272053674.9 | G20: 287873599
A22: Biological
A23: Intangible | C23: 1949128.08 | D23: 5373435 | E23: 2428647 | F23: 1587736.47 | G23: 2428647
A24: Other non-current assets | C24: 368150 | D24: 368150 | E24: 368150 | F24: 368150 | G24: 368150
A25: Total non current assets | C25: =SUM(C16:C20)+SUM(C22:C24) -> 252715918.4 | D25: =SUM(D16:D20)+SUM(D22:D24) -> 141236410 | E25: =SUM(E16:E20)+SUM(E22:E24) -> 292322709 | F25: =SUM(F16:F20)+SUM(F22:F24) -> 275678062.3 | G25: =SUM(G16:G20)+SUM(G22:G24) -> 292322709
A26: TOTAL ASSETS | C26: =C13+C25 -> 361659269.6 | D26: =D13+D25 -> 197797181 | E26: =E13+E25 -> 415614079 | F26: =F13+F25 -> 414913633.1 | G26: =G13+G25 -> 415614079
A28: LIABILITIES
A29: Current liabilities
A30: Bank overdraft | C30: 0 | D30: 0 | E30: 0 | F30: 0 | G30: 0
A31: Borrowing | C31: 448189.46 | D31: 294221 | E31: 196513 | F31: 324251.75 | G31: 196513
A32: Consumer deposits | C32: 503126.48 | D32: 588650 | E32: 588650 | F32: 505099.12 | G32: 588650
A33: Trade and other payables | C33: 40831719.51 | D33: 37543757 | E33: 38764796 | F33: 34100111.92 | G33: 38764796
A34: Provisions | C34: 826867 | D34: 493650 | E34: 493650 | F34: 791506 | G34: 493650
A35: Total current liabilities | C35: =SUM(C30:C34) -> 42609902.45 | D35: =SUM(D30:D34) -> 38920278 | E35: =SUM(E30:E34) -> 40043609 | F35: =SUM(F30:F34) -> 35720968.79 | G35: =SUM(G30:G34) -> 40043609
A37: Non current liabilities
A38: Borrowing | C38: 65107.65 | D38: 0 | E38: 65108 | F38: 0 | G38: 65108
A39: Provisions | C39: 23460556.29 | D39: 25676880 | E39: 25676880 | F39: 23460556.29 | G39: 25676880
A40: Total non current liabilities | C40: =SUM(C38:C39) -> 23525663.94 | D40: =SUM(D38:D39) -> 25676880 | E40: =SUM(E38:E39) -> 25741988 | F40: =SUM(F38:F39) -> 23460556.29 | G40: =SUM(G38:G39) -> 25741988
A41: TOTAL LIABILITIES | C41: =C35+C40 -> 66135566.39 | D41: =D35+D40 -> 64597158 | E41: =E35+E40 -> 65785597 | F41: =F35+F40 -> 59181525.08 | G41: =G35+G40 -> 65785597
A43: NET ASSETS | B43: 2 | C43: =C26-C41 -> 295523703.2 | D43: =D26-D41 -> 133200023 | E43: =E26-E41 -> 349828482 | F43: =F26-F41 -> 355732108 | G43: =G26-G41 -> 349828482
A45: COMMUNITY WEALTH/EQUITY
A46: Accumulated Surplus/(Deficit) | C46: 240226928.9 | D46: 133200023 | E46: 351044315 | F46: 308118391.8 | G46: 351044315
A47: Reserves | C47: 47614110.89 | D47: 0 | E47: 47614111 | F47: 47614110.89 | G47: 47614111
A48: TOTAL COMMUNITY WEALTH/EQUITY | B48: 2 | C48: =SUM(C46:C47) -> 287841039.8 | D48: =SUM(D46:D47) -> 133200023 | E48: =SUM(E46:E47) -> 398658426 | F48: =SUM(F46:F47) -> 355732502.7 | G48: =SUM(G46:G47) -> 398658426
A49: =head27a -> References
A50: 1. Material variances to be explained in Table SC1
A51: 2. Net assets must balance with Total Community Wealth/Equity
A54: check balance | C54: =C43-C48 -> 7682663.4 | D54: =D43-D48 -> 0 | E54: =E43-E48 -> -48829944 | F54: =F43-F48 -> -394.6999999 | G54: =G43-G48 -> -48829944

Sheet C7-CFlow
A1: =muni& " - "&S71F& " - "&date -> LIM353 Molemole - Table C7 Monthly Budget Statement - Cash Flow - M10 April
A2: =desc -> Description | B2: =head27 -> Ref | C2: =Head1 -> 2018/19 | D2: =Head2 -> Budget Year 2019/20
C3: =Head5 -> Audited Outcome | D3: =Head6 -> Original Budget | E3: =Head7 -> Adjusted Budget | F3: =Head38 -> Monthly actual | G3: =Head39 -> YearTD actual | H3: =Head40 -> YearTD budget | I3: =Head41 -> YTD variance | J3: =Head41 -> YTD variance | K3: =Head8 -> Full Year Forecast
A4: R thousands | B4: 1 | J4: %
A5: CASH FLOW FROM OPERATING ACTIVITIES
A6: Receipts
A7: Property rates | C7: 4102462 | D7: 5351915.1 | E7: 5351915.1 | F7: ='SC9'!L6 -> 113726 | G7: 5159930 | H7: 4013936.325 | I7: =G7-H7 -> 1145993.675 | J7: =IF(I7=0,"",I7/H7) -> 0.2855037007
A8: Service charges | C8: 10808331 | D8: 7951701.3 | E8: 7951701.3 | F8: ='SC9'!L7+'SC9'!L10 -> 502889 | G8: 6917344 | H8: 5963775.975 | I8: 953568.025 | J8: =IF(I8=0,"",I8/H8) -> 0.1598933342
A9: Other revenue | C9: 592986 | D9: 32220477.82 | E9: 32220477.82 | F9: ='SC9'!L12+'SC9'!L13+'SC9'!L14+'SC9'!L16+'SC9'!L17+'SC9'!L18+'SC9'!L20 -> 188184.85 | G9: -7796531.88 | H9: 24165358.36 | I9: -31961890.24 | J9: =IF(I9=0,"",I9/H9) -> -1.322632579
A10: Transfers and Subsidies - Operational | C10: 96310000 | D10: 147906000 | E10: 147906000 | F10: 0 | G10: 142887000 | H10: 110929500 | I10: 31957500 | J10: =IF(I10=0,"",I10/H10) -> 0.2880883805
A11: Transfers and Subsidies - Capital | C11: 46493000 | D11: 33393000 | E11: 33393000 | F11: 0 | G11: 35151000 | H11: 25044750 | I11: 10106250 | J11: =IF(I11=0,"",I11/H11) -> 0.4035276854
A12: Interest | C12: 2101912 | D12: 2680617 | E12: 2680617 | F12: 0 | G12: 1248357.71 | H12: 2010462.75 | I12: -762105.04 | J12: -0.3790694655
A13: Dividends | I13: 0
A14: Payments
A15: Suppliers and employees | C15: -174718467.1 | D15: -189796232 | E15: -190023273 | F15: =-'SC9'!L46 -> -12413730.37 | G15: -138059458 | H15: -158302504.6 | I15: =H15-G15 -> -20243046.63 | J15: 0.1278757192 | K15: -190023273
A16: Finance charges | C16: -1154597.65 | D16: -1255286 | E16: -1255286 | F16: -1263.08 | G16: -104235.98 | H16: -1046080 | I16: =H16-G16 -> -941844.02 | J16: 0.9003556325 | K16: -1255286
A17: Transfers and Grants | C17: 0 | D17: 0 | E17: 0 | F17: 0 | G17: 0 | H17: 0 | I17: =H17-G17 -> 0 | K17: 0
A18: NET CASH FROM/(USED) OPERATING ACTIVITIES | C18: =SUM(C7:C13)+SUM(C15:C17) -> -15464373.76 | D18: 38452193.22 | E18: 38225152.22 | F18: -11610193.6 | G18: 45403405.88 | H18: 12779198.81 | I18: =H18-G18 -> -32624207.07 | J18: -2.552914901 | K18: =SUM(K7:K13)+SUM(K15:K17) -> -191278559
A20: CASH FLOWS FROM INVESTING ACTIVITIES
A21: Receipts
A22: Proceeds on disposal of PPE | I22: =G22-H22 -> 0 | J22: =IF(I22=0,"",I22/H22) -> 
A24: Decrease (increase) in non-current receivables | I24: =G24-H24 -> 0
A25: Decrease (increase) in non-current investments | C25: 0 | D25: 0 | E25: 0 | F25: 0 | G25: 0 | H25: 0 | I25: =G25-H25 -> 0 | K25: 0
A26: Payments
A27: Capital assets | C27: -39872195 | D27: -55441271 | E27: -55441271 | F27: =-'SC9'!L49 -> -688431.84 | G27: -33759109.89 | I27: =H27-G27 -> 33759109.89
A28: NET CASH FROM/(USED) INVESTING ACTIVITIES | C28: =SUM(C22:C25)+C27 -> -39872195 | D28: =SUM(D22:D25)+D27 -> -55441271 | E28: -55441271 | F28: -688431.84 | G28: -33759109.89 | H28: 0 | I28: =H28-G28 -> 33759109.89 | K28: =SUM(K22:K25)+K27 -> 0
A30: CASH FLOWS FROM FINANCING ACTIVITIES
A31: Receipts
A32: Short term loans | I32: =G32-H32 -> 0 | J32: =IF(I32=0,"",I32/H32) -> 
A33: Borrowing long term/refinancing | I33: =G33-H33 -> 0
A34: Increase (decrease) in consumer deposits | C34: -600 | D34: -85523.52 | E34: 0 | F34: 0 | G34: -505099.12 | H34: -490540 | I34: =G34-H34 -> -14559.12 | J34: 0.02967978147 | K34: -588650
A35: Payments
A36: Repayment of borrowing | C36: 448189.46 | D36: 294221 | E36: 196513 | F36: 0 | G36: -324251.75 | H36: -186555.2 | I36: =H36-G36 -> 137696.55 | J36: -0.7381008409 | K36: -196513
A37: NET CASH FROM/(USED) FINANCING ACTIVITIES | C37: =SUM(C32:C34)+C36 -> 447589.46 | D37: 208697.48 | E37: 196513 | F37: 0 | G37: -829350.87 | H37: -677095.2 | I37: =H37-G37 -> 152255.67 | J37: -0.2248659716 | K37: =SUM(K32:K34)+K36 -> -785163
A39: NET INCREASE/ (DECREASE) IN CASH HELD | C39: =C18+C28+C37 -> -54888979.3 | D39: -16780380.3 | E39: -17019605.78 | F39: -12298625.44 | G39: 10814945.12 | H39: 12102103.61 | K39: =K18+K28+K37 -> -192063722
A40: Cash/cash equivalents at beginning: | C40: 41580813.49 | D40: 14330932 | E40: 19196457 | G40: 19361542.79
A41: Cash/cash equivalents at month/year end: | C41: =C39+C40 -> -13308165.81 | D41: =D39+D40 -> -2449448.304 | E41: =E39+E40 -> 2176851.216 | G41: =G39+G40 -> 30176487.91 | H41: =H39+H40 -> 12102103.61 | K41: =K39+K40 -> -192063722
A42: References
A43: 1. Material variances to be explained in Table SC1

Sheet SC1
A1: =muni& " - "&S71G& " - "&date -> LIM353 Molemole - Supporting Table SC1 Material variance explanations - M10 April
A2: =head27 -> Ref | B2: =desc -> Description
C3: Variance | D3: Reasons for material deviations | E3: Remedial or corrective steps/remarks
B4: R thousands
A5: 1 | B5: ='C4-FinPerf RE'!A5 -> Revenue By Source
B7: SOURCE
B8: Interest Earned - Outstanding Debtors | C8: 23790.882
B9: Fines, Penalties And Forfeits | C9: 33847.311
B10: Licences And Permits | C10: 18429.594
B11: Agency Services | C11: 68272.251
B12: Transfers And Subsidies | C12: -18327.284
B13: Other Revenue | C13: 96464.593
B14: Service Charges - Electricity Revenue | C14: 19336.218
B15: Rental Of Facilities And Equipment | C15: 17028.89
B16: VOTE
B17: Corporate Services | C17: 89552.681
B18: Budget And Treasury | C18: -2714.472
B19: STANDARD CLASSIFICATION
B20: Community And Social Services | C20: 18571.992
B21: Sport And Recreation | C21: 17957.353
B22: Finance And Administration | C22: -3073.19
B23: Planning And Development | C23: 22043.722
B24: Energy Sources | C24: 21434.078
B25: Water Management | C25: 51638.442
A29: 2 | B29: ='C4-FinPerf RE'!A24 -> Expenditure By Type
B31: SOURCE
B32: Other Expenditure | C32: 16739.882
B33: Debt Impairment | C33: -139.365
B34: Depreciation & Asset Impairment | C34: -3441.475
B35: Bulk Purchases | C35: -40076.55
B36: Contracted Services | C36: 29062.517
B37: VOTE
B38: Corporate Services | C38: 18647.669
B39: Municipal Manager | C39: 21891.495
B40: Budget And Treasury | C40: 10955.354
B41: STANDARD CLASSIFICATION
B42: Sport And Recreation | C42: -22389.245
B43: Public Safety | C43: -7758.676
B44: Executive And Council | C44: 17866.19
B45: Finance And Administration | C45: 14060.418
B46: Planning And Development | C46: 32071.667
B47: Energy Sources | C47: -10638.548
B48: Waste Water Management | C48: 19525.19
A52: 3 | B52: =RIGHT('C5-Capex'!A40,19) -> Capital Expenditure
B54: VOTE
B55: Technical Services | C55: 23932.145
B56: STANDARD CLASSIFICATION
B57: Waste Water Management | C57: 19789.355
A61: 4 | B61: Financial Position
B62: Variances was not Calculated
A66: 5 | B66: Cash Flow
A71: 6 | B71: Measureable performance
A76: 7 | B76: Municipal Entities
A82: =head27a -> References
A83: 1. Revenue for each source, vote and standard classification
A84: 2. Expenditure for each type, vote and standard classification
A85: 3. Capital expenditure for each vote and standard classification
A86: 4. Explain any material variances between the annual budget and the expected financial position based on current trends
A87: 5. Cash receipts by source and cash payments by type where not explained under revenue and expenditure
A88: 6. For Sept, Dec, Mar and Jun statements explain any material variances in achievement of measurable performance objectives

Sheet SC2
A1: =muni& " - "&S71H& " - "&Head57 -> LIM353 Molemole - Supporting Table SC2 Monthly Budget Statement - performance indicators - M10 April
A2: Description of financial indicator | B2: Basis of calculation | C2: =head27 -> Ref | D2: =Head1 -> 2018/19 | E2: =Head2 -> Budget Year 2019/20
D3: =Head5 -> Audited Outcome | E3: =Head6 -> Original Budget | F3: =Head7 -> Adjusted Budget | G3: =Head39 -> YearTD actual | H3: =Head8 -> Full Year Forecast
A5: Borrowing Management
A7: Capital Charges to Operating Expenditure | B7: Interest & principal paid/Operating Expenditure | D7: =IF(ISERROR((D42-D43)/D45),0,((D42-D43)/D45)) -> 0.008253492645 | E7: =IF(ISERROR((E42+E44)/E45),0,((E42+E44)/E45)) -> 0.04823788551 | F7: =IF(ISERROR((F42+F44)/F45),0,((F42+F44)/F45)) -> 0.07723097853 | G7: =IF(ISERROR((G42+G44)/G45),0,((G42+G44)/G45)) -> 0.0006745786403 | H7: =IF(ISERROR((H42+H44)/H45),0,((H42+H44)/H45)) -> 0.07247289921
A8: Borrowed funding of 'own' capital expenditure | B8: Borrowings/Capital expenditure excl. transfers and grants | D8: =IF(ISERROR(D47/D46),0,(D47/D46)) -> 0 | E8: =IF(ISERROR(E47/E46),0,(E47/E46)) -> 0 | F8: =IF(ISERROR(F47/F46),0,(F47/F46)) -> 0 | G8: =IF(ISERROR(G47/G46),0,(G47/G46)) -> 0 | H8: =IF(ISERROR(H47/H46),0,(H47/H46)) -> 0
A9: Safety of Capital
A10: Debt to Equity | B10: Loans, Accounts Payable, Overdraft & Tax Provision/ Funds & Reserves | D10: =IF(ISERROR(D48/D49),0,(D48/D49)) -> 0.143638366 | E10: =IF(ISERROR(E48/E49),0,(E48/E49)) -> 0.2840688549 | F10: =IF(ISERROR(F48/F49),0,(F48/F49)) -> 0.09789437387 | G10: =IF(ISERROR(G48/G49),0,(G48/G49)) -> 0.09677036371 | H10: =IF(ISERROR(H48/H49),0,(H48/H49)) -> 0.09789437387
A11: Gearing | B11: Long Term Borrowing/ Funds & Reserves | D11: =IF(ISERROR(D51/D50),0,(D51/D50)) -> 0.00136740241 | E11: =IF(ISERROR(E51/E50),0,(E51/E50)) -> 0 | F11: =IF(ISERROR(F51/F50),0,(F51/F50)) -> 0.001367409758 | G11: =IF(ISERROR(G51/G50),0,(G51/G50)) -> 0 | H11: =IF(ISERROR(H51/H50),0,(H51/H50)) -> 0.001367409758
A12: Liquidity
A13: Current Ratio | B13: Current assets/current liabilities | C13: 1 | D13: =IF(ISERROR(D52/D53),0,(D52/D53)) -> 2.55676134 | E13: =IF(ISERROR(E52/E53),0,(E52/E53)) -> 1.45324684 | F13: =IF(ISERROR(F52/F53),0,(F52/F53)) -> 3.078927526 | G13: =IF(ISERROR(G52/G53),0,(G52/G53)) -> 3.897866589 | H13: =IF(ISERROR(H52/H53),0,(H52/H53)) -> 3.078927526
A14: Liquidity Ratio | B14: Monetary Assets/Current Liabilities | D14: =IF(ISERROR(D54/D53),0,(D54/D53)) -> 0.4544372138 | E14: =IF(ISERROR(E54/E53),0,(E54/E53)) -> 0.6153154404 | F14: =IF(ISERROR(F54/F53),0,(F54/F53)) -> 0.7195598429 | G14: =IF(ISERROR(G54/G53),0,(G54/G53)) -> 1.203200085 | H14: =IF(ISERROR(H54/H53),0,(H54/H53)) -> 0.7195598429
A15: Revenue Management
A16: Annual Debtors Collection Rate (Payment Level %) | B16: Last 12 Mths Receipts/ Last 12 Mths Billing
A17: Outstanding Debtors to Revenue | B17: Total Outstanding Debtors to Annual Revenue | D17: =IF(ISERROR(D59/D55),0,(D59/D55)) -> 0.5354796535 | E17: =IF(ISERROR(E59/E55),0,(E59/E55)) -> 0.1416659966 | F17: =IF(ISERROR(F59/F55),0,(F59/F55)) -> 0.4216727449 | G17: =IF(ISERROR(G59/G55),0,(G59/G55)) -> 0.5264296217 | H17: =IF(ISERROR(H59/H55),0,(H59/H55)) -> 0.4216727449
A18: Longstanding Debtors Recovered | B18: Debtors > 12 Mths Recovered/Total Debtors > 12 Months Old | D18: =IF(ISERROR(D64/D63),0,(D64/D63)) -> 0 | E18: =IF(ISERROR(E64/E63),0,(E64/E63)) -> 0 | F18: =IF(ISERROR(F64/F63),0,(F64/F63)) -> 0 | G18: =IF(ISERROR(G64/G63),0,(G64/G63)) -> 0 | H18: =IF(ISERROR(H64/H63),0,(H64/H63)) -> 0
A19: Creditors Management
A20: Creditors System Efficiency | B20: % of Creditors Paid Within Terms (within MFMA s 65(e))
A21: Funding of Provisions
A22: Percentage Of Provisions Not Funded | B22: Unfunded Provisions/Total Provisions
A23: Other Indicators
A24: Electricity Distribution Losses | B24: % Volume (units purchased and generated less units sold)/units purchased and generated | C24: 2
A25: Water Distribution Losses | B25: % Volume (units purchased and own source less units sold)/Total units purchased and own source | C25: 2
A26: Employee costs | B26: Employee costs/Total Revenue - capital revenue | D26: =IF(ISERROR(D40/D55),0,(D40/D55)) -> 0.4731980652 | E26: =IF(ISERROR(E40/E55),0,(E40/E55)) -> 0.4129503109 | F26: =IF(ISERROR(F40/F55),0,(F40/F55)) -> 0.413789844 | G26: =IF(ISERROR(G40/G55),0,(G40/G55)) -> 0.3828742799 | H26: =IF(ISERROR(H40/H55),0,(H40/H55)) -> 0.413789844
A27: Repairs & Maintenance | B27: R&M/Total Revenue - capital revenue | D27: =IF(ISERROR(D41/D55),0,(D41/D55)) -> 0.04710066893 | E27: =IF(ISERROR(E41/E55),0,(E41/E55)) -> 0.03700844125 | F27: =IF(ISERROR(F41/F55),0,(F41/F55)) -> 0.03789905625 | G27: =IF(ISERROR(G41/G55),0,(G41/G55)) -> 0.03161726003 | H27: =IF(ISERROR(H41/H55),0,(H41/H55)) -> 0.03789905625
A28: Interest & Depreciation | B28: I&D/Total Revenue - capital revenue | D28: =IF(ISERROR((D42+D44)/D55),0,((D42+D44)/D55)) -> 0.08046546919 | E28: =IF(ISERROR((E42+E44)/E55),0,((E42+E44)/E55)) -> 0.0435649649 | F28: =IF(ISERROR((F42+F44)/F55),0,((F42+F44)/F55)) -> 0.07336479958 | G28: =IF(ISERROR((G42+G44)/G55),0,((G42+G44)/G55)) -> 0.0005712261629 | H28: =IF(ISERROR((H42+H44)/H55),0,((H42+H44)/H55)) -> 0.06884490948
A29: IDP regulation financial viability indicators
A30: i. Debt coverage | B30: (Total Operating Revenue - Operating Grants)/Debt service payments due within financial year)
A31: ii. O/S Service Debtors to Revenue | B31: Total outstanding service debtors/annual revenue received for services
A32: iii. Cost coverage | B32: (Available cash + Investments)/monthly fixed operational expenditure
A33: References
A34: 1. Consumer debtors > 12 months old are excluded from current assets.
A35: 2. Material variances to be explained.
A37: Calculations
A38: ='C6-FinPos'!A38 -> Borrowing | D38: ='C6-FinPos'!C38 -> 65107.65 | E38: ='C6-FinPos'!D38 -> 0 | F38: ='C6-FinPos'!E38 -> 65108 | G38: ='C6-FinPos'!F38 -> 0 | H38: 0
A39: Total Assets | D39: ='C6-FinPos'!C26 -> 361659269.6 | E39: ='C6-FinPos'!D26 -> 197797181 | F39: ='C6-FinPos'!E26 -> 415614079 | G39: ='C6-FinPos'!F26 -> 414913633.1 | H39: ='C6-FinPos'!G26 -> 415614079
A40: ='C4-FinPerf RE'!A25 -> Employee related costs | D40: ='C4-FinPerf RE'!C25 -> 78988941.68 | E40: ='C4-FinPerf RE'!D25 -> 93985993 | F40: ='C4-FinPerf RE'!E25 -> 92456448 | G40: ='C4-FinPerf RE'!G25 -> 69865980.19 | H40: ='C4-FinPerf RE'!K25 -> 92456448
A41: =A27 -> Repairs & Maintenance | D41: 7862314.46 | E41: 8422987 | F41: 8468096 | G41: 5769441.77 | H41: 8468096
A42: Interest (finance charges) | D42: ='C4-FinPerf RE'!C29 -> 1154597.65 | E42: ='C4-FinPerf RE'!D29 -> 1255286 | F42: ='C4-FinPerf RE'!E29 -> 1255286 | G42: ='C4-FinPerf RE'!G29 -> 104235.98 | H42: ='C4-FinPerf RE'!K29 -> 1255286
A43: Principal paid | D43: =-'C7-CFlow'!C36 -> -448189.46 | E43: =-'C7-CFlow'!D36 -> -294221 | F43: =-'C7-CFlow'!E36 -> -196513 | G43: =-'C7-CFlow'!G36 -> 324251.75 | H43: =-'C7-CFlow'!K36 -> 196513
A44: Depreciation | D44: ='C4-FinPerf RE'!C28 -> 12277161.1 | E44: ='C4-FinPerf RE'!D28 -> 8659942 | F44: ='C4-FinPerf RE'!E28 -> 15137211 | H44: ='C4-FinPerf RE'!K26 -> 14127295
A45: Operating expenditure | D45: ='C4-FinPerf RE'!C36 -> 194195012.8 | E45: ='C4-FinPerf RE'!D36 -> 205548562 | F45: ='C4-FinPerf RE'!E36 -> 212252872 | G45: ='C4-FinPerf RE'!G36 -> 154520131.2 | H45: ='C4-FinPerf RE'!K36 -> 212252872
A46: ='C5-Capex'!A40 -> Total Capital Expenditure | D46: ='C5-Capex'!C40 -> 45682357.98 | E46: ='C5-Capex'!D40 -> 55441271 | F46: ='C5-Capex'!E40 -> 54304785 | G46: ='C5-Capex'!G40 -> 34447542.11 | H46: ='C5-Capex'!K40 -> 54304785
A47: Borrowed funding for capital | D47: ='C5-Capex'!C72 -> 0 | E47: ='C5-Capex'!D72 -> 0 | F47: ='C5-Capex'!E72 -> 0 | G47: ='C5-Capex'!G72 -> 0 | H47: ='C5-Capex'!K72 -> 0
A48: Debt | D48: ='C6-FinPos'!C30+'C6-FinPos'!C31+'C6-FinPos'!C33+'C6-FinPos'!C38 -> 41345016.62 | E48: ='C6-FinPos'!D30+'C6-FinPos'!D31+'C6-FinPos'!D33+'C6-FinPos'!D38 -> 37837978 | F48: ='C6-FinPos'!E30+'C6-FinPos'!E31+'C6-FinPos'!E33+'C6-FinPos'!E38 -> 39026417 | G48: ='C6-FinPos'!F30+'C6-FinPos'!F31+'C6-FinPos'!F33+'C6-FinPos'!F38 -> 34424363.67 | H48: ='C6-FinPos'!G30+'C6-FinPos'!G31+'C6-FinPos'!G33+'C6-FinPos'!G38 -> 39026417
A49: Equity | D49: ='C6-FinPos'!C48 -> 287841039.8 | E49: ='C6-FinPos'!D48 -> 133200023 | F49: ='C6-FinPos'!E48 -> 398658426 | G49: ='C6-FinPos'!F48 -> 355732502.7 | H49: ='C6-FinPos'!G48 -> 398658426
A50: ='C6-FinPos'!A47 -> Reserves | D50: ='C6-FinPos'!C47 -> 47614110.89 | E50: ='C6-FinPos'!D47 -> 0 | F50: ='C6-FinPos'!E47 -> 47614111 | G50: ='C6-FinPos'!F47 -> 47614110.89 | H50: ='C6-FinPos'!G47 -> 47614111
A51: ='C6-FinPos'!A38 -> Borrowing | D51: ='C6-FinPos'!C38 -> 65107.65 | E51: ='C6-FinPos'!D38 -> 0 | F51: ='C6-FinPos'!E38 -> 65108 | G51: ='C6-FinPos'!F38 -> 0 | H51: ='C6-FinPos'!G38 -> 65108
A52: ='C6-FinPos'!A6 -> Current assets | D52: ='C6-FinPos'!C13 -> 108943351.3 | E52: ='C6-FinPos'!D13 -> 56560771 | F52: ='C6-FinPos'!E13 -> 123291370 | G52: ='C6-FinPos'!F13 -> 139235570.8 | H52: ='C6-FinPos'!G13 -> 123291370
A53: ='C6-FinPos'!A29 -> Current liabilities | D53: ='C6-FinPos'!C35 -> 42609902.45 | E53: ='C6-FinPos'!D35 -> 38920278 | F53: ='C6-FinPos'!E35 -> 40043609 | G53: ='C6-FinPos'!F35 -> 35720968.79 | H53: ='C6-FinPos'!G35 -> 40043609
A54: Monetary assets | D54: ='C6-FinPos'!C7+'C6-FinPos'!C8 -> 19363525.35 | E54: ='C6-FinPos'!D7+'C6-FinPos'!D8 -> 23948248 | F54: ='C6-FinPos'!E7+'C6-FinPos'!E8 -> 28813773 | G54: ='C6-FinPos'!F7+'C6-FinPos'!F8 -> 42979472.7 | H54: ='C6-FinPos'!G7+'C6-FinPos'!G8 -> 28813773
A55: ='C4-FinPerf RE'!A22 -> Total Revenue (excluding capital transfers and contributions) | D55: ='C4-FinPerf RE'!C22 -> 166925749.5 | E55: ='C4-FinPerf RE'!D22 -> 227596373 | F55: ='C4-FinPerf RE'!E22 -> 223438176 | G55: ='C4-FinPerf RE'!G22 -> 182477601.3 | H55: ='C4-FinPerf RE'!K22 -> 223438176
A56: ='C4-FinPerf RE'!A19 -> Transfers and subsidies | D56: ='C4-FinPerf RE'!C19 -> 134056601.1 | E56: ='C4-FinPerf RE'!D19 -> 147905550 | F56: ='C4-FinPerf RE'!E19 -> 147905550 | G56: ='C4-FinPerf RE'!G19 -> 145843845.2 | H56: ='C4-FinPerf RE'!K19 -> 147905550
A57: ='C4-FinPerf RE'!A39 -> Transfers and subsidies - capital (monetary allocations) (National / Provincial and District) | D57: ='C4-FinPerf RE'!C39 -> 43126493.38 | E57: ='C4-FinPerf RE'!D39 -> 33393460 | F57: ='C4-FinPerf RE'!E39 -> 43119460 | G57: ='C4-FinPerf RE'!G39 -> 32250934.67 | H57: ='C4-FinPerf RE'!K39 -> 43119460
A58: Debt service payments | D58: ='C7-CFlow'!C12+'C7-CFlow'!C36 -> 2550101.46 | E58: ='C7-CFlow'!D12+'C7-CFlow'!D36 -> 2974838 | F58: ='C7-CFlow'!E12+'C7-CFlow'!E36 -> 2877130 | G58: ='C7-CFlow'!G16+'C7-CFlow'!G36 -> -428487.73 | H58: ='C7-CFlow'!K16+'C7-CFlow'!K36 -> -1451799
A59: Outstanding debtors (receivables) | D59: ='C6-FinPos'!C9+'C6-FinPos'!C10+'C6-FinPos'!C11+'C6-FinPos'!C16 -> 89385342.47 | E59: ='C6-FinPos'!D9+'C6-FinPos'!D10+'C6-FinPos'!D11+'C6-FinPos'!D16 -> 32242667 | F59: ='C6-FinPos'!E9+'C6-FinPos'!E10+'C6-FinPos'!E11+'C6-FinPos'!E16 -> 94217789 | G59: ='C6-FinPos'!F9+'C6-FinPos'!F10+'C6-FinPos'!F11+'C6-FinPos'!F16 -> 96061614.61 | H59: ='C6-FinPos'!G9+'C6-FinPos'!G10+'C6-FinPos'!G11+'C6-FinPos'!G16 -> 94217789
A60: Annual services revenue | D60: =SUM('C4-FinPerf RE'!C7:C11) -> 9790657.79 | E60: =SUM('C4-FinPerf RE'!D7:D11) -> 11512854 | F60: =SUM('C4-FinPerf RE'!E7:E11) -> 11512854 | G60: =SUM('C4-FinPerf RE'!G7:G11) -> 8829039.56
A61: Cash + investments | B61: Including LT investments | D61: ='C6-FinPos'!C7+'C6-FinPos'!C8+'C6-FinPos'!C17-'C6-FinPos'!C30 -> 19363525.35 | E61: ='C6-FinPos'!D7+'C6-FinPos'!D8+'C6-FinPos'!D17-'C6-FinPos'!D30 -> 23948248 | F61: ='C6-FinPos'!E7+'C6-FinPos'!E8+'C6-FinPos'!E17-'C6-FinPos'!E30 -> 28813773 | G61: ='C6-FinPos'!F7+'C6-FinPos'!F8+'C6-FinPos'!F17-'C6-FinPos'!F30 -> 42979472.7 | H61: ='C6-FinPos'!G7+'C6-FinPos'!G8+'C6-FinPos'!G17-'C6-FinPos'!G30 -> 28813773
A62: Fixed operational expend. (monthly)
A63: Longstanding debtors outstanding | D63: ='C6-FinPos'!C16 -> 0 | E63: ='C6-FinPos'!D16 -> 0 | F63: ='C6-FinPos'!E16 -> 0 | G63: ='C6-FinPos'!F16 -> 0 | H63: ='C6-FinPos'!G16 -> 0
A64: Longstanding debtors recovered
A65: Attorney collections

Sheet SC3
A1: =muni& " - "&S71I& " - "&Head57 -> LIM353 Molemole - Supporting Table SC3 Monthly Budget Statement - aged debtors - M10 April
A2: =desc -> Description | C2: =Head2 -> Budget Year 2019/20
A3: R thousands | B3: NT Code | C3: 0-30 Days | D3: 31-60 Days | E3: 61-90 Days | F3: 91-120 Days | G3: 121-150 Dys | H3: 151-180 Dys | I3: 181 Dys-1 Yr | J3: Over 1Yr | K3: Total | L3: Total over 90 days | M3: Actual Bad Debts Written Off against Debtors | N3: Impairment - Bad Debts i.t.o Council Policy
A4: Debtors Age Analysis By Income Source
A5: Trade and Other Receivables from Exchange Transactions - Water | B5: 1200 | C5: 159506 | D5: 126150 | E5: 90779 | F5: 2635139 | K5: =SUM(C5:J5) -> 3011574 | L5: =SUM(F5:J5) -> 2635139
A6: Trade and Other Receivables from Exchange Transactions - Electricity | B6: 1300 | C6: 111036 | D6: 48296 | E6: 5578 | F6: 1653189 | K6: =SUM(C6:J6) -> 1818099 | L6: =SUM(F6:J6) -> 1653189
A7: Receivables from Non-exchange Transactions - Property Rates | B7: 1400 | C7: 1146457 | D7: 1137177 | E7: 1132387 | F7: 60835342 | K7: =SUM(C7:J7) -> 64251363 | L7: 60835342
A8: Receivables from Exchange Transactions - Waste Water Management | B8: 1500 | C8: 62844 | D8: 60814 | E8: 59958 | F8: 1319191 | K8: 1502807 | L8: 1319191
A9: Receivables from Exchange Transactions - Waste Management | B9: 1600 | C9: 180178 | D9: 177480 | E9: 171666 | F9: 8312027 | K9: 8841351 | L9: =SUM(F9:J9) -> 8312027
A10: Receivables from Exchange Transactions - Property Rental Debtors | B10: 1700 | C10: 0 | D10: 0 | E10: 0 | F10: 0 | K10: 0 | L10: =SUM(F10:J10) -> 0
A11: Interest on Arrear Debtor Accounts | B11: 1810 | C11: 0 | D11: 0 | E11: 0 | F11: 0 | K11: 0 | L11: 0
A12: Recoverable unauthorised, irregular, fruitless and wasteful expenditure | B12: 1820 | C12: 0 | D12: 0 | E12: 0 | F12: 0 | K12: 0 | L12: 0
A13: Other | B13: 1900 | C13: 634774 | D13: 594771 | E13: 552105 | F13: 29571267 | K13: 31352917 | L13: =SUM(F13:J13) -> 29571267
A14: Total By Income Source | B14: 2000 | C14: =SUM(C5:C13) -> 2294795 | D14: 2144688 | E14: 2012473 | F14: 104326155 | G14: 0 | H14: 0 | I14: 0 | J14: 0 | K14: 110778111 | L14: =SUM(L5:L13) -> 104326155 | M14: 0 | N14: 0
A15: =Head1&" - totals only" -> 2018/19 - totals only | K15: =SUM(C15:J15) -> 0 | L15: =SUM(F15:J15) -> 0
A16: Debtors Age Analysis By Customer Group
A17: Organs of State | B17: 2200 | C17: 1007104 | D17: 960677 | E17: 942284 | F17: 48420046 | K17: =SUM(C17:J17) -> 51330111 | L17: =SUM(F17:J17) -> 48420046
A18: Commercial | B18: 2300 | C18: 181554 | D18: 150581 | E18: 120144 | F18: 6286705 | K18: =SUM(C18:J18) -> 6738984 | L18: =SUM(F18:J18) -> 6286705
A19: Households | B19: 2400 | C19: 650371 | D19: 597525 | E19: 584003 | F19: 20521362 | K19: =SUM(C19:J19) -> 22353261 | L19: =SUM(F19:J19) -> 20521362
A20: Other | B20: 2500 | C20: 455766 | D20: 435905 | E20: 366042 | F20: 29098042 | K20: =SUM(C20:J20) -> 30355755 | L20: =SUM(F20:J20) -> 29098042
A21: Total By Customer Group | B21: 2600 | C21: =SUM(C17:C20) -> 2294795 | D21: 2144688 | E21: 2012473 | F21: 104326155 | G21: 0 | H21: 0 | I21: 0 | J21: =SUM(J17:J20) -> 0 | K21: =SUM(K17:K20) -> 110778111 | L21: =SUM(L17:L20) -> 104326155 | M21: =SUM(M17:M20) -> 0 | N21: =SUM(N17:N20) -> 0
A22: Notes
A23: Material increases in value of debtors' categories compared to previous month to be explained
A24: Bad debts = amounts actually written off in the month
A25: Total by Income Source must reconcile with Total by Customer Group
C26: =C14-C21 -> 0 | D26: =D14-D21 -> 0 | E26: =E14-E21 -> 0 | F26: 0 | G26: 0 | H26: 0 | I26: 0 | J26: =J14-J21 -> 0 | K26: 0
C27: =IF(C26=0,"","MUST AGREE") ->  | D27: =IF(D26=0,"","MUST AGREE") -> 

Sheet SC4
A1: =muni& " - "&S71J& " - "&Head57 -> LIM353 Molemole - Supporting Table SC4 Monthly Budget Statement - aged creditors - M10 April
A2: =desc -> Description | B2: NT Code | C2: =Head2 -> Budget Year 2019/20 | L2: Prior year totals for chart (same period)
C3: 0 - 30 Days | D3: 31 - 60 Days | E3: 61 - 90 Days | F3: 91 - 120 Days | G3: 121 - 150 Days | H3: 151 - 180 Days | I3: 181 Days - 1 Year | J3: Over 1 Year | K3: Total
A4: R thousands
A5: Creditors Age Analysis By Customer Type
A6: Bulk Electricity | B6: 0100 | K6: =SUM(C6:J6) -> 0
A7: Bulk Water | B7: 0200 | K7: =SUM(C7:J7) -> 0
A8: PAYE deductions | B8: 0300 | K8: 0
A9: VAT (output less input) | B9: 0400 | K9: 0
A10: Pensions / Retirement deductions | B10: 0500 | K10: 0
A11: Loan repayments | B11: 0600 | K11: 0
A12: Trade Creditors | B12: 0700 | K12: 0
A13: Auditor General | B13: 0800 | K13: 0
A14: Other | B14: 0900 | C14: 35925 | D14: 8307 | E14: 81692 | K14: =SUM(C14:J14) -> 125924
A15: Total By Customer Type | B15: 1000 | C15: =SUM(C6:C14) -> 35925 | D15: =SUM(D6:D14) -> 8307 | E15: 81692 | F15: 0 | G15: 0 | H15: 0 | I15: 0 | J15: 0 | K15: =SUM(K6:K14) -> 125924 | L15: =SUM(L6:L14) -> 0
A16: Notes
A17: Material increases in value of creditors' categories compared to previous month to be explained

Sheet SC5
A1: =muni& " - "&S71K& " - "&Head57 -> LIM353 Molemole - Supporting Table SC5 Monthly Budget Statement - investment portfolio - M10 April
A2: Investments by maturity Name of institution & investment ID | B2: Ref | C2: Period of Investment | D2: Type of Investment | E2: Capital Guarantee (Yes/ No) | F2: Variable or Fixed interest rate | G2: Interest Rate ᶟ | H2: Commission Paid (Rands) | I2: Commission Recipient | J2: Expiry date of investment | K2: Opening balance | L2: Interest to be realised | M2: Partial / Premature Withdrawal (4) | N2: Investment Top Up | O2: Closing Balance
A3: R thousands | C3: Yrs/Months
A4: Municipality
O5: =SUM(K5:N5) -> 0
A6: Municipality sub-total | K6: =SUM(K5:K5) -> 0 | M6: =SUM(M5:M5) -> 0 | N6: =SUM(N5:N5) -> 0 | O6: =SUM(O5:O5) -> 0
A8: Entities
O9: =SUM(K9:N9) -> 0
O10: 0
O11: 0
O12: 0
O13: 0
O14: 0
O15: 0
A16: Entities sub-total | K16: =SUM(K9:K15) -> 0 | M16: =SUM(M9:M15) -> 0 | N16: =SUM(N9:N15) -> 0 | O16: =SUM(O9:O15) -> 0
A18: TOTAL INVESTMENTS AND INTEREST | B18: 2 | K18: =K6+K16 -> 0 | M18: =M6+M16 -> 0 | N18: =N6+N16 -> 0 | O18: =O6+O16 -> 0
A19: =head27a -> References
A20: 2. List investments in expiry date order
A21: 3. If 'variable' is selected in column F, input interest rate range
A22: 4. Withdrawals to be entered as negative

Sheet SC6
A1: =muni& " - "&S71L& " - "&Head57 -> LIM353 Molemole - Supporting Table SC6 Monthly Budget Statement - transfers and grant receipts - M10 April
A2: =desc -> Description | B2: =head27 -> Ref | C2: =Head1 -> 2018/19 | D2: =Head2 -> Budget Year 2019/20
C3: =Head5 -> Audited Outcome | D3: =Head6 -> Original Budget | E3: =Head7 -> Adjusted Budget | F3: =Head38 -> Monthly actual | G3: =Head39 -> YearTD actual | H3: =Head40 -> YearTD budget | I3: =Head41 -> YTD variance | J3: =Head41 -> YTD variance | K3: =Head8 -> Full Year Forecast
A4: R thousands | J4: %
A5: RECEIPTS: | B5: 1,2
A7: Operating Transfers and Grants
A8: National Government: | C8: =SUM(C9:C13) -> 131462196.6 | D8: 147905550 | E8: 147905550 | F8: 0 | G8: 145843845.2 | H8: 123254620 | I8: =G8-H8 -> 22589225.2 | J8: =IF(H8=0,"",I8/H8) -> 0.1832728477 | K8: =SUM(K9:K13) -> 147905550
A9: Equitable Share | C9: 128183867 | D9: 142578000 | E9: 142578000 | F9: 0 | G9: 142069000 | H9: 118815000 | I9: 23254000 | J9: 0.1957160291 | K9: 142578000
A10: Expanded Public Works Programme Integrated Grant | C10: 1101000 | D10: 1167000 | E10: 1167000 | F10: 0 | G10: 793744 | H10: 972500 | I10: -178756 | J10: -0.1838107969 | K10: 1167000
A11: Local Government Financial Management Grant | C11: 2177329.57 | D11: 2403000 | E11: 2403000 | F11: 0 | G11: 1566908.97 | H11: 2002500 | I11: -435591.03 | J11: -0.2175236105 | K11: 2403000
A12: Municipal Demarcation Transition Grant | C12: 0 | D12: 0 | E12: 0 | F12: 0 | G12: 0 | H12: 0 | I12: 0 | K12: 0
A13: Municipal Infrastructure Grant | C13: 0 | D13: 1757550 | E13: 1757550 | F13: 0 | G13: 1414192.23 | H13: 1464620 | I13: -50427.77 | J13: -0.03443061682 | K13: 1757550
A14: Other transfers and grants [insert description] | I14: =G14-H14 -> 0 | J14: =IF(I14=0,"",I14/H14) -> 
A15: Provincial Government: | C15: =SUM(C16:C16) -> 771700 | D15: 0 | E15: 0 | F15: 0 | G15: 0 | H15: 0 | I15: =G15-H15 -> 0 | J15: =IF(H15=0,"",I15/H15) ->  | K15: =SUM(K16:K16) -> 0
A16: Other | C16: 771700 | D16: 0 | E16: 0 | F16: 0 | G16: 0 | H16: 0 | I16: =G16-H16 -> 0 | J16: =IF(H16=0,"",I16/H16) ->  | K16: 0
A17: Other transfers and grants [insert description] | I17: =G17-H17 -> 0
A18: District Municipality: | C18: =SUM(C19:C21) -> 72890 | D18: 0 | E18: 0 | F18: 0 | G18: 0 | H18: 0 | I18: =G18-H18 -> 0 | J18: =IF(H18=0,"",I18/H18) ->  | K18: =SUM(K19:K21) -> 0
A19: Assistance to Local Municipalities | C19: 0 | D19: 0 | E19: 0 | F19: 0 | G19: 0 | H19: 0 | I19: 0 | K19: 0
A20: Community and Social Services | C20: 72890 | D20: 0 | E20: 0 | F20: 0 | G20: 0 | H20: 0 | I20: 0 | K20: 0
A21: Planning and Development | C21: 0 | D21: 0 | E21: 0 | F21: 0 | G21: 0 | H21: 0 | I21: 0 | K21: 0
A22: Other grant providers: | C22: =SUM(C23:C23) -> 0 | D22: 0 | E22: 0 | F22: 0 | G22: 0 | H22: 0 | I22: 0 | K22: =SUM(K23:K23) -> 0
A23: Non-statutory Forces | C23: 0 | D23: 0 | E23: 0 | F23: 0 | G23: 0 | H23: 0 | I23: 0 | K23: 0
A24: Total Operating Transfers and Grants | B24: 5 | C24: =C8+C15+C18+C22 -> 132306786.6 | D24: 147905550 | E24: 147905550 | F24: 0 | G24: 145843845.2 | H24: 123254620 | I24: 22589225.2 | J24: 0.1832728477 | K24: =K8+K15+K18+K22 -> 147905550
A26: Capital Transfers and Grants
A27: =A8 -> National Government: | C27: =SUM(C28:C32) -> 43126493.38 | D27: 33393460 | E27: 43119460 | F27: 0 | G27: 32250934.67 | H27: 33663480 | I27: =G27-H27 -> -1412545.33 | J27: =IF(H27=0,"",I27/H27) -> -0.04196076371 | K27: =SUM(K28:K32) -> 43119460
A28: Energy Efficiency and Demand Side Management Grant | C28: 0 | D28: 0 | E28: 0 | F28: 0 | G28: 0 | H28: 0 | I28: 0 | K28: 0
A29: Expanded Public Works Programme Integrated Grant | C29: 0 | D29: 0 | E29: 0 | F29: 0 | G29: 0 | H29: 0 | I29: 0 | K29: 0
A30: Integrated National Electrification Programme Grant | C30: 0 | D30: 0 | E30: 0 | F30: 0 | G30: 0 | H30: 0 | I30: 0 | K30: 0
A31: Local Government Financial Management Grant | C31: 0 | D31: 0 | E31: 0 | F31: 0 | G31: 0 | H31: 0 | I31: 0 | K31: 0
A32: Municipal Infrastructure Grant | C32: 43126493.38 | D32: 33393460 | E32: 43119460 | F32: 0 | G32: 32250934.67 | H32: 33663480 | I32: -1412545.33 | J32: -0.04196076371 | K32: 43119460
A33: =A15 -> Provincial Government: | C33: =SUM(C34:C34) -> 0 | D33: 0 | E33: 0 | F33: 0 | G33: 0 | H33: 0 | I33: =G33-H33 -> 0 | J33: =IF(I33=0,"",I33/H33) ->  | K33: =SUM(K34:K34) -> 0
A34: [insert description] | I34: 0 | J34: =IF(I34=0,"",I34/H34) -> 
A35: =A18 -> District Municipality: | C35: =SUM(C36:C36) -> 0 | D35: 0 | E35: 0 | F35: 0 | G35: 0 | H35: 0 | I35: =G35-H35 -> 0 | J35: =IF(H35=0,"",I35/H35) ->  | K35: =SUM(K36:K36) -> 0
A36: Assistance to Local Municipalities | C36: 0 | D36: 0 | E36: 0 | F36: 0 | G36: 0 | H36: 0 | I36: =G36-H36 -> 0 | J36: =IF(H36=0,"",I36/H36) ->  | K36: 0
A37: =A22 -> Other grant providers: | C37: =SUM(C38:C38) -> 0 | D37: 0 | E37: 0 | F37: 0 | G37: 0 | H37: 0 | I37: 0 | J37: =IF(I37=0,"",I37/H37) ->  | K37: =SUM(K38:K38) -> 0
A38: [insert description] | I38: 0 | J38: =IF(I38=0,"",I38/H38) -> 
A39: Total Capital Transfers and Grants | B39: 5 | C39: =C27+C33+C35+C37 -> 43126493.38 | D39: 33393460 | E39: 43119460 | F39: 0 | G39: 32250934.67 | H39: 33663480 | I39: -1412545.33 | J39: -0.04196076371 | K39: =K27+K33+K35+K37 -> 43119460
A41: TOTAL RECEIPTS OF TRANSFERS & GRANTS | B41: 5 | C41: =C24+C39 -> 175433279.9 | D41: 181299010 | E41: 191025010 | F41: 0 | G41: 178094779.9 | H41: 156918100 | I41: 21176679.87 | J41: 0.1349537107 | K41: =K24+K39 -> 191025010
A42: =head27a -> References
A43: 1. Each grant is listed by name as gazetted together with the name of the transferring department or municipality, donor or other organisation
A44: 2. Grant expenditure must be separately listed for each grant received
A45: 3. Replacement of RSC levies
A46: 4. Housing subsidies for housing where ownership transferred
A47: 5. Total recurrent/capital grants and subsidies must reconcile to the 'Financial Performance' Statement

Sheet SC7(1)
A1: =muni& " - "&S71M& " - "&Head57 -> LIM353 Molemole - Supporting Table SC7(1) Monthly Budget Statement - transfers and grant expenditure - M10 April
A2: =desc -> Description | B2: =head27 -> Ref | C2: =Head1 -> 2018/19 | D2: =Head2 -> Budget Year 2019/20
C3: =Head5 -> Audited Outcome | D3: =Head6 -> Original Budget | E3: =Head7 -> Adjusted Budget | F3: =Head38 -> Monthly actual | G3: =Head39 -> YearTD actual | H3: =Head40 -> YearTD budget | I3: =Head41 -> YTD variance | J3: =Head41 -> YTD variance | K3: =Head8 -> Full Year Forecast
A4: R thousands | J4: %
A5: EXPENDITURE
A7: Operating expenditure of Transfers and Grants
A8: ='SC6'!A8 -> National Government: | C8: =SUM(C9:C14) -> 105740130.1 | D8: 122987850 | E8: 122616284 | F8: 8199720.15 | G8: 92019952.47 | H8: 102268910.4 | I8: -10248957.93 | J8: =IF(I8=0,"",I8/H8) -> -0.1002157732 | K8: =SUM(K9:K14) -> 122616284
I9: =G9-H9 -> 0
A10: Equitable Share | C10: 100639899.7 | D10: 118578123 | E10: 118356957 | F10: 8070415.21 | G10: 89723205.66 | H10: 98684330.4 | I10: =G10-H10 -> -8961124.74 | J10: =IF(H10=0,"",I10/H10) -> -0.09080595373 | K10: 118356957
A11: Expanded Public Works Programme Integrated Grant | C11: 1101000 | D11: 1167000 | E11: 1167000 | F11: 96384 | G11: 902183 | H11: 972500 | I11: =G11-H11 -> -70317 | J11: =IF(H11=0,"",I11/H11) -> -0.07230539846 | K11: 1167000
A12: Local Government Financial Management Grant | C12: 3700755.22 | D12: 3195000 | E12: 3044600 | F12: 32920.94 | G12: 1353237.86 | H12: 2572300 | I12: =G12-H12 -> -1219062.14 | J12: =IF(H12=0,"",I12/H12) -> -0.4739191152 | K12: 3044600
A13: Municipal Demarcation Transition Grant | C13: 0 | D13: 0 | E13: 0 | F13: 0 | G13: 0 | H13: 0 | I13: =G13-H13 -> 0 | J13: =IF(H13=0,"",I13/H13) ->  | K13: 0
A14: Municipal Infrastructure Grant | C14: 298475.15 | D14: 47727 | E14: 47727 | F14: 0 | G14: 41325.95 | H14: 39780 | I14: =G14-H14 -> 1545.95 | J14: =IF(H14=0,"",I14/H14) -> 0.03886249372 | K14: 47727
A15: ='SC6'!A15 -> Provincial Government: | C15: =SUM(C16:C17) -> 188000 | D15: 0 | E15: 0 | F15: 0 | G15: 0 | H15: 0 | I15: 0 | K15: =SUM(K16:K17) -> 0
I16: =G16-H16 -> 0
A17: Other | C17: 188000 | D17: 0 | E17: 0 | F17: 0 | G17: 0 | H17: 0 | I17: =G17-H17 -> 0 | J17: =IF(H17=0,"",I17/H17) ->  | K17: 0
A18: ='SC6'!A18 -> District Municipality: | C18: =SUM(C19:C19) -> 0 | D18: 0 | E18: 0 | F18: 0 | G18: 0 | H18: 0 | I18: 0 | K18: =SUM(K19:K19) -> 0
I19: 0
A20: Assistance to Local Municipalities | C20: 0 | D20: 0 | E20: 0 | F20: 0 | G20: 0 | H20: 0 | I20: =G20-H20 -> 0 | J20: =IF(H20=0,"",I20/H20) ->  | K20: 0
A21: Community and Social Services | C21: 43490 | D21: 0 | E21: 0 | F21: 0 | G21: 0 | H21: 0 | I21: =G21-H21 -> 0 | J21: =IF(H21=0,"",I21/H21) ->  | K21: 0
A22: ='SC6'!A22 -> Other grant providers: | C22: =SUM(C23:C23) -> 0 | D22: 0 | E22: 0 | F22: 0 | G22: 0 | H22: 0 | I22: 0 | K22: =SUM(K23:K23) -> 0
I23: 0
A24: Municipal Demarcation Board | C24: 0 | D24: 300000 | E24: 300000 | F24: 0 | G24: 108913.5 | H24: 250000 | I24: =G24-H24 -> -141086.5 | J24: =IF(H24=0,"",I24/H24) -> -0.564346 | K24: 300000
A25: Total operating expenditure of Transfers and Grants: | C25: =C8+C15+C18+C22 -> 105928130.1 | D25: 122987850 | E25: 122616284 | F25: 8199720.15 | G25: 92019952.47 | H25: 102268910.4 | I25: -10248957.93 | J25: -0.1002157732 | K25: =K8+K15+K18+K22 -> 122616284
A27: Capital expenditure of Transfers and Grants
A28: ='SC6'!A27 -> National Government: | C28: =SUM(C29:C31) -> 37557011.22 | D28: 33393450 | E28: 41503450 | F28: 0 | G28: 28398406.22 | H28: 32693880 | I28: -4295473.78 | J28: =IF(I28=0,"",I28/H28) -> -0.1313846439 | K28: =SUM(K29:K31) -> 41503450
A29: Energy Efficiency and Demand Side Management Grant | C29: 0 | D29: 0 | E29: 0 | F29: 0 | G29: 0 | H29: 0 | I29: =G29-H29 -> 0 | J29: =IF(H29=0,"",I29/H29) ->  | K29: 0
A30: Integrated National Electrification Programme Grant | C30: 0 | D30: 0 | E30: 0 | F30: 0 | G30: 0 | H30: 0 | I30: =G30-H30 -> 0 | J30: =IF(H30=0,"",I30/H30) ->  | K30: 0
A31: Municipal Infrastructure Grant | C31: 37557011.22 | D31: 33393450 | E31: 41503450 | F31: 0 | G31: 28398406.22 | H31: 32693880 | I31: =G31-H31 -> -4295473.78 | J31: =IF(H31=0,"",I31/H31) -> -0.1313846439 | K31: 41503450
A32: ='SC6'!A33 -> Provincial Government: | C32: =SUM(C33:C33) -> 531721.74 | D32: 0 | E32: 0 | F32: 0 | G32: 0 | H32: 0 | I32: =G32-H32 -> 0 | K32: =SUM(K33:K33) -> 0
A33: Other | C33: 531721.74 | D33: 0 | E33: 0 | F33: 0 | G33: 0 | H33: 0 | I33: =G33-H33 -> 0 | J33: =IF(H33=0,"",I33/H33) ->  | K33: 0
A34: ='SC6'!A35 -> District Municipality: | C34: =SUM(C35:C35) -> 29400 | D34: 0 | E34: 0 | F34: 0 | G34: 0 | H34: 0 | I34: 0 | K34: =SUM(K35:K35) -> 0
A35: Community and Social Services | C35: 29400 | D35: 0 | E35: 0 | F35: 0 | G35: 0 | H35: 0 | I35: =G35-H35 -> 0 | J35: =IF(H35=0,"",I35/H35) ->  | K35: 0
A36: ='SC6'!A37 -> Other grant providers: | C36: =SUM(C37:C38) -> 680520.5 | D36: 0 | E36: 0 | F36: 0 | G36: 0 | H36: 0 | I36: 0 | K36: =SUM(K37:K38) -> 0
A37: Municipal Demarcation Board | C37: 622910.5 | D37: 0 | E37: 0 | F37: 0 | G37: 0 | H37: 0 | I37: =G37-H37 -> 0 | J37: =IF(H37=0,"",I37/H37) ->  | K37: 0
A38: Municipal Infrastructure Investment Unit | C38: 57610 | D38: 0 | E38: 0 | F38: 0 | G38: 0 | H38: 0 | I38: =G38-H38 -> 0 | J38: =IF(H38=0,"",I38/H38) ->  | K38: 0
A39: Total capital expenditure of Transfers and Grants | C39: =C28+C32+C34+C36 -> 38798653.46 | D39: 33393450 | E39: 41503450 | F39: 0 | G39: 28398406.22 | H39: 32693880 | I39: -4295473.78 | J39: =IF(I39=0,"",I39/H39) -> -0.1313846439 | K39: =K28+K32+K34+K36 -> 41503450
A41: TOTAL EXPENDITURE OF TRANSFERS AND GRANTS | C41: =C25+C39 -> 144726783.5 | D41: 156381300 | E41: 164119734 | F41: 8199720.15 | G41: 120418358.7 | H41: 134962790.4 | I41: -14544431.71 | J41: =IF(I41=0,"",I41/H41) -> -0.1077662344 | K41: =K25+K39 -> 164119734
A42: =head27a -> References

Sheet SC7(2)
A1: =muni& " - "&S71T& " - "&Head57 -> LIM353 Molemole - Supporting Table SC7(2) Monthly Budget Statement - Expenditure against approved rollovers - M10 April
A2: =desc -> Description | B2: =head27 -> Ref | C2: =Head2 -> Budget Year 2019/20
C3: ="Approved Rollover " &Head1 -> Approved Rollover 2018/19 | D3: =Head38 -> Monthly actual | E3: =Head39 -> YearTD actual | F3: =Head41 -> YTD variance | G3: =Head41 -> YTD variance
A4: R thousands | G4: %
A5: EXPENDITURE
A7: Operating expenditure of Approved Roll-overs
A8: ='SC6'!A8 -> National Government: | C8: =SUM(C9:C9) -> 0 | D8: =SUM(D9:D9) -> 0 | E8: =SUM(E9:E9) -> 0 | F8: =SUM(F9:F9) -> 0 | G8: =IF(F8=0,"",F8/C8) -> 
A9: Local Government Equitable Share | C9: 0 | D9: 0 | E9: 0 | F9: =E9-C9 -> 0 | G9: =IF(C9=0,"",F9/C9) -> 
A10: ='SC6'!A15 -> Provincial Government: | C10: =SUM(C11:C11) -> 0 | D10: =SUM(D11:D11) -> 0 | E10: =SUM(E11:E11) -> 0 | F10: =SUM(F11:F11) -> 0 | G10: =IF(F10=0,"",F10/C10) -> 
F11: =C11-E11 -> 0
A12: ='SC6'!A18 -> District Municipality: | C12: =SUM(C13:C13) -> 0 | D12: =SUM(D13:D13) -> 0 | E12: =SUM(E13:E13) -> 0 | F12: =SUM(F13:F13) -> 0
F13: =C13-E13 -> 0
A14: ='SC6'!A22 -> Other grant providers: | C14: =SUM(C15:C15) -> 0 | D14: =SUM(D15:D15) -> 0 | E14: =SUM(E15:E15) -> 0 | F14: =SUM(F15:F15) -> 0
F15: =C15-E15 -> 0
A16: Total operating expenditure of Approved Roll-overs | C16: =C8+C10+C12+C14 -> 0 | D16: =D8+D10+D12+D14 -> 0 | E16: =E8+E10+E12+E14 -> 0 | F16: =F8+F10+F12+F14 -> 0
A18: Capital expenditure of Approved Roll-overs
A19: ='SC6'!A27 -> National Government: | C19: =SUM(C20:C20) -> 0 | D19: =SUM(D20:D20) -> 0 | E19: =SUM(E20:E20) -> 0 | F19: =SUM(F20:F20) -> 0
F20: =C20-E20 -> 0
A21: ='SC6'!A33 -> Provincial Government: | C21: =SUM(C22:C22) -> 0 | D21: =SUM(D22:D22) -> 0 | E21: =SUM(E22:E22) -> 0 | F21: =SUM(F22:F22) -> 0
F22: =C22-E22 -> 0
A23: ='SC6'!A35 -> District Municipality: | C23: =SUM(C24:C24) -> 0 | D23: =SUM(D24:D24) -> 0 | E23: =SUM(E24:E24) -> 0 | F23: =SUM(F24:F24) -> 0
F24: =C24-E24 -> 0
A25: ='SC6'!A37 -> Other grant providers: | C25: =SUM(C26:C26) -> 0 | D25: =SUM(D26:D26) -> 0 | E25: =SUM(E26:E26) -> 0 | F25: =SUM(F26:F26) -> 0
F26: =C26-E26 -> 0
A27: Total capital expenditure of Approved Roll-overs | C27: =C19+C21+C23+C25 -> 0 | D27: =D19+D21+D23+D25 -> 0 | E27: =E19+E21+E23+E25 -> 0 | F27: =F19+F21+F23+F25 -> 0
A29: TOTAL EXPENDITURE OF APPROVED ROLL-OVERS | C29: =C16+C27 -> 0 | D29: =D16+D27 -> 0 | E29: =E16+E27 -> 0 | F29: =F16+F27 -> 0
A30: =head27a -> References

Sheet SC8
A1: =muni& " - "&S71N& " - "&Head57 -> LIM353 Molemole - Supporting Table SC8 Monthly Budget Statement - councillor and staff benefits - M10 April
A2: Summary of Employee and Councillor remuneration | B2: =head27 -> Ref | C2: =Head1 -> 2018/19 | D2: =Head2 -> Budget Year 2019/20
C3: =Head5 -> Audited Outcome | D3: =Head6 -> Original Budget | E3: =Head7 -> Adjusted Budget | F3: =Head38 -> Monthly actual | G3: =Head39 -> YearTD actual | H3: =Head40 -> YearTD budget | I3: =Head41 -> YTD variance | J3: =Head41 -> YTD variance | K3: =Head8 -> Full Year Forecast
A4: R thousands | J4: %
B5: 1 | C5: A | D5: B | E5: C | K5: D
A6: Councillors (Political Office Bearers plus Other)
A7: Basic Salaries and Wages | C7: 8268184.5 | D7: 9388679 | E7: 9388679 | F7: 693822.81 | G7: 6938228.1 | H7: 7823920 | I7: =G7-H7 -> -885691.9 | J7: =IF(I7=0,"",I7/H7) -> -0.1132030875 | K7: 9388679
A8: Pension and UIF Contributions | I8: 0
A9: Medical Aid Contributions | I9: 0
A10: Motor Vehicle Allowance | I10: =G10-H10 -> 0 | J10: =IF(I10=0,"",I10/H10) -> 
A11: Cellphone Allowance | C11: 1302400 | D11: 1609056 | E11: 1609056 | F11: 118400 | G11: 1097600 | H11: 1340880 | I11: =G11-H11 -> -243280 | J11: =IF(I11=0,"",I11/H11) -> -0.1814330887 | K11: 1609056
A12: Housing Allowances | I12: =G12-H12 -> 0 | J12: =IF(I12=0,"",I12/H12) -> 
A13: Other benefits and allowances | C13: 2757785.45 | D13: 3129560 | E13: 3129560 | F13: 231274.18 | G13: 2312741.8 | H13: 2607980 | I13: -295238.2 | J13: -0.1132056994 | K13: 3129560
A14: Sub Total - Councillors | C14: =SUM(C7:C13) -> 12328369.95 | D14: 14127295 | E14: 14127295 | F14: 1043496.99 | G14: 10348569.9 | H14: 11772780 | I14: -1424210.1 | J14: -0.1209748335 | K14: 14127295
A15: % increase | B15: 4 | D15: =IF(D14=0,"",(D14/C14)-1) -> 0.1459175104 | E15: =IF(E14=0,"",(E14/C14)-1) -> 0.1459175104 | K15: =IF(K14=0,"",(K14/C14)-1) -> 0.1459175104
A17: Senior Managers of the Municipality | B17: 3
A18: Basic Salaries and Wages | C18: 3848552.79 | D18: 4469380 | E18: 4004885 | F18: 462397.23 | G18: 3717656.07 | H18: 3445813 | I18: =G18-H18 -> 271843.07 | J18: =IF(I18=0,"",I18/H18) -> 0.0788908365 | K18: 4004885
A19: Pension and UIF Contributions | C19: 0 | D19: 0 | E19: 0 | F19: 0 | G19: 0 | H19: 0 | I19: 0 | K19: 0
A20: Medical Aid Contributions | C20: 0 | D20: 0 | E20: 0 | F20: 0 | G20: 0 | H20: 0 | I20: 0 | K20: 0
A21: Overtime | C21: 0 | D21: 0 | E21: 0 | F21: 0 | G21: 0 | H21: 0 | I21: 0 | K21: 0
A22: Performance Bonus | C22: 0 | D22: 223469 | E22: 200244 | F22: 0 | G22: 0 | H22: 172315 | I22: =G22-H22 -> -172315 | J22: =IF(I22=0,"",I22/H22) -> -1 | K22: 200244
A23: Motor Vehicle Allowance | C23: 61581.45 | D23: 813557 | E23: 813557 | F23: 58691.16 | G23: 109404.66 | H23: 677980 | I23: =G23-H23 -> -568575.34 | J23: =IF(I23=0,"",I23/H23) -> -0.8386314346 | K23: 813557
A24: Cellphone Allowance | C24: 208538.52 | D24: 240000 | E24: 220000 | F24: 16666.65 | G24: 159999.84 | H24: 188040 | I24: =G24-H24 -> -28040.16 | J24: =IF(I24=0,"",I24/H24) -> -0.14911806 | K24: 220000
A25: Housing Allowances | C25: 0 | D25: 0 | E25: 0 | F25: 0 | G25: 0 | H25: 0 | I25: =G25-H25 -> 0 | J25: =IF(I25=0,"",I25/H25) ->  | K25: 0
A26: Other benefits and allowances | C26: 0 | D26: 432905 | E26: 347789 | F26: 0 | G26: 0 | H26: 309740.4 | I26: -309740.4 | J26: -1 | K26: 347789
A27: Payments in lieu of leave | C27: 0 | D27: 0 | E27: 0 | F27: 0 | G27: 0 | H27: 0 | I27: 0 | K27: 0
A28: Long service awards | C28: 0 | D28: 0 | E28: 0 | F28: 0 | G28: 0 | H28: 0 | I28: 0 | K28: 0
A29: Post-retirement benefit obligations | B29: 2 | C29: 0 | D29: 0 | E29: 0 | F29: 0 | G29: 0 | H29: 0 | I29: 0 | K29: 0
A30: Sub Total - Senior Managers of Municipality | C30: =SUM(C18:C29) -> 4118672.76 | D30: 6179311 | E30: 5586475 | F30: =SUM(F18:F29) -> 537755.04 | G30: =SUM(G18:G29) -> 3987060.57 | H30: =SUM(H18:H29) -> 4793888.4 | I30: -806827.83 | J30: =IF(I30=0,"",I30/H30) -> -0.1683034236 | K30: 5586475
A31: % increase | B31: 4 | D31: =IF(D30=0,"",(D30/C30)-1) -> 0.5003160873 | E31: =IF(E30=0,"",(E30/C30)-1) -> 0.3563774851 | K31: =IF(K30=0,"",(K30/C30)-1) -> 0.3563774851
A33: Other Municipal Staff
A34: Basic Salaries and Wages | C34: 46760969.97 | D34: 51037867 | E34: 51117867 | F34: 4514451.41 | G34: 42372560.93 | H34: 42579700 | I34: =G34-H34 -> -207139.07 | J34: =IF(I34=0,"",I34/H34) -> -0.004864737657 | K34: 51117867
A35: Pension and UIF Contributions | C35: 9648927.37 | D35: 11429013 | E35: 11592877 | F35: 871619.5 | G35: 8676704.59 | H35: 9622808.4 | I35: -946103.81 | J35: -0.09831888682 | K35: 11592877
A36: Medical Aid Contributions | C36: 3721477.9 | D36: 6109606 | E36: 4801767 | F36: 373073.99 | G36: 3404712.17 | H36: 4306796.6 | I36: -902084.43 | J36: -0.2094560096 | K36: 4801767
A37: Overtime | C37: 638779.72 | D37: 1482467 | E37: 1277444 | F37: 45084.12 | G37: 519326.86 | H37: 1112456.2 | I37: -593129.34 | J37: -0.5331709599 | K37: 1277444
A38: Performance Bonus | C38: 5018154.56 | D38: 6350519 | E38: 5411491 | F38: 209299.88 | G38: 4529702.97 | H38: 4728943.2 | I38: -199240.23 | J38: -0.04213208355 | K38: 5411491
A39: Motor Vehicle Allowance | C39: 4730242.82 | D39: 5197325 | E39: 5556480 | F39: 397419.89 | G39: 4195601.36 | H39: 4546693 | I39: =G39-H39 -> -351091.64 | J39: =IF(I39=0,"",I39/H39) -> -0.07721912168 | K39: 5556480
A40: Cellphone Allowance | C40: 958166.14 | D40: 1001700 | E40: 1001700 | F40: 72965.41 | G40: 765194.95 | H40: 834750 | I40: =G40-H40 -> -69555.05 | J40: =IF(I40=0,"",I40/H40) -> -0.08332440851 | K40: 1001700
A41: Housing Allowances | C41: 150200.37 | D41: 261432 | E41: 349684 | F41: 14858.71 | G41: 153747.07 | H41: 270871.2 | I41: =G41-H41 -> -117124.13 | J41: =IF(I41=0,"",I41/H41) -> -0.4323978703 | K41: 349684
A42: Other benefits and allowances | C42: 583580.59 | D42: 740630 | E42: 963346 | F42: 48704.99 | G42: 550696.02 | H42: 751119.6 | I42: -200423.58 | J42: -0.2668331115 | K42: 963346
A43: Payments in lieu of leave | C43: 153670.48 | D43: 1599470 | E43: 1700664 | F43: 113626.5 | G43: 488647.61 | H43: 1393746.4 | I43: -905098.79 | J43: -0.6493999124 | K43: 1700664
A44: Long service awards | C44: 346236 | D44: 470121 | E44: 470121 | F44: 0 | G44: 222025.09 | H44: 391800 | I44: -169774.91 | J44: -0.433320342 | K44: 470121
A45: Post-retirement benefit obligations | B45: 2 | C45: 2159863 | D45: 2126532 | E45: 2626532 | F45: 0 | G45: 0 | H45: 2072480 | I45: -2072480 | J45: -1 | K45: 2626532
A46: Sub Total - Other Municipal Staff | C46: =SUM(C34:C45) -> 74870268.92 | D46: 87806682 | E46: 86869973 | F46: =SUM(F34:F45) -> 6661104.4 | G46: =SUM(G34:G45) -> 65878919.62 | H46: =SUM(H34:H45) -> 72612164.6 | I46: -6733244.98 | J46: =IF(I46=0,"",I46/H46) -> -0.09272888389 | K46: 86869973
A47: % increase | B47: 4 | D47: =IF(D46=0,"",(D46/C46)-1) -> 0.1727843811 | E47: =IF(E46=0,"",(E46/C46)-1) -> 0.1602732868 | K47: =IF(K46=0,"",(K46/C46)-1) -> 0.1602732868
A49: Total Parent Municipality | C49: =C14+C30+C46 -> 91317311.63 | D49: =D14+D30+D46 -> 108113288 | E49: 106583743 | F49: 8242356.43 | G49: 80214550.09 | H49: 89178833 | I49: =G49-H49 -> -8964282.91 | J49: =IF(I49=0,"",I49/H49) -> -0.1005202985 | K49: 106583743
D50: =IF(D49=0,"",(D49/C49)-1) -> 0.1839298165 | E50: =IF(E49=0,"",(E49/C49)-1) -> 0.1671800352 | K50: =IF(K49=0,"",(K49/C49)-1) -> 0.1671800352
A51: Unpaid salary, allowances & benefits in arrears:
A53: Board Members of Entities
A54: Basic Salaries and Wages | I54: =G54-H54 -> 0 | J54: =IF(I54=0,"",I54/H54) -> 
A55: Pension and UIF Contributions | I55: 0
A56: Medical Aid Contributions | I56: 0
A57: Overtime | I57: =G57-H57 -> 0 | J57: =IF(I57=0,"",I57/H57) -> 
A58: Performance Bonus | I58: =G58-H58 -> 0 | J58: =IF(I58=0,"",I58/H58) -> 
A59: Motor Vehicle Allowance | I59: =G59-H59 -> 0 | J59: =IF(I59=0,"",I59/H59) -> 
A60: Cellphone Allowance | I60: =G60-H60 -> 0 | J60: =IF(I60=0,"",I60/H60) -> 
A61: Housing Allowances | I61: =G61-H61 -> 0 | J61: =IF(I61=0,"",I61/H61) -> 
A62: Other benefits and allowances | I62: 0
A63: Board Fees | I63: =G63-H63 -> 0 | J63: =IF(I63=0,"",I63/H63) -> 
A64: Payments in lieu of leave | I64: 0
A65: Long service awards | I65: 0
A66: Post-retirement benefit obligations | I66: 0
A67: Sub Total - Board Members of Entities | B67: 2 | C67: =SUM(C54:C66) -> 0 | D67: 0 | E67: 0 | F67: =SUM(F54:F66) -> 0 | G67: =SUM(G54:G66) -> 0 | H67: =SUM(H54:H66) -> 0 | I67: 0 | J67: =IF(I67=0,"",I67/H67) ->  | K67: 0
A68: % increase | B68: 4 | D68: =IF(D67=0,"",(D67/C67)-1) ->  | E68: =IF(E67=0,"",(E67/C67)-1) ->  | K68: =IF(K67=0,"",(K67/C67)-1) -> 
A70: Senior Managers of Entities
A71: Basic Salaries and Wages | I71: =G71-H71 -> 0 | J71: =IF(I71=0,"",I71/H71) -> 
A72: Pension and UIF Contributions | I72: 0
A73: Medical Aid Contributions | I73: 0
A74: Overtime | I74: 0
A75: Performance Bonus | I75: =G75-H75 -> 0 | J75: =IF(I75=0,"",I75/H75) -> 
A76: Motor Vehicle Allowance | I76: =G76-H76 -> 0 | J76: =IF(I76=0,"",I76/H76) -> 
A77: Cellphone Allowance | I77: =G77-H77 -> 0 | J77: =IF(I77=0,"",I77/H77) -> 
A78: Housing Allowances | I78: =G78-H78 -> 0 | J78: =IF(I78=0,"",I78/H78) -> 
A79: Other benefits and allowances | I79: 0
A80: Payments in lieu of leave | I80: 0
A81: Long service awards | I81: 0
A82: Post-retirement benefit obligations | B82: 2 | I82: 0
A83: Sub Total - Senior Managers of Entities | C83: =SUM(C71:C82) -> 0 | D83: 0 | E83: 0 | F83: =SUM(F71:F82) -> 0 | G83: =SUM(G71:G82) -> 0 | H83: =SUM(H71:H82) -> 0 | I83: 0 | J83: =IF(I83=0,"",I83/H83) ->  | K83: 0
A84: % increase | B84: 4 | D84: =IF(D83=0,"",(D83/C83)-1) ->  | E84: =IF(E83=0,"",(E83/C83)-1) ->  | K84: =IF(K83=0,"",(K83/C83)-1) -> 
A86: Other Staff of Entities
A87: Basic Salaries and Wages | I87: =G87-H87 -> 0 | J87: =IF(I87=0,"",I87/H87) -> 
A88: Pension and UIF Contributions | I88: 0
A89: Medical Aid Contributions | I89: =G89-H89 -> 0 | J89: =IF(I89=0,"",I89/H89) -> 
A90: Overtime | I90: =G90-H90 -> 0 | J90: =IF(I90=0,"",I90/H90) -> 
A91: Performance Bonus | I91: =G91-H91 -> 0 | J91: =IF(I91=0,"",I91/H91) -> 
A92: Motor Vehicle Allowance | I92: =G92-H92 -> 0 | J92: =IF(I92=0,"",I92/H92) -> 
A93: Cellphone Allowance | I93: 0
A94: Housing Allowances | I94: 0
A95: Other benefits and allowances | I95: 0
A96: Payments in lieu of leave | I96: 0
A97: Long service awards | I97: 0
A98: Post-retirement benefit obligations | I98: 0
A99: Sub Total - Other Staff of Entities | C99: =SUM(C87:C98) -> 0 | D99: 0 | E99: 0 | F99: 0 | G99: 0 | H99: 0 | I99: 0 | J99: =IF(I99=0,"",I99/H99) ->  | K99: =SUM(K87:K98) -> 0
A100: % increase | B100: 4 | D100: =IF(D99=0,"",(D99/C99)-1) ->  | E100: =IF(E99=0,"",(E99/C99)-1) ->  | K100: =IF(K99=0,"",(K99/C99)-1) -> 
A102: Total Municipal Entities | C102: =C67+C83+C99 -> 0 | D102: 0 | E102: 0 | F102: 0 | G102: 0 | H102: 0 | I102: =G102-H102 -> 0 | J102: =IF(I102=0,"",I102/H102) ->  | K102: =K67+K83+K99 -> 0
A104: TOTAL SALARY, ALLOWANCES & BENEFITS | C104: =C49+C102 -> 91317311.63 | D104: 108113288 | E104: 106583743 | F104: 8242356.43 | G104: 80214550.09 | H104: 89178833 | I104: =G104-H104 -> -8964282.91 | J104: =IF(I104=0,"",I104/H104) -> -0.1005202985 | K104: =K49+K102 -> 106583743
A105: % increase | B105: 4 | D105: =IF(D104=0,"",(D104/C104)-1) -> 0.1839298165 | E105: =IF(E104=0,"",(E104/C104)-1) -> 0.1671800352 | K105: =IF(K104=0,"",(K104/C104)-1) -> 0.1671800352
A106: TOTAL MANAGERS AND STAFF | C106: =C30+C46+C83+C99 -> 78988941.68 | D106: 93985993 | E106: 92456448 | F106: 7198859.44 | G106: 69865980.19 | H106: 77406053 | I106: -7540072.81 | J106: =IF(I106=0,"",I106/H106) -> -0.09740934356 | K106: =K30+K46+K83+K99 -> 92456448
A107: =head27a -> References
A108: 1. Include 'Loans and advances' where applicable if any reportable amounts until phased compliance with s164 of MFMA achieved
A109: 2. If benefits in kind are provided (e.g. provision of living quarters) the full market value must be shown as the cost to the municipality
A110: 3. s57 of the Systems Act
A111: 4. B/A, C/A, D/A
A112: Column Definitions:
A113: A. Audited actual 2005/06 (audited financial statements). If audited amounts unavailable, unaudited amounts must be provided with a note stating these are unaudited
A114: B. The original budget approved by council for the 2006/07 budget year.
A115: C. The budget for 2006/07 budget year as adjusted by council resolution in terms of section 28 of the MFMA.
A116: D. An estimate of final actual amounts (pre audit - 2006/07 budget year) at the time of preparing the budget for the 2007/08 budget year. This may differ from C.

Sheet SC9
A1: =muni& " - "&S71O& " - "&Head57 -> LIM353 Molemole - Supporting Table SC9 Monthly Budget Statement - actuals and revised targets for cash receipts - M10 April
A2: =desc -> Description | B2: =head27 -> Ref | C2: =Head2 -> Budget Year 2019/20 | O2: ='Template names'!B5 -> 2019/20 Medium Term Revenue & Expenditure Framework
C3: July | D3: August | E3: Sept | F3: October | G3: Nov | H3: Dec | I3: January | J3: Feb | K3: March | L3: April | M3: May | N3: June | O3: =Head9 -> Budget Year 2019/20 | P3: =Head10 -> Budget Year +1 2020/21 | Q3: =Head11 -> Budget Year +2 2021/22
A4: R thousands | B4: 1 | C4: Outcome | D4: Outcome | E4: Outcome | F4: Outcome | G4: Outcome | H4: Outcome | I4: Outcome | J4: Outcome | K4: Outcome | L4: Outcome | M4: Budget | N4: Budget
A5: Cash Receipts By Source
A6: Property rates | C6: 314205 | D6: 1611794 | E6: 614447 | F6: 1176063 | G6: 238145 | H6: 164990 | I6: 727790 | J6: 150263 | K6: 162233 | L6: =23230+57+34554+48918+6967 -> 113726 | N6: =O6-SUM(C6:M6) -> 78259.1 | O6: 5351915.1 | P6: 8027872.65 | Q6: 8461377.773
A7: Service charges - electricity revenue | C7: 887690 | D7: 796825 | E7: 709110 | F7: 710860 | G7: 796408 | H7: 653915 | I7: 893441 | J7: 614863 | K7: 467894 | L7: =73207+419354 -> 492561 | N7: 356049.8 | O7: 7379616.8 | P7: 8668641.972 | Q7: 9136748.638
A8: Service charges - water revenue | N8: 0
A9: Service charges - sanitation revenue | N9: 0
A10: Service charges - refuse | C10: 101737 | D10: 96344 | E10: 45282 | F10: 25339 | G10: 24187 | H10: 17091 | I10: 37141 | J10: 17202 | K10: 22015 | L10: =10328 -> 10328 | N10: 175418.5 | O10: 572084.5 | P10: 1808930.042 | Q10: 1906612.265
A12: Rental of facilities and equipment | C12: 2358 | D12: 17614 | E12: 2358 | F12: 32870.58 | G12: 38365 | H12: 15256 | I12: 4715.81 | J12: 32870.58 | K12: 17614.24 | L12: ='C4-FinPerf RE'!F12 -> 15256.34 | N12: 104657.45 | O12: 283936 | P12: 299267.6671 | Q12: 315428.1211
A13: Interest earned - external investments | C13: 68006 | D13: 275581 | E13: 274318 | F13: 181770.94 | G13: 99708 | H13: 158519 | I13: 190454.77 | J13: 0 | K13: 219059.46 | L13: ='C4-FinPerf RE'!F13 -> 132463.52 | N13: 512119.31 | O13: 2112000 | P13: 2226048 | Q13: 2346254.592
A14: Interest earned - outstanding debtors | C14: 83940 | D14: 52927 | E14: 18010 | F14: 29117 | G14: 11197 | H14: 8231 | I14: 100561 | J14: 9389 | K14: 7085 | L14: =579+270+414+556+583+76+437+36 -> 2951 | N14: 245209 | O14: 568617 | P14: 599322.318 | Q14: 631685.7232
A15: Dividends received | N15: 0
A16: Fines, penalties and forfeits | C16: 18300 | D16: 0 | E16: 500 | F16: 4650 | G16: 5300 | H16: 21350 | I16: 700859.28 | J16: 2450 | K16: 12800 | L16: ='C4-FinPerf RE'!F16 -> 12000 | N16: 421797.44 | O16: 1200006.72 | P16: 1264807.083 | Q16: 1333106.665
A17: Licences and permits | C17: 126252 | D17: 0 | E17: 730286 | F17: 575798.31 | G17: 0 | H17: 667783 | I17: 826753.34 | J17: 957726.8 | K17: 797101.11 | L17: ='C4-FinPerf RE'!F17 -> 0 | N17: 1383803.248 | O17: 6065503.808 | P17: 6393041.014 | Q17: 6738265.228
A18: Agency services | C18: 147196 | D18: 78055 | E18: 77645 | F18: 49571 | G18: 42810 | H18: 39418 | I18: 49338 | J18: 34420 | K18: 39872 | L18: =13211+7366 -> 20577 | N18: 660338.288 | O18: 1239240.288 | P18: 1306159.264 | Q18: 1376691.864
A19: Transfers and Subsidies - Operational | C19: 59408000 | D19: 292000 | E19: 0 | F19: 0 | G19: 526000 | H19: 47017000 | I19: 0 | J19: 0 | K19: 35644000 | L19: ='C4-FinPerf RE'!F19 -> 0 | N19: 5019000 | O19: 147906000 | P19: 155065500 | Q19: 164248400
A20: Other revenue | C20: 719926 | D20: 25822 | E20: 1640 | F20: 20497.84 | G20: 4034 | H20: 5290 | I20: -963844.68 | J20: 13777824.88 | K20: 8564.03 | L20: ='C4-FinPerf RE'!F20 -> 4936.99 | N20: 9827099.94 | O20: 23431791 | P20: 25975705.31 | Q20: 27343216.59
A21: Cash Receipts by Source | C21: =SUM(C6:C10)+SUM(C12:C20) -> 61877610 | D21: =SUM(D6:D10)+SUM(D12:D20) -> 3246962 | E21: 2473596 | F21: 2806537.67 | G21: 1786154 | H21: 48768843 | I21: 2567209.52 | J21: 15597009.26 | K21: 37398237.84 | L21: 804799.85 | M21: 0 | N21: 18783752.08 | O21: 196110711.2 | P21: 211635295.3 | Q21: 223837787.5
N22: =O22-SUM(C22:M22) -> 0
A23: Other Cash Flows by Source | N23: 0
A24: ='C4-FinPerf RE'!A39 -> Transfers and subsidies - capital (monetary allocations) (National / Provincial and District) | C24: 0 | D24: 16615000 | E24: 0 | F24: 0 | G24: 0 | H24: 11272000 | J24: 0 | K24: 7264000 | L24: ='C5-Capex'!F66 -> 0 | N24: 20290271 | O24: 55441271 | P24: 47864285 | Q24: 48257992
A25: ='C4-FinPerf RE'!A40 -> Transfers and subsidies - capital (monetary allocations) (National / Provincial Departmental Agencies, Households, Non-profit Institutions, Private Enterprises, Public Corporatons, Higher Educational Institutions) | N25: 0
A26: Proceeds on Disposal of Fixed and Intangible Assets | N26: 0
A27: Short term loans | N27: 0
A28: Borrowing long term/refinancing | N28: 0
A29: Increase (decrease) in consumer deposits | C29: -525.7 | D29: -252.87 | E29: -294.07 | F29: -450 | G29: 0 | H29: 0 | I29: 0 | J29: 0 | K29: -450 | L29: 0 | M29: 0 | N29: 1972.64 | O29: 0 | P29: 0 | Q29: 0
A31: Decrease (increase) in non-current receivables | N31: 0
A32: Decrease (increase) in non-current investments | C32: 0 | D32: 0 | E32: 0 | F32: 0 | G32: 0 | H32: 0 | I32: 0 | J32: 0 | K32: 0 | L32: 0 | M32: 0 | N32: 0 | O32: 0 | P32: 0 | Q32: 0
A33: Total Cash Receipts by Source | C33: =SUM(C21:C29)+SUM(C31:C32) -> 61877084.3 | D33: =SUM(D21:D29)+SUM(D31:D32) -> 19861709.13 | E33: 2473301.93 | F33: 2806087.67 | G33: 1786154 | H33: 60040843 | I33: 2567209.52 | J33: 15597009.26 | K33: 44661787.84 | L33: 804799.85 | M33: 0 | N33: 39075995.72 | O33: 251551982.2 | P33: 259499580.3 | Q33: 272095779.5
N34: =O34-SUM(C34:M34) -> 0
A35: Cash Payments by Type | N35: 0
A36: Employee related costs | C36: 6662297.95 | D36: 6760716.48 | E36: 7063835.58 | F36: 7012664.17 | G36: 6555516.14 | H36: 8067021.75 | I36: 7035417.9 | J36: 6840993.21 | K36: 6668657.57 | L36: 7198859.44 | N36: 22590467.81 | O36: 92456448 | P36: 98165079 | Q36: 105054628
A37: Remuneration of councillors | C37: 1027712.07 | D37: 1040081.91 | E37: 1038535.68 | F37: 1032396.99 | G37: 1032896.99 | H37: 1032896.99 | I37: 1032896.99 | J37: 1033758.3 | K37: 1033896.99 | L37: 1043496.99 | N37: 3778725.1 | O37: 14127295 | P37: 15010262 | Q37: 16060977
A38: Interest paid | C38: 1303.51 | D38: 57.29 | E38: 2568.86 | F38: 1436.09 | G38: 1216.94 | H38: 1251.27 | I38: 396 | J38: 0 | K38: 94742.94 | L38: 1263.08 | N38: 1151050.02 | O38: 1255286 | P38: 3711774 | Q38: 3881204
A39: Bulk purchases - Electricity | C39: 1193423.24 | D39: 2277488.65 | E39: 1008969.1 | F39: 1004489.98 | G39: 749753.8 | H39: 920436.45 | I39: 327496.5 | J39: 493324.72 | K39: 824634.26 | L39: 851257.63 | N39: -1383274.33 | O39: 8268000 | P39: 8937708 | Q39: 9402469
A40: Bulk purchases - Water & Sewer | N40: 0
A41: Other materials | C41: 244846.32 | D41: 28299.58 | E41: 556178.58 | F41: 724278.58 | G41: 288017.65 | H41: 424453.74 | I41: 253740.85 | J41: 96206.28 | K41: 563395.1 | L41: 330002.88 | N41: 1729625.44 | O41: 5239045 | P41: 5514220 | Q41: 5766234
A42: Contracted services | C42: 877087.49 | D42: 1505414.03 | E42: 1714782.86 | F42: 3568426.25 | G42: 2243130.9 | H42: 2721891.03 | I42: 2295081.57 | J42: 1441496.91 | K42: 2311900.58 | L42: 1874804.46 | N42: 14256720.92 | O42: 34810737 | P42: 30360743 | Q42: 30774799
A43: Grants and subsidies paid - other municipalities | N43: 0
A44: Grants and subsidies paid - other | C44: 0 | D44: 0 | E44: 0 | F44: 0 | G44: 0 | H44: 0 | I44: 0 | J44: 0 | K44: 0 | L44: 0 | N44: 0 | O44: 0 | P44: 0 | Q44: 0
A45: General expenses | C45: 984466.68 | D45: 3252621.71 | E45: 2021709.94 | F45: 3554449.29 | G45: 3899794.16 | H45: 3229056.73 | I45: 2158862.5 | J45: 1933396.29 | K45: 1981794.72 | L45: 1114045.89 | N45: 10991550.09 | O45: 35121748 | P45: 37026198 | Q45: 37312282
A46: Cash Payments by Type | B46: =SUM(B36:B45) -> 0 | C46: =SUM(C36:C45) -> 10991137.26 | D46: =SUM(D36:D45) -> 14864679.65 | E46: 13406580.6 | F46: 16898141.35 | G46: 14770326.58 | H46: 16397007.96 | I46: 13103892.31 | J46: 11839175.71 | K46: 13479022.16 | L46: 12413730.37 | M46: 0 | N46: 53114865.05 | O46: 191278559 | P46: 198725984 | Q46: 208252593
N47: =O47-SUM(C47:M47) -> 0
A48: Other Cash Flows/Payments by Type
A49: Capital assets | C49: 0 | D49: 3441483.44 | E49: 9697847 | F49: 3203359.7 | G49: 11102523.85 | H49: 4052075.73 | I49: 596000.62 | J49: 1172668.61 | K49: 493150.94 | L49: ='C5-Capex'!F73 -> 688431.84 | N49: =O49-SUM(C49:M49) -> 20993729.27 | O49: 55441271 | P49: 47864285 | Q49: 48257992
A50: Repayment of borrowing | C50: 0 | D50: 0 | E50: 0 | F50: 0 | G50: 0 | H50: 0 | I50: 0 | J50: 0 | K50: 0 | L50: 0 | M50: 0 | N50: =O50-SUM(C50:M50) -> 0 | O50: 0 | P50: 0 | Q50: 0
A51: Other Cash Flows/Payments | N51: =O51-SUM(C51:M51) -> 0
A52: Total Cash Payments by Type | B52: =SUM(B46:B51) -> 0 | C52: 10991137.26 | D52: 18306163.09 | E52: 23104427.6 | F52: 20101501.05 | G52: 25872850.43 | H52: 20449083.69 | I52: 13699892.93 | J52: 13011844.32 | K52: 13972173.1 | L52: 13102162.21 | M52: 0 | N52: 74108594.32 | O52: 246719830 | P52: 246590269 | Q52: 256510585
N53: =O53-SUM(C53:M53) -> 0
A54: NET INCREASE/(DECREASE) IN CASH HELD | B54: =B33-B52 -> 0 | C54: 50885947.04 | D54: 1555546.04 | E54: -20631125.67 | F54: -17295413.38 | G54: -24086696.43 | H54: 39591759.31 | I54: -11132683.41 | J54: 2585164.94 | K54: 30689614.74 | L54: -12297362.36 | M54: 0 | N54: -35032598.6 | O54: 4832152.216 | P54: 12909311.32 | Q54: 15585194.46
A55: Cash/cash equivalents at the month/year beginning: | C55: 19373721 | D55: 0 | E55: 0 | F55: 0 | G55: 0 | H55: 0 | I55: 0 | J55: 0 | K55: 0 | L55: 0 | M55: 2167350 | N55: =M56 -> 2167350 | O55: 19196457 | P55: 13167271 | Q55: 22385586
A56: Cash/cash equivalents at the month/year end: | C56: =C54+C55 -> 70259668.04 | D56: =D54+D55 -> 1555546.04 | E56: =E54+E55 -> -20631125.67 | F56: -17295413.38 | G56: -24086696.43 | H56: 39591759.31 | I56: -11132683.41 | J56: 2585164.94 | K56: 30689614.74 | L56: -12297362.36 | M56: 2167350 | N56: -32865248.6 | O56: =O54+O55 -> 24028609.22 | P56: =P54+P55 -> 26076582.32 | Q56: =Q54+Q55 -> 37970780.46
A57: =head27a -> References
A58: 1. Replace 'budget' heading with adjusted budget, or 'outcome' only for month/s complete
A59: 2. Total of monthly amounts must always agree to the approved or adjusted budget
A60: 3. Amend 'cash-at-beginning' when prior year actual known (as part of the adjustments budget)
E65: =E46+E64 -> 13406580.6 | F65: 16898141.35 | G65: 14770326.58 | H65: 16397007.96 | I65: 13103892.31 | J65: 11839175.71 | K65: 13479022.16 | L65: 12413730.37 | N65: =N46+N64 -> 53114865.05 | O65: 191278559 | P65: 198725984
E66: =E54-E64 -> -20631125.67 | F66: -17295413.38 | G66: -24086696.43 | H66: 39591759.31 | I66: -11132683.41 | J66: 2585164.94 | K66: 30689614.74 | L66: -12297362.36 | M66: =M54-M64 -> 0 | N66: =N54-N64 -> -35032598.6 | O66: 4832152.216 | P66: 12909311.32

Sheet SC10
A1: =muni& " - "&S71P& " - "&Head57 -> LIM353 Molemole - NOT REQUIRED - municipality does not have entities or this is the parent municipality's budget - M10 April
A2: =desc -> Description | B2: =head27 -> Ref | C2: =Head1 -> 2018/19 | D2: =Head2 -> Budget Year 2019/20
C3: =Head5 -> Audited Outcome | D3: =Head6 -> Original Budget | E3: =Head7 -> Adjusted Budget | F3: =Head38 -> Monthly actual | G3: =Head39 -> YearTD actual | H3: =Head40 -> YearTD budget | I3: =Head41 -> YTD variance | J3: =Head41 -> YTD variance | K3: =Head8 -> Full Year Forecast
A4: R thousands | B4: 1 | J4: %
A5: ='C4-FinPerf RE'!A5 -> Revenue By Source
A6: ='C4-FinPerf RE'!A6 -> Property rates | I6: =G6-H6 -> 0 | J6: =IF(I6=0,"",I6/H6) -> 
A7: ='C4-FinPerf RE'!A7 -> Service charges - electricity revenue | I7: 0 | J7: =IF(I7=0,"",I7/H7) -> 
A8: ='C4-FinPerf RE'!A8 -> Service charges - water revenue | I8: 0
A9: ='C4-FinPerf RE'!A9 -> Service charges - sanitation revenue | I9: 0
A10: ='C4-FinPerf RE'!A10 -> Service charges - refuse revenue | I10: 0
A12: ='C4-FinPerf RE'!A12 -> Rental of facilities and equipment | I12: 0
A13: ='C4-FinPerf RE'!A13 -> Interest earned - external investments | I13: 0
A14: ='C4-FinPerf RE'!A14 -> Interest earned - outstanding debtors | I14: 0
A15: ='C4-FinPerf RE'!A15 -> Dividends received | I15: 0
A16: ='C4-FinPerf RE'!A16 -> Fines, penalties and forfeits | I16: 0
A17: ='C4-FinPerf RE'!A17 -> Licences and permits | I17: 0
A18: ='C4-FinPerf RE'!A18 -> Agency services | I18: 0
A19: ='C4-FinPerf RE'!A19 -> Transfers and subsidies | I19: 0
A20: ='C4-FinPerf RE'!A20 -> Other revenue | I20: 0
A21: ='C4-FinPerf RE'!A21 -> Gains | I21: 0
A22: Total Revenue (excluding capital transfers and contributions) | C22: =SUM(C6:C10)+SUM(C12:C21) -> 0 | D22: 0 | E22: 0 | F22: 0 | G22: 0 | H22: 0 | I22: =G22-H22 -> 0 | K22: =SUM(K6:K10)+SUM(K12:K21) -> 0
A24: Expenditure By Type
A25: ='C4-FinPerf RE'!A25 -> Employee related costs | I25: =G25-H25 -> 0 | J25: =IF(I25=0,"",I25/H25) -> 
A26: ='C4-FinPerf RE'!A26 -> Remuneration of councillors | I26: 0
A27: ='C4-FinPerf RE'!A27 -> Debt impairment | I27: 0
A28: ='C4-FinPerf RE'!A28 -> Depreciation & asset impairment | I28: 0
A29: ='C4-FinPerf RE'!A29 -> Finance charges | I29: 0
A30: ='C4-FinPerf RE'!A30 -> Bulk purchases | I30: 0
A31: ='C4-FinPerf RE'!A31 -> Other materials | I31: 0
A32: ='C4-FinPerf RE'!A32 -> Contracted services | I32: 0
A33: ='C4-FinPerf RE'!A33 -> Transfers and subsidies | I33: 0
A34: ='C4-FinPerf RE'!A34 -> Other expenditure | I34: 0
A35: ='C4-FinPerf RE'!A35 -> Losses | I35: 0
A36: Total Expenditure | C36: =SUM(C25:C35) -> 0 | D36: 0 | E36: 0 | F36: 0 | G36: 0 | H36: 0 | I36: 0 | K36: =SUM(K25:K35) -> 0
I37: 0
A38: ='C4-FinPerf RE'!A38 -> Surplus/(Deficit) | C38: =C22-C36 -> 0 | D38: 0 | E38: 0 | F38: 0 | G38: 0 | H38: 0 | I38: 0 | K38: =K22-K36 -> 0
A39: ='C4-FinPerf RE'!A39 -> Transfers and subsidies - capital (monetary allocations) (National / Provincial and District) | I39: 0
A40: ='C4-FinPerf RE'!A40 -> Transfers and subsidies - capital (monetary allocations) (National / Provincial Departmental Agencies, Households, Non-profit Institutions, Private Enterprises, Public Corporatons, Higher Educational Institutions) | I40: 0
A41: ='C4-FinPerf RE'!A41 -> Transfers and subsidies - capital (in-kind - all) | I41: 0
A42: ='C4-FinPerf RE'!A42 -> Surplus/(Deficit) after capital transfers & contributions | C42: =C38+SUM(C39:C41) -> 0 | D42: =D38+SUM(D39:D41) -> 0 | E42: 0 | F42: 0 | G42: 0 | H42: 0 | I42: 0 | K42: 0
A43: ='C4-FinPerf RE'!A43 -> Taxation | I43: 0
A44: ='C4-FinPerf RE'!A44 -> Surplus/(Deficit) after taxation | C44: =C42-C43 -> 0 | D44: 0 | E44: 0 | F44: 0 | G44: 0 | H44: 0 | I44: 0 | K44: =K42-K43 -> 0
A45: =head27a -> References
A46: 1. Votes (consolidated) are revenue sources and expenditure type

Sheet SC11
A1: =muni& " - "&S71Q& " - "&Head57 -> LIM353 Molemole - NOT REQUIRED - municipality does not have entities or this is the parent municipality's budget - M10 April
A2: =desc -> Description | B2: =head27 -> Ref | C2: =Head1 -> 2018/19 | D2: =Head2 -> Budget Year 2019/20
C3: =Head5 -> Audited Outcome | D3: =Head6 -> Original Budget | E3: =Head7 -> Adjusted Budget | F3: =Head38 -> Monthly actual | G3: =Head39 -> YearTD actual | H3: =Head40 -> YearTD budget | I3: =Head41 -> YTD variance | J3: =Head41 -> YTD variance | K3: =Head8 -> Full Year Forecast
A4: R thousands | J4: %
A5: Revenue By Municipal Entity
A6: Insert name of municipal entity | I6: =G6-H6 -> 0 | J6: =IF(I6=0,"",I6/H6) -> 
I7: 0 | J7: =IF(I7=0,"",I7/H7) -> 
I8: 0
I9: 0
I10: 0
I11: 0
I12: 0
I13: 0
I14: 0
I15: 0
A16: Total Operating Revenue | B16: 1 | C16: =SUM(C6:C15) -> 0 | D16: 0 | E16: 0 | F16: 0 | G16: 0 | H16: 0 | I16: 0 | K16: =SUM(K6:K15) -> 0
A18: Expenditure By Municipal Entity
A19: =A6 -> Insert name of municipal entity | I19: 0 | J19: =IF(I19=0,"",I19/H19) -> 
A20: =IF(A7="","",A7) ->  | I20: 0
A21: =IF(A8="","",A8) ->  | I21: 0
I22: 0
I23: 0
I24: 0
I25: 0
I26: 0
I27: 0
I28: 0
A29: Total Operating Expenditure | B29: 2 | C29: =SUM(C19:C28) -> 0 | D29: 0 | E29: 0 | F29: 0 | G29: 0 | H29: 0 | I29: 0 | K29: =SUM(K19:K28) -> 0
A31: =Head42 -> Surplus/ (Deficit) for the yr/period | C31: =C16-C29 -> 0 | D31: =D16-D29 -> 0 | E31: 0 | F31: 0 | G31: 0 | H31: 0 | I31: =I16+I29 -> 0 | K31: 0
A32: Capital Expenditure By Municipal Entity
A33: =$A$6 -> Insert name of municipal entity | I33: 0
A34: =IF(A7="","",A7) ->  | I34: 0
A35: =IF(A8="","",A8) ->  | I35: 0
I36: 0
I37: 0
I38: 0
I39: 0
I40: 0
I41: 0
A43: Total Capital Expenditure | B43: 3 | C43: =SUM(C32:C42) -> 0 | D43: =SUM(D32:D42) -> 0 | E43: 0 | F43: 0 | G43: 0 | H43: =SUM(H32:H42) -> 0 | I43: =G43-H43 -> 0 | K43: 0
A44: =head27a -> References
A45: 1. Must reconcile to the sum of all municipal entity monthly revenue reports
A46: 2. Must reconcile to the sum of all municipal entity monthly expenditure reports
A47: 3. YTD = Year to date; FAV - favourable variance or unfavourable variance
A48: 4. Material variances to be explained
A49: 5. Insert additional 'Adjustment' Budget column for each Adjustment made by an entity

Sheet SC12
A1: =muni& " - "&S71R& " - "&Head57 -> LIM353 Molemole - Supporting Table SC12 Monthly Budget Statement - capital expenditure trend - M10 April
A2: Month | B2: =Head1 -> 2018/19 | C2: =Head2 -> Budget Year 2019/20
B3: =Head5 -> Audited Outcome | C3: =Head6 -> Original Budget | D3: =Head7 -> Adjusted Budget | E3: =Head38 -> Monthly actual | F3: =Head39 -> YearTD actual | G3: =Head40 -> YearTD budget | H3: =Head41 -> YTD variance | I3: =Head41 -> YTD variance | J3: % spend of Original Budget
A4: R thousands | I4: %
A5: Monthly expenditure performance trend
A6: July | B6: 894644.8 | C6: 4620105.93 | D6: 4620111 | E6: 0 | F6: =IF(E6>0,E6,"") ->  | G6: =IF(D6>0,D6,C6) -> 4620111 | H6: =IF(F6="",0,G6-F6) -> 0 | I6: =IF(F6="","",IF(H6=0,"",H6/G6)) ->  | J6: =IF(F6="","",F6/$C$18) -> 
A7: August | B7: 89100 | C7: 4620105.93 | D7: 4620111 | E7: 3441483.44 | F7: =IF(E7>0,E7+F6,"") ->  | G7: =IF(D7>0,D7+D6,C7+C6) -> 9240222
A8: September | B8: 1350265 | C8: 4620105.93 | D8: 4620111 | E8: 9697847.38 | F8: =IF(E8>0,E8+F7,"") ->  | G8: =IF(D8>0,D8+G7,C8+G7) -> 13860333
A9: October | B9: 11977529.27 | C9: 4620105.93 | D9: 4620111 | E9: 3203359.7 | G9: =IF(D9>0,D9+G8,C9+G8) -> 18480444
A10: November | B10: 11171894.11 | C10: 4620105.93 | D10: 4620111 | E10: 11102523.85 | G10: 23100555
A11: December | B11: 6213733.95 | C11: 4620105.93 | D11: 4620111 | E11: 4052075.73 | G11: 27720666
A12: January | B12: 2263407.9 | C12: 4620105.93 | D12: 4620111 | E12: 596000.62 | G12: 32340777
A13: February | B13: -8508056.62 | C13: 4620105.93 | D13: 4392813.8 | E13: 1172668.61 | G13: 36733590.8
A14: March | B14: 4760990.5 | C14: 4620105.93 | D14: 4392813.8 | E14: 493150.94 | G14: 41126404.6
A15: April | B15: 1150629.27 | C15: 4620105.93 | D15: 4392813.8 | E15: 688431.84 | G15: 45519218.4
A16: May | B16: 3691724.7 | C16: 4620105.93 | D16: 4392813.8 | E16: 0 | G16: 49912032.2 | H16: 0
A17: June | B17: 10626495.1 | C17: 4620105.77 | D17: 4392752.8 | E17: 0 | G17: 54304785 | H17: =IF(F17="",0,G17-F17) -> 0 | I17: =IF(F17="","",IF(H17=0,"",H17/G17)) ->  | J17: =IF(F17="","",F17/$C$18) -> 
A18: Total Capital expenditure | B18: =SUM(B6:B17) -> 45682357.98 | C18: =SUM(C6:C17) -> 55441271 | D18: =SUM(D6:D17) -> 54304785 | E18: =SUM(E6:E17) -> 34447542.11

Sheet SC13a
A1: =muni& " - "&S71Sa& " - "&Head57 -> LIM353 Molemole - Supporting Table SC13a Monthly Budget Statement - capital expenditure on new assets by asset class - M10 April
A2: =desc -> Description | B2: =head27 -> Ref | C2: =Head1 -> 2018/19 | D2: =Head2 -> Budget Year 2019/20
C3: =Head5 -> Audited Outcome | D3: =Head6 -> Original Budget | E3: =Head7 -> Adjusted Budget | F3: =Head38 -> Monthly actual | G3: =Head39 -> YearTD actual | H3: =Head40 -> YearTD budget | I3: =Head41 -> YTD variance | J3: =Head41 -> YTD variance | K3: =Head8 -> Full Year Forecast
A4: R thousands | B4: 1 | J4: %
A5: Capital expenditure on new assets by Asset Class/Sub-class
A7: Infrastructure | C7: =C8+C13+C17+C27+C38+C45+C53+C63+C69 -> 27429389.41 | D7: 38613450 | E7: 44503450 | F7: 547206 | G7: 28945612.22 | H7: 35711880 | I7: =H7-G7 -> 6766267.78 | J7: =IF(I7=0,"",I7/H7) -> 0.1894682604 | K7: =K8+K13+K17+K27+K38+K45+K53+K63+K69 -> 44503450
A8: Roads Infrastructure | C8: =SUM(C9:C12) -> 27429389.41 | D8: 35613450 | E8: 41503450 | F8: 0 | G8: 28398406.22 | H8: 33211880 | I8: 4813473.78 | J8: 0.1449322887 | K8: =SUM(K9:K12) -> 41503450
A9: Roads | C9: 27429389.41 | D9: 35613450 | E9: 41503450 | F9: 0 | G9: 28398406.22 | H9: 33211880 | I9: 4813473.78 | J9: 0.1449322887 | K9: 41503450
A10: Road Structures | I10: 0
A11: Road Furniture | I11: 0
A12: Capital Spares | I12: 0
A13: Storm water Infrastructure | C13: =SUM(C14:C16) -> 0 | D13: 0 | E13: 0 | F13: 0 | G13: 0 | H13: 0 | I13: 0 | K13: =SUM(K14:K16) -> 0
A14: Drainage Collection | I14: 0
A15: Storm water Conveyance | I15: 0
A16: Attenuation | I16: 0
A17: Electrical Infrastructure | C17: =SUM(C18:C26) -> 0 | D17: 3000000 | E17: 3000000 | F17: 547206 | G17: 547206 | H17: 2500000 | I17: 1952794 | J17: 0.7811176 | K17: =SUM(K18:K26) -> 3000000
A18: Power Plants | I18: 0
A19: HV Substations | I19: 0
A20: HV Switching Station | I20: 0
A21: HV Transmission Conductors | I21: 0
A22: MV Substations | I22: 0
A23: MV Switching Stations | I23: 0
A24: MV Networks | I24: 0
A25: LV Networks | C25: 0 | D25: 3000000 | E25: 3000000 | F25: 547206 | G25: 547206 | H25: 2500000 | I25: 1952794 | J25: 0.7811176 | K25: 3000000
A26: Capital Spares | I26: 0
A27: Water Supply Infrastructure | C27: =SUM(C28:C37) -> 0 | D27: 0 | E27: 0 | F27: 0 | G27: 0 | H27: 0 | I27: 0 | K27: =SUM(K28:K37) -> 0
A28: Dams and Weirs | I28: 0
A29: Boreholes | I29: 0
A30: Reservoirs | I30: 0
A31: Pump Stations | I31: 0
A32: Water Treatment Works | I32: 0
A33: Bulk Mains | I33: 0
A34: Distribution | I34: 0
A35: Distribution Points | I35: 0
A36: PRV Stations | I36: 0
A37: Capital Spares | I37: 0
A38: Sanitation Infrastructure | C38: =SUM(C39:C44) -> 0 | D38: 0 | E38: 0 | F38: 0 | G38: 0 | H38: 0 | I38: =H38-G38 -> 0 | J38: =IF(I38=0,"",I38/H38) ->  | K38: =SUM(K39:K44) -> 0
A39: Pump Station | I39: 0
A40: Reticulation | I40: =H40-G40 -> 0 | J40: =IF(I40=0,"",I40/H40) -> 
A41: Waste Water Treatment Works | I41: =H41-G41 -> 0 | J41: =IF(I41=0,"",I41/H41) -> 
A42: Outfall Sewers | I42: =H42-G42 -> 0 | J42: =IF(I42=0,"",I42/H42) -> 
A43: Toilet Facilities | I43: 0
A44: Capital Spares | I44: 0
A45: Solid Waste Infrastructure | C45: =SUM(C46:C52) -> 0 | D45: 0 | E45: 0 | F45: 0 | G45: 0 | H45: 0 | I45: =H45-G45 -> 0 | J45: =IF(I45=0,"",I45/H45) ->  | K45: =SUM(K46:K52) -> 0
A46: Landfill Sites | C46: 0 | D46: 0 | E46: 0 | F46: 0 | G46: 0 | H46: 0 | I46: 0 | K46: 0
A47: Waste Transfer Stations | I47: 0
A48: Waste Processing Facilities | I48: =H48-G48 -> 0 | J48: =IF(I48=0,"",I48/H48) -> 
A49: Waste Drop-off Points | I49: 0
A50: Waste Separation Facilities | I50: 0
A51: Electricity Generation Facilities | I51: 0
A52: Capital Spares | I52: 0
A53: Rail Infrastructure | C53: =SUM(C54:C62) -> 0 | D53: 0 | E53: 0 | F53: 0 | G53: 0 | H53: 0 | I53: 0 | K53: =SUM(K54:K62) -> 0
A54: Rail Lines | I54: 0
A55: Rail Structures | I55: 0
A56: Rail Furniture | I56: 0
A57: Drainage Collection | I57: 0
A58: Storm water Conveyance | I58: 0
A59: Attenuation | I59: 0
A60: MV Substations | I60: 0
A61: LV Networks | I61: 0
A62: Capital Spares | I62: 0
A63: Coastal Infrastructure | C63: =SUM(C64:C68) -> 0 | D63: 0 | E63: 0 | F63: 0 | G63: 0 | H63: 0 | I63: 0 | K63: =SUM(K64:K68) -> 0
A64: Sand Pumps | I64: 0
A65: Piers | I65: 0
A66: Revetments | I66: 0
A67: Promenades | I67: 0
A68: Capital Spares | I68: 0
A69: Information and Communication Infrastructure | C69: =SUM(C70:C73) -> 0 | D69: 0 | E69: 0 | F69: 0 | G69: 0 | H69: 0 | I69: =H69-G69 -> 0 | J69: =IF(I69=0,"",I69/H69) ->  | K69: =SUM(K70:K73) -> 0
A70: Data Centres | I70: =H70-G70 -> 0
A71: Core Layers | I71: =H71-G71 -> 0
A72: Distribution Layers | I72: =H72-G72 -> 0
A73: Capital Spares | I73: =H73-G73 -> 0
A75: Community Assets | C75: =+C76+C99 -> 3582356.04 | D75: 0 | E75: 0 | F75: 0 | G75: 0 | H75: 0 | I75: =H75-G75 -> 0 | K75: =+K76+K99 -> 0
A76: Community Facilities | C76: =SUM(C77:C98) -> 1208203.68 | D76: 0 | E76: 0 | F76: 0 | G76: 0 | H76: 0 | I76: =H76-G76 -> 0 | J76: =IF(I76=0,"",I76/H76) ->  | K76: =SUM(K77:K98) -> 0
A77: Halls | C77: 29400 | D77: 0 | E77: 0 | F77: 0 | G77: 0 | H77: 0 | I77: 0 | K77: 0
A78: Centres | I78: 0
A79: Crèches | I79: 0
A80: Clinics/Care Centres | I80: 0
A81: Fire/Ambulance Stations | I81: 0
A82: Testing Stations | C82: 0 | D82: 0 | E82: 0 | F82: 0 | G82: 0 | H82: 0 | I82: 0 | K82: 0
A83: Museums | I83: 0
A84: Galleries | I84: 0
A85: Theatres | I85: 0
A86: Libraries | I86: 0
A87: Cemeteries/Crematoria | I87: 0
A88: Police | I88: =H88-G88 -> 0 | J88: =IF(I88=0,"",I88/H88) -> 
A89: Purls | I89: 0
A90: Public Open Space | C90: 1178803.68 | D90: 0 | E90: 0 | F90: 0 | G90: 0 | H90: 0 | I90: 0 | K90: 0
A91: Nature Reserves | I91: 0
A92: Public Ablution Facilities | I92: 0
A93: Markets | C93: 0 | D93: 0 | E93: 0 | F93: 0 | G93: 0 | H93: 0 | I93: 0 | K93: 0
A94: Stalls | I94: 0
A95: Abattoirs | I95: 0
A96: Airports | I96: 0
A97: Taxi Ranks/Bus Terminals | I97: 0
A98: Capital Spares | I98: 0
A99: Sport and Recreation Facilities | C99: =SUM(C100:C102) -> 2374152.36 | D99: 0 | E99: 0 | F99: 0 | G99: 0 | H99: 0 | I99: 0 | K99: =SUM(K100:K102) -> 0
A100: Indoor Facilities | I100: 0
A101: Outdoor Facilities | C101: 2374152.36 | D101: 0 | E101: 0 | F101: 0 | G101: 0 | H101: 0 | I101: 0 | K101: 0
A102: Capital Spares | I102: 0
A103: Heritage assets | C103: =SUM(C104:C108) -> 0 | D103: 0 | E103: 0 | F103: 0 | G103: 0 | H103: 0 | I103: 0 | K103: =SUM(K104:K108) -> 0
A104: Monuments | I104: 0
A105: Historic Buildings | I105: 0
A106: Works of Art | I106: 0
A107: Conservation Areas | I107: 0
A108: Other Heritage | I108: 0
I109: 0
A110: Investment properties | C110: =+C111+C114 -> 0 | D110: 0 | E110: 0 | F110: 0 | G110: 0 | H110: 0 | I110: 0 | K110: =+K111+K114 -> 0
A111: Revenue Generating | C111: =SUM(C112:C113) -> 0 | D111: 0 | E111: 0 | F111: 0 | G111: 0 | H111: 0 | I111: 0 | K111: =SUM(K112:K113) -> 0
A112: Improved Property | I112: 0
A113: Unimproved Property | I113: 0
A114: Non-revenue Generating | C114: =SUM(C115:C116) -> 0 | D114: 0 | E114: 0 | F114: 0 | G114: 0 | H114: 0 | I114: 0 | K114: =SUM(K115:K116) -> 0
A115: Improved Property | I115: 0
A116: Unimproved Property | I116: 0
A117: Other assets | C117: =+C118+C130 -> 622910.5 | D117: 0 | E117: 0 | F117: 0 | G117: 0 | H117: 0 | I117: 0 | K117: =+K118+K130 -> 0
A118: Operational Buildings | C118: =SUM(C119:C129) -> 622910.5 | D118: 0 | E118: 0 | F118: 0 | G118: 0 | H118: 0 | I118: 0 | K118: =SUM(K119:K129) -> 0
A119: Municipal Offices | C119: 622910.5 | D119: 0 | E119: 0 | F119: 0 | G119: 0 | H119: 0 | I119: 0 | K119: 0
A120: Pay/Enquiry Points | I120: 0 | J120: =IF(I120=0,"",I120/H120) -> 
A121: Building Plan Offices | I121: 0
A122: Workshops | C122: 0 | D122: 0 | E122: 0 | F122: 0 | G122: 0 | H122: 0 | I122: 0 | K122: 0
A123: Yards | I123: 0
A124: Stores | I124: 0
A125: Laboratories | I125: 0
A126: Training Centres | I126: 0
A127: Manufacturing Plant | I127: 0
A128: Depots | I128: 0
A129: Capital Spares | I129: 0
A130: Housing | C130: =SUM(C131:C133) -> 0 | D130: 0 | E130: 0 | F130: 0 | G130: 0 | H130: 0 | I130: 0 | K130: =SUM(K131:K133) -> 0
A131: Staff Housing | I131: 0
A132: Social Housing | I132: 0
A133: Capital Spares | I133: 0
A135: Biological or Cultivated Assets | C135: =SUM(C136:C136) -> 0 | D135: 0 | E135: 0 | F135: 0 | G135: 0 | H135: 0 | I135: =H135-G135 -> 0 | K135: =SUM(K136) -> 0
A136: Biological or Cultivated Assets | I136: =H136-G136 -> 0
A138: Intangible Assets | C138: =SUM(C139:C140) -> 531721.74 | D138: 1150000 | E138: 840000 | F138: 39975.84 | G138: 319806.72 | H138: 772340 | I138: =H138-G138 -> 452533.28 | J138: 0.5859249553 | K138: =SUM(K139:K140) -> 840000
A139: Servitudes | I139: 0
A140: Licences and Rights | C140: =SUM(C141:C146) -> 531721.74 | D140: 1150000 | E140: 840000 | F140: 39975.84 | G140: 319806.72 | H140: 772340 | I140: 452533.28 | J140: 0.5859249553 | K140: =SUM(K141:K146) -> 840000
A141: Water Rights | I141: 0
A142: Effluent Licenses | I142: 0
A143: Solid Waste Licenses | I143: 0
A144: Computer Software and Applications | C144: 531721.74 | D144: 1150000 | E144: 840000 | F144: 39975.84 | G144: 319806.72 | H144: 772340 | I144: 452533.28 | J144: 0.5859249553 | K144: 840000
A145: Load Settlement Software Applications | I145: 0
A146: Unspecified | I146: 0
A148: Computer Equipment | C148: =SUM(C149:C149) -> 129726.5 | D148: 1100000 | E148: 1100000 | F148: 0 | G148: 830350.57 | H148: 916670 | I148: =H148-G148 -> 86319.43 | J148: =IF(I148=0,"",I148/H148) -> 0.09416630849 | K148: =SUM(K149) -> 1100000
A149: Computer Equipment | C149: 129726.5 | D149: 1100000 | E149: 1100000 | F149: 0 | G149: 830350.57 | H149: 916670 | I149: =H149-G149 -> 86319.43 | J149: =IF(I149=0,"",I149/H149) -> 0.09416630849 | K149: 1100000
A151: Furniture and Office Equipment | C151: =SUM(C152:C152) -> 434181.27 | D151: 300000 | E151: 278720 | F151: 0 | G151: 179048.69 | H151: 237242 | I151: =H151-G151 -> 58193.31 | J151: =IF(I151=0,"",I151/H151) -> 0.2452909266 | K151: =SUM(K152) -> 278720
A152: Furniture and Office Equipment | C152: 434181.27 | D152: 300000 | E152: 278720 | F152: 0 | G152: 179048.69 | H152: 237242 | I152: =H152-G152 -> 58193.31 | J152: =IF(I152=0,"",I152/H152) -> 0.2452909266 | K152: 278720
J153: =IF(I153=0,"",I153/H153) -> 
A154: Machinery and Equipment | C154: =SUM(C155:C155) -> 580118.45 | D154: 3150000 | E154: 150000 | F154: 0 | G154: 55398 | H154: 825000 | I154: =H154-G154 -> 769602 | J154: =IF(I154=0,"",I154/H154) -> 0.9328509091 | K154: =SUM(K155) -> 150000
A155: Machinery and Equipment | C155: 580118.45 | D155: 3150000 | E155: 150000 | F155: 0 | G155: 55398 | H155: 825000 | I155: =H155-G155 -> 769602 | J155: =IF(I155=0,"",I155/H155) -> 0.9328509091 | K155: 150000
A157: Transport Assets | C157: =SUM(C158:C158) -> 630369.56 | D157: 3100000 | E157: 1676456 | F157: 0 | G157: 1676455.97 | H157: 1729213.6 | I157: =H157-G157 -> 52757.63 | J157: =IF(I157=0,"",I157/H157) -> 0.03050960853 | K157: =SUM(K158) -> 1676456
A158: Transport Assets | C158: 630369.56 | D158: 3100000 | E158: 1676456 | F158: 0 | G158: 1676455.97 | H158: 1729213.6 | I158: =H158-G158 -> 52757.63 | J158: =IF(I158=0,"",I158/H158) -> 0.03050960853 | K158: 1676456
A160: Land | C160: =SUM(C161:C161) -> 0 | D160: 0 | E160: 0 | F160: 0 | G160: 0 | H160: 0 | I160: =H160-G160 -> 0 | J160: =IF(I160=0,"",I160/H160) ->  | K160: =SUM(K161) -> 0
A161: Land | I161: =H161-G161 -> 0 | J161: =IF(I161=0,"",I161/H161) -> 
A163: Zoo's, Marine and Non-biological Animals | C163: =SUM(C164:C164) -> 0 | D163: 0 | E163: 0 | F163: 0 | G163: 0 | H163: 0 | I163: =H163-G163 -> 0 | J163: =IF(I163=0,"",I163/H163) ->  | K163: =SUM(K164) -> 0
A164: Zoo's, Marine and Non-biological Animals | I164: =H164-G164 -> 0 | J164: =IF(I164=0,"",I164/H164) -> 
J165: =IF(I165=0,"",I165/H165) -> 
A166: Total Capital Expenditure on new assets | B166: 1 | C166: =C7+C75+C103+C110+C117+C135+C138+C148+C151+C154+C157+C160+C163 -> 33940773.47 | D166: 47413450 | E166: 48548626 | F166: 587181.84 | G166: 32006672.17 | H166: 40192345.6 | I166: =H166-G166 -> 8185673.43 | J166: =IF(I166=0,"",I166/H166) -> 0.2036624961 | K166: =K7+K75+K103+K110+K117+K135+K138+K148+K151+K154+K157+K160+K163 -> 48548626
A168: =head27a -> References
A169: 1. Total Capital Expenditure on new assets (SC13a) plus Total Capital Expenditure on renewal of existing assets (SC13b) plus Total Capital Expenditure on upgrading of existing assets (SC13e) must reconcile to total capital expenditure in Table C5
A171: check balance | C171: =C166+SC13b!C166+SC13e!C166-'C5-Capex'!C40 -> 0 | D171: =D166+SC13b!D166+SC13e!D166-'C5-Capex'!D40 -> 0 | E171: =E166+SC13b!E166+SC13e!E166-'C5-Capex'!E40 -> 0 | F171: =F166+SC13b!F166+SC13e!F166-'C5-Capex'!F40 -> 0 | G171: =G166+SC13b!G166+SC13e!G166-'C5-Capex'!G40 -> 0 | H171: =H166+SC13b!H166+SC13e!H166-'C5-Capex'!H40 -> 0 | K171: =K166+SC13b!K166+SC13e!K166-'C5-Capex'!K40 -> 0

Sheet SC13b
A1: =muni& " - "&S71Sb& " - "&Head57 -> LIM353 Molemole - Supporting Table SC13b Monthly Budget Statement - capital expenditure on renewal of existing assets by asset class - M10 April
A2: =desc -> Description | B2: =head27 -> Ref | C2: =Head1 -> 2018/19 | D2: =Head2 -> Budget Year 2019/20
C3: =Head5 -> Audited Outcome | D3: =Head6 -> Original Budget | E3: =Head7 -> Adjusted Budget | F3: =Head38 -> Monthly actual | G3: =Head39 -> YearTD actual | H3: =Head40 -> YearTD budget | I3: =Head41 -> YTD variance | J3: =Head41 -> YTD variance | K3: =Head8 -> Full Year Forecast
A4: R thousands | B4: 1 | J4: %
A5: Capital expenditure on renewal of existing assets by Asset Class/Sub-class
A7: Infrastructure | C7: =C8+C13+C17+C27+C38+C45+C53+C63+C69 -> 8149929.56 | D7: 2000000 | E7: 1212338 | F7: 101250 | G7: 654068.23 | H7: 1194072.8 | I7: =H7-G7 -> 540004.57 | J7: =IF(I7=0,"",I7/H7) -> 0.4522375604 | K7: =K8+K13+K17+K27+K38+K45+K53+K63+K69 -> 1212338
A8: Roads Infrastructure | C8: =SUM(C9:C12) -> 6834790.64 | D8: 0 | E8: 0 | F8: 0 | G8: 0 | H8: 0 | I8: 0 | K8: =SUM(K9:K12) -> 0
A9: Roads | C9: 6834790.64 | D9: 0 | E9: 0 | F9: 0 | G9: 0 | H9: 0 | I9: 0 | K9: 0
A10: Road Structures | I10: 0
A11: Road Furniture | I11: 0
A12: Capital Spares | I12: 0
A13: Storm water Infrastructure | C13: =SUM(C14:C16) -> 0 | D13: 0 | E13: 0 | F13: 0 | G13: 0 | H13: 0 | I13: 0 | K13: =SUM(K14:K16) -> 0
A14: Drainage Collection | I14: 0
A15: Storm water Conveyance | I15: 0
A16: Attenuation | I16: 0
A17: Electrical Infrastructure | C17: =SUM(C18:C26) -> 282388.92 | D17: 2000000 | E17: 1212338 | F17: 101250 | G17: 654068.23 | H17: 1194072.8 | I17: 540004.57 | J17: 0.4522375604 | K17: =SUM(K18:K26) -> 1212338
A18: Power Plants | I18: 0
A19: HV Substations | I19: 0
A20: HV Switching Station | I20: 0
A21: HV Transmission Conductors | I21: 0
A22: MV Substations | I22: 0
A23: MV Switching Stations | I23: 0
A24: MV Networks | C24: 0 | D24: 0 | E24: 0 | F24: 0 | G24: 0 | H24: 0 | I24: 0 | K24: 0
A25: LV Networks | C25: 282388.92 | D25: 2000000 | E25: 1212338 | F25: 101250 | G25: 654068.23 | H25: 1194072.8 | I25: 540004.57 | J25: 0.4522375604 | K25: 1212338
A26: Capital Spares | I26: 0
A27: Water Supply Infrastructure | C27: =SUM(C28:C37) -> 0 | D27: 0 | E27: 0 | F27: 0 | G27: 0 | H27: 0 | I27: 0 | K27: =SUM(K28:K37) -> 0
A28: Dams and Weirs | I28: 0
A29: Boreholes | I29: 0
A30: Reservoirs | I30: 0
A31: Pump Stations | I31: 0
A32: Water Treatment Works | I32: 0
A33: Bulk Mains | I33: 0
A34: Distribution | I34: 0
A35: Distribution Points | I35: 0
A36: PRV Stations | I36: 0
A37: Capital Spares | I37: 0
A38: Sanitation Infrastructure | C38: =SUM(C39:C44) -> 0 | D38: 0 | E38: 0 | F38: 0 | G38: 0 | H38: 0 | I38: 0 | K38: =SUM(K39:K44) -> 0
A39: Pump Station | I39: 0
A40: Reticulation | I40: 0
A41: Waste Water Treatment Works | I41: 0
A42: Outfall Sewers | I42: 0
A43: Toilet Facilities | I43: 0
A44: Capital Spares | I44: 0
A45: Solid Waste Infrastructure | C45: =SUM(C46:C52) -> 0 | D45: 0 | E45: 0 | F45: 0 | G45: 0 | H45: 0 | I45: 0 | K45: =SUM(K46:K52) -> 0
A46: Landfill Sites | I46: 0
A47: Waste Transfer Stations | I47: 0
A48: Waste Processing Facilities | I48: 0
A49: Waste Drop-off Points | I49: 0
A50: Waste Separation Facilities | I50: 0
A51: Electricity Generation Facilities | I51: 0
A52: Capital Spares | I52: 0
A53: Rail Infrastructure | C53: =SUM(C54:C62) -> 1032750 | D53: 0 | E53: 0 | F53: 0 | G53: 0 | H53: 0 | I53: 0 | K53: =SUM(K54:K62) -> 0
A54: Rail Lines | I54: 0
A55: Rail Structures | I55: 0
A56: Rail Furniture | I56: 0
A57: Drainage Collection | I57: 0
A58: Storm water Conveyance | I58: 0
A59: Attenuation | I59: 0
A60: MV Substations | I60: 0
A61: LV Networks | C61: 1032750 | D61: 0 | E61: 0 | F61: 0 | G61: 0 | H61: 0 | I61: 0 | K61: 0
A62: Capital Spares | I62: 0
A63: Coastal Infrastructure | C63: =SUM(C64:C68) -> 0 | D63: 0 | E63: 0 | F63: 0 | G63: 0 | H63: 0 | I63: 0 | K63: =SUM(K64:K68) -> 0
A64: Sand Pumps | I64: 0
A65: Piers | I65: 0
A66: Revetments | I66: 0
A67: Promenades | I67: 0
A68: Capital Spares | I68: 0
A69: Information and Communication Infrastructure | C69: =SUM(C70:C73) -> 0 | D69: 0 | E69: 0 | F69: 0 | G69: 0 | H69: 0 | I69: 0 | K69: =SUM(K70:K73) -> 0
A70: Data Centres | I70: 0
A71: Core Layers | I71: 0
A72: Distribution Layers | I72: 0
A73: Capital Spares | I73: 0
A75: Community Assets | C75: =+C76+C99 -> 3350441.17 | D75: 3800000 | E75: 2416000 | F75: 0 | G75: 433801.68 | H75: 2336270 | I75: 1902468.32 | J75: 0.8143186875 | K75: =+K76+K99 -> 2416000
A76: Community Facilities | C76: =SUM(C77:C98) -> 0 | D76: 0 | E76: 0 | F76: 0 | G76: 0 | H76: 0 | I76: 0 | K76: =SUM(K77:K98) -> 0
A77: Halls | C77: 0 | D77: 0 | E77: 0 | F77: 0 | G77: 0 | H77: 0 | I77: 0 | K77: 0
A78: Centres | I78: 0
A79: Crèches | I79: 0
A80: Clinics/Care Centres | I80: 0
A81: Fire/Ambulance Stations | I81: 0
A82: Testing Stations | I82: 0
A83: Museums | I83: 0
A84: Galleries | I84: 0
A85: Theatres | I85: 0
A86: Libraries | I86: 0
A87: Cemeteries/Crematoria | C87: 0 | D87: 0 | E87: 0 | F87: 0 | G87: 0 | H87: 0 | I87: 0 | K87: 0
A88: Police | I88: 0
A89: Purls | I89: 0
A90: Public Open Space | I90: 0
A91: Nature Reserves | I91: 0
A92: Public Ablution Facilities | I92: 0
A93: Markets | I93: 0
A94: Stalls | I94: 0
A95: Abattoirs | I95: 0
A96: Airports | I96: 0
A97: Taxi Ranks/Bus Terminals | I97: 0
A98: Capital Spares | I98: 0
A99: Sport and Recreation Facilities | C99: =SUM(C100:C102) -> 3350441.17 | D99: 3800000 | E99: 2416000 | F99: 0 | G99: 433801.68 | H99: 2336270 | I99: 1902468.32 | J99: 0.8143186875 | K99: =SUM(K100:K102) -> 2416000
A100: Indoor Facilities | C100: 3350441.17 | D100: 0 | E100: 0 | F100: 0 | G100: 0 | H100: 0 | I100: 0 | K100: 0
A101: Outdoor Facilities | C101: 0 | D101: 3800000 | E101: 2416000 | F101: 0 | G101: 433801.68 | H101: 2336270 | I101: =H101-G101 -> 1902468.32 | J101: =IF(I101=0,"",I101/H101) -> 0.8143186875 | K101: 2416000
A102: Capital Spares | I102: 0
A103: Heritage assets | C103: =SUM(C104:C108) -> 0 | D103: 0 | E103: 0 | F103: 0 | G103: 0 | H103: 0 | I103: 0 | K103: =SUM(K104:K108) -> 0
A104: Monuments | I104: 0
A105: Historic Buildings | I105: 0
A106: Works of Art | I106: 0
A107: Conservation Areas | I107: 0
A108: Other Heritage | I108: 0
I109: 0
A110: Investment properties | C110: =+C111+C114 -> 0 | D110: 0 | E110: 0 | F110: 0 | G110: 0 | H110: 0 | I110: 0 | K110: =+K111+K114 -> 0
A111: Revenue Generating | C111: =SUM(C112:C113) -> 0 | D111: 0 | E111: 0 | F111: 0 | G111: 0 | H111: 0 | I111: 0 | K111: =SUM(K112:K113) -> 0
A112: Improved Property | I112: 0
A113: Unimproved Property | I113: 0
A114: Non-revenue Generating | C114: =SUM(C115:C116) -> 0 | D114: 0 | E114: 0 | F114: 0 | G114: 0 | H114: 0 | I114: 0 | K114: =SUM(K115:K116) -> 0
A115: Improved Property | I115: 0
A116: Unimproved Property | I116: =H116-G116 -> 0 | J116: =IF(I116=0,"",I116/H116) -> 
A117: Other assets | C117: =+C118+C130 -> 0 | D117: 2127821 | E117: 2127821 | F117: 0 | G117: 1353000.03 | H117: 1773190 | I117: 420189.97 | J117: 0.2369683847 | K117: =+K118+K130 -> 2127821
A118: Operational Buildings | C118: =SUM(C119:C129) -> 0 | D118: 2127821 | E118: 2127821 | F118: 0 | G118: 1353000.03 | H118: 1773190 | I118: 420189.97 | J118: 0.2369683847 | K118: =SUM(K119:K129) -> 2127821
A119: Municipal Offices | C119: 0 | D119: 2127821 | E119: 2127821 | F119: 0 | G119: 1353000.03 | H119: 1773190 | I119: 420189.97 | J119: 0.2369683847 | K119: 2127821
A120: Pay/Enquiry Points | I120: 0
A121: Building Plan Offices | I121: 0
A122: Workshops | I122: 0
A123: Yards | I123: 0
A124: Stores | I124: 0
A125: Laboratories | I125: 0
A126: Training Centres | I126: 0
A127: Manufacturing Plant | I127: 0
A128: Depots | I128: 0
A129: Capital Spares | I129: 0
A130: Housing | C130: =SUM(C131:C133) -> 0 | D130: 0 | E130: 0 | F130: 0 | G130: 0 | H130: 0 | I130: 0 | K130: =SUM(K131:K133) -> 0
A131: Staff Housing | I131: 0
A132: Social Housing | I132: 0
A133: Capital Spares | I133: 0
A135: Biological or Cultivated Assets | C135: =SUM(C136:C136) -> 0 | D135: 0 | E135: 0 | F135: 0 | G135: 0 | H135: 0 | I135: =H135-G135 -> 0 | K135: =SUM(K136) -> 0
A136: Biological or Cultivated Assets | I136: =H136-G136 -> 0
J137: =IF(I137=0,"",I137/H137) -> 
A138: Intangible Assets | C138: =SUM(C139:C140) -> 0 | D138: 0 | E138: 0 | F138: 0 | G138: 0 | H138: 0 | I138: =H138-G138 -> 0 | K138: =SUM(K139:K140) -> 0
A139: Servitudes | I139: 0
A140: Licences and Rights | C140: =SUM(C141:C146) -> 0 | D140: 0 | E140: 0 | F140: 0 | G140: 0 | H140: 0 | I140: 0 | K140: =SUM(K141:K146) -> 0
A141: Water Rights | I141: 0
A142: Effluent Licenses | I142: 0
A143: Solid Waste Licenses | I143: 0
A144: Computer Software and Applications | C144: 0 | D144: 0 | E144: 0 | F144: 0 | G144: 0 | H144: 0 | I144: 0 | K144: 0
A145: Load Settlement Software Applications | I145: 0
A146: Unspecified | I146: 0
A148: Computer Equipment | C148: =SUM(C149:C149) -> 0 | D148: 0 | E148: 0 | F148: 0 | G148: 0 | H148: 0 | I148: =H148-G148 -> 0 | J148: =IF(I148=0,"",I148/H148) ->  | K148: =SUM(K149) -> 0
A149: Computer Equipment | C149: 0 | D149: 0 | E149: 0 | F149: 0 | G149: 0 | H149: 0 | I149: =H149-G149 -> 0 | J149: =IF(I149=0,"",I149/H149) ->  | K149: 0
A151: Furniture and Office Equipment | C151: =SUM(C152:C152) -> 0 | D151: 0 | E151: 0 | F151: 0 | G151: 0 | H151: 0 | I151: =H151-G151 -> 0 | J151: =IF(I151=0,"",I151/H151) ->  | K151: =SUM(K152) -> 0
A152: Furniture and Office Equipment | I152: =H152-G152 -> 0 | J152: =IF(I152=0,"",I152/H152) -> 
J153: =IF(I153=0,"",I153/H153) -> 
A154: Machinery and Equipment | C154: =SUM(C155:C155) -> 0 | D154: 0 | E154: 0 | F154: 0 | G154: 0 | H154: 0 | I154: =H154-G154 -> 0 | J154: =IF(I154=0,"",I154/H154) ->  | K154: =SUM(K155) -> 0
A155: Machinery and Equipment | C155: 0 | D155: 0 | E155: 0 | F155: 0 | G155: 0 | H155: 0 | I155: =H155-G155 -> 0 | J155: =IF(I155=0,"",I155/H155) ->  | K155: 0
A157: Transport Assets | C157: =SUM(C158:C158) -> 0 | D157: 0 | E157: 0 | F157: 0 | G157: 0 | H157: 0 | I157: =H157-G157 -> 0 | J157: =IF(I157=0,"",I157/H157) ->  | K157: =SUM(K158) -> 0
A158: Transport Assets | I158: =H158-G158 -> 0 | J158: =IF(I158=0,"",I158/H158) -> 
A160: Land | C160: =SUM(C161:C161) -> 0 | D160: 0 | E160: 0 | F160: 0 | G160: 0 | H160: 0 | I160: =H160-G160 -> 0 | J160: =IF(I160=0,"",I160/H160) ->  | K160: =SUM(K161) -> 0
A161: Land | I161: =H161-G161 -> 0 | J161: =IF(I161=0,"",I161/H161) -> 
J162: .
A163: Zoo's, Marine and Non-biological Animals | C163: =SUM(C164:C164) -> 0 | D163: 0 | E163: 0 | F163: 0 | G163: 0 | H163: 0 | I163: =H163-G163 -> 0 | J163: =IF(I163=0,"",I163/H163) ->  | K163: =SUM(K164) -> 0
A164: Zoo's, Marine and Non-biological Animals | I164: =H164-G164 -> 0 | J164: =IF(I164=0,"",I164/H164) -> 
J165: =IF(I165=0,"",I165/H165) -> 
A166: Total Capital Expenditure on renewal of existing assets | B166: 1 | C166: =C7+C75+C103+C110+C117+C135+C138+C148+C151+C154+C157+C160+C163 -> 11500370.73 | D166: 7927821 | E166: 5756159 | F166: 101250 | G166: 2440869.94 | H166: 5303532.8 | I166: =H166-G166 -> 2862662.86 | J166: =IF(I166=0,"",I166/H166) -> 0.5397652787 | K166: =K7+K75+K103+K110+K117+K135+K138+K148+K151+K154+K157+K160+K163 -> 5756159
A168: =head27a -> References
A169: 1. Total Capital Expenditure on new assets (SC13a) plus Total Capital Expenditure on renewal of existing assets (SC13b) plus Total Capital Expenditure on upgrading of existing assets (SC13e) must reconcile to total capital expenditure in Table C5
A171: check balance | C171: =C166+SC13a!C166+SC13e!C166-'C5-Capex'!C40 -> 0 | D171: =D166+SC13a!D166+SC13e!D166-'C5-Capex'!D40 -> 0 | E171: =E166+SC13a!E166+SC13e!E166-'C5-Capex'!E40 -> 0 | F171: =F166+SC13a!F166+SC13e!F166-'C5-Capex'!F40 -> 0 | G171: =G166+SC13a!G166+SC13e!G166-'C5-Capex'!G40 -> 0 | H171: =H166+SC13a!H166+SC13e!H166-'C5-Capex'!H40 -> 0 | K171: =K166+SC13a!K166+SC13e!K166-'C5-Capex'!K40 -> 0

Sheet SC13c
A1: =muni& " - "&S71Sc& " - "&Head57 -> LIM353 Molemole - Supporting Table SC13c Monthly Budget Statement - expenditure on repairs and maintenance by asset class - M10 April
A2: =desc -> Description | B2: =head27 -> Ref | C2: =Head1 -> 2018/19 | D2: =Head2 -> Budget Year 2019/20
C3: =Head5 -> Audited Outcome | D3: =Head6 -> Original Budget | E3: =Head7 -> Adjusted Budget | F3: =Head38 -> Monthly actual | G3: =Head39 -> YearTD actual | H3: =Head40 -> YearTD budget | I3: =Head41 -> YTD variance | J3: =Head41 -> YTD variance | K3: =Head8 -> Full Year Forecast
A4: R thousands | B4: 1 | J4: %
A5: Repairs and maintenance expenditure by Asset Class/Sub-class
A7: Infrastructure | C7: =C8+C13+C17+C27+C38+C45+C53+C63+C69 -> 2329378.06 | D7: 2436000 | E7: 2436000 | F7: 29007.1 | G7: 1319305.92 | H7: 2030000 | I7: =H7-G7 -> 710694.08 | J7: =IF(I7=0,"",I7/H7) -> 0.3500956059 | K7: =K8+K13+K17+K27+K38+K45+K53+K63+K69 -> 2436000
A8: Roads Infrastructure | C8: =SUM(C9:C12) -> 2329378.06 | D8: 2436000 | E8: 2436000 | F8: 29007.1 | G8: 1319305.92 | H8: 2030000 | I8: 710694.08 | J8: 0.3500956059 | K8: =SUM(K9:K12) -> 2436000
A9: Roads | C9: 2329378.06 | D9: 2436000 | E9: 2436000 | F9: 29007.1 | G9: 1319305.92 | H9: 2030000 | I9: 710694.08 | J9: 0.3500956059 | K9: 2436000
A10: Road Structures | C10: 0 | D10: 0 | E10: 0 | F10: 0 | G10: 0 | H10: 0 | I10: 0 | K10: 0
A11: Road Furniture | I11: 0
A12: Capital Spares | I12: 0
A13: Storm water Infrastructure | C13: =SUM(C14:C16) -> 0 | D13: 0 | E13: 0 | F13: 0 | G13: 0 | H13: 0 | I13: 0 | K13: =SUM(K14:K16) -> 0
A14: Drainage Collection | I14: 0
A15: Storm water Conveyance | I15: 0
A16: Attenuation | I16: 0
A17: Electrical Infrastructure | C17: =SUM(C18:C26) -> 0 | D17: 0 | E17: 0 | F17: 0 | G17: 0 | H17: 0 | I17: 0 | K17: =SUM(K18:K26) -> 0
A18: Power Plants | I18: 0
A19: HV Substations | I19: 0
A20: HV Switching Station | I20: 0
A21: HV Transmission Conductors | I21: 0
A22: MV Substations | I22: 0
A23: MV Switching Stations | I23: 0
A24: MV Networks | I24: 0
A25: LV Networks | I25: 0
A26: Capital Spares | I26: 0
A27: Water Supply Infrastructure | C27: =SUM(C28:C37) -> 0 | D27: 0 | E27: 0 | F27: 0 | G27: 0 | H27: 0 | I27: 0 | K27: =SUM(K28:K37) -> 0
A28: Dams and Weirs | I28: 0
A29: Boreholes | I29: 0
A30: Reservoirs | I30: 0
A31: Pump Stations | I31: 0
A32: Water Treatment Works | I32: 0
A33: Bulk Mains | I33: 0
A34: Distribution | I34: 0
A35: Distribution Points | I35: 0
A36: PRV Stations | I36: 0
A37: Capital Spares | I37: 0
A38: Sanitation Infrastructure | C38: =SUM(C39:C44) -> 0 | D38: 0 | E38: 0 | F38: 0 | G38: 0 | H38: 0 | I38: 0 | K38: =SUM(K39:K44) -> 0
A39: Pump Station | I39: 0
A40: Reticulation | I40: 0
A41: Waste Water Treatment Works | I41: 0
A42: Outfall Sewers | I42: 0
A43: Toilet Facilities | I43: 0
A44: Capital Spares | I44: 0
A45: Solid Waste Infrastructure | C45: =SUM(C46:C52) -> 0 | D45: 0 | E45: 0 | F45: 0 | G45: 0 | H45: 0 | I45: 0 | K45: =SUM(K46:K52) -> 0
A46: Landfill Sites | I46: 0
A47: Waste Transfer Stations | I47: 0
A48: Waste Processing Facilities | I48: 0
A49: Waste Drop-off Points | I49: 0
A50: Waste Separation Facilities | I50: 0
A51: Electricity Generation Facilities | I51: 0
A52: Capital Spares | I52: 0
A53: Rail Infrastructure | C53: =SUM(C54:C62) -> 0 | D53: 0 | E53: 0 | F53: 0 | G53: 0 | H53: 0 | I53: 0 | K53: =SUM(K54:K62) -> 0
A54: Rail Lines | I54: 0
A55: Rail Structures | I55: 0
A56: Rail Furniture | I56: 0
A57: Drainage Collection | I57: 0
A58: Storm water Conveyance | I58: 0
A59: Attenuation | I59: 0
A60: MV Substations | I60: 0
A61: LV Networks | I61: 0
A62: Capital Spares | I62: 0
A63: Coastal Infrastructure | C63: =SUM(C64:C68) -> 0 | D63: 0 | E63: 0 | F63: 0 | G63: 0 | H63: 0 | I63: 0 | K63: =SUM(K64:K68) -> 0
A64: Sand Pumps | I64: 0
A65: Piers | I65: 0
A66: Revetments | I66: 0
A67: Promenades | I67: 0
A68: Capital Spares | I68: 0
A69: Information and Communication Infrastructure | C69: =SUM(C70:C73) -> 0 | D69: 0 | E69: 0 | F69: 0 | G69: 0 | H69: 0 | I69: 0 | K69: =SUM(K70:K73) -> 0
A70: Data Centres | I70: 0
A71: Core Layers | I71: 0
A72: Distribution Layers | I72: 0
A73: Capital Spares | I73: 0
A75: Community Assets | C75: =+C76+C99 -> 99257.61 | D75: 159000 | E75: 159000 | F75: 0 | G75: 55600 | H75: 132500 | I75: 76900 | J75: 0.5803773585 | K75: =+K76+K99 -> 159000
A76: Community Facilities | C76: =SUM(C77:C98) -> 99257.61 | D76: 159000 | E76: 159000 | F76: 0 | G76: 55600 | H76: 132500 | I76: 76900 | J76: 0.5803773585 | K76: =SUM(K77:K98) -> 159000
A77: Halls | C77: 0 | D77: 0 | E77: 0 | F77: 0 | G77: 0 | H77: 0 | I77: 0 | K77: 0
A78: Centres | I78: 0
A79: Crèches | I79: 0
A80: Clinics/Care Centres | I80: 0
A81: Fire/Ambulance Stations | I81: 0
A82: Testing Stations | I82: 0
A83: Museums | I83: 0
A84: Galleries | I84: 0
A85: Theatres | I85: 0
A86: Libraries | I86: 0
A87: Cemeteries/Crematoria | C87: 99257.61 | D87: 159000 | E87: 159000 | F87: 0 | G87: 55600 | H87: 132500 | I87: 76900 | J87: 0.5803773585 | K87: 159000
A88: Police | I88: 0
A89: Purls | I89: 0
A90: Public Open Space | I90: 0
A91: Nature Reserves | I91: 0
A92: Public Ablution Facilities | I92: 0
A93: Markets | I93: 0
A94: Stalls | I94: 0
A95: Abattoirs | I95: 0
A96: Airports | I96: 0
A97: Taxi Ranks/Bus Terminals | I97: 0
A98: Capital Spares | I98: 0
A99: Sport and Recreation Facilities | C99: =SUM(C100:C102) -> 0 | D99: 0 | E99: 0 | F99: 0 | G99: 0 | H99: 0 | I99: 0 | K99: =SUM(K100:K102) -> 0
A100: Indoor Facilities | I100: 0
A101: Outdoor Facilities | C101: 0 | D101: 0 | E101: 0 | F101: 0 | G101: 0 | H101: 0 | I101: =H101-G101 -> 0 | J101: =IF(I101=0,"",I101/H101) ->  | K101: 0
A102: Capital Spares | I102: 0
A103: Heritage assets | C103: =SUM(C104:C108) -> 0 | D103: 0 | E103: 0 | F103: 0 | G103: 0 | H103: 0 | I103: 0 | K103: =SUM(K104:K108) -> 0
A104: Monuments | I104: 0
A105: Historic Buildings | I105: 0
A106: Works of Art | I106: 0
A107: Conservation Areas | I107: 0
A108: Other Heritage | I108: 0
I109: 0
A110: Investment properties | C110: =+C111+C114 -> 0 | D110: 0 | E110: 0 | F110: 0 | G110: 0 | H110: 0 | I110: 0 | K110: =+K111+K114 -> 0
A111: Revenue Generating | C111: =SUM(C112:C113) -> 0 | D111: 0 | E111: 0 | F111: 0 | G111: 0 | H111: 0 | I111: 0 | K111: =SUM(K112:K113) -> 0
A112: Improved Property | I112: 0
A113: Unimproved Property | I113: 0
A114: Non-revenue Generating | C114: =SUM(C115:C116) -> 0 | D114: 0 | E114: 0 | F114: 0 | G114: 0 | H114: 0 | I114: 0 | K114: =SUM(K115:K116) -> 0
A115: Improved Property | I115: 0
A116: Unimproved Property | I116: =H116-G116 -> 0 | J116: =IF(I116=0,"",I116/H116) -> 
A117: Other assets | C117: =+C118+C130 -> 754287.3 | D117: 868000 | E117: 868000 | F117: 0 | G117: 670757.65 | H117: 723340 | I117: 52582.35 | J117: 0.0726938231 | K117: =+K118+K130 -> 868000
A118: Operational Buildings | C118: =SUM(C119:C129) -> 754287.3 | D118: 868000 | E118: 868000 | F118: 0 | G118: 670757.65 | H118: 723340 | I118: 52582.35 | J118: 0.0726938231 | K118: =SUM(K119:K129) -> 868000
A119: Municipal Offices | C119: 754287.3 | D119: 868000 | E119: 868000 | F119: 0 | G119: 670757.65 | H119: 723340 | I119: 52582.35 | J119: 0.0726938231 | K119: 868000
A120: Pay/Enquiry Points | I120: 0
A121: Building Plan Offices | I121: 0
A122: Workshops | I122: 0
A123: Yards | I123: 0
A124: Stores | I124: 0
A125: Laboratories | I125: 0
A126: Training Centres | I126: 0
A127: Manufacturing Plant | I127: 0
A128: Depots | I128: 0
A129: Capital Spares | I129: 0
A130: Housing | C130: =SUM(C131:C133) -> 0 | D130: 0 | E130: 0 | F130: 0 | G130: 0 | H130: 0 | I130: 0 | K130: =SUM(K131:K133) -> 0
A131: Staff Housing | I131: 0
A132: Social Housing | I132: 0
A133: Capital Spares | I133: 0
A135: Biological or Cultivated Assets | C135: =SUM(C136:C136) -> 0 | D135: 0 | E135: 0 | F135: 0 | G135: 0 | H135: 0 | I135: =H135-G135 -> 0 | K135: =SUM(K136) -> 0
A136: Biological or Cultivated Assets | I136: =H136-G136 -> 0
J137: =IF(I137=0,"",I137/H137) -> 
A138: Intangible Assets | C138: =SUM(C139:C140) -> 0 | D138: 0 | E138: 0 | F138: 0 | G138: 0 | H138: 0 | I138: =H138-G138 -> 0 | K138: =SUM(K139:K140) -> 0
A139: Servitudes | I139: 0
A140: Licences and Rights | C140: =SUM(C141:C146) -> 0 | D140: 0 | E140: 0 | F140: 0 | G140: 0 | H140: 0 | I140: 0 | K140: =SUM(K141:K146) -> 0
A141: Water Rights | I141: 0
A142: Effluent Licenses | I142: 0
A143: Solid Waste Licenses | I143: 0
A144: Computer Software and Applications | I144: 0
A145: Load Settlement Software Applications | I145: 0
A146: Unspecified | I146: 0
A148: Computer Equipment | C148: =SUM(C149:C149) -> 802264.21 | D148: 1000000 | E148: 1000000 | F148: 0 | G148: 975404.3 | H148: 833340 | I148: =H148-G148 -> -142064.3 | J148: =IF(I148=0,"",I148/H148) -> -0.1704757962 | K148: =SUM(K149) -> 1000000
A149: Computer Equipment | C149: 802264.21 | D149: 1000000 | E149: 1000000 | F149: 0 | G149: 975404.3 | H149: 833340 | I149: =H149-G149 -> -142064.3 | J149: =IF(I149=0,"",I149/H149) -> -0.1704757962 | K149: 1000000
A151: Furniture and Office Equipment | C151: =SUM(C152:C152) -> 185209.83 | D151: 200000 | E151: 200000 | F151: 0 | G151: 70483.69 | H151: 166670 | I151: =H151-G151 -> 96186.31 | J151: =IF(I151=0,"",I151/H151) -> 0.5771063179 | K151: =SUM(K152) -> 200000
A152: Furniture and Office Equipment | C152: 185209.83 | D152: 200000 | E152: 200000 | F152: 0 | G152: 70483.69 | H152: 166670 | I152: =H152-G152 -> 96186.31 | J152: =IF(I152=0,"",I152/H152) -> 0.5771063179 | K152: 200000
J153: =IF(I153=0,"",I153/H153) -> 
A154: Machinery and Equipment | C154: =SUM(C155:C155) -> 2802665.98 | D154: 2859987 | E154: 2905096 | F154: 36970.23 | G154: 1936635.23 | H154: 2410395.4 | I154: =H154-G154 -> 473760.17 | J154: =IF(I154=0,"",I154/H154) -> 0.1965487364 | K154: =SUM(K155) -> 2905096
A155: Machinery and Equipment | C155: 2802665.98 | D155: 2859987 | E155: 2905096 | F155: 36970.23 | G155: 1936635.23 | H155: 2410395.4 | I155: =H155-G155 -> 473760.17 | J155: =IF(I155=0,"",I155/H155) -> 0.1965487364 | K155: 2905096
A157: Transport Assets | C157: =SUM(C158:C158) -> 889251.47 | D157: 900000 | E157: 900000 | F157: 0 | G157: 741254.98 | H157: 750000 | I157: =H157-G157 -> 8745.02 | J157: =IF(I157=0,"",I157/H157) -> 0.01166002667 | K157: =SUM(K158) -> 900000
A158: Transport Assets | C158: 889251.47 | D158: 900000 | E158: 900000 | F158: 0 | G158: 741254.98 | H158: 750000 | I158: =H158-G158 -> 8745.02 | J158: =IF(I158=0,"",I158/H158) -> 0.01166002667 | K158: 900000
A160: Land | C160: =SUM(C161:C161) -> 0 | D160: 0 | E160: 0 | F160: 0 | G160: 0 | H160: 0 | I160: =H160-G160 -> 0 | J160: =IF(I160=0,"",I160/H160) ->  | K160: =SUM(K161) -> 0
A161: Land | I161: =H161-G161 -> 0 | J161: =IF(I161=0,"",I161/H161) -> 
A163: Zoo's, Marine and Non-biological Animals | C163: =SUM(C164:C164) -> 0 | D163: 0 | E163: 0 | F163: 0 | G163: 0 | H163: 0 | I163: =H163-G163 -> 0 | J163: =IF(I163=0,"",I163/H163) ->  | K163: =SUM(K164) -> 0
A164: Zoo's, Marine and Non-biological Animals | I164: =H164-G164 -> 0 | J164: =IF(I164=0,"",I164/H164) -> 
J165: =IF(I165=0,"",I165/H165) -> 
A166: Total Repairs and Maintenance Expenditure | B166: 1 | C166: =C7+C75+C103+C110+C117+C135+C138+C148+C151+C154+C157+C160+C163 -> 7862314.46 | D166: 8422987 | E166: 8468096 | F166: 65977.33 | G166: 5769441.77 | H166: 7046245.4 | I166: 1276803.63 | J166: 0.1812034009 | K166: =K7+K75+K103+K110+K117+K135+K138+K148+K151+K154+K157+K160+K163 -> 8468096

Sheet SC13d
A1: =muni& " - "&S71Sd& " - "&Head57 -> LIM353 Molemole - Supporting Table SC13d Monthly Budget Statement - depreciation by asset class - M10 April
A2: =desc -> Description | B2: =head27 -> Ref | C2: =Head1 -> 2018/19 | D2: =Head2 -> Budget Year 2019/20
C3: =Head5 -> Audited Outcome | D3: =Head6 -> Original Budget | E3: =Head7 -> Adjusted Budget | F3: =Head38 -> Monthly actual | G3: =Head39 -> YearTD actual | H3: =Head40 -> YearTD budget | I3: =Head41 -> YTD variance | J3: =Head41 -> YTD variance | K3: =Head8 -> Full Year Forecast
A4: R thousands | B4: 1 | J4: %
A5: Depreciation by Asset Class/Sub-class
A7: Infrastructure | C7: =C8+C13+C17+C27+C38+C45+C53+C63+C69 -> 5026570.9 | D7: 2852024 | E7: 8547434 | F7: 0 | G7: 4925149.74 | H7: 5793956 | I7: =H7-G7 -> 868806.26 | J7: =IF(I7=0,"",I7/H7) -> 0.1499504415 | K7: =K8+K13+K17+K27+K38+K45+K53+K63+K69 -> 8547434
A8: Roads Infrastructure | C8: =SUM(C9:C12) -> 4449064.42 | D8: 2325715 | E8: 4507968 | F8: 0 | G8: 4477778.62 | H8: 3247461.8 | I8: -1230316.82 | J8: -0.3788549014 | K8: =SUM(K9:K12) -> 4507968
A9: Roads | C9: 4449064.42 | D9: 2276857 | E9: 4459110 | F9: 0 | G9: 4430744.12 | H9: 3206741.8 | I9: -1224002.32 | J9: -0.3816965619 | K9: 4459110
A10: Road Structures | C10: 0 | D10: 0 | E10: 0 | F10: 0 | G10: 0 | H10: 0 | I10: 0 | K10: 0
A11: Road Furniture | C11: 0 | D11: 48858 | E11: 48858 | F11: 0 | G11: 47034.5 | H11: 40720 | I11: -6314.5 | J11: -0.1550712181 | K11: 48858
A12: Capital Spares | C12: 0 | D12: 0 | E12: 0 | F12: 0 | G12: 0 | H12: 0 | I12: 0 | K12: 0
A13: Storm water Infrastructure | C13: =SUM(C14:C16) -> 0 | D13: 0 | E13: 0 | F13: 0 | G13: 0 | H13: 0 | I13: 0 | K13: =SUM(K14:K16) -> 0
A14: Drainage Collection | C14: 0 | D14: 0 | E14: 0 | F14: 0 | G14: 0 | H14: 0 | I14: 0 | K14: 0
A15: Storm water Conveyance | C15: 0 | D15: 0 | E15: 0 | F15: 0 | G15: 0 | H15: 0 | I15: 0 | K15: 0
A16: Attenuation | C16: 0 | D16: 0 | E16: 0 | F16: 0 | G16: 0 | H16: 0 | I16: 0 | K16: 0
A17: Electrical Infrastructure | C17: =SUM(C18:C26) -> 577506.48 | D17: 526309 | E17: 4039466 | F17: 0 | G17: 447371.12 | H17: 2546494.2 | I17: 2099123.08 | J17: 0.8243188145 | K17: =SUM(K18:K26) -> 4039466
A18: Power Plants | C18: 0 | D18: 0 | E18: 0 | F18: 0 | G18: 0 | H18: 0 | I18: 0 | K18: 0
A19: HV Substations | C19: 0 | D19: 0 | E19: 0 | F19: 0 | G19: 0 | H19: 0 | I19: 0 | K19: 0
A20: HV Switching Station | C20: 0 | D20: 0 | E20: 0 | F20: 0 | G20: 0 | H20: 0 | I20: 0 | K20: 0
A21: HV Transmission Conductors | C21: 0 | D21: 0 | E21: 0 | F21: 0 | G21: 0 | H21: 0 | I21: 0 | K21: 0
A22: MV Substations | C22: 0 | D22: 0 | E22: 0 | F22: 0 | G22: 0 | H22: 0 | I22: 0 | K22: 0
A23: MV Switching Stations | C23: 0 | D23: 0 | E23: 0 | F23: 0 | G23: 0 | H23: 0 | I23: 0 | K23: 0
A24: MV Networks | C24: 0 | D24: 0 | E24: 0 | F24: 0 | G24: 61590.69 | H24: 0 | I24: -61590.69 | K24: 0
A25: LV Networks | C25: 577506.48 | D25: 526309 | E25: 4039466 | F25: 0 | G25: 385780.43 | H25: 2546494.2 | I25: 2160713.77 | J25: 0.8485052784 | K25: 4039466
A26: Capital Spares | C26: 0 | D26: 0 | E26: 0 | F26: 0 | G26: 0 | H26: 0 | I26: 0 | K26: 0
A27: Water Supply Infrastructure | C27: =SUM(C28:C37) -> 0 | D27: 0 | E27: 0 | F27: 0 | G27: 0 | H27: 0 | I27: 0 | K27: =SUM(K28:K37) -> 0
A28: Dams and Weirs | C28: 0 | D28: 0 | E28: 0 | F28: 0 | G28: 0 | H28: 0 | I28: 0 | K28: 0
A29: Boreholes | C29: 0 | D29: 0 | E29: 0 | F29: 0 | G29: 0 | H29: 0 | I29: 0 | K29: 0
A30: Reservoirs | C30: 0 | D30: 0 | E30: 0 | F30: 0 | G30: 0 | H30: 0 | I30: 0 | K30: 0
A31: Pump Stations | C31: 0 | D31: 0 | E31: 0 | F31: 0 | G31: 0 | H31: 0 | I31: 0 | K31: 0
A32: Water Treatment Works | C32: 0 | D32: 0 | E32: 0 | F32: 0 | G32: 0 | H32: 0 | I32: 0 | K32: 0
A33: Bulk Mains | C33: 0 | D33: 0 | E33: 0 | F33: 0 | G33: 0 | H33: 0 | I33: 0 | K33: 0
A34: Distribution | C34: 0 | D34: 0 | E34: 0 | F34: 0 | G34: 0 | H34: 0 | I34: 0 | K34: 0
A35: Distribution Points | C35: 0 | D35: 0 | E35: 0 | F35: 0 | G35: 0 | H35: 0 | I35: 0 | K35: 0
A36: PRV Stations | C36: 0 | D36: 0 | E36: 0 | F36: 0 | G36: 0 | H36: 0 | I36: 0 | K36: 0
A37: Capital Spares | C37: 0 | D37: 0 | E37: 0 | F37: 0 | G37: 0 | H37: 0 | I37: 0 | K37: 0
A38: Sanitation Infrastructure | C38: =SUM(C39:C44) -> 0 | D38: 0 | E38: 0 | F38: 0 | G38: 0 | H38: 0 | I38: 0 | K38: =SUM(K39:K44) -> 0
A39: Pump Station | C39: 0 | D39: 0 | E39: 0 | F39: 0 | G39: 0 | H39: 0 | I39: 0 | K39: 0
A40: Reticulation | C40: 0 | D40: 0 | E40: 0 | F40: 0 | G40: 0 | H40: 0 | I40: 0 | K40: 0
A41: Waste Water Treatment Works | C41: 0 | D41: 0 | E41: 0 | F41: 0 | G41: 0 | H41: 0 | I41: 0 | K41: 0
A42: Outfall Sewers | C42: 0 | D42: 0 | E42: 0 | F42: 0 | G42: 0 | H42: 0 | I42: 0 | K42: 0
A43: Toilet Facilities | C43: 0 | D43: 0 | E43: 0 | F43: 0 | G43: 0 | H43: 0 | I43: 0 | K43: 0
A44: Capital Spares | C44: 0 | D44: 0 | E44: 0 | F44: 0 | G44: 0 | H44: 0 | I44: 0 | K44: 0
A45: Solid Waste Infrastructure | C45: =SUM(C46:C52) -> 0 | D45: 0 | E45: 0 | F45: 0 | G45: 0 | H45: 0 | I45: 0 | K45: =SUM(K46:K52) -> 0
A46: Landfill Sites | C46: 0 | D46: 0 | E46: 0 | F46: 0 | G46: 0 | H46: 0 | I46: 0 | K46: 0
A47: Waste Transfer Stations | C47: 0 | D47: 0 | E47: 0 | F47: 0 | G47: 0 | H47: 0 | I47: 0 | K47: 0
A48: Waste Processing Facilities | C48: 0 | D48: 0 | E48: 0 | F48: 0 | G48: 0 | H48: 0 | I48: 0 | K48: 0
A49: Waste Drop-off Points | C49: 0 | D49: 0 | E49: 0 | F49: 0 | G49: 0 | H49: 0 | I49: 0 | K49: 0
A50: Waste Separation Facilities | C50: 0 | D50: 0 | E50: 0 | F50: 0 | G50: 0 | H50: 0 | I50: 0 | K50: 0
A51: Electricity Generation Facilities | C51: 0 | D51: 0 | E51: 0 | F51: 0 | G51: 0 | H51: 0 | I51: 0 | K51: 0
A52: Capital Spares | C52: 0 | D52: 0 | E52: 0 | F52: 0 | G52: 0 | H52: 0 | I52: 0 | K52: 0
A53: Rail Infrastructure | C53: =SUM(C54:C62) -> 0 | D53: 0 | E53: 0 | F53: 0 | G53: 0 | H53: 0 | I53: 0 | K53: =SUM(K54:K62) -> 0
A54: Rail Lines | C54: 0 | D54: 0 | E54: 0 | F54: 0 | G54: 0 | H54: 0 | I54: 0 | K54: 0
A55: Rail Structures | C55: 0 | D55: 0 | E55: 0 | F55: 0 | G55: 0 | H55: 0 | I55: 0 | K55: 0
A56: Rail Furniture | C56: 0 | D56: 0 | E56: 0 | F56: 0 | G56: 0 | H56: 0 | I56: 0 | K56: 0
A57: Drainage Collection | C57: 0 | D57: 0 | E57: 0 | F57: 0 | G57: 0 | H57: 0 | I57: 0 | K57: 0
A58: Storm water Conveyance | C58: 0 | D58: 0 | E58: 0 | F58: 0 | G58: 0 | H58: 0 | I58: 0 | K58: 0
A59: Attenuation | C59: 0 | D59: 0 | E59: 0 | F59: 0 | G59: 0 | H59: 0 | I59: 0 | K59: 0
A60: MV Substations | C60: 0 | D60: 0 | E60: 0 | F60: 0 | G60: 0 | H60: 0 | I60: 0 | K60: 0
A61: LV Networks | C61: 0 | D61: 0 | E61: 0 | F61: 0 | G61: 0 | H61: 0 | I61: 0 | K61: 0
A62: Capital Spares | C62: 0 | D62: 0 | E62: 0 | F62: 0 | G62: 0 | H62: 0 | I62: 0 | K62: 0
A63: Coastal Infrastructure | C63: =SUM(C64:C68) -> 0 | D63: 0 | E63: 0 | F63: 0 | G63: 0 | H63: 0 | I63: 0 | K63: =SUM(K64:K68) -> 0
A64: Sand Pumps | C64: 0 | D64: 0 | E64: 0 | F64: 0 | G64: 0 | H64: 0 | I64: 0 | K64: 0
A65: Piers | C65: 0 | D65: 0 | E65: 0 | F65: 0 | G65: 0 | H65: 0 | I65: 0 | K65: 0
A66: Revetments | C66: 0 | D66: 0 | E66: 0 | F66: 0 | G66: 0 | H66: 0 | I66: 0 | K66: 0
A67: Promenades | C67: 0 | D67: 0 | E67: 0 | F67: 0 | G67: 0 | H67: 0 | I67: 0 | K67: 0
A68: Capital Spares | C68: 0 | D68: 0 | E68: 0 | F68: 0 | G68: 0 | H68: 0 | I68: 0 | K68: 0
A69: Information and Communication Infrastructure | C69: =SUM(C70:C73) -> 0 | D69: 0 | E69: 0 | F69: 0 | G69: 0 | H69: 0 | I69: 0 | K69: =SUM(K70:K73) -> 0
A70: Data Centres | I70: 0
A71: Core Layers | I71: 0
A72: Distribution Layers | I72: 0
A73: Capital Spares | I73: 0
A75: Community Assets | C75: =+C76+C99 -> 1224540.27 | D75: 1317346 | E75: 1317346 | F75: 0 | G75: 1235661.81 | H75: 1097830 | I75: -137831.81 | J75: -0.12554932 | K75: =+K76+K99 -> 1317346
A76: Community Facilities | C76: =SUM(C77:C98) -> 1224540.27 | D76: 1317346 | E76: 1317346 | F76: 0 | G76: 1132347.33 | H76: 1097830 | I76: -34517.33 | J76: -0.03144141625 | K76: =SUM(K77:K98) -> 1317346
A77: Halls | C77: 1224540.27 | D77: 682781 | E77: 682781 | F77: 0 | G77: 123692.66 | H77: 569010 | I77: 445317.34 | J77: 0.7826177747 | K77: 682781
A78: Centres | C78: 0 | D78: 0 | E78: 0 | F78: 0 | G78: 743323.02 | H78: 0 | I78: -743323.02 | K78: 0
A79: Crèches | C79: 0 | D79: 0 | E79: 0 | F79: 0 | G79: 0 | H79: 0 | I79: 0 | K79: 0
A80: Clinics/Care Centres | C80: 0 | D80: 0 | E80: 0 | F80: 0 | G80: 0 | H80: 0 | I80: 0 | K80: 0
A81: Fire/Ambulance Stations | C81: 0 | D81: 0 | E81: 0 | F81: 0 | G81: 0 | H81: 0 | I81: 0 | K81: 0
A82: Testing Stations | C82: 0 | D82: 11236 | E82: 11236 | F82: 0 | G82: 0 | H82: 9370 | I82: 9370 | J82: 1 | K82: 11236
A83: Museums | C83: 0 | D83: 0 | E83: 0 | F83: 0 | G83: 0 | H83: 0 | I83: 0 | K83: 0
A84: Galleries | C84: 0 | D84: 0 | E84: 0 | F84: 0 | G84: 0 | H84: 0 | I84: 0 | K84: 0
A85: Theatres | C85: 0 | D85: 0 | E85: 0 | F85: 0 | G85: 0 | H85: 0 | I85: 0 | K85: 0
A86: Libraries | C86: 0 | D86: 0 | E86: 0 | F86: 0 | G86: 0 | H86: 0 | I86: 0 | K86: 0
A87: Cemeteries/Crematoria | C87: 0 | D87: 0 | E87: 0 | F87: 0 | G87: 0 | H87: 0 | I87: 0 | K87: 0
A88: Police | C88: 0 | D88: 0 | E88: 0 | F88: 0 | G88: 0 | H88: 0 | I88: 0 | K88: 0
A89: Purls | C89: 0 | D89: 0 | E89: 0 | F89: 0 | G89: 0 | H89: 0 | I89: 0 | K89: 0
A90: Public Open Space | C90: 0 | D90: 623329 | E90: 623329 | F90: 0 | G90: 0 | H90: 519450 | I90: 519450 | J90: 1 | K90: 623329
A91: Nature Reserves | C91: 0 | D91: 0 | E91: 0 | F91: 0 | G91: 0 | H91: 0 | I91: 0 | K91: 0
A92: Public Ablution Facilities | C92: 0 | D92: 0 | E92: 0 | F92: 0 | G92: 23517.06 | H92: 0 | I92: -23517.06 | K92: 0
A93: Markets | C93: 0 | D93: 0 | E93: 0 | F93: 0 | G93: 26539.92 | H93: 0 | I93: -26539.92 | K93: 0
A94: Stalls | C94: 0 | D94: 0 | E94: 0 | F94: 0 | G94: 0 | H94: 0 | I94: 0 | K94: 0
A95: Abattoirs | C95: 0 | D95: 0 | E95: 0 | F95: 0 | G95: 0 | H95: 0 | I95: 0 | K95: 0
A96: Airports | C96: 0 | D96: 0 | E96: 0 | F96: 0 | G96: 0 | H96: 0 | I96: 0 | K96: 0
A97: Taxi Ranks/Bus Terminals | C97: 0 | D97: 0 | E97: 0 | F97: 0 | G97: 215274.67 | H97: 0 | I97: -215274.67 | K97: 0
A98: Capital Spares | C98: 0 | D98: 0 | E98: 0 | F98: 0 | G98: 0 | H98: 0 | I98: 0 | K98: 0
A99: Sport and Recreation Facilities | C99: =SUM(C100:C102) -> 0 | D99: 0 | E99: 0 | F99: 0 | G99: 103314.48 | H99: 0 | I99: -103314.48 | K99: =SUM(K100:K102) -> 0
A100: Indoor Facilities | I100: 0
A101: Outdoor Facilities | C101: 0 | D101: 0 | E101: 0 | F101: 0 | G101: 103314.48 | H101: 0 | I101: =H101-G101 -> -103314.48 | J101: =IF(I101=0,"",I101/H101) ->  | K101: 0
A102: Capital Spares | I102: 0
A103: Heritage assets | C103: =SUM(C104:C108) -> 0 | D103: 0 | E103: 0 | F103: 0 | G103: 0 | H103: 0 | I103: 0 | K103: =SUM(K104:K108) -> 0
A104: Monuments | I104: 0
A105: Historic Buildings | I105: 0
A106: Works of Art | I106: 0
A107: Conservation Areas | I107: 0
A108: Other Heritage | C108: 0 | D108: 0 | E108: 0 | F108: 0 | G108: 0 | H108: 0 | I108: 0 | K108: 0
I109: 0
A110: Investment properties | C110: =+C111+C114 -> 43333.38 | D110: 48688 | E110: 48688 | F110: 0 | G110: 32500.03 | H110: 40580 | I110: 8079.97 | J110: 0.1991121242 | K110: =+K111+K114 -> 48688
A111: Revenue Generating | C111: =SUM(C112:C113) -> 43333.38 | D111: 48688 | E111: 48688 | F111: 0 | G111: 32500.03 | H111: 40580 | I111: 8079.97 | J111: 0.1991121242 | K111: =SUM(K112:K113) -> 48688
A112: Improved Property | C112: 0 | D112: 0 | E112: 0 | F112: 0 | G112: 32500.03 | H112: 0 | I112: -32500.03 | K112: 0
A113: Unimproved Property | C113: 43333.38 | D113: 48688 | E113: 48688 | F113: 0 | G113: 0 | H113: 40580 | I113: 40580 | J113: 1 | K113: 48688
A114: Non-revenue Generating | C114: =SUM(C115:C116) -> 0 | D114: 0 | E114: 0 | F114: 0 | G114: 0 | H114: 0 | I114: 0 | K114: =SUM(K115:K116) -> 0
A115: Improved Property | I115: 0
A116: Unimproved Property | C116: 0 | D116: 0 | E116: 0 | F116: 0 | G116: 0 | H116: 0 | I116: =H116-G116 -> 0 | J116: =IF(I116=0,"",I116/H116) ->  | K116: 0
A117: Other assets | C117: =+C118+C130 -> 1260406.89 | D117: 1159832 | E117: 1159832 | F117: 0 | G117: 1047404.36 | H117: 966550 | I117: -80854.36 | J117: -0.08365253738 | K117: =+K118+K130 -> 1159832
A118: Operational Buildings | C118: =SUM(C119:C129) -> 1260406.89 | D118: 1159832 | E118: 1159832 | F118: 0 | G118: 1047404.36 | H118: 966550 | I118: -80854.36 | J118: -0.08365253738 | K118: =SUM(K119:K129) -> 1159832
A119: Municipal Offices | C119: 1260406.89 | D119: 1159832 | E119: 1159832 | F119: 0 | G119: 1047404.36 | H119: 966550 | I119: -80854.36 | J119: -0.08365253738 | K119: 1159832
A120: Pay/Enquiry Points | C120: 0 | D120: 0 | E120: 0 | F120: 0 | G120: 0 | H120: 0 | I120: 0 | K120: 0
A121: Building Plan Offices | C121: 0 | D121: 0 | E121: 0 | F121: 0 | G121: 0 | H121: 0 | I121: 0 | K121: 0
A122: Workshops | C122: 0 | D122: 0 | E122: 0 | F122: 0 | G122: 0 | H122: 0 | I122: 0 | K122: 0
A123: Yards | C123: 0 | D123: 0 | E123: 0 | F123: 0 | G123: 0 | H123: 0 | I123: 0 | K123: 0
A124: Stores | C124: 0 | D124: 0 | E124: 0 | F124: 0 | G124: 0 | H124: 0 | I124: 0 | K124: 0
A125: Laboratories | C125: 0 | D125: 0 | E125: 0 | F125: 0 | G125: 0 | H125: 0 | I125: 0 | K125: 0
A126: Training Centres | C126: 0 | D126: 0 | E126: 0 | F126: 0 | G126: 0 | H126: 0 | I126: 0 | K126: 0
A127: Manufacturing Plant | C127: 0 | D127: 0 | E127: 0 | F127: 0 | G127: 0 | H127: 0 | I127: 0 | K127: 0
A128: Depots | C128: 0 | D128: 0 | E128: 0 | F128: 0 | G128: 0 | H128: 0 | I128: 0 | K128: 0
A129: Capital Spares | C129: 0 | D129: 0 | E129: 0 | F129: 0 | G129: 0 | H129: 0 | I129: 0 | K129: 0
A130: Housing | C130: =SUM(C131:C133) -> 0 | D130: 0 | E130: 0 | F130: 0 | G130: 0 | H130: 0 | I130: 0 | K130: =SUM(K131:K133) -> 0
A131: Staff Housing | C131: 0 | D131: 0 | E131: 0 | F131: 0 | G131: 0 | H131: 0 | I131: 0 | K131: 0
A132: Social Housing | C132: 0 | D132: 0 | E132: 0 | F132: 0 | G132: 0 | H132: 0 | I132: 0 | K132: 0
A133: Capital Spares | C133: 0 | D133: 0 | E133: 0 | F133: 0 | G133: 0 | H133: 0 | I133: 0 | K133: 0
A135: Biological or Cultivated Assets | C135: =SUM(C136:C136) -> 0 | D135: 0 | E135: 0 | F135: 0 | G135: 0 | H135: 0 | I135: =H135-G135 -> 0 | K135: =SUM(K136) -> 0
A136: Biological or Cultivated Assets | I136: =H136-G136 -> 0
J137: =IF(I137=0,"",I137/H137) -> 
A138: Intangible Assets | C138: =SUM(C139:C140) -> 818014.6 | D138: 37447 | E138: 819306 | F138: 0 | G138: 681198.33 | H138: 500335.4 | I138: =H138-G138 -> -180862.93 | J138: -0.361483377 | K138: =SUM(K139:K140) -> 819306
A139: Servitudes | C139: 0 | D139: 0 | E139: 0 | F139: 0 | G139: 0 | H139: 0 | I139: 0 | K139: 0
A140: Licences and Rights | C140: =SUM(C141:C146) -> 818014.6 | D140: 37447 | E140: 819306 | F140: 0 | G140: 681198.33 | H140: 500335.4 | I140: -180862.93 | J140: -0.361483377 | K140: =SUM(K141:K146) -> 819306
A141: Water Rights | I141: 0
A142: Effluent Licenses | I142: 0
A143: Solid Waste Licenses | I143: 0
A144: Computer Software and Applications | C144: 818014.6 | D144: 37447 | E144: 819306 | F144: 0 | G144: 681198.33 | H144: 500335.4 | I144: -180862.93 | J144: -0.361483377 | K144: 819306
A145: Load Settlement Software Applications | I145: 0
A146: Unspecified | C146: 0 | D146: 0 | E146: 0 | F146: 0 | G146: 0 | H146: 0 | I146: 0 | K146: 0
A148: Computer Equipment | C148: =SUM(C149:C149) -> 386060.93 | D148: 228469 | E148: 228469 | F148: 0 | G148: 374091.47 | H148: 190440 | I148: =H148-G148 -> -183651.47 | J148: =IF(I148=0,"",I148/H148) -> -0.9643534447 | K148: =SUM(K149) -> 228469
A149: Computer Equipment | C149: 386060.93 | D149: 228469 | E149: 228469 | F149: 0 | G149: 374091.47 | H149: 190440 | I149: =H149-G149 -> -183651.47 | J149: =IF(I149=0,"",I149/H149) -> -0.9643534447 | K149: 228469
A151: Furniture and Office Equipment | C151: =SUM(C152:C152) -> 1752011.64 | D151: 803090 | E151: 803090 | F151: 0 | G151: 1451152.58 | H151: 669320 | I151: =H151-G151 -> -781832.58 | J151: =IF(I151=0,"",I151/H151) -> -1.168099833 | K151: =SUM(K152) -> 803090
A152: Furniture and Office Equipment | C152: 1752011.64 | D152: 803090 | E152: 803090 | F152: 0 | G152: 1451152.58 | H152: 669320 | I152: =H152-G152 -> -781832.58 | J152: =IF(I152=0,"",I152/H152) -> -1.168099833 | K152: 803090
J153: =IF(I153=0,"",I153/H153) -> 
A154: Machinery and Equipment | C154: =SUM(C155:C155) -> 1024607.5 | D154: 816130 | E154: 816130 | F154: 0 | G154: 675718.04 | H154: 680150 | I154: =H154-G154 -> 4431.96 | J154: =IF(I154=0,"",I154/H154) -> 0.006516150849 | K154: =SUM(K155) -> 816130
A155: Machinery and Equipment | C155: 1024607.5 | D155: 816130 | E155: 816130 | F155: 0 | G155: 675718.04 | H155: 680150 | I155: =H155-G155 -> 4431.96 | J155: =IF(I155=0,"",I155/H155) -> 0.006516150849 | K155: 816130
A157: Transport Assets | C157: =SUM(C158:C158) -> 741614.99 | D157: 1396916 | E157: 1396916 | F157: 0 | G157: 1062521.79 | H157: 1164120 | I157: =H157-G157 -> 101598.21 | J157: =IF(I157=0,"",I157/H157) -> 0.08727468818 | K157: =SUM(K158) -> 1396916
A158: Transport Assets | C158: 741614.99 | D158: 1396916 | E158: 1396916 | F158: 0 | G158: 1062521.79 | H158: 1164120 | I158: =H158-G158 -> 101598.21 | J158: =IF(I158=0,"",I158/H158) -> 0.08727468818 | K158: 1396916
A160: Land | C160: =SUM(C161:C161) -> 0 | D160: 0 | E160: 0 | F160: 0 | G160: 0 | H160: 0 | I160: =H160-G160 -> 0 | J160: =IF(I160=0,"",I160/H160) ->  | K160: =SUM(K161) -> 0
A161: Land | C161: 0 | D161: 0 | E161: 0 | F161: 0 | G161: 0 | H161: 0 | I161: =H161-G161 -> 0 | J161: =IF(I161=0,"",I161/H161) ->  | K161: 0
A163: Zoo's, Marine and Non-biological Animals | C163: =SUM(C164:C164) -> 0 | D163: 0 | E163: 0 | F163: 0 | G163: 0 | H163: 0 | I163: =H163-G163 -> 0 | J163: =IF(I163=0,"",I163/H163) ->  | K163: =SUM(K164) -> 0
A164: Zoo's, Marine and Non-biological Animals | C164: 0 | D164: 0 | E164: 0 | F164: 0 | G164: 0 | H164: 0 | I164: =H164-G164 -> 0 | J164: =IF(I164=0,"",I164/H164) ->  | K164: 0
J165: =IF(I165=0,"",I165/H165) -> 
A166: Total Depreciation | B166: 1 | C166: =C7+C75+C103+C110+C117+C135+C138+C148+C151+C154+C157+C160+C163 -> 12277161.1 | D166: 8659942 | E166: 15137211 | F166: 0 | G166: 11485398.15 | H166: 11103281.4 | I166: -382116.75 | J166: -0.03441475869 | K166: =K7+K75+K103+K110+K117+K135+K138+K148+K151+K154+K157+K160+K163 -> 15137211

Sheet SC13e
A1: =muni& " - "&S71Se& " - "&Head57 -> LIM353 Molemole - Supporting Table SC13e Monthly Budget Statement - capital expenditure on upgrading of existing assets by asset class - M10 April
A2: =desc -> Description | B2: =head27 -> Ref | C2: =Head1 -> 2018/19 | D2: =Head2 -> Budget Year 2019/20
C3: =Head5 -> Audited Outcome | D3: =Head6 -> Original Budget | E3: =Head7 -> Adjusted Budget | F3: =Head38 -> Monthly actual | G3: =Head39 -> YearTD actual | H3: =Head40 -> YearTD budget | I3: =Head41 -> YTD variance | J3: =Head41 -> YTD variance | K3: =Head8 -> Full Year Forecast
A4: R thousands | B4: 1 | J4: %
A5: Capital expenditure on upgrading of existing assets by Asset Class/Sub-class
A7: Infrastructure | C7: =C8+C13+C17+C27+C38+C45+C53+C63+C69 -> 0 | D7: 0 | E7: 0 | F7: 0 | G7: 0 | H7: 0 | I7: =H7-G7 -> 0 | J7: =IF(I7=0,"",I7/H7) ->  | K7: =K8+K13+K17+K27+K38+K45+K53+K63+K69 -> 0
A8: Roads Infrastructure | C8: =SUM(C9:C12) -> 0 | D8: 0 | E8: 0 | F8: 0 | G8: 0 | H8: 0 | I8: 0 | K8: =SUM(K9:K12) -> 0
A9: Roads | I9: 0
A10: Road Structures | I10: 0
A11: Road Furniture | I11: 0
A12: Capital Spares | I12: 0
A13: Storm water Infrastructure | C13: =SUM(C14:C16) -> 0 | D13: 0 | E13: 0 | F13: 0 | G13: 0 | H13: 0 | I13: 0 | K13: =SUM(K14:K16) -> 0
A14: Drainage Collection | I14: 0
A15: Storm water Conveyance | I15: 0
A16: Attenuation | I16: 0
A17: Electrical Infrastructure | C17: =SUM(C18:C26) -> 0 | D17: 0 | E17: 0 | F17: 0 | G17: 0 | H17: 0 | I17: 0 | K17: =SUM(K18:K26) -> 0
A18: Power Plants | I18: 0
A19: HV Substations | I19: 0
A20: HV Switching Station | I20: 0
A21: HV Transmission Conductors | I21: 0
A22: MV Substations | I22: 0
A23: MV Switching Stations | I23: 0
A24: MV Networks | I24: 0
A25: LV Networks | I25: 0
A26: Capital Spares | I26: 0
A27: Water Supply Infrastructure | C27: =SUM(C28:C37) -> 0 | D27: 0 | E27: 0 | F27: 0 | G27: 0 | H27: 0 | I27: 0 | K27: =SUM(K28:K37) -> 0
A28: Dams and Weirs | I28: 0
A29: Boreholes | I29: 0
A30: Reservoirs | I30: 0
A31: Pump Stations | I31: 0
A32: Water Treatment Works | I32: 0
A33: Bulk Mains | I33: 0
A34: Distribution | I34: 0
A35: Distribution Points | I35: 0
A36: PRV Stations | I36: 0
A37: Capital Spares | I37: 0
A38: Sanitation Infrastructure | C38: =SUM(C39:C44) -> 0 | D38: 0 | E38: 0 | F38: 0 | G38: 0 | H38: 0 | I38: 0 | K38: =SUM(K39:K44) -> 0
A39: Pump Station | I39: 0
A40: Reticulation | I40: 0
A41: Waste Water Treatment Works | I41: 0
A42: Outfall Sewers | I42: 0
A43: Toilet Facilities | I43: 0
A44: Capital Spares | I44: 0
A45: Solid Waste Infrastructure | C45: =SUM(C46:C52) -> 0 | D45: 0 | E45: 0 | F45: 0 | G45: 0 | H45: 0 | I45: 0 | K45: =SUM(K46:K52) -> 0
A46: Landfill Sites | C46: 0 | D46: 0 | E46: 0 | F46: 0 | G46: 0 | H46: 0 | I46: 0 | K46: 0
A47: Waste Transfer Stations | I47: 0
A48: Waste Processing Facilities | I48: 0
A49: Waste Drop-off Points | I49: 0
A50: Waste Separation Facilities | I50: 0
A51: Electricity Generation Facilities | I51: 0
A52: Capital Spares | I52: 0
A53: Rail Infrastructure | C53: =SUM(C54:C62) -> 0 | D53: 0 | E53: 0 | F53: 0 | G53: 0 | H53: 0 | I53: 0 | K53: =SUM(K54:K62) -> 0
A54: Rail Lines | I54: 0
A55: Rail Structures | I55: 0
A56: Rail Furniture | I56: 0
A57: Drainage Collection | I57: 0
A58: Storm water Conveyance | I58: 0
A59: Attenuation | I59: 0
A60: MV Substations | I60: 0
A61: LV Networks | I61: 0
A62: Capital Spares | I62: 0
A63: Coastal Infrastructure | C63: =SUM(C64:C68) -> 0 | D63: 0 | E63: 0 | F63: 0 | G63: 0 | H63: 0 | I63: 0 | K63: =SUM(K64:K68) -> 0
A64: Sand Pumps | I64: 0
A65: Piers | I65: 0
A66: Revetments | I66: 0
A67: Promenades | I67: 0
A68: Capital Spares | I68: 0
A69: Information and Communication Infrastructure | C69: =SUM(C70:C73) -> 0 | D69: 0 | E69: 0 | F69: 0 | G69: 0 | H69: 0 | I69: 0 | K69: =SUM(K70:K73) -> 0
A70: Data Centres | I70: 0
A71: Core Layers | I71: 0
A72: Distribution Layers | I72: 0
A73: Capital Spares | I73: 0
A75: Community Assets | C75: =+C76+C99 -> 0 | D75: 0 | E75: 0 | F75: 0 | G75: 0 | H75: 0 | I75: 0 | K75: =+K76+K99 -> 0
A76: Community Facilities | C76: =SUM(C77:C98) -> 0 | D76: 0 | E76: 0 | F76: 0 | G76: 0 | H76: 0 | I76: 0 | K76: =SUM(K77:K98) -> 0
A77: Halls | I77: 0
A78: Centres | I78: 0
A79: Crèches | I79: 0
A80: Clinics/Care Centres | I80: 0
A81: Fire/Ambulance Stations | I81: 0
A82: Testing Stations | I82: 0
A83: Museums | I83: 0
A84: Galleries | I84: 0
A85: Theatres | I85: 0
A86: Libraries | I86: 0
A87: Cemeteries/Crematoria | I87: 0
A88: Police | I88: 0
A89: Purls | I89: 0
A90: Public Open Space | I90: 0
A91: Nature Reserves | I91: 0
A92: Public Ablution Facilities | I92: 0
A93: Markets | I93: 0
A94: Stalls | I94: 0
A95: Abattoirs | I95: 0
A96: Airports | I96: 0
A97: Taxi Ranks/Bus Terminals | I97: 0
A98: Capital Spares | I98: 0
A99: Sport and Recreation Facilities | C99: =SUM(C100:C102) -> 0 | D99: 0 | E99: 0 | F99: 0 | G99: 0 | H99: 0 | I99: 0 | K99: =SUM(K100:K102) -> 0
A100: Indoor Facilities | I100: 0
A101: Outdoor Facilities | C101: 0 | D101: 0 | E101: 0 | F101: 0 | G101: 0 | H101: 0 | I101: =H101-G101 -> 0 | J101: =IF(I101=0,"",I101/H101) ->  | K101: 0
A102: Capital Spares | I102: 0
A103: Heritage assets | C103: =SUM(C104:C108) -> 0 | D103: 0 | E103: 0 | F103: 0 | G103: 0 | H103: 0 | I103: 0 | K103: =SUM(K104:K108) -> 0
A104: Monuments | I104: 0
A105: Historic Buildings | I105: 0
A106: Works of Art | I106: 0
A107: Conservation Areas | I107: 0
A108: Other Heritage | I108: 0
I109: 0
A110: Investment properties | C110: =+C111+C114 -> 0 | D110: 0 | E110: 0 | F110: 0 | G110: 0 | H110: 0 | I110: 0 | K110: =+K111+K114 -> 0
A111: Revenue Generating | C111: =SUM(C112:C113) -> 0 | D111: 0 | E111: 0 | F111: 0 | G111: 0 | H111: 0 | I111: 0 | K111: =SUM(K112:K113) -> 0
A112: Improved Property | I112: 0
A113: Unimproved Property | I113: 0
A114: Non-revenue Generating | C114: =SUM(C115:C116) -> 0 | D114: 0 | E114: 0 | F114: 0 | G114: 0 | H114: 0 | I114: 0 | K114: =SUM(K115:K116) -> 0
A115: Improved Property | I115: 0
A116: Unimproved Property | I116: =H116-G116 -> 0 | J116: =IF(I116=0,"",I116/H116) -> 
A117: Other assets | C117: =+C118+C130 -> 0 | D117: 0 | E117: 0 | F117: 0 | G117: 0 | H117: 0 | I117: 0 | K117: =+K118+K130 -> 0
A118: Operational Buildings | C118: =SUM(C119:C129) -> 0 | D118: 0 | E118: 0 | F118: 0 | G118: 0 | H118: 0 | I118: 0 | K118: =SUM(K119:K129) -> 0
A119: Municipal Offices | C119: 0 | D119: 0 | E119: 0 | F119: 0 | G119: 0 | H119: 0 | I119: 0 | K119: 0
A120: Pay/Enquiry Points | I120: 0
A121: Building Plan Offices | I121: 0
A122: Workshops | I122: 0
A123: Yards | I123: 0
A124: Stores | I124: 0
A125: Laboratories | I125: 0
A126: Training Centres | I126: 0
A127: Manufacturing Plant | I127: 0
A128: Depots | I128: 0
A129: Capital Spares | I129: 0
A130: Housing | C130: =SUM(C131:C133) -> 0 | D130: 0 | E130: 0 | F130: 0 | G130: 0 | H130: 0 | I130: 0 | K130: =SUM(K131:K133) -> 0
A131: Staff Housing | I131: 0
A132: Social Housing | I132: 0
A133: Capital Spares | I133: 0
A135: Biological or Cultivated Assets | C135: =SUM(C136:C136) -> 0 | D135: 0 | E135: 0 | F135: 0 | G135: 0 | H135: 0 | I135: =H135-G135 -> 0 | K135: =SUM(K136) -> 0
A136: Biological or Cultivated Assets | I136: =H136-G136 -> 0
J137: =IF(I137=0,"",I137/H137) -> 
A138: Intangible Assets | C138: =SUM(C139:C140) -> 0 | D138: 0 | E138: 0 | F138: 0 | G138: 0 | H138: 0 | I138: =H138-G138 -> 0 | K138: =SUM(K139:K140) -> 0
A139: Servitudes | I139: 0
A140: Licences and Rights | C140: =SUM(C141:C146) -> 0 | D140: 0 | E140: 0 | F140: 0 | G140: 0 | H140: 0 | I140: 0 | K140: =SUM(K141:K146) -> 0
A141: Water Rights | I141: 0
A142: Effluent Licenses | I142: 0
A143: Solid Waste Licenses | I143: 0
A144: Computer Software and Applications | I144: 0
A145: Load Settlement Software Applications | I145: 0
A146: Unspecified | I146: 0
A148: Computer Equipment | C148: =SUM(C149:C149) -> 0 | D148: 0 | E148: 0 | F148: 0 | G148: 0 | H148: 0 | I148: =H148-G148 -> 0 | J148: =IF(I148=0,"",I148/H148) ->  | K148: =SUM(K149) -> 0
A149: Computer Equipment | I149: =H149-G149 -> 0 | J149: =IF(I149=0,"",I149/H149) -> 
A151: Furniture and Office Equipment | C151: =SUM(C152:C152) -> 0 | D151: 0 | E151: 0 | F151: 0 | G151: 0 | H151: 0 | I151: =H151-G151 -> 0 | J151: =IF(I151=0,"",I151/H151) ->  | K151: =SUM(K152) -> 0
A152: Furniture and Office Equipment | C152: 0 | D152: 0 | E152: 0 | F152: 0 | G152: 0 | H152: 0 | I152: =H152-G152 -> 0 | J152: =IF(I152=0,"",I152/H152) ->  | K152: 0
J153: =IF(I153=0,"",I153/H153) -> 
A154: Machinery and Equipment | C154: =SUM(C155:C155) -> 241213.78 | D154: 100000 | E154: 0 | F154: 0 | G154: 0 | H154: 23340 | I154: =H154-G154 -> 23340 | J154: =IF(I154=0,"",I154/H154) -> 1 | K154: =SUM(K155) -> 0
A155: Machinery and Equipment | C155: 241213.78 | D155: 100000 | E155: 0 | F155: 0 | G155: 0 | H155: 23340 | I155: =H155-G155 -> 23340 | J155: =IF(I155=0,"",I155/H155) -> 1 | K155: 0
A157: Transport Assets | C157: =SUM(C158:C158) -> 0 | D157: 0 | E157: 0 | F157: 0 | G157: 0 | H157: 0 | I157: =H157-G157 -> 0 | J157: =IF(I157=0,"",I157/H157) ->  | K157: =SUM(K158) -> 0
A158: Transport Assets | I158: =H158-G158 -> 0 | J158: =IF(I158=0,"",I158/H158) -> 
A160: Land | C160: =SUM(C161:C161) -> 0 | D160: 0 | E160: 0 | F160: 0 | G160: 0 | H160: 0 | I160: =H160-G160 -> 0 | J160: =IF(I160=0,"",I160/H160) ->  | K160: =SUM(K161) -> 0
A161: Land | I161: =H161-G161 -> 0 | J161: =IF(I161=0,"",I161/H161) -> 
J162: .
A163: Zoo's, Marine and Non-biological Animals | C163: =SUM(C164:C164) -> 0 | D163: 0 | E163: 0 | F163: 0 | G163: 0 | H163: 0 | I163: =H163-G163 -> 0 | J163: =IF(I163=0,"",I163/H163) ->  | K163: =SUM(K164) -> 0
A164: Zoo's, Marine and Non-biological Animals | I164: =H164-G164 -> 0 | J164: =IF(I164=0,"",I164/H164) -> 
J165: =IF(I165=0,"",I165/H165) -> 
A166: Total Capital Expenditure on upgrading of existing assets | B166: 1 | C166: =C7+C75+C103+C110+C117+C135+C138+C148+C151+C154+C157+C160+C163 -> 241213.78 | D166: 100000 | E166: 0 | F166: 0 | G166: 0 | H166: 23340 | I166: =H166-G166 -> 23340 | J166: =IF(I166=0,"",I166/H166) -> 1 | K166: =K7+K75+K103+K110+K117+K135+K138+K148+K151+K154+K157+K160+K163 -> 0
A168: =head27a -> References
A169: 1. Total Capital Expenditure on new assets (SC13a) plus Total Capital Expenditure on renewal of existing assets (SC13b) plus Total Capital Expenditure on upgrading of existing assets (SC13e) must reconcile to total capital expenditure in Table C5
A171: check balance | C171: =C166+SC13a!C166+SC13b!C166-'C5-Capex'!C40 -> 0 | D171: =D166+SC13a!D166+SC13b!D166-'C5-Capex'!D40 -> 0 | E171: =E166+SC13a!E166+SC13b!E166-'C5-Capex'!E40 -> 0 | F171: =F166+SC13a!F166+SC13b!F166-'C5-Capex'!F40 -> 0 | G171: =G166+SC13a!G166+SC13b!G166-'C5-Capex'!G40 -> 0 | H171: =H166+SC13a!H166+SC13b!H166-'C5-Capex'!H40 -> 0 | K171: =K166+SC13a!K166+SC13b!K166-'C5-Capex'!K40 -> 0

Sheet SC71charts
A1: ='Template names'!B102 -> Chart C1 2019/20 Capital Expenditure Monthly Trend: actual v target
A2: Month | B2: ='SC12'!B2 -> 2018/19 | C2: ='SC12'!C3 -> Original Budget | D2: ='SC12'!D3 -> Adjusted Budget | E2: ='SC12'!E3 -> Monthly actual
A3: =LEFT('SC12'!A6,3) -> Jul | B3: ='SC12'!B6 -> 894644.8 | C3: ='SC12'!C6 -> 4620105.93 | D3: ='SC12'!D6 -> 4620111 | E3: ='SC12'!E6 -> 0
